Workbook

Sheet Match Outcome (hidden)
A2: =P6 -> 1 | B2: =Q6 -> LEI v CHE | C2: Skewness Factor | D2: =U6 -> 0.02 | E2: Random | F2: =V6 -> 78.4% | P2: Match Week | Q2: ='Game State'!B4 -> 1 | V2: Home Benefit | W2: 5%
A3: Outcomes | B3: Z Scores | C3: Cumulative Prob | D3: Raw Prob | E3: Normalised Prob | F3: Skewed Z | G3: Cumulative Prob | H3: Raw Prob | I3: Normalised Prob | M3: =RANDBETWEEN(0,20000)/20000 -> 1.33% | P3: Premier League Type | Q3: =HLOOKUP(Q2,'Game State'!$8:$9,2,FALSE) -> Skip | V3: Scalar | W3: 4
A4: 1 | B4: =-3+(6*(A4-1))/(29-1) -> -3.00 | C4: =_xlfn.NORM.S.DIST(B4,TRUE) -> 0.1% | D4: =C4 -> 0.13% | E4: =D4/SUM($D$4:$D$32) -> 0.14% | F4: =B4+$D$2+SIGN(B4)*ABS(B4)^2 -> -11.98 | G4: =_xlfn.NORM.S.DIST(F4,TRUE) -> 0.00% | H4: =G4 -> 0.00% | I4: =H4/SUM($H$4:$H$32) -> 0.00% | K4: 2-7
A5: 2 | B5: =-3+(6*(A5-1))/(29-1) -> -2.79 | C5: =_xlfn.NORM.S.DIST(B5,TRUE) -> 0.3% | D5: =C5-C4 -> 0.13% | E5: =D5/SUM($D$4:$D$32) -> 0.13% | F5: -10.52 | G5: 0.00% | H5: =G5-G4 -> 0.00% | I5: =H5/SUM($H$4:$H$32) -> 0.00% | K5: 1-8 | P5: Matches | Q5: Teams | R5: Home Team | S5: Away Team | T5: Ranking Skew | U5: Skewness Factor | V5: Random | W5: Result
A6: 3 | B6: -2.57 | C6: 0.5% | D6: =C6-C5 -> 0.24% | E6: 0.24% | F6: -9.16 | G6: 0.00% | H6: =G6-G5 -> 0.00% | I6: 0.00% | K6: 3-6 | P6: 1 | Q6: LEI v CHE | R6: =IFERROR(VLOOKUP(LEFT(Q6,3),'League Table'!$D$194:$E$286,2,FALSE),) -> Leicester City | S6: =IFERROR(VLOOKUP(RIGHT(Q6,3),'League Table'!$D$194:$E$286,2,FALSE),) -> Chelsea | T6: =IFERROR(VLOOKUP(R6,'Team Reputation'!$B$2:$C$181,2,FALSE)/VLOOKUP(S6,'Team Reputation'!$B$2:$C$181,2,FALSE),0) -> 94.7% | U6: =(1-(T6*(1+$W$2)))*$W$3 -> 0.02 | V6: 78.4% | W6: =IFERROR(VLOOKUP(F2,G3:K32,5,TRUE),"") -> 1-0
A7: 4 | B7: -2.36 | C7: 0.9% | D7: 0.41% | E7: 0.41% | F7: -7.89 | G7: 0.00% | H7: =G7-G6 -> 0.00% | I7: 0.00% | K7: 0-6 | P7: 2 | R7: =IFERROR(VLOOKUP(LEFT(Q7,3),'League Table'!$D$194:$E$286,2,FALSE),) -> 0 | S7: =IFERROR(VLOOKUP(RIGHT(Q7,3),'League Table'!$D$194:$E$286,2,FALSE),) -> 0 | T7: =IFERROR(VLOOKUP(R7,'Team Reputation'!$B$2:$C$181,2,FALSE)/VLOOKUP(S7,'Team Reputation'!$B$2:$C$181,2,FALSE),0) -> 0.0% | U7: 4.00 | W7: =IFERROR(VLOOKUP(F34,G35:K64,5,TRUE),"") -> 
A8: 5 | B8: -2.14 | C8: 1.6% | D8: 0.69% | E8: 0.69% | F8: -6.71 | G8: 0.00% | H8: =G8-G7 -> 0.00% | I8: 0.00% | K8: 0-5 | P8: 3 | R8: =IFERROR(VLOOKUP(LEFT(Q8,3),'League Table'!$D$194:$E$286,2,FALSE),) -> 0 | S8: =IFERROR(VLOOKUP(RIGHT(Q8,3),'League Table'!$D$194:$E$286,2,FALSE),) -> 0 | T8: =IFERROR(VLOOKUP(R8,'Team Reputation'!$B$2:$C$181,2,FALSE)/VLOOKUP(S8,'Team Reputation'!$B$2:$C$181,2,FALSE),0) -> 0.0% | U8: 4.00 | W8: =IFERROR(VLOOKUP(F66,G67:K96,5,TRUE),"") -> 
A9: 6 | B9: -1.93 | C9: 2.7% | D9: 1.08% | E9: 1.08% | F9: -5.63 | G9: 0.00% | H9: 0.00% | I9: 0.00% | K9: 1-5 | N9: To Do | P9: 4 | R9: =IFERROR(VLOOKUP(LEFT(Q9,3),'League Table'!$D$194:$E$286,2,FALSE),) -> 0 | S9: =IFERROR(VLOOKUP(RIGHT(Q9,3),'League Table'!$D$194:$E$286,2,FALSE),) -> 0 | T9: =IFERROR(VLOOKUP(R9,'Team Reputation'!$B$2:$C$181,2,FALSE)/VLOOKUP(S9,'Team Reputation'!$B$2:$C$181,2,FALSE),0) -> 0.0% | U9: 4.00 | W9: =IFERROR(VLOOKUP(F98,G99:K128,5,TRUE),"") -> 
A10: 7 | B10: -1.71 | C10: 4.3% | D10: 1.63% | E10: 1.64% | F10: -4.63 | G10: 0.00% | H10: 0.00% | I10: 0.00% | K10: 0-4 | N10: Random Macro | P10: 5 | R10: =IFERROR(VLOOKUP(LEFT(Q10,3),'League Table'!$D$194:$E$286,2,FALSE),) -> 0 | S10: =IFERROR(VLOOKUP(RIGHT(Q10,3),'League Table'!$D$194:$E$286,2,FALSE),) -> 0 | T10: =IFERROR(VLOOKUP(R10,'Team Reputation'!$B$2:$C$181,2,FALSE)/VLOOKUP(S10,'Team Reputation'!$B$2:$C$181,2,FALSE),0) -> 0.0% | U10: 4.00 | W10: =IFERROR(VLOOKUP(F130,G131:K160,5,TRUE),"") -> 
A11: 8 | B11: -1.50 | C11: 6.7% | D11: 2.36% | E11: 2.36% | F11: -3.73 | G11: 0.01% | H11: 0.01% | I11: 0.01% | K11: 1-4 | N11: Populate Result Maco | P11: 6 | R11: =IFERROR(VLOOKUP(LEFT(Q11,3),'League Table'!$D$194:$E$286,2,FALSE),) -> 0 | S11: =IFERROR(VLOOKUP(RIGHT(Q11,3),'League Table'!$D$194:$E$286,2,FALSE),) -> 0 | T11: =IFERROR(VLOOKUP(R11,'Team Reputation'!$B$2:$C$181,2,FALSE)/VLOOKUP(S11,'Team Reputation'!$B$2:$C$181,2,FALSE),0) -> 0.0% | U11: 4.00 | W11: =IFERROR(VLOOKUP(F162,G163:K192,5,TRUE),"") -> 
A12: 9 | B12: -1.29 | C12: 9.9% | D12: 3.25% | E12: 3.25% | F12: -2.92 | G12: 0.18% | H12: 0.17% | I12: 0.17% | K12: 2-3 | P12: 7 | R12: =IFERROR(VLOOKUP(LEFT(Q12,3),'League Table'!$D$194:$E$286,2,FALSE),) -> 0 | S12: =IFERROR(VLOOKUP(RIGHT(Q12,3),'League Table'!$D$194:$E$286,2,FALSE),) -> 0 | T12: =IFERROR(VLOOKUP(R12,'Team Reputation'!$B$2:$C$181,2,FALSE)/VLOOKUP(S12,'Team Reputation'!$B$2:$C$181,2,FALSE),0) -> 0.0% | U12: 4.00 | W12: =IFERROR(VLOOKUP(F194,G195:K224,5,TRUE),"") -> 
A13: 10 | B13: -1.07 | C13: 14.2% | D13: 4.27% | E13: 4.28% | F13: -2.20 | G13: 1.40% | H13: 1.22% | I13: 1.22% | K13: 1-3 | P13: 8 | R13: =IFERROR(VLOOKUP(LEFT(Q13,3),'League Table'!$D$194:$E$286,2,FALSE),) -> 0 | S13: =IFERROR(VLOOKUP(RIGHT(Q13,3),'League Table'!$D$194:$E$286,2,FALSE),) -> 0 | T13: =IFERROR(VLOOKUP(R13,'Team Reputation'!$B$2:$C$181,2,FALSE)/VLOOKUP(S13,'Team Reputation'!$B$2:$C$181,2,FALSE),0) -> 0.0% | U13: 4.00 | W13: =IFERROR(VLOOKUP(F226,G227:K256,5,TRUE),"") -> 
A14: 11 | B14: -0.86 | C14: 19.6% | D14: 5.37% | E14: 5.38% | F14: -1.57 | G14: 5.83% | H14: 4.43% | I14: 4.43% | K14: 0-2 | P14: 9 | R14: =IFERROR(VLOOKUP(LEFT(Q14,3),'League Table'!$D$194:$E$286,2,FALSE),) -> 0 | S14: =IFERROR(VLOOKUP(RIGHT(Q14,3),'League Table'!$D$194:$E$286,2,FALSE),) -> 0 | T14: =IFERROR(VLOOKUP(R14,'Team Reputation'!$B$2:$C$181,2,FALSE)/VLOOKUP(S14,'Team Reputation'!$B$2:$C$181,2,FALSE),0) -> 0.0% | U14: 4.00 | W14: =IFERROR(VLOOKUP(F258,G259:K288,5,TRUE),"") -> 
A15: 12 | B15: -0.64 | C15: 26.0% | D15: 6.45% | E15: 6.46% | F15: -1.03 | G15: 15.07% | H15: 9.24% | I15: 9.24% | K15: 1-2 | P15: 10 | R15: =IFERROR(VLOOKUP(LEFT(Q15,3),'League Table'!$D$194:$E$286,2,FALSE),) -> 0 | S15: =IFERROR(VLOOKUP(RIGHT(Q15,3),'League Table'!$D$194:$E$286,2,FALSE),) -> 0 | T15: =IFERROR(VLOOKUP(R15,'Team Reputation'!$B$2:$C$181,2,FALSE)/VLOOKUP(S15,'Team Reputation'!$B$2:$C$181,2,FALSE),0) -> 0.0% | U15: 4.00 | W15: =IFERROR(VLOOKUP(F290,G291:K320,5,TRUE),"") -> 
A16: 13 | B16: -0.43 | C16: 33.4% | D16: 7.40% | E16: 7.41% | F16: -0.59 | G16: 27.78% | H16: 12.70% | I16: 12.70% | K16: 0-1 | P16: 11 | R16: =IFERROR(VLOOKUP(LEFT(Q16,3),'League Table'!$D$194:$E$286,2,FALSE),) -> 0 | S16: =IFERROR(VLOOKUP(RIGHT(Q16,3),'League Table'!$D$194:$E$286,2,FALSE),) -> 0 | T16: =IFERROR(VLOOKUP(R16,'Team Reputation'!$B$2:$C$181,2,FALSE)/VLOOKUP(S16,'Team Reputation'!$B$2:$C$181,2,FALSE),0) -> 0.0% | U16: 4.00 | W16: =IFERROR(VLOOKUP(F322,G323:K352,5,TRUE),"") -> 
A17: 14 | B17: -0.21 | C17: 41.5% | D17: 8.10% | E17: 8.12% | F17: -0.24 | G17: 40.61% | H17: 12.84% | I17: 12.84% | K17: 0-0 | P17: 12 | R17: =IFERROR(VLOOKUP(LEFT(Q17,3),'League Table'!$D$194:$E$286,2,FALSE),) -> 0 | S17: =IFERROR(VLOOKUP(RIGHT(Q17,3),'League Table'!$D$194:$E$286,2,FALSE),) -> 0 | T17: =IFERROR(VLOOKUP(R17,'Team Reputation'!$B$2:$C$181,2,FALSE)/VLOOKUP(S17,'Team Reputation'!$B$2:$C$181,2,FALSE),0) -> 0.0% | U17: 4.00 | W17: =IFERROR(VLOOKUP(F354,G355:K384,5,TRUE),"") -> 
A18: 15 | B18: 0.00 | C18: 50.0% | D18: 8.48% | E18: 8.50% | F18: 0.02 | G18: 50.91% | H18: 10.29% | I18: 10.29% | K18: 1-1 | P18: 13 | R18: =IFERROR(VLOOKUP(LEFT(Q18,3),'League Table'!$D$194:$E$286,2,FALSE),) -> 0 | S18: =IFERROR(VLOOKUP(RIGHT(Q18,3),'League Table'!$D$194:$E$286,2,FALSE),) -> 0 | T18: =IFERROR(VLOOKUP(R18,'Team Reputation'!$B$2:$C$181,2,FALSE)/VLOOKUP(S18,'Team Reputation'!$B$2:$C$181,2,FALSE),0) -> 0.0% | U18: 4.00 | W18: =IFERROR(VLOOKUP(F386,G387:K416,5,TRUE),"") -> 
A19: 16 | B19: 0.21 | C19: 58.5% | D19: 8.48% | E19: 8.50% | F19: 0.28 | G19: 61.14% | H19: 10.23% | I19: 10.23% | K19: 2-2 | P19: 14 | R19: =IFERROR(VLOOKUP(LEFT(Q19,3),'League Table'!$D$194:$E$286,2,FALSE),) -> 0 | S19: =IFERROR(VLOOKUP(RIGHT(Q19,3),'League Table'!$D$194:$E$286,2,FALSE),) -> 0 | T19: =IFERROR(VLOOKUP(R19,'Team Reputation'!$B$2:$C$181,2,FALSE)/VLOOKUP(S19,'Team Reputation'!$B$2:$C$181,2,FALSE),0) -> 0.0% | U19: 4.00 | W19: =IFERROR(VLOOKUP(F418,G419:K448,5,TRUE),"") -> 
A20: 17 | B20: 0.43 | C20: 66.6% | D20: 8.10% | E20: 8.12% | F20: 0.63 | G20: 73.73% | H20: 12.59% | I20: 12.59% | K20: 1-0 | P20: 15 | R20: =IFERROR(VLOOKUP(LEFT(Q20,3),'League Table'!$D$194:$E$286,2,FALSE),) -> 0 | S20: =IFERROR(VLOOKUP(RIGHT(Q20,3),'League Table'!$D$194:$E$286,2,FALSE),) -> 0 | T20: =IFERROR(VLOOKUP(R20,'Team Reputation'!$B$2:$C$181,2,FALSE)/VLOOKUP(S20,'Team Reputation'!$B$2:$C$181,2,FALSE),0) -> 0.0% | U20: 4.00 | W20: =IFERROR(VLOOKUP(F450,G451:K480,5,TRUE),"") -> 
A21: 18 | B21: 0.64 | C21: 74.0% | D21: 7.40% | E21: 7.41% | F21: 1.08 | G21: 85.97% | H21: 12.24% | I21: 12.24% | K21: 2-1 | P21: 16 | R21: =IFERROR(VLOOKUP(LEFT(Q21,3),'League Table'!$D$194:$E$286,2,FALSE),) -> 0 | S21: =IFERROR(VLOOKUP(RIGHT(Q21,3),'League Table'!$D$194:$E$286,2,FALSE),) -> 0 | T21: =IFERROR(VLOOKUP(R21,'Team Reputation'!$B$2:$C$181,2,FALSE)/VLOOKUP(S21,'Team Reputation'!$B$2:$C$181,2,FALSE),0) -> 0.0% | U21: 4.00 | W21: =IFERROR(VLOOKUP(F482,G483:K512,5,TRUE),"") -> 
A22: 19 | B22: 0.86 | C22: 80.4% | D22: 6.45% | E22: 6.46% | F22: 1.61 | G22: =_xlfn.NORM.S.DIST(F22,TRUE) -> 94.68% | H22: 8.71% | I22: 8.71% | K22: 2-0 | P22: 17 | R22: =IFERROR(VLOOKUP(LEFT(Q22,3),'League Table'!$D$194:$E$286,2,FALSE),) -> 0 | S22: =IFERROR(VLOOKUP(RIGHT(Q22,3),'League Table'!$D$194:$E$286,2,FALSE),) -> 0 | T22: =IFERROR(VLOOKUP(R22,'Team Reputation'!$B$2:$C$181,2,FALSE)/VLOOKUP(S22,'Team Reputation'!$B$2:$C$181,2,FALSE),0) -> 0.0% | U22: 4.00 | W22: =IFERROR(VLOOKUP(F514,G515:K544,5,TRUE),"") -> 
A23: 20 | B23: 1.07 | C23: 85.8% | D23: 5.37% | E23: 5.38% | F23: 2.24 | G23: 98.75% | H23: 4.07% | I23: 4.07% | K23: 3-1 | P23: 18 | R23: =IFERROR(VLOOKUP(LEFT(Q23,3),'League Table'!$D$194:$E$286,2,FALSE),) -> 0 | S23: =IFERROR(VLOOKUP(RIGHT(Q23,3),'League Table'!$D$194:$E$286,2,FALSE),) -> 0 | T23: =IFERROR(VLOOKUP(R23,'Team Reputation'!$B$2:$C$181,2,FALSE)/VLOOKUP(S23,'Team Reputation'!$B$2:$C$181,2,FALSE),0) -> 0.0% | U23: 4.00 | W23: =IFERROR(VLOOKUP(F546,G547:K576,5,TRUE),"") -> 
A24: 21 | B24: 1.29 | C24: 90.1% | D24: 4.27% | E24: 4.28% | F24: 2.96 | G24: 99.85% | H24: 1.09% | I24: 1.09% | K24: 3-2 | P24: 19 | R24: =IFERROR(VLOOKUP(LEFT(Q24,3),'League Table'!$D$194:$E$286,2,FALSE),) -> 0 | S24: =IFERROR(VLOOKUP(RIGHT(Q24,3),'League Table'!$D$194:$E$286,2,FALSE),) -> 0 | T24: =IFERROR(VLOOKUP(R24,'Team Reputation'!$B$2:$C$181,2,FALSE)/VLOOKUP(S24,'Team Reputation'!$B$2:$C$181,2,FALSE),0) -> 0.0% | U24: 4.00 | W24: =IFERROR(VLOOKUP(F578,G579:K608,5,TRUE),"") -> 
A25: 22 | B25: 1.50 | C25: 93.3% | D25: 3.25% | E25: 3.25% | F25: 3.77 | G25: 99.99% | H25: 0.14% | I25: 0.14% | K25: 4-1 | P25: 20 | R25: =IFERROR(VLOOKUP(LEFT(Q25,3),'League Table'!$D$194:$E$286,2,FALSE),) -> 0 | S25: =IFERROR(VLOOKUP(RIGHT(Q25,3),'League Table'!$D$194:$E$286,2,FALSE),) -> 0 | T25: =IFERROR(VLOOKUP(R25,'Team Reputation'!$B$2:$C$181,2,FALSE)/VLOOKUP(S25,'Team Reputation'!$B$2:$C$181,2,FALSE),0) -> 0.0% | U25: 4.00 | W25: =IFERROR(VLOOKUP(F610,G611:K640,5,TRUE),"") -> 
A26: 23 | B26: 1.71 | C26: 95.7% | D26: 2.36% | E26: 2.36% | F26: 4.68 | G26: 100.00% | H26: 0.01% | I26: 0.01% | K26: 4-0 | P26: 21 | R26: =IFERROR(VLOOKUP(LEFT(Q26,3),'League Table'!$D$194:$E$286,2,FALSE),) -> 0 | S26: =IFERROR(VLOOKUP(RIGHT(Q26,3),'League Table'!$D$194:$E$286,2,FALSE),) -> 0 | T26: =IFERROR(VLOOKUP(R26,'Team Reputation'!$B$2:$C$181,2,FALSE)/VLOOKUP(S26,'Team Reputation'!$B$2:$C$181,2,FALSE),0) -> 0.0% | U26: 4.00 | W26: =IFERROR(VLOOKUP(F642,G643:K672,5,TRUE),"") -> 
A27: 24 | B27: 1.93 | C27: 97.3% | D27: 1.63% | E27: 1.64% | F27: 5.67 | G27: 100.00% | H27: 0.00% | I27: 0.00% | K27: 5-1 | P27: 22 | R27: =IFERROR(VLOOKUP(LEFT(Q27,3),'League Table'!$D$194:$E$286,2,FALSE),) -> 0 | S27: =IFERROR(VLOOKUP(RIGHT(Q27,3),'League Table'!$D$194:$E$286,2,FALSE),) -> 0 | T27: =IFERROR(VLOOKUP(R27,'Team Reputation'!$B$2:$C$181,2,FALSE)/VLOOKUP(S27,'Team Reputation'!$B$2:$C$181,2,FALSE),0) -> 0.0% | U27: 4.00 | W27: =IFERROR(VLOOKUP(F674,G675:K704,5,TRUE),"") -> 
A28: 25 | B28: 2.14 | C28: 98.4% | D28: 1.08% | E28: 1.08% | F28: 6.76 | G28: 100.00% | H28: 0.00% | I28: 0.00% | K28: 5-0 | P28: 23 | R28: =IFERROR(VLOOKUP(LEFT(Q28,3),'League Table'!$D$194:$E$286,2,FALSE),) -> 0 | S28: =IFERROR(VLOOKUP(RIGHT(Q28,3),'League Table'!$D$194:$E$286,2,FALSE),) -> 0 | T28: =IFERROR(VLOOKUP(R28,'Team Reputation'!$B$2:$C$181,2,FALSE)/VLOOKUP(S28,'Team Reputation'!$B$2:$C$181,2,FALSE),0) -> 0.0% | U28: 4.00 | W28: =IFERROR(VLOOKUP(F706,G707:K736,5,TRUE),"") -> 
A29: 26 | B29: 2.36 | C29: 99.1% | D29: 0.69% | E29: 0.69% | F29: 7.94 | G29: 100.00% | H29: 0.00% | I29: 0.00% | K29: 6-0 | P29: 24 | R29: =IFERROR(VLOOKUP(LEFT(Q29,3),'League Table'!$D$194:$E$286,2,FALSE),) -> 0 | S29: =IFERROR(VLOOKUP(RIGHT(Q29,3),'League Table'!$D$194:$E$286,2,FALSE),) -> 0 | T29: =IFERROR(VLOOKUP(R29,'Team Reputation'!$B$2:$C$181,2,FALSE)/VLOOKUP(S29,'Team Reputation'!$B$2:$C$181,2,FALSE),0) -> 0.0% | U29: 4.00 | W29: =IFERROR(VLOOKUP(F738,G739:K768,5,TRUE),"") -> 
A30: 27 | B30: 2.57 | C30: 99.5% | D30: 0.41% | E30: 0.41% | F30: 9.21 | G30: 100.00% | H30: 0.00% | I30: 0.00% | K30: 6-3 | P30: 25 | R30: =IFERROR(VLOOKUP(LEFT(Q30,3),'League Table'!$D$194:$E$286,2,FALSE),) -> 0 | S30: =IFERROR(VLOOKUP(RIGHT(Q30,3),'League Table'!$D$194:$E$286,2,FALSE),) -> 0 | T30: =IFERROR(VLOOKUP(R30,'Team Reputation'!$B$2:$C$181,2,FALSE)/VLOOKUP(S30,'Team Reputation'!$B$2:$C$181,2,FALSE),0) -> 0.0% | U30: 4.00 | W30: =IFERROR(VLOOKUP(F770,G771:K800,5,TRUE),"") -> 
A31: 28 | B31: 2.79 | C31: 99.7% | D31: 0.24% | E31: 0.24% | F31: 10.57 | G31: 100.00% | H31: 0.00% | I31: 0.00% | K31: 8-1 | P31: 26 | R31: =IFERROR(VLOOKUP(LEFT(Q31,3),'League Table'!$D$194:$E$286,2,FALSE),) -> 0 | S31: =IFERROR(VLOOKUP(RIGHT(Q31,3),'League Table'!$D$194:$E$286,2,FALSE),) -> 0 | T31: =IFERROR(VLOOKUP(R31,'Team Reputation'!$B$2:$C$181,2,FALSE)/VLOOKUP(S31,'Team Reputation'!$B$2:$C$181,2,FALSE),0) -> 0.0% | U31: 4.00 | W31: =IFERROR(VLOOKUP(F802,G803:K832,5,TRUE),"") -> 
A32: 29 | B32: 3.00 | C32: 99.9% | D32: 0.13% | E32: 0.13% | F32: 12.02 | G32: 100.00% | H32: 0.00% | I32: 0.00% | K32: 7-2 | P32: 27 | R32: =IFERROR(VLOOKUP(LEFT(Q32,3),'League Table'!$D$194:$E$286,2,FALSE),) -> 0 | S32: =IFERROR(VLOOKUP(RIGHT(Q32,3),'League Table'!$D$194:$E$286,2,FALSE),) -> 0 | T32: =IFERROR(VLOOKUP(R32,'Team Reputation'!$B$2:$C$181,2,FALSE)/VLOOKUP(S32,'Team Reputation'!$B$2:$C$181,2,FALSE),0) -> 0.0% | U32: 4.00 | W32: =IFERROR(VLOOKUP(F834,G835:K864,5,TRUE),"") -> 
P33: 28 | R33: =IFERROR(VLOOKUP(LEFT(Q33,3),'League Table'!$D$194:$E$286,2,FALSE),) -> 0 | S33: =IFERROR(VLOOKUP(RIGHT(Q33,3),'League Table'!$D$194:$E$286,2,FALSE),) -> 0 | T33: =IFERROR(VLOOKUP(R33,'Team Reputation'!$B$2:$C$181,2,FALSE)/VLOOKUP(S33,'Team Reputation'!$B$2:$C$181,2,FALSE),0) -> 0.0% | U33: 4.00 | W33: =IFERROR(VLOOKUP(F866,G867:K896,5,TRUE),"") -> 
A34: =P7 -> 2 | B34: =Q7 -> 0 | C34: Skewness Factor | D34: =U7 -> 4.00 | E34: Random | F34: =V7 -> 0.0% | P34: 29 | R34: =IFERROR(VLOOKUP(LEFT(Q34,3),'League Table'!$D$194:$E$286,2,FALSE),) -> 0 | S34: =IFERROR(VLOOKUP(RIGHT(Q34,3),'League Table'!$D$194:$E$286,2,FALSE),) -> 0 | T34: =IFERROR(VLOOKUP(R34,'Team Reputation'!$B$2:$C$181,2,FALSE)/VLOOKUP(S34,'Team Reputation'!$B$2:$C$181,2,FALSE),0) -> 0.0% | U34: 4.00 | W34: =IFERROR(VLOOKUP(F898,G899:K928,5,TRUE),"") -> 
A35: Outcomes | B35: Z Scores | C35: Cumulative Prob | D35: Raw Prob | E35: Normalised Prob | F35: Skewed Z | G35: Cumulative Prob | H35: Raw Prob | I35: Normalised Prob | P35: 30 | R35: =IFERROR(VLOOKUP(LEFT(Q35,3),'League Table'!$D$194:$E$286,2,FALSE),) -> 0 | S35: =IFERROR(VLOOKUP(RIGHT(Q35,3),'League Table'!$D$194:$E$286,2,FALSE),) -> 0 | T35: =IFERROR(VLOOKUP(R35,'Team Reputation'!$B$2:$C$181,2,FALSE)/VLOOKUP(S35,'Team Reputation'!$B$2:$C$181,2,FALSE),0) -> 0.0% | U35: 4.00 | W35: =IFERROR(VLOOKUP(F930,G931:K960,5,TRUE),"") -> 
A36: 1 | B36: =-3+(6*(A36-1))/(29-1) -> -3.00 | C36: =_xlfn.NORM.S.DIST(B36,TRUE) -> 0.1% | D36: =C36 -> 0.13% | E36: =D36/SUM($D$4:$D$32) -> 0.14% | F36: =B36+$D$34+SIGN(B36)*ABS(B36)^2 -> -8.00 | G36: =_xlfn.NORM.S.DIST(F36,TRUE) -> 0.00% | H36: =G36 -> 0.00% | I36: =H36/SUM($H$4:$H$32) -> 0.00% | K36: 2-7 | P36: 31 | R36: =IFERROR(VLOOKUP(LEFT(Q36,3),'League Table'!$D$194:$E$286,2,FALSE),) -> 0 | S36: =IFERROR(VLOOKUP(RIGHT(Q36,3),'League Table'!$D$194:$E$286,2,FALSE),) -> 0 | T36: =IFERROR(VLOOKUP(R36,'Team Reputation'!$B$2:$C$181,2,FALSE)/VLOOKUP(S36,'Team Reputation'!$B$2:$C$181,2,FALSE),0) -> 0.0% | U36: 4.00 | W36: =IFERROR(VLOOKUP(F962,G963:K992,5,TRUE),"") -> 
A37: 2 | B37: =-3+(6*(A37-1))/(29-1) -> -2.79 | C37: =_xlfn.NORM.S.DIST(B37,TRUE) -> 0.3% | D37: =C37-C36 -> 0.13% | E37: =D37/SUM($D$4:$D$32) -> 0.13% | F37: =B37+$D$34+SIGN(B37)*ABS(B37)^2 -> -6.55 | G37: 0.00% | H37: =G37-G36 -> 0.00% | I37: =H37/SUM($H$4:$H$32) -> 0.00% | K37: 1-8 | P37: 32 | R37: =IFERROR(VLOOKUP(LEFT(Q37,3),'League Table'!$D$194:$E$286,2,FALSE),) -> 0 | S37: =IFERROR(VLOOKUP(RIGHT(Q37,3),'League Table'!$D$194:$E$286,2,FALSE),) -> 0 | T37: =IFERROR(VLOOKUP(R37,'Team Reputation'!$B$2:$C$181,2,FALSE)/VLOOKUP(S37,'Team Reputation'!$B$2:$C$181,2,FALSE),0) -> 0.0% | U37: 4.00 | W37: =IFERROR(VLOOKUP(F994,G995:K1024,5,TRUE),"") -> 
A38: 3 | B38: -2.57 | C38: 0.5% | D38: =C38-C37 -> 0.24% | E38: 0.24% | F38: -5.18 | G38: 0.00% | H38: =G38-G37 -> 0.00% | I38: 0.00% | K38: 3-6 | P38: 33 | R38: =IFERROR(VLOOKUP(LEFT(Q38,3),'League Table'!$D$194:$E$286,2,FALSE),) -> 0 | S38: =IFERROR(VLOOKUP(RIGHT(Q38,3),'League Table'!$D$194:$E$286,2,FALSE),) -> 0 | T38: =IFERROR(VLOOKUP(R38,'Team Reputation'!$B$2:$C$181,2,FALSE)/VLOOKUP(S38,'Team Reputation'!$B$2:$C$181,2,FALSE),0) -> 0.0% | U38: 4.00 | W38: =IFERROR(VLOOKUP(F1026,G1027:K1056,5,TRUE),"") -> 
A39: 4 | B39: -2.36 | C39: 0.9% | D39: 0.41% | E39: 0.41% | F39: -3.91 | G39: 0.00% | H39: =G39-G38 -> 0.00% | I39: 0.00% | K39: 0-6 | P39: 34 | R39: =IFERROR(VLOOKUP(LEFT(Q39,3),'League Table'!$D$194:$E$286,2,FALSE),) -> 0 | S39: =IFERROR(VLOOKUP(RIGHT(Q39,3),'League Table'!$D$194:$E$286,2,FALSE),) -> 0 | T39: =IFERROR(VLOOKUP(R39,'Team Reputation'!$B$2:$C$181,2,FALSE)/VLOOKUP(S39,'Team Reputation'!$B$2:$C$181,2,FALSE),0) -> 0.0% | U39: 4.00 | W39: =IFERROR(VLOOKUP(F1058,G1059:K1088,5,TRUE),"") -> 
A40: 5 | B40: -2.14 | C40: 1.6% | D40: 0.69% | E40: 0.69% | F40: -2.73 | G40: 0.31% | H40: =G40-G39 -> 0.31% | I40: 0.31% | K40: 0-5 | P40: 35 | R40: =IFERROR(VLOOKUP(LEFT(Q40,3),'League Table'!$D$194:$E$286,2,FALSE),) -> 0 | S40: =IFERROR(VLOOKUP(RIGHT(Q40,3),'League Table'!$D$194:$E$286,2,FALSE),) -> 0 | T40: =IFERROR(VLOOKUP(R40,'Team Reputation'!$B$2:$C$181,2,FALSE)/VLOOKUP(S40,'Team Reputation'!$B$2:$C$181,2,FALSE),0) -> 0.0% | U40: 4.00 | W40: =IFERROR(VLOOKUP(F1090,G1091:K1120,5,TRUE),"") -> 
A41: 6 | B41: -1.93 | C41: 2.7% | D41: 1.08% | E41: 1.08% | F41: -1.65 | G41: 4.97% | H41: 4.66% | I41: 4.66% | K41: 1-5 | P41: 36 | R41: =IFERROR(VLOOKUP(LEFT(Q41,3),'League Table'!$D$194:$E$286,2,FALSE),) -> 0 | S41: =IFERROR(VLOOKUP(RIGHT(Q41,3),'League Table'!$D$194:$E$286,2,FALSE),) -> 0 | T41: =IFERROR(VLOOKUP(R41,'Team Reputation'!$B$2:$C$181,2,FALSE)/VLOOKUP(S41,'Team Reputation'!$B$2:$C$181,2,FALSE),0) -> 0.0% | U41: 4.00 | W41: =IFERROR(VLOOKUP(F1122,G1123:K1152,5,TRUE),"") -> 
A42: 7 | B42: -1.71 | C42: 4.3% | D42: 1.63% | E42: 1.64% | F42: -0.65 | G42: 25.69% | H42: 20.72% | I42: 20.72% | K42: 0-4 | P42: 37 | R42: =IFERROR(VLOOKUP(LEFT(Q42,3),'League Table'!$D$194:$E$286,2,FALSE),) -> 0 | S42: =IFERROR(VLOOKUP(RIGHT(Q42,3),'League Table'!$D$194:$E$286,2,FALSE),) -> 0 | T42: =IFERROR(VLOOKUP(R42,'Team Reputation'!$B$2:$C$181,2,FALSE)/VLOOKUP(S42,'Team Reputation'!$B$2:$C$181,2,FALSE),0) -> 0.0% | U42: 4.00 | W42: =IFERROR(VLOOKUP(F1154,G1155:K1184,5,TRUE),"") -> 
A43: 8 | B43: -1.50 | C43: 6.7% | D43: 2.36% | E43: 2.36% | F43: 0.25 | G43: 59.87% | H43: 34.18% | I43: 34.18% | K43: 1-4 | P43: 38 | R43: =IFERROR(VLOOKUP(LEFT(Q43,3),'League Table'!$D$194:$E$286,2,FALSE),) -> 0 | S43: =IFERROR(VLOOKUP(RIGHT(Q43,3),'League Table'!$D$194:$E$286,2,FALSE),) -> 0 | T43: =IFERROR(VLOOKUP(R43,'Team Reputation'!$B$2:$C$181,2,FALSE)/VLOOKUP(S43,'Team Reputation'!$B$2:$C$181,2,FALSE),0) -> 0.0% | U43: 4.00 | W43: =IFERROR(VLOOKUP(F1186,G1187:K1216,5,TRUE),"") -> 
A44: 9 | B44: -1.29 | C44: 9.9% | D44: 3.25% | E44: 3.25% | F44: 1.06 | G44: 85.57% | H44: 25.70% | I44: 25.70% | K44: 2-3 | P44: 39 | R44: =IFERROR(VLOOKUP(LEFT(Q44,3),'League Table'!$D$194:$E$286,2,FALSE),) -> 0 | S44: =IFERROR(VLOOKUP(RIGHT(Q44,3),'League Table'!$D$194:$E$286,2,FALSE),) -> 0 | T44: =IFERROR(VLOOKUP(R44,'Team Reputation'!$B$2:$C$181,2,FALSE)/VLOOKUP(S44,'Team Reputation'!$B$2:$C$181,2,FALSE),0) -> 0.0% | U44: 4.00 | W44: =IFERROR(VLOOKUP(F1218,G1219:K1248,5,TRUE),"") -> 
A45: 10 | B45: -1.07 | C45: 14.2% | D45: 4.27% | E45: 4.28% | F45: 1.78 | G45: 96.25% | H45: 10.68% | I45: 10.68% | K45: 1-3 | P45: 40 | R45: =IFERROR(VLOOKUP(LEFT(Q45,3),'League Table'!$D$194:$E$286,2,FALSE),) -> 0 | S45: =IFERROR(VLOOKUP(RIGHT(Q45,3),'League Table'!$D$194:$E$286,2,FALSE),) -> 0 | T45: =IFERROR(VLOOKUP(R45,'Team Reputation'!$B$2:$C$181,2,FALSE)/VLOOKUP(S45,'Team Reputation'!$B$2:$C$181,2,FALSE),0) -> 0.0% | U45: 4.00 | W45: =IFERROR(VLOOKUP(F1250,G1251:K1280,5,TRUE),"") -> 
A46: 11 | B46: -0.86 | C46: 19.6% | D46: 5.37% | E46: 5.38% | F46: 2.41 | G46: 99.20% | H46: 2.95% | I46: 2.95% | K46: 0-2 | P46: 41 | R46: =IFERROR(VLOOKUP(LEFT(Q46,3),'League Table'!$D$194:$E$286,2,FALSE),) -> 0 | S46: =IFERROR(VLOOKUP(RIGHT(Q46,3),'League Table'!$D$194:$E$286,2,FALSE),) -> 0 | T46: =IFERROR(VLOOKUP(R46,'Team Reputation'!$B$2:$C$181,2,FALSE)/VLOOKUP(S46,'Team Reputation'!$B$2:$C$181,2,FALSE),0) -> 0.0% | U46: 4.00 | W46: =IFERROR(VLOOKUP(F1282,G1283:K1312,5,TRUE),"") -> 
A47: 12 | B47: -0.64 | C47: 26.0% | D47: 6.45% | E47: 6.46% | F47: 2.94 | G47: 99.84% | H47: 0.64% | I47: 0.64% | K47: 1-2 | P47: 42 | R47: =IFERROR(VLOOKUP(LEFT(Q47,3),'League Table'!$D$194:$E$286,2,FALSE),) -> 0 | S47: =IFERROR(VLOOKUP(RIGHT(Q47,3),'League Table'!$D$194:$E$286,2,FALSE),) -> 0 | T47: =IFERROR(VLOOKUP(R47,'Team Reputation'!$B$2:$C$181,2,FALSE)/VLOOKUP(S47,'Team Reputation'!$B$2:$C$181,2,FALSE),0) -> 0.0% | U47: 4.00 | W47: =IFERROR(VLOOKUP(F1314,G1315:K1344,5,TRUE),"") -> 
A48: 13 | B48: -0.43 | C48: 33.4% | D48: 7.40% | E48: 7.41% | F48: 3.39 | G48: 99.96% | H48: 0.13% | I48: 0.13% | K48: 0-1 | P48: 43 | R48: =IFERROR(VLOOKUP(LEFT(Q48,3),'League Table'!$D$194:$E$286,2,FALSE),) -> 0 | S48: =IFERROR(VLOOKUP(RIGHT(Q48,3),'League Table'!$D$194:$E$286,2,FALSE),) -> 0 | T48: =IFERROR(VLOOKUP(R48,'Team Reputation'!$B$2:$C$181,2,FALSE)/VLOOKUP(S48,'Team Reputation'!$B$2:$C$181,2,FALSE),0) -> 0.0% | U48: 4.00 | W48: =IFERROR(VLOOKUP(F1346,G1347:K1376,5,TRUE),"") -> 
A49: 14 | B49: -0.21 | C49: 41.5% | D49: 8.10% | E49: 8.12% | F49: 3.74 | G49: 99.99% | H49: 0.03% | I49: 0.03% | K49: 0-0 | P49: 44 | R49: =IFERROR(VLOOKUP(LEFT(Q49,3),'League Table'!$D$194:$E$286,2,FALSE),) -> 0 | S49: =IFERROR(VLOOKUP(RIGHT(Q49,3),'League Table'!$D$194:$E$286,2,FALSE),) -> 0 | T49: =IFERROR(VLOOKUP(R49,'Team Reputation'!$B$2:$C$181,2,FALSE)/VLOOKUP(S49,'Team Reputation'!$B$2:$C$181,2,FALSE),0) -> 0.0% | U49: 4.00 | W49: =IFERROR(VLOOKUP(F1378,G1379:K1408,5,TRUE),"") -> 
A50: 15 | B50: 0.00 | C50: 50.0% | D50: 8.48% | E50: 8.50% | F50: 4.00 | G50: 100.00% | H50: 0.01% | I50: 0.01% | K50: 1-1 | P50: 45 | R50: =IFERROR(VLOOKUP(LEFT(Q50,3),'League Table'!$D$194:$E$286,2,FALSE),) -> 0 | S50: =IFERROR(VLOOKUP(RIGHT(Q50,3),'League Table'!$D$194:$E$286,2,FALSE),) -> 0 | T50: =IFERROR(VLOOKUP(R50,'Team Reputation'!$B$2:$C$181,2,FALSE)/VLOOKUP(S50,'Team Reputation'!$B$2:$C$181,2,FALSE),0) -> 0.0% | U50: 4.00 | W50: =IFERROR(VLOOKUP(F1410,G1411:K1440,5,TRUE),"") -> 
A51: 16 | B51: 0.21 | C51: 58.5% | D51: 8.48% | E51: 8.50% | F51: 4.26 | G51: 100.00% | H51: 0.00% | I51: 0.00% | K51: 2-2 | P51: 46 | R51: =IFERROR(VLOOKUP(LEFT(Q51,3),'League Table'!$D$194:$E$286,2,FALSE),) -> 0 | S51: =IFERROR(VLOOKUP(RIGHT(Q51,3),'League Table'!$D$194:$E$286,2,FALSE),) -> 0 | T51: =IFERROR(VLOOKUP(R51,'Team Reputation'!$B$2:$C$181,2,FALSE)/VLOOKUP(S51,'Team Reputation'!$B$2:$C$181,2,FALSE),0) -> 0.0% | U51: 4.00 | W51: =IFERROR(VLOOKUP(F1442,G1443:K1472,5,TRUE),"") -> 
A52: 17 | B52: 0.43 | C52: 66.6% | D52: 8.10% | E52: 8.12% | F52: 4.61 | G52: 100.00% | H52: 0.00% | I52: 0.00% | K52: 1-0
A53: 18 | B53: 0.64 | C53: 74.0% | D53: 7.40% | E53: 7.41% | F53: 5.06 | G53: 100.00% | H53: 0.00% | I53: 0.00% | K53: 2-1
A54: 19 | B54: 0.86 | C54: 80.4% | D54: 6.45% | E54: 6.46% | F54: 5.59 | G54: 100.00% | H54: 0.00% | I54: 0.00% | K54: 2-0
A55: 20 | B55: 1.07 | C55: 85.8% | D55: 5.37% | E55: 5.38% | F55: 6.22 | G55: 100.00% | H55: 0.00% | I55: 0.00% | K55: 3-1
A56: 21 | B56: 1.29 | C56: 90.1% | D56: 4.27% | E56: 4.28% | F56: 6.94 | G56: 100.00% | H56: 0.00% | I56: 0.00% | K56: 3-2
A57: 22 | B57: 1.50 | C57: 93.3% | D57: 3.25% | E57: 3.25% | F57: 7.75 | G57: 100.00% | H57: 0.00% | I57: 0.00% | K57: 4-1
A58: 23 | B58: 1.71 | C58: 95.7% | D58: 2.36% | E58: 2.36% | F58: 8.65 | G58: 100.00% | H58: 0.00% | I58: 0.00% | K58: 4-0
A59: 24 | B59: 1.93 | C59: 97.3% | D59: 1.63% | E59: 1.64% | F59: 9.65 | G59: 100.00% | H59: 0.00% | I59: 0.00% | K59: 5-1
A60: 25 | B60: 2.14 | C60: 98.4% | D60: 1.08% | E60: 1.08% | F60: 10.73 | G60: 100.00% | H60: 0.00% | I60: 0.00% | K60: 5-0
A61: 26 | B61: 2.36 | C61: 99.1% | D61: 0.69% | E61: 0.69% | F61: 11.91 | G61: 100.00% | H61: 0.00% | I61: 0.00% | K61: 6-0
A62: 27 | B62: 2.57 | C62: 99.5% | D62: 0.41% | E62: 0.41% | F62: 13.18 | G62: 100.00% | H62: 0.00% | I62: 0.00% | K62: 6-3
A63: 28 | B63: 2.79 | C63: 99.7% | D63: 0.24% | E63: 0.24% | F63: 14.55 | G63: 100.00% | H63: 0.00% | I63: 0.00% | K63: 8-1
A64: 29 | B64: 3.00 | C64: 99.9% | D64: 0.13% | E64: 0.13% | F64: 16.00 | G64: 100.00% | H64: 0.00% | I64: 0.00% | K64: 7-2
A66: =P8 -> 3 | B66: =R8 -> 0 | C66: Skewness Factor | D66: =U8 -> 4.00 | E66: Random | F66: =V8 -> 0.0%
A67: Outcomes | B67: Z Scores | C67: Cumulative Prob | D67: Raw Prob | E67: Normalised Prob | F67: Skewed Z | G67: Cumulative Prob | H67: Raw Prob | I67: Normalised Prob
A68: 1 | B68: =-3+(6*(A68-1))/(29-1) -> -3.00 | C68: =_xlfn.NORM.S.DIST(B68,TRUE) -> 0.1% | D68: =C68 -> 0.13% | E68: =D68/SUM($D$4:$D$32) -> 0.14% | F68: =B68+$D$66+SIGN(B68)*ABS(B68)^2 -> -8.00 | G68: =_xlfn.NORM.S.DIST(F68,TRUE) -> 0.00% | H68: =G68 -> 0.00% | I68: =H68/SUM($H$4:$H$32) -> 0.00% | K68: 2-7
A69: 2 | B69: =-3+(6*(A69-1))/(29-1) -> -2.79 | C69: =_xlfn.NORM.S.DIST(B69,TRUE) -> 0.3% | D69: =C69-C68 -> 0.13% | E69: =D69/SUM($D$4:$D$32) -> 0.13% | F69: =B69+$D$66+SIGN(B69)*ABS(B69)^2 -> -6.55 | G69: 0.00% | H69: =G69-G68 -> 0.00% | I69: =H69/SUM($H$4:$H$32) -> 0.00% | K69: 1-8
A70: 3 | B70: -2.57 | C70: 0.5% | D70: =C70-C69 -> 0.24% | E70: 0.24% | F70: -5.18 | G70: 0.00% | H70: =G70-G69 -> 0.00% | I70: 0.00% | K70: 3-6
A71: 4 | B71: -2.36 | C71: 0.9% | D71: 0.41% | E71: 0.41% | F71: -3.91 | G71: 0.00% | H71: =G71-G70 -> 0.00% | I71: 0.00% | K71: 0-6
A72: 5 | B72: -2.14 | C72: 1.6% | D72: 0.69% | E72: 0.69% | F72: -2.73 | G72: 0.31% | H72: =G72-G71 -> 0.31% | I72: 0.31% | K72: 0-5
A73: 6 | B73: -1.93 | C73: 2.7% | D73: 1.08% | E73: 1.08% | F73: -1.65 | G73: 4.97% | H73: 4.66% | I73: 4.66% | K73: 1-5
A74: 7 | B74: -1.71 | C74: 4.3% | D74: 1.63% | E74: 1.64% | F74: -0.65 | G74: 25.69% | H74: 20.72% | I74: 20.72% | K74: 0-4
A75: 8 | B75: -1.50 | C75: 6.7% | D75: 2.36% | E75: 2.36% | F75: 0.25 | G75: 59.87% | H75: 34.18% | I75: 34.18% | K75: 1-4
A76: 9 | B76: -1.29 | C76: 9.9% | D76: 3.25% | E76: 3.25% | F76: 1.06 | G76: 85.57% | H76: 25.70% | I76: 25.70% | K76: 2-3
A77: 10 | B77: -1.07 | C77: 14.2% | D77: 4.27% | E77: 4.28% | F77: 1.78 | G77: 96.25% | H77: 10.68% | I77: 10.68% | K77: 1-3
A78: 11 | B78: -0.86 | C78: 19.6% | D78: 5.37% | E78: 5.38% | F78: 2.41 | G78: 99.20% | H78: 2.95% | I78: 2.95% | K78: 0-2
A79: 12 | B79: -0.64 | C79: 26.0% | D79: 6.45% | E79: 6.46% | F79: 2.94 | G79: 99.84% | H79: 0.64% | I79: 0.64% | K79: 1-2
A80: 13 | B80: -0.43 | C80: 33.4% | D80: 7.40% | E80: 7.41% | F80: 3.39 | G80: 99.96% | H80: 0.13% | I80: 0.13% | K80: 0-1
A81: 14 | B81: -0.21 | C81: 41.5% | D81: 8.10% | E81: 8.12% | F81: 3.74 | G81: 99.99% | H81: 0.03% | I81: 0.03% | K81: 0-0
A82: 15 | B82: 0.00 | C82: 50.0% | D82: 8.48% | E82: 8.50% | F82: 4.00 | G82: 100.00% | H82: 0.01% | I82: 0.01% | K82: 1-1
A83: 16 | B83: 0.21 | C83: 58.5% | D83: 8.48% | E83: 8.50% | F83: 4.26 | G83: 100.00% | H83: 0.00% | I83: 0.00% | K83: 2-2
A84: 17 | B84: 0.43 | C84: 66.6% | D84: 8.10% | E84: 8.12% | F84: 4.61 | G84: 100.00% | H84: 0.00% | I84: 0.00% | K84: 1-0
A85: 18 | B85: 0.64 | C85: 74.0% | D85: 7.40% | E85: 7.41% | F85: 5.06 | G85: 100.00% | H85: 0.00% | I85: 0.00% | K85: 2-1
A86: 19 | B86: 0.86 | C86: 80.4% | D86: 6.45% | E86: 6.46% | F86: 5.59 | G86: 100.00% | H86: 0.00% | I86: 0.00% | K86: 2-0
A87: 20 | B87: 1.07 | C87: 85.8% | D87: 5.37% | E87: 5.38% | F87: 6.22 | G87: 100.00% | H87: 0.00% | I87: 0.00% | K87: 3-1
A88: 21 | B88: 1.29 | C88: 90.1% | D88: 4.27% | E88: 4.28% | F88: 6.94 | G88: 100.00% | H88: 0.00% | I88: 0.00% | K88: 3-2
A89: 22 | B89: 1.50 | C89: 93.3% | D89: 3.25% | E89: 3.25% | F89: 7.75 | G89: 100.00% | H89: 0.00% | I89: 0.00% | K89: 4-1
A90: 23 | B90: 1.71 | C90: 95.7% | D90: 2.36% | E90: 2.36% | F90: 8.65 | G90: 100.00% | H90: 0.00% | I90: 0.00% | K90: 4-0
A91: 24 | B91: 1.93 | C91: 97.3% | D91: 1.63% | E91: 1.64% | F91: 9.65 | G91: 100.00% | H91: 0.00% | I91: 0.00% | K91: 5-1
A92: 25 | B92: 2.14 | C92: 98.4% | D92: 1.08% | E92: 1.08% | F92: 10.73 | G92: 100.00% | H92: 0.00% | I92: 0.00% | K92: 5-0
A93: 26 | B93: 2.36 | C93: 99.1% | D93: 0.69% | E93: 0.69% | F93: 11.91 | G93: 100.00% | H93: 0.00% | I93: 0.00% | K93: 6-0
A94: 27 | B94: 2.57 | C94: 99.5% | D94: 0.41% | E94: 0.41% | F94: 13.18 | G94: 100.00% | H94: 0.00% | I94: 0.00% | K94: 6-3
A95: 28 | B95: 2.79 | C95: 99.7% | D95: 0.24% | E95: 0.24% | F95: 14.55 | G95: 100.00% | H95: 0.00% | I95: 0.00% | K95: 8-1
A96: 29 | B96: 3.00 | C96: 99.9% | D96: 0.13% | E96: 0.13% | F96: 16.00 | G96: 100.00% | H96: 0.00% | I96: 0.00% | K96: 7-2
A98: =$P$9 -> 4 | B98: =$Q$9 -> 0 | C98: Skewness Factor | D98: =$U$9 -> 4.00 | E98: Random | F98: =$V$9 -> 0.0%
A99: Outcomes | B99: Z Scores | C99: Cumulative Prob | D99: Raw Prob | E99: Normalised Prob | F99: Skewed Z | G99: Cumulative Prob | H99: Raw Prob | I99: Normalised Prob
A100: 1 | B100: =-3+(6*(A100-1))/(29-1) -> -3.00 | C100: =_xlfn.NORM.S.DIST(B100,TRUE) -> 0.1% | D100: =C100 -> 0.13% | E100: =D100/SUM($D$4:$D$32) -> 0.14% | F100: =B100+$D$98+SIGN(B100)*ABS(B100)^2 -> -8.00 | G100: =_xlfn.NORM.S.DIST(F100,TRUE) -> 0.00% | H100: =G100 -> 0.00% | I100: =H100/SUM($H$4:$H$32) -> 0.00% | K100: 2-7
A101: 2 | B101: =-3+(6*(A101-1))/(29-1) -> -2.79 | C101: =_xlfn.NORM.S.DIST(B101,TRUE) -> 0.3% | D101: =C101-C100 -> 0.13% | E101: =D101/SUM($D$4:$D$32) -> 0.13% | F101: =B101+$D$98+SIGN(B101)*ABS(B101)^2 -> -6.55 | G101: 0.00% | H101: =G101-G100 -> 0.00% | I101: =H101/SUM($H$4:$H$32) -> 0.00% | K101: 1-8
A102: 3 | B102: -2.57 | C102: 0.5% | D102: =C102-C101 -> 0.24% | E102: 0.24% | F102: -5.18 | G102: 0.00% | H102: =G102-G101 -> 0.00% | I102: 0.00% | K102: 3-6
A103: 4 | B103: -2.36 | C103: 0.9% | D103: 0.41% | E103: 0.41% | F103: -3.91 | G103: 0.00% | H103: =G103-G102 -> 0.00% | I103: 0.00% | K103: 0-6
A104: 5 | B104: -2.14 | C104: 1.6% | D104: 0.69% | E104: 0.69% | F104: -2.73 | G104: 0.31% | H104: =G104-G103 -> 0.31% | I104: 0.31% | K104: 0-5
A105: 6 | B105: -1.93 | C105: 2.7% | D105: 1.08% | E105: 1.08% | F105: -1.65 | G105: 4.97% | H105: 4.66% | I105: 4.66% | K105: 1-5
A106: 7 | B106: -1.71 | C106: 4.3% | D106: 1.63% | E106: 1.64% | F106: -0.65 | G106: 25.69% | H106: 20.72% | I106: 20.72% | K106: 0-4
A107: 8 | B107: -1.50 | C107: 6.7% | D107: 2.36% | E107: 2.36% | F107: 0.25 | G107: 59.87% | H107: 34.18% | I107: 34.18% | K107: 1-4
A108: 9 | B108: -1.29 | C108: 9.9% | D108: 3.25% | E108: 3.25% | F108: 1.06 | G108: 85.57% | H108: 25.70% | I108: 25.70% | K108: 2-3
A109: 10 | B109: -1.07 | C109: 14.2% | D109: 4.27% | E109: 4.28% | F109: 1.78 | G109: 96.25% | H109: 10.68% | I109: 10.68% | K109: 1-3
A110: 11 | B110: -0.86 | C110: 19.6% | D110: 5.37% | E110: 5.38% | F110: 2.41 | G110: 99.20% | H110: 2.95% | I110: 2.95% | K110: 0-2
A111: 12 | B111: -0.64 | C111: 26.0% | D111: 6.45% | E111: 6.46% | F111: 2.94 | G111: 99.84% | H111: 0.64% | I111: 0.64% | K111: 1-2
A112: 13 | B112: -0.43 | C112: 33.4% | D112: 7.40% | E112: 7.41% | F112: 3.39 | G112: 99.96% | H112: 0.13% | I112: 0.13% | K112: 0-1
A113: 14 | B113: -0.21 | C113: 41.5% | D113: 8.10% | E113: 8.12% | F113: 3.74 | G113: 99.99% | H113: 0.03% | I113: 0.03% | K113: 0-0
A114: 15 | B114: 0.00 | C114: 50.0% | D114: 8.48% | E114: 8.50% | F114: 4.00 | G114: 100.00% | H114: 0.01% | I114: 0.01% | K114: 1-1
A115: 16 | B115: 0.21 | C115: 58.5% | D115: 8.48% | E115: 8.50% | F115: 4.26 | G115: 100.00% | H115: 0.00% | I115: 0.00% | K115: 2-2
A116: 17 | B116: 0.43 | C116: 66.6% | D116: 8.10% | E116: 8.12% | F116: 4.61 | G116: 100.00% | H116: 0.00% | I116: 0.00% | K116: 1-0
A117: 18 | B117: 0.64 | C117: 74.0% | D117: 7.40% | E117: 7.41% | F117: 5.06 | G117: 100.00% | H117: 0.00% | I117: 0.00% | K117: 2-1
A118: 19 | B118: 0.86 | C118: 80.4% | D118: 6.45% | E118: 6.46% | F118: 5.59 | G118: 100.00% | H118: 0.00% | I118: 0.00% | K118: 2-0
A119: 20 | B119: 1.07 | C119: 85.8% | D119: 5.37% | E119: 5.38% | F119: 6.22 | G119: 100.00% | H119: 0.00% | I119: 0.00% | K119: 3-1
A120: 21 | B120: 1.29 | C120: 90.1% | D120: 4.27% | E120: 4.28% | F120: 6.94 | G120: 100.00% | H120: 0.00% | I120: 0.00% | K120: 3-2
A121: 22 | B121: 1.50 | C121: 93.3% | D121: 3.25% | E121: 3.25% | F121: 7.75 | G121: 100.00% | H121: 0.00% | I121: 0.00% | K121: 4-1
A122: 23 | B122: 1.71 | C122: 95.7% | D122: 2.36% | E122: 2.36% | F122: 8.65 | G122: 100.00% | H122: 0.00% | I122: 0.00% | K122: 4-0
A123: 24 | B123: 1.93 | C123: 97.3% | D123: 1.63% | E123: 1.64% | F123: 9.65 | G123: 100.00% | H123: 0.00% | I123: 0.00% | K123: 5-1
A124: 25 | B124: 2.14 | C124: 98.4% | D124: 1.08% | E124: 1.08% | F124: 10.73 | G124: 100.00% | H124: 0.00% | I124: 0.00% | K124: 5-0
A125: 26 | B125: 2.36 | C125: 99.1% | D125: 0.69% | E125: 0.69% | F125: 11.91 | G125: 100.00% | H125: 0.00% | I125: 0.00% | K125: 6-0
A126: 27 | B126: 2.57 | C126: 99.5% | D126: 0.41% | E126: 0.41% | F126: 13.18 | G126: 100.00% | H126: 0.00% | I126: 0.00% | K126: 6-3
A127: 28 | B127: 2.79 | C127: 99.7% | D127: 0.24% | E127: 0.24% | F127: 14.55 | G127: 100.00% | H127: 0.00% | I127: 0.00% | K127: 8-1
A128: 29 | B128: 3.00 | C128: 99.9% | D128: 0.13% | E128: 0.13% | F128: 16.00 | G128: 100.00% | H128: 0.00% | I128: 0.00% | K128: 7-2
A130: =$P$10 -> 5 | B130: =$Q$10 -> 0 | C130: Skewness Factor | D130: =$U$10 -> 4.00 | E130: Random | F130: =$V$10 -> 0.0%
A131: Outcomes | B131: Z Scores | C131: Cumulative Prob | D131: Raw Prob | E131: Normalised Prob | F131: Skewed Z | G131: Cumulative Prob | H131: Raw Prob | I131: Normalised Prob
A132: 1 | B132: =-3+(6*(A132-1))/(29-1) -> -3.00 | C132: =_xlfn.NORM.S.DIST(B132,TRUE) -> 0.1% | D132: =C132 -> 0.13% | E132: =D132/SUM($D$4:$D$32) -> 0.14% | F132: =B132+$D$130+SIGN(B132)*ABS(B132)^2 -> -8.00 | G132: =_xlfn.NORM.S.DIST(F132,TRUE) -> 0.00% | H132: =G132 -> 0.00% | I132: =H132/SUM($H$4:$H$32) -> 0.00% | K132: 2-7
A133: 2 | B133: =-3+(6*(A133-1))/(29-1) -> -2.79 | C133: =_xlfn.NORM.S.DIST(B133,TRUE) -> 0.3% | D133: =C133-C132 -> 0.13% | E133: =D133/SUM($D$4:$D$32) -> 0.13% | F133: =B133+$D$130+SIGN(B133)*ABS(B133)^2 -> -6.55 | G133: 0.00% | H133: =G133-G132 -> 0.00% | I133: =H133/SUM($H$4:$H$32) -> 0.00% | K133: 1-8
A134: 3 | B134: -2.57 | C134: 0.5% | D134: =C134-C133 -> 0.24% | E134: 0.24% | F134: -5.18 | G134: 0.00% | H134: =G134-G133 -> 0.00% | I134: 0.00% | K134: 3-6
A135: 4 | B135: -2.36 | C135: 0.9% | D135: 0.41% | E135: 0.41% | F135: -3.91 | G135: 0.00% | H135: =G135-G134 -> 0.00% | I135: 0.00% | K135: 0-6
A136: 5 | B136: -2.14 | C136: 1.6% | D136: 0.69% | E136: 0.69% | F136: -2.73 | G136: 0.31% | H136: =G136-G135 -> 0.31% | I136: 0.31% | K136: 0-5
A137: 6 | B137: -1.93 | C137: 2.7% | D137: 1.08% | E137: 1.08% | F137: -1.65 | G137: 4.97% | H137: 4.66% | I137: 4.66% | K137: 1-5
A138: 7 | B138: -1.71 | C138: 4.3% | D138: 1.63% | E138: 1.64% | F138: -0.65 | G138: 25.69% | H138: 20.72% | I138: 20.72% | K138: 0-4
A139: 8 | B139: -1.50 | C139: 6.7% | D139: 2.36% | E139: 2.36% | F139: 0.25 | G139: 59.87% | H139: 34.18% | I139: 34.18% | K139: 1-4
A140: 9 | B140: -1.29 | C140: 9.9% | D140: 3.25% | E140: 3.25% | F140: 1.06 | G140: 85.57% | H140: 25.70% | I140: 25.70% | K140: 2-3
A141: 10 | B141: -1.07 | C141: 14.2% | D141: 4.27% | E141: 4.28% | F141: 1.78 | G141: 96.25% | H141: 10.68% | I141: 10.68% | K141: 1-3
A142: 11 | B142: -0.86 | C142: 19.6% | D142: 5.37% | E142: 5.38% | F142: 2.41 | G142: 99.20% | H142: 2.95% | I142: 2.95% | K142: 0-2
A143: 12 | B143: -0.64 | C143: 26.0% | D143: 6.45% | E143: 6.46% | F143: 2.94 | G143: 99.84% | H143: 0.64% | I143: 0.64% | K143: 1-2
A144: 13 | B144: -0.43 | C144: 33.4% | D144: 7.40% | E144: 7.41% | F144: 3.39 | G144: 99.96% | H144: 0.13% | I144: 0.13% | K144: 0-1
A145: 14 | B145: -0.21 | C145: 41.5% | D145: 8.10% | E145: 8.12% | F145: 3.74 | G145: 99.99% | H145: 0.03% | I145: 0.03% | K145: 0-0
A146: 15 | B146: 0.00 | C146: 50.0% | D146: 8.48% | E146: 8.50% | F146: 4.00 | G146: 100.00% | H146: 0.01% | I146: 0.01% | K146: 1-1
A147: 16 | B147: 0.21 | C147: 58.5% | D147: 8.48% | E147: 8.50% | F147: 4.26 | G147: 100.00% | H147: 0.00% | I147: 0.00% | K147: 2-2
A148: 17 | B148: 0.43 | C148: 66.6% | D148: 8.10% | E148: 8.12% | F148: 4.61 | G148: 100.00% | H148: 0.00% | I148: 0.00% | K148: 1-0
A149: 18 | B149: 0.64 | C149: 74.0% | D149: 7.40% | E149: 7.41% | F149: 5.06 | G149: 100.00% | H149: 0.00% | I149: 0.00% | K149: 2-1
A150: 19 | B150: 0.86 | C150: 80.4% | D150: 6.45% | E150: 6.46% | F150: 5.59 | G150: 100.00% | H150: 0.00% | I150: 0.00% | K150: 2-0
A151: 20 | B151: 1.07 | C151: 85.8% | D151: 5.37% | E151: 5.38% | F151: 6.22 | G151: 100.00% | H151: 0.00% | I151: 0.00% | K151: 3-1
A152: 21 | B152: 1.29 | C152: 90.1% | D152: 4.27% | E152: 4.28% | F152: 6.94 | G152: 100.00% | H152: 0.00% | I152: 0.00% | K152: 3-2
A153: 22 | B153: 1.50 | C153: 93.3% | D153: 3.25% | E153: 3.25% | F153: 7.75 | G153: 100.00% | H153: 0.00% | I153: 0.00% | K153: 4-1
A154: 23 | B154: 1.71 | C154: 95.7% | D154: 2.36% | E154: 2.36% | F154: 8.65 | G154: 100.00% | H154: 0.00% | I154: 0.00% | K154: 4-0
A155: 24 | B155: 1.93 | C155: 97.3% | D155: 1.63% | E155: 1.64% | F155: 9.65 | G155: 100.00% | H155: 0.00% | I155: 0.00% | K155: 5-1
A156: 25 | B156: 2.14 | C156: 98.4% | D156: 1.08% | E156: 1.08% | F156: 10.73 | G156: 100.00% | H156: 0.00% | I156: 0.00% | K156: 5-0
A157: 26 | B157: 2.36 | C157: 99.1% | D157: 0.69% | E157: 0.69% | F157: 11.91 | G157: 100.00% | H157: 0.00% | I157: 0.00% | K157: 6-0
A158: 27 | B158: 2.57 | C158: 99.5% | D158: 0.41% | E158: 0.41% | F158: 13.18 | G158: 100.00% | H158: 0.00% | I158: 0.00% | K158: 6-3
A159: 28 | B159: 2.79 | C159: 99.7% | D159: 0.24% | E159: 0.24% | F159: 14.55 | G159: 100.00% | H159: 0.00% | I159: 0.00% | K159: 8-1
A160: 29 | B160: 3.00 | C160: 99.9% | D160: 0.13% | E160: 0.13% | F160: 16.00 | G160: 100.00% | H160: 0.00% | I160: 0.00% | K160: 7-2
A162: =$P$11 -> 6 | B162: =$Q$11 -> 0 | C162: Skewness Factor | D162: =$U$11 -> 4.00 | E162: Random | F162: =$V$11 -> 0.0%
A163: Outcomes | B163: Z Scores | C163: Cumulative Prob | D163: Raw Prob | E163: Normalised Prob | F163: Skewed Z | G163: Cumulative Prob | H163: Raw Prob | I163: Normalised Prob
A164: 1 | B164: =-3+(6*(A164-1))/(29-1) -> -3.00 | C164: =_xlfn.NORM.S.DIST(B164,TRUE) -> 0.1% | D164: =C164 -> 0.13% | E164: =D164/SUM($D$4:$D$32) -> 0.14% | F164: =B164+$D$162+SIGN(B164)*ABS(B164)^2 -> -8.00 | G164: =_xlfn.NORM.S.DIST(F164,TRUE) -> 0.00% | H164: =G164 -> 0.00% | I164: =H164/SUM($H$4:$H$32) -> 0.00% | K164: 2-7
A165: 2 | B165: =-3+(6*(A165-1))/(29-1) -> -2.79 | C165: =_xlfn.NORM.S.DIST(B165,TRUE) -> 0.3% | D165: =C165-C164 -> 0.13% | E165: =D165/SUM($D$4:$D$32) -> 0.13% | F165: =B165+$D$162+SIGN(B165)*ABS(B165)^2 -> -6.55 | G165: 0.00% | H165: =G165-G164 -> 0.00% | I165: =H165/SUM($H$4:$H$32) -> 0.00% | K165: 1-8
A166: 3 | B166: -2.57 | C166: 0.5% | D166: =C166-C165 -> 0.24% | E166: 0.24% | F166: -5.18 | G166: 0.00% | H166: =G166-G165 -> 0.00% | I166: 0.00% | K166: 3-6
A167: 4 | B167: -2.36 | C167: 0.9% | D167: 0.41% | E167: 0.41% | F167: -3.91 | G167: 0.00% | H167: =G167-G166 -> 0.00% | I167: 0.00% | K167: 0-6
A168: 5 | B168: -2.14 | C168: 1.6% | D168: 0.69% | E168: 0.69% | F168: -2.73 | G168: 0.31% | H168: =G168-G167 -> 0.31% | I168: 0.31% | K168: 0-5
A169: 6 | B169: -1.93 | C169: 2.7% | D169: 1.08% | E169: 1.08% | F169: -1.65 | G169: 4.97% | H169: 4.66% | I169: 4.66% | K169: 1-5
A170: 7 | B170: -1.71 | C170: 4.3% | D170: 1.63% | E170: 1.64% | F170: -0.65 | G170: 25.69% | H170: 20.72% | I170: 20.72% | K170: 0-4
A171: 8 | B171: -1.50 | C171: 6.7% | D171: 2.36% | E171: 2.36% | F171: 0.25 | G171: 59.87% | H171: 34.18% | I171: 34.18% | K171: 1-4
A172: 9 | B172: -1.29 | C172: 9.9% | D172: 3.25% | E172: 3.25% | F172: 1.06 | G172: 85.57% | H172: 25.70% | I172: 25.70% | K172: 2-3
A173: 10 | B173: -1.07 | C173: 14.2% | D173: 4.27% | E173: 4.28% | F173: 1.78 | G173: 96.25% | H173: 10.68% | I173: 10.68% | K173: 1-3
A174: 11 | B174: -0.86 | C174: 19.6% | D174: 5.37% | E174: 5.38% | F174: 2.41 | G174: 99.20% | H174: 2.95% | I174: 2.95% | K174: 0-2
A175: 12 | B175: -0.64 | C175: 26.0% | D175: 6.45% | E175: 6.46% | F175: 2.94 | G175: 99.84% | H175: 0.64% | I175: 0.64% | K175: 1-2
A176: 13 | B176: -0.43 | C176: 33.4% | D176: 7.40% | E176: 7.41% | F176: 3.39 | G176: 99.96% | H176: 0.13% | I176: 0.13% | K176: 0-1
A177: 14 | B177: -0.21 | C177: 41.5% | D177: 8.10% | E177: 8.12% | F177: 3.74 | G177: 99.99% | H177: 0.03% | I177: 0.03% | K177: 0-0
A178: 15 | B178: 0.00 | C178: 50.0% | D178: 8.48% | E178: 8.50% | F178: 4.00 | G178: 100.00% | H178: 0.01% | I178: 0.01% | K178: 1-1
A179: 16 | B179: 0.21 | C179: 58.5% | D179: 8.48% | E179: 8.50% | F179: 4.26 | G179: 100.00% | H179: 0.00% | I179: 0.00% | K179: 2-2
A180: 17 | B180: 0.43 | C180: 66.6% | D180: 8.10% | E180: 8.12% | F180: 4.61 | G180: 100.00% | H180: 0.00% | I180: 0.00% | K180: 1-0
A181: 18 | B181: 0.64 | C181: 74.0% | D181: 7.40% | E181: 7.41% | F181: 5.06 | G181: 100.00% | H181: 0.00% | I181: 0.00% | K181: 2-1
A182: 19 | B182: 0.86 | C182: 80.4% | D182: 6.45% | E182: 6.46% | F182: 5.59 | G182: 100.00% | H182: 0.00% | I182: 0.00% | K182: 2-0
A183: 20 | B183: 1.07 | C183: 85.8% | D183: 5.37% | E183: 5.38% | F183: 6.22 | G183: 100.00% | H183: 0.00% | I183: 0.00% | K183: 3-1
A184: 21 | B184: 1.29 | C184: 90.1% | D184: 4.27% | E184: 4.28% | F184: 6.94 | G184: 100.00% | H184: 0.00% | I184: 0.00% | K184: 3-2
A185: 22 | B185: 1.50 | C185: 93.3% | D185: 3.25% | E185: 3.25% | F185: 7.75 | G185: 100.00% | H185: 0.00% | I185: 0.00% | K185: 4-1
A186: 23 | B186: 1.71 | C186: 95.7% | D186: 2.36% | E186: 2.36% | F186: 8.65 | G186: 100.00% | H186: 0.00% | I186: 0.00% | K186: 4-0
A187: 24 | B187: 1.93 | C187: 97.3% | D187: 1.63% | E187: 1.64% | F187: 9.65 | G187: 100.00% | H187: 0.00% | I187: 0.00% | K187: 5-1
A188: 25 | B188: 2.14 | C188: 98.4% | D188: 1.08% | E188: 1.08% | F188: 10.73 | G188: 100.00% | H188: 0.00% | I188: 0.00% | K188: 5-0
A189: 26 | B189: 2.36 | C189: 99.1% | D189: 0.69% | E189: 0.69% | F189: 11.91 | G189: 100.00% | H189: 0.00% | I189: 0.00% | K189: 6-0
A190: 27 | B190: 2.57 | C190: 99.5% | D190: 0.41% | E190: 0.41% | F190: 13.18 | G190: 100.00% | H190: 0.00% | I190: 0.00% | K190: 6-3
A191: 28 | B191: 2.79 | C191: 99.7% | D191: 0.24% | E191: 0.24% | F191: 14.55 | G191: 100.00% | H191: 0.00% | I191: 0.00% | K191: 8-1
A192: 29 | B192: 3.00 | C192: 99.9% | D192: 0.13% | E192: 0.13% | F192: 16.00 | G192: 100.00% | H192: 0.00% | I192: 0.00% | K192: 7-2
A194: =$P$12 -> 7 | B194: =$Q$12 -> 0 | C194: Skewness Factor | D194: =$U$12 -> 4.00 | E194: Random | F194: =$V$12 -> 0.0%
A195: Outcomes | B195: Z Scores | C195: Cumulative Prob | D195: Raw Prob | E195: Normalised Prob | F195: Skewed Z | G195: Cumulative Prob | H195: Raw Prob | I195: Normalised Prob
A196: 1 | B196: =-3+(6*(A196-1))/(29-1) -> -3.00 | C196: =_xlfn.NORM.S.DIST(B196,TRUE) -> 0.1% | D196: =C196 -> 0.13% | E196: =D196/SUM($D$4:$D$32) -> 0.14% | F196: =B196+$D$194+SIGN(B196)*ABS(B196)^2 -> -8.00 | G196: =_xlfn.NORM.S.DIST(F196,TRUE) -> 0.00% | H196: =G196 -> 0.00% | I196: =H196/SUM($H$4:$H$32) -> 0.00% | K196: 2-7
A197: 2 | B197: =-3+(6*(A197-1))/(29-1) -> -2.79 | C197: =_xlfn.NORM.S.DIST(B197,TRUE) -> 0.3% | D197: =C197-C196 -> 0.13% | E197: =D197/SUM($D$4:$D$32) -> 0.13% | F197: =B197+$D$194+SIGN(B197)*ABS(B197)^2 -> -6.55 | G197: 0.00% | H197: =G197-G196 -> 0.00% | I197: =H197/SUM($H$4:$H$32) -> 0.00% | K197: 1-8
A198: 3 | B198: -2.57 | C198: 0.5% | D198: =C198-C197 -> 0.24% | E198: 0.24% | F198: -5.18 | G198: 0.00% | H198: =G198-G197 -> 0.00% | I198: 0.00% | K198: 3-6
A199: 4 | B199: -2.36 | C199: 0.9% | D199: 0.41% | E199: 0.41% | F199: -3.91 | G199: 0.00% | H199: =G199-G198 -> 0.00% | I199: 0.00% | K199: 0-6
A200: 5 | B200: -2.14 | C200: 1.6% | D200: 0.69% | E200: 0.69% | F200: -2.73 | G200: 0.31% | H200: =G200-G199 -> 0.31% | I200: 0.31% | K200: 0-5
A201: 6 | B201: -1.93 | C201: 2.7% | D201: 1.08% | E201: 1.08% | F201: -1.65 | G201: 4.97% | H201: 4.66% | I201: 4.66% | K201: 1-5
A202: 7 | B202: -1.71 | C202: 4.3% | D202: 1.63% | E202: 1.64% | F202: -0.65 | G202: 25.69% | H202: 20.72% | I202: 20.72% | K202: 0-4
A203: 8 | B203: -1.50 | C203: 6.7% | D203: 2.36% | E203: 2.36% | F203: 0.25 | G203: 59.87% | H203: 34.18% | I203: 34.18% | K203: 1-4
A204: 9 | B204: -1.29 | C204: 9.9% | D204: 3.25% | E204: 3.25% | F204: 1.06 | G204: 85.57% | H204: 25.70% | I204: 25.70% | K204: 2-3
A205: 10 | B205: -1.07 | C205: 14.2% | D205: 4.27% | E205: 4.28% | F205: 1.78 | G205: 96.25% | H205: 10.68% | I205: 10.68% | K205: 1-3
A206: 11 | B206: -0.86 | C206: 19.6% | D206: 5.37% | E206: 5.38% | F206: 2.41 | G206: 99.20% | H206: 2.95% | I206: 2.95% | K206: 0-2
... 1227 more rows

Sheet Game State (hidden)
A1: Team | B1: Testing | C1: =VLOOKUP(B1,'League Table'!$B$2:$D$100,3,FALSE) -> 
A2: League | B2: =IF(B1="Testing","League Two",VLOOKUP('Game State'!$B$1,'League Table'!$B$2:$O$100,13,FALSE)) -> League Two
A3: Season | B3: 2
A4: Match Week | B4: 1
B7: Transfer Window Open | AI7: Transfer Window Open
A8: Match Week Look up | B8: 1 | C8: =B8+1 -> 2 | D8: =C8+1 -> 3 | E8: 4 | F8: 5 | G8: 6 | H8: 7 | I8: 8 | J8: 9 | K8: 10 | L8: 11 | M8: 12 | N8: 13 | O8: 14 | P8: 15 | Q8: 16 | R8: 17 | S8: 18 | T8: 19 | U8: 20 | V8: 21 | W8: 22 | X8: 23 | Y8: 24 | Z8: 25 | AA8: 26 | AB8: 27 | AC8: 28 | AD8: 29 | AE8: 30 | AF8: 31 | AG8: 32 | AH8: 33 | AI8: 34 | AJ8: 35 | AK8: 36 | AL8: 37 | AM8: 38 | AN8: 39 | AO8: 40 | AP8: 41 | AQ8: 42 | AR8: 43 | AS8: 44 | AT8: 45 | AU8: 46 | AV8: 47 | AW8: 48 | AX8: 49 | AY8: 50 | AZ8: 51 | BA8: 52 | BB8: 53 | BC8: 54 | BD8: 55 | BE8: 56 | BF8: 57 | BG8: 58 | BH8: 59 | BI8: 60 | BJ8: 61 | BK8: 62
A9: Premier League | B9: Skip | C9: Skip | D9: Skip | E9: Skip | F9: EFL CUP | G9: Skip | H9: Skip | I9: Skip | J9: Skip | K9: League | L9: EFL CUP | M9: League | N9: League | O9: League | P9: EFL CUP | Q9: League | R9: League | S9: FA CUP | T9: League | U9: EFL CUP | V9: League | W9: League | X9: FA Cup | Y9: League | Z9: League | AA9: EFL CUP | AB9: League | AC9: League | AD9: FA Cup | AE9: League | AF9: League | AG9: League | AH9: League | AI9: FA CUP | AJ9: League | AK9: EFL CUP | AL9: League | AM9: League | AN9: League | AO9: EFL CUP | AP9: League | AQ9: League | AR9: FA CUP | AS9: League | AT9: League | AU9: EFL CUP | AV9: League | AW9: League | AX9: League | AY9: League | AZ9: League | BA9: FA CUP | BB9: League | BC9: League | BD9: League | BE9: League | BF9: League | BG9: FA CUP | BH9: League | BI9: League | BJ9: League | BK9: FA CUP
A10: Other | B10: League | C10: League | D10: League | E10: League | F10: EFL CUP | G10: League | H10: League | I10: League | J10: League | K10: League | L10: EFL CUP | M10: League | N10: League | O10: League | P10: EFL CUP | Q10: League | R10: League | S10: FA CUP | T10: League | U10: EFL CUP | V10: League | W10: League | X10: FA Cup | Y10: League | Z10: League | AA10: EFL CUP | AB10: League | AC10: League | AD10: FA Cup | AE10: League | AF10: League | AG10: League | AH10: League | AI10: FA CUP | AJ10: League | AK10: EFL CUP | AL10: League | AM10: League | AN10: League | AO10: EFL CUP | AP10: League | AQ10: League | AR10: FA CUP | AS10: League | AT10: League | AU10: EFL CUP | AV10: League | AW10: League | AX10: League | AY10: League | AZ10: League | BA10: FA CUP | BB10: League | BC10: League | BD10: League | BE10: League | BF10: League | BG10: FA CUP | BH10: League | BI10: League | BJ10: League | BK10: FA CUP
F13: EFL 1 | L13: EFL 2 | P13: EFL 3 | S13: FA 1 | U13: EFL 4 | X13: FA 2 | AA13: EFL 5 | AD13: FA 3 | AI13: FA 4 | AK13: EFL 6 | AO13: EFL 7 | AR13: FA 5 | AU13: EFL 8 | BA13: FA 6 | BG13: FA 7 | BK13: FA 8
B22: 1 | C22: Open
B23: =B22+1 -> 2 | C23: Open
B24: 3 | C24: Open
B25: 4 | C25: Open
B26: 5 | C26: Open
B27: 6 | C27: Open
B28: 7 | C28: Open
B29: 8 | C29: Open
B30: 9 | C30: Open
B31: 10 | C31: Open
B32: 11 | C32: Open
B33: 12 | C33: Closed
B34: 13 | C34: Closed
B35: 14 | C35: Closed
B36: 15 | C36: Closed
B37: 16 | C37: Closed
B38: 17 | C38: Closed
B39: 18 | C39: Closed
B40: 19 | C40: Closed
B41: 20 | C41: Closed
B42: 21 | C42: Closed
B43: 22 | C43: Closed
B44: 23 | C44: Closed
B45: 24 | C45: Closed
B46: 25 | C46: Closed
B47: 26 | C47: Closed
B48: 27 | C48: Closed
B49: 28 | C49: Closed
B50: 29 | C50: Closed
B51: 30 | C51: Closed
B52: 31 | C52: Closed
B53: 32 | C53: Closed
B54: 33 | C54: Closed
B55: =B54+1 -> 34 | C55: Open
B56: 35 | C56: Open
B57: 36 | C57: Open
B58: 37 | C58: Open
B59: 38 | C59: Closed
B60: 39 | C60: Closed
B61: 40 | C61: Closed
B62: 41 | C62: Closed
B63: 42 | C63: Closed
B64: 43 | C64: Closed
B65: 44 | C65: Closed
B66: 45 | C66: Closed
B67: 46 | C67: Closed
B68: 47 | C68: Closed
B69: 48 | C69: Closed
B70: 49 | C70: Closed
B71: 50 | C71: Closed
B72: 51 | C72: Closed
B73: 52 | C73: Closed
B74: 53 | C74: Closed
B75: 54 | C75: Closed
B76: 55 | C76: Closed
B77: 56 | C77: Closed
B78: 57 | C78: Closed
B79: 58 | C79: Closed
B80: 59 | C80: Closed
B81: 60 | C81: Closed
B82: 61 | C82: Closed
B83: 62 | C83: Closed
B84: 63 | C84: Closed

Sheet Starting Reputation (hidden)
D1: Historic Rank
B2: Club | C2: Rating | D2: Attack | E2: Midfield | F2: Defense | G2: Total | H2: Reputation
B3: Manchester City | C3: =(G3+H3)/2 -> 81% | D3: 64% | E3: 61% | F3: 61% | G3: =SUM(D3:F3)/3 -> 62% | H3: =VLOOKUP(B3,Reputation!$A$2:$G$181,7,FALSE)/100 -> 100%
B4: Liverpool | C4: 79% | D4: 61% | E4: 58% | F4: 58% | G4: 59% | H4: =VLOOKUP(B4,Reputation!$A$2:$G$181,7,FALSE)/100 -> 100%
B5: Arsenal | C5: 80% | D5: 62% | E5: 60% | F5: 60% | G5: 61% | H5: =VLOOKUP(B5,Reputation!$A$2:$G$181,7,FALSE)/100 -> 99%
B6: Manchester United | C6: 79% | D6: 60% | E6: 57% | F6: 58% | G6: 58% | H6: =VLOOKUP(B6,Reputation!$A$2:$G$181,7,FALSE)/100 -> 99%
B7: FC Bayern Munich | C7: 78% | D7: 62% | E7: 60% | F7: 60% | G7: 60% | H7: =VLOOKUP(B7,Reputation!$A$2:$G$181,7,FALSE)/100 -> 95%
B8: Real Madrid | C8: 77% | D8: 61% | E8: 59% | F8: 59% | G8: 60% | H8: =VLOOKUP(B8,Reputation!$A$2:$G$181,7,FALSE)/100 -> 95%
B9: Barcelona | C9: 76% | D9: 58% | E9: 56% | F9: 56% | G9: 57% | H9: =VLOOKUP(B9,Reputation!$A$2:$G$181,7,FALSE)/100 -> 95%
B10: Chelsea | C10: 77% | D10: 57% | E10: 54% | F10: 55% | G10: 55% | H10: =VLOOKUP(B10,Reputation!$A$2:$G$181,7,FALSE)/100 -> 98%
B11: Tottenham | C11: 77% | D11: 57% | E11: 55% | F11: 56% | G11: 56% | H11: =VLOOKUP(B11,Reputation!$A$2:$G$181,7,FALSE)/100 -> 97%
B12: Aston Villa | C12: 77% | D12: 58% | E12: 56% | F12: 57% | G12: 57% | H12: =VLOOKUP(B12,Reputation!$A$2:$G$181,7,FALSE)/100 -> 97%
B13: Newcastle United | C13: 76% | D13: 56% | E13: 53% | F13: 54% | G13: 54% | H13: =VLOOKUP(B13,Reputation!$A$2:$G$181,7,FALSE)/100 -> 98%
B14: Roma | C14: 75% | D14: 61% | E14: 58% | F14: 58% | G14: 59% | H14: =VLOOKUP(B14,Reputation!$A$2:$G$181,7,FALSE)/100 -> 90%
B15: AC Milan | C15: 75% | D15: 60% | E15: 58% | F15: 59% | G15: 59% | H15: =VLOOKUP(B15,Reputation!$A$2:$G$181,7,FALSE)/100 -> 90%
B16: Paris Saint-Germain | C16: 75% | D16: 61% | E16: 58% | F16: 59% | G16: 59% | H16: =VLOOKUP(B16,Reputation!$A$2:$G$181,7,FALSE)/100 -> 90%
B17: West Ham | C17: 76% | D17: 58% | E17: 56% | F17: 57% | G17: 57% | H17: =VLOOKUP(B17,Reputation!$A$2:$G$181,7,FALSE)/100 -> 96%
B18: Juventus | C18: 74% | D18: 60% | E18: 58% | F18: 59% | G18: 59% | H18: =VLOOKUP(B18,Reputation!$A$2:$G$181,7,FALSE)/100 -> 90%
B19: Borussia Dortmund | C19: 74% | D19: 60% | E19: 58% | F19: 58% | G19: 59% | H19: =VLOOKUP(B19,Reputation!$A$2:$G$181,7,FALSE)/100 -> 90%
B20: Athletic Madrid | C20: 74% | D20: 59% | E20: 57% | F20: 57% | G20: 58% | H20: =VLOOKUP(B20,Reputation!$A$2:$G$181,7,FALSE)/100 -> 90%
B21: Inter Milan | C21: 74% | D21: 59% | E21: 57% | F21: 58% | G21: 58% | H21: =VLOOKUP(B21,Reputation!$A$2:$G$181,7,FALSE)/100 -> 90%
B22: Vilarreal | C22: 74% | D22: 58% | E22: 56% | F22: 57% | G22: 57% | H22: =VLOOKUP(B22,Reputation!$A$2:$G$181,7,FALSE)/100 -> 90%
B23: Fiorentina | C23: 73% | D23: 58% | E23: 56% | F23: 57% | G23: 57% | H23: =VLOOKUP(B23,Reputation!$A$2:$G$181,7,FALSE)/100 -> 90%
B24: Atalanta | C24: 73% | D24: 57% | E24: 55% | F24: 57% | G24: 56% | H24: =VLOOKUP(B24,Reputation!$A$2:$G$181,7,FALSE)/100 -> 90%
B25: Brighton & Hove Albion | C25: 75% | D25: 56% | E25: 54% | F25: 55% | G25: 55% | H25: =VLOOKUP(B25,Reputation!$A$2:$G$181,7,FALSE)/100 -> 96%
B26: Valencia | C26: 73% | D26: 57% | E26: 54% | F26: 55% | G26: 55% | H26: =VLOOKUP(B26,Reputation!$A$2:$G$181,7,FALSE)/100 -> 90%
B27: Crystal Palace | C27: 74% | D27: 54% | E27: 52% | F27: 53% | G27: 53% | H27: =VLOOKUP(B27,Reputation!$A$2:$G$181,7,FALSE)/100 -> 95%
B28: Real Sociedad | C28: 71% | D28: 59% | E28: 58% | F28: 57% | G28: 58% | H28: =VLOOKUP(B28,Reputation!$A$2:$G$181,7,FALSE)/100 -> 85%
B29: Wolves | C29: 74% | D29: 55% | E29: 53% | F29: 54% | G29: 54% | H29: =VLOOKUP(B29,Reputation!$A$2:$G$181,7,FALSE)/100 -> 95%
B30: Lazio | C30: 71% | D30: 59% | E30: 57% | F30: 58% | G30: 58% | H30: =VLOOKUP(B30,Reputation!$A$2:$G$181,7,FALSE)/100 -> 85%
B31: Real Betis | C31: 71% | D31: 58% | E31: 56% | F31: 56% | G31: 57% | H31: =VLOOKUP(B31,Reputation!$A$2:$G$181,7,FALSE)/100 -> 85%
B32: Napoli | C32: 71% | D32: 58% | E32: 56% | F32: 57% | G32: 57% | H32: =VLOOKUP(B32,Reputation!$A$2:$G$181,7,FALSE)/100 -> 85%
B33: Fulham | C33: 74% | D33: 56% | E33: 54% | F33: 55% | G33: 55% | H33: =VLOOKUP(B33,Reputation!$A$2:$G$181,7,FALSE)/100 -> 94%
B34: Sevilla | C34: 71% | D34: 57% | E34: 55% | F34: 57% | G34: 56% | H34: =VLOOKUP(B34,Reputation!$A$2:$G$181,7,FALSE)/100 -> 85%
B35: Rayo Vallecano | C35: 71% | D35: 57% | E35: 55% | F35: 56% | G35: 56% | H35: =VLOOKUP(B35,Reputation!$A$2:$G$181,7,FALSE)/100 -> 85%
B36: Athletic Bilbao | C36: 70% | D36: 57% | E36: 55% | F36: 55% | G36: 55% | H36: =VLOOKUP(B36,Reputation!$A$2:$G$181,7,FALSE)/100 -> 85%
B37: Brentford | C37: 74% | D37: 55% | E37: 53% | F37: 54% | G37: 54% | H37: =VLOOKUP(B37,Reputation!$A$2:$G$181,7,FALSE)/100 -> 93%
B38: Everton | C38: 73% | D38: 53% | E38: 51% | F38: 52% | G38: 52% | H38: =VLOOKUP(B38,Reputation!$A$2:$G$181,7,FALSE)/100 -> 94%
B39: Nottingham Forest | C39: 74% | D39: 56% | E39: 54% | F39: 55% | G39: 55% | H39: =VLOOKUP(B39,Reputation!$A$2:$G$181,7,FALSE)/100 -> 92%
B40: Leicester City | C40: 73% | D40: 54% | E40: 51% | F40: 53% | G40: 53% | H40: =VLOOKUP(B40,Reputation!$A$2:$G$181,7,FALSE)/100 -> 93%
B41: AFC Bournemouth | C41: 73% | D41: 55% | E41: 53% | F41: 53% | G41: 54% | H41: =VLOOKUP(B41,Reputation!$A$2:$G$181,7,FALSE)/100 -> 92%
B42: Lille | C42: 68% | D42: 58% | E42: 56% | F42: 56% | G42: 57% | H42: =VLOOKUP(B42,Reputation!$A$2:$G$181,7,FALSE)/100 -> 80%
B43: Monaco | C43: 68% | D43: 58% | E43: 56% | F43: 56% | G43: 56% | H43: =VLOOKUP(B43,Reputation!$A$2:$G$181,7,FALSE)/100 -> 80%
B44: Girona | C44: 68% | D44: 57% | E44: 55% | F44: 56% | G44: 56% | H44: =VLOOKUP(B44,Reputation!$A$2:$G$181,7,FALSE)/100 -> 80%
B45: VfB Stuttgart | C45: 68% | D45: 57% | E45: 55% | F45: 56% | G45: 56% | H45: =VLOOKUP(B45,Reputation!$A$2:$G$181,7,FALSE)/100 -> 80%
B46: Marsiele | C46: 68% | D46: 57% | E46: 55% | F46: 56% | G46: 56% | H46: =VLOOKUP(B46,Reputation!$A$2:$G$181,7,FALSE)/100 -> 80%
B47: Burnley | C47: 67% | D47: 55% | E47: 53% | F47: 54% | G47: 54% | H47: =VLOOKUP(B47,Reputation!$A$2:$G$181,7,FALSE)/100 -> 81%
B48: Bologna | C48: 68% | D48: 57% | E48: 54% | F48: 56% | G48: 56% | H48: =VLOOKUP(B48,Reputation!$A$2:$G$181,7,FALSE)/100 -> 80%
B49: VfL Hoffenheim | C49: 68% | D49: 57% | E49: 54% | F49: 56% | G49: 56% | H49: =VLOOKUP(B49,Reputation!$A$2:$G$181,7,FALSE)/100 -> 80%
B50: FC Union Berlin | C50: 68% | D50: 57% | E50: 54% | F50: 56% | G50: 56% | H50: =VLOOKUP(B50,Reputation!$A$2:$G$181,7,FALSE)/100 -> 80%
B51: SC Freiburg | C51: 68% | D51: 57% | E51: 54% | F51: 56% | G51: 56% | H51: =VLOOKUP(B51,Reputation!$A$2:$G$181,7,FALSE)/100 -> 80%
B52: Genoa | C52: 68% | D52: 56% | E52: 54% | F52: 56% | G52: 56% | H52: =VLOOKUP(B52,Reputation!$A$2:$G$181,7,FALSE)/100 -> 80%
B53: Bayer 04 Leverkusen | C53: 67% | D53: 56% | E53: 54% | F53: 55% | G53: 55% | H53: =VLOOKUP(B53,Reputation!$A$2:$G$181,7,FALSE)/100 -> 80%
B54: Udinese | C54: 67% | D54: 55% | E54: 53% | F54: 55% | G54: 55% | H54: =VLOOKUP(B54,Reputation!$A$2:$G$181,7,FALSE)/100 -> 80%
B55: RB Leipzig | C55: 67% | D55: 56% | E55: 53% | F55: 55% | G55: 54% | H55: =VLOOKUP(B55,Reputation!$A$2:$G$181,7,FALSE)/100 -> 80%
B56: FSV Mainz 05 | C56: 67% | D56: 56% | E56: 53% | F56: 54% | G56: 54% | H56: =VLOOKUP(B56,Reputation!$A$2:$G$181,7,FALSE)/100 -> 80%
B57: Leeds United | C57: 67% | D57: 54% | E57: 52% | F57: 53% | G57: 53% | H57: =VLOOKUP(B57,Reputation!$A$2:$G$181,7,FALSE)/100 -> 81%
B58: Espanyol | C58: 67% | D58: 54% | E58: 53% | F58: 53% | G58: 53% | H58: =VLOOKUP(B58,Reputation!$A$2:$G$181,7,FALSE)/100 -> 80%
B59: Sheffield United | C59: 66% | D59: 54% | E59: 52% | F59: 52% | G59: 53% | H59: =VLOOKUP(B59,Reputation!$A$2:$G$181,7,FALSE)/100 -> 80%
B60: Southampton | C60: 71% | D60: 55% | E60: 52% | F60: 53% | G60: 53% | H60: =VLOOKUP(B60,Reputation!$A$2:$G$181,7,FALSE)/100 -> 90%
B61: Celta Vigo | C61: 66% | D61: 57% | E61: 55% | F61: 56% | G61: 56% | H61: =VLOOKUP(B61,Reputation!$A$2:$G$181,7,FALSE)/100 -> 75%
B62: FC Heidenheim 1846 | C62: 65% | D62: 52% | E62: 49% | F62: 52% | G62: 51% | H62: =VLOOKUP(B62,Reputation!$A$2:$G$181,7,FALSE)/100 -> 80%
B63: Sheffield Wednesday | C63: 65% | D63: 53% | E63: 50% | F63: 52% | G63: 52% | H63: =VLOOKUP(B63,Reputation!$A$2:$G$181,7,FALSE)/100 -> 79%
B64: Norwich City | C64: 65% | D64: 52% | E64: 50% | F64: 51% | G64: 51% | H64: =VLOOKUP(B64,Reputation!$A$2:$G$181,7,FALSE)/100 -> 79%
B65: Watford | C65: 65% | D65: 52% | E65: 50% | F65: 51% | G65: 51% | H65: =VLOOKUP(B65,Reputation!$A$2:$G$181,7,FALSE)/100 -> 79%
B66: Luton Town | C66: 65% | D66: 52% | E66: 50% | F66: 52% | G66: 51% | H66: =VLOOKUP(B66,Reputation!$A$2:$G$181,7,FALSE)/100 -> 78%
B67: Middlesbrough | C67: =(G67+H67)/2 -> 65% | D67: 53% | E67: 51% | F67: 52% | G67: =SUM(D67:F67)/3 -> 52% | H67: =VLOOKUP(B67,Reputation!$A$2:$G$181,7,FALSE)/100 -> 78%
B68: RC Lens | C68: 63% | D68: 58% | E68: 56% | F68: 56% | G68: 57% | H68: =VLOOKUP(B68,Reputation!$A$2:$G$181,7,FALSE)/100 -> 70%
B69: Rennes | C69: 63% | D69: 58% | E69: 55% | F69: 56% | G69: 56% | H69: =VLOOKUP(B69,Reputation!$A$2:$G$181,7,FALSE)/100 -> 70%
B70: West Brom | C70: 64% | D70: 53% | E70: 51% | F70: 52% | G70: 52% | H70: =VLOOKUP(B70,Reputation!$A$2:$G$181,7,FALSE)/100 -> 77%
B71: Osasuna | C71: 63% | D71: 56% | E71: 55% | F71: 55% | G71: 56% | H71: =VLOOKUP(B71,Reputation!$A$2:$G$181,7,FALSE)/100 -> 70%
B72: Brest | C72: 63% | D72: 57% | E72: 54% | F72: 55% | G72: 55% | H72: =VLOOKUP(B72,Reputation!$A$2:$G$181,7,FALSE)/100 -> 70%
B73: Nice | C73: 63% | D73: 56% | E73: 54% | F73: 55% | G73: 55% | H73: =VLOOKUP(B73,Reputation!$A$2:$G$181,7,FALSE)/100 -> 70%
B74: Real Mallorca | C74: 62% | D74: 56% | E74: 54% | F74: 55% | G74: 55% | H74: =VLOOKUP(B74,Reputation!$A$2:$G$181,7,FALSE)/100 -> 70%
B75: Alaves | C75: 62% | D75: 56% | E75: 54% | F75: 55% | G75: 55% | H75: =VLOOKUP(B75,Reputation!$A$2:$G$181,7,FALSE)/100 -> 70%
B76: VfL Wolfsburg | C76: 62% | D76: 56% | E76: 54% | F76: 55% | G76: 55% | H76: =VLOOKUP(B76,Reputation!$A$2:$G$181,7,FALSE)/100 -> 70%
B77: Eintracht Frankfurt | C77: 62% | D77: 56% | E77: 54% | F77: 55% | G77: 55% | H77: =VLOOKUP(B77,Reputation!$A$2:$G$181,7,FALSE)/100 -> 70%
B78: Lecce | C78: 62% | D78: 56% | E78: 54% | F78: 55% | G78: 55% | H78: =VLOOKUP(B78,Reputation!$A$2:$G$181,7,FALSE)/100 -> 70%
B79: SV Werder Bremen | C79: 62% | D79: 56% | E79: 54% | F79: 54% | G79: 55% | H79: =VLOOKUP(B79,Reputation!$A$2:$G$181,7,FALSE)/100 -> 70%
B80: FC Augsburg | C80: 62% | D80: 56% | E80: 53% | F80: 55% | G80: 55% | H80: =VLOOKUP(B80,Reputation!$A$2:$G$181,7,FALSE)/100 -> 70%
B81: Verona | C81: 62% | D81: 56% | E81: 54% | F81: 55% | G81: 55% | H81: =VLOOKUP(B81,Reputation!$A$2:$G$181,7,FALSE)/100 -> 70%
B82: Torino | C82: 62% | D82: 56% | E82: 53% | F82: 55% | G82: 55% | H82: =VLOOKUP(B82,Reputation!$A$2:$G$181,7,FALSE)/100 -> 70%
B83: Las Palmas | C83: 62% | D83: 56% | E83: 54% | F83: 54% | G83: 55% | H83: =VLOOKUP(B83,Reputation!$A$2:$G$181,7,FALSE)/100 -> 70%
B84: Como | C84: 62% | D84: 55% | E84: 53% | F84: 54% | G84: 54% | H84: =VLOOKUP(B84,Reputation!$A$2:$G$181,7,FALSE)/100 -> 70%
B85: Lyon | C85: 62% | D85: 55% | E85: 53% | F85: 54% | G85: 54% | H85: =VLOOKUP(B85,Reputation!$A$2:$G$181,7,FALSE)/100 -> 70%
B86: Nantes | C86: 62% | D86: 55% | E86: 53% | F86: 54% | G86: 54% | H86: =VLOOKUP(B86,Reputation!$A$2:$G$181,7,FALSE)/100 -> 70%
B87: Strasbourg | C87: 62% | D87: 55% | E87: 53% | F87: 54% | G87: 54% | H87: =VLOOKUP(B87,Reputation!$A$2:$G$181,7,FALSE)/100 -> 70%
B88: Monza | C88: 62% | D88: 55% | E88: 52% | F88: 54% | G88: 54% | H88: =VLOOKUP(B88,Reputation!$A$2:$G$181,7,FALSE)/100 -> 70%
B89: Montpellier | C89: 62% | D89: 55% | E89: 53% | F89: 54% | G89: 54% | H89: =VLOOKUP(B89,Reputation!$A$2:$G$181,7,FALSE)/100 -> 70%
B90: Cagliari | C90: 62% | D90: 55% | E90: 53% | F90: 54% | G90: 54% | H90: =VLOOKUP(B90,Reputation!$A$2:$G$181,7,FALSE)/100 -> 70%
B91: Borussia Monchengladbach | C91: 62% | D91: 55% | E91: 53% | F91: 54% | G91: 54% | H91: =VLOOKUP(B91,Reputation!$A$2:$G$181,7,FALSE)/100 -> 70%
B92: Sunderland | C92: 64% | D92: 52% | E92: 49% | F92: 51% | G92: 51% | H92: =VLOOKUP(B92,Reputation!$A$2:$G$181,7,FALSE)/100 -> 77%
B93: Reims | C93: 62% | D93: 55% | E93: 53% | F93: 53% | G93: 54% | H93: =VLOOKUP(B93,Reputation!$A$2:$G$181,7,FALSE)/100 -> 70%
B94: FC St.Pauli | C94: 62% | D94: 55% | E94: 52% | F94: 54% | G94: 54% | H94: =VLOOKUP(B94,Reputation!$A$2:$G$181,7,FALSE)/100 -> 70%
B95: Real Valladolid | C95: 62% | D95: 55% | E95: 53% | F95: 53% | G95: 53% | H95: =VLOOKUP(B95,Reputation!$A$2:$G$181,7,FALSE)/100 -> 70%
B96: Angers | C96: 62% | D96: 55% | E96: 52% | F96: 53% | G96: 53% | H96: =VLOOKUP(B96,Reputation!$A$2:$G$181,7,FALSE)/100 -> 70%
B97: Parma | C97: 62% | D97: 55% | E97: 52% | F97: 53% | G97: 53% | H97: =VLOOKUP(B97,Reputation!$A$2:$G$181,7,FALSE)/100 -> 70%
B98: Getafe | C98: 62% | D98: 55% | E98: 52% | F98: 53% | G98: 53% | H98: =VLOOKUP(B98,Reputation!$A$2:$G$181,7,FALSE)/100 -> 70%
B99: Empoli | C99: 62% | D99: 54% | E99: 52% | F99: 53% | G99: 53% | H99: =VLOOKUP(B99,Reputation!$A$2:$G$181,7,FALSE)/100 -> 70%
B100: St Etienne | C100: 62% | D100: 54% | E100: 52% | F100: 53% | G100: 53% | H100: =VLOOKUP(B100,Reputation!$A$2:$G$181,7,FALSE)/100 -> 70%
B101: Le Havre | C101: 61% | D101: 54% | E101: 52% | F101: 53% | G101: 53% | H101: =VLOOKUP(B101,Reputation!$A$2:$G$181,7,FALSE)/100 -> 70%
B102: Blackburn | C102: 63% | D102: 52% | E102: 50% | F102: 51% | G102: 51% | H102: =VLOOKUP(B102,Reputation!$A$2:$G$181,7,FALSE)/100 -> 76%
B103: Venezia | C103: 61% | D103: 54% | E103: 52% | F103: 53% | G103: 53% | H103: =VLOOKUP(B103,Reputation!$A$2:$G$181,7,FALSE)/100 -> 70%
B104: Holstein Kiel | C104: 61% | D104: 54% | E104: 51% | F104: 52% | G104: 52% | H104: =VLOOKUP(B104,Reputation!$A$2:$G$181,7,FALSE)/100 -> 70%
B105: Leganes | C105: 61% | D105: 53% | E105: 51% | F105: 52% | G105: 52% | H105: =VLOOKUP(B105,Reputation!$A$2:$G$181,7,FALSE)/100 -> 70%
B106: Auxerre | C106: 61% | D106: 53% | E106: 51% | F106: 52% | G106: 52% | H106: =VLOOKUP(B106,Reputation!$A$2:$G$181,7,FALSE)/100 -> 70%
B107: Swansea | C107: 63% | D107: 52% | E107: 50% | F107: 51% | G107: 51% | H107: =VLOOKUP(B107,Reputation!$A$2:$G$181,7,FALSE)/100 -> 76%
B108: VfL Bochum 1848 | C108: 61% | D108: 52% | E108: 49% | F108: 52% | G108: 51% | H108: =VLOOKUP(B108,Reputation!$A$2:$G$181,7,FALSE)/100 -> 70%
B109: Bristol City | C109: 63% | D109: 52% | E109: 50% | F109: 51% | G109: 51% | H109: =VLOOKUP(B109,Reputation!$A$2:$G$181,7,FALSE)/100 -> 75%
B110: Coventry City | C110: 62% | D110: 52% | E110: 49% | F110: 50% | G110: 50% | H110: =VLOOKUP(B110,Reputation!$A$2:$G$181,7,FALSE)/100 -> 75%
B111: Cardiff City | C111: 63% | D111: 54% | E111: 52% | F111: 53% | G111: 53% | H111: =VLOOKUP(B111,Reputation!$A$2:$G$181,7,FALSE)/100 -> 73%
B112: Ipswich Town | C112: 68% | D112: 56% | E112: 54% | F112: 55% | G112: 55% | H112: =VLOOKUP(B112,Reputation!$A$2:$G$181,7,FALSE)/100 -> 82%
B113: Stoke City | C113: 62% | D113: 52% | E113: 49% | F113: 50% | G113: 51% | H113: =VLOOKUP(B113,Reputation!$A$2:$G$181,7,FALSE)/100 -> 74%
B114: Hull City | C114: 63% | D114: 55% | E114: 53% | F114: 53% | G114: 53% | H114: =VLOOKUP(B114,Reputation!$A$2:$G$181,7,FALSE)/100 -> 72%
B115: Huddersfield | C115: 55% | D115: 51% | E115: 49% | F115: 51% | G115: 50% | H115: =VLOOKUP(B115,Reputation!$A$2:$G$181,7,FALSE)/100 -> 61%
B116: Preston North End | C116: 61% | D116: 53% | E116: 51% | F116: 53% | G116: 52% | H116: =VLOOKUP(B116,Reputation!$A$2:$G$181,7,FALSE)/100 -> 71%
B117: Millwall | C117: 60% | D117: 51% | E117: 48% | F117: 50% | G117: 50% | H117: =VLOOKUP(B117,Reputation!$A$2:$G$181,7,FALSE)/100 -> 71%
B118: Birmingham | C118: 55% | D118: 54% | E118: 51% | F118: 52% | G118: 52% | H118: =VLOOKUP(B118,Reputation!$A$2:$G$181,7,FALSE)/100 -> 58%
B119: Queens Park Rangers | C119: 60% | D119: 52% | E119: 50% | F119: 51% | G119: 51% | H119: =VLOOKUP(B119,Reputation!$A$2:$G$181,7,FALSE)/100 -> 70%
B120: Derby County | C120: 59% | D120: 51% | E120: 48% | F120: 50% | G120: 50% | H120: =VLOOKUP(B120,Reputation!$A$2:$G$181,7,FALSE)/100 -> 69%
B121: Plymouth Argyle | C121: 58% | D121: 50% | E121: 47% | F121: 49% | G121: 48% | H121: =VLOOKUP(B121,Reputation!$A$2:$G$181,7,FALSE)/100 -> 69%
B122: Barnsley | C122: 52% | D122: 50% | E122: 48% | F122: 49% | G122: 49% | H122: =VLOOKUP(B122,Reputation!$A$2:$G$181,7,FALSE)/100 -> 56%
B123: Rotherham United | C123: 52% | D123: 48% | E123: 46% | F123: 48% | G123: 48% | H123: =VLOOKUP(B123,Reputation!$A$2:$G$181,7,FALSE)/100 -> 56%
B124: Bolton | C124: 52% | D124: 52% | E124: 49% | F124: 51% | G124: 50% | H124: =VLOOKUP(B124,Reputation!$A$2:$G$181,7,FALSE)/100 -> 55%
B125: Portsmouth | C125: 58% | D125: 52% | E125: 50% | F125: 51% | G125: 51% | H125: =VLOOKUP(B125,Reputation!$A$2:$G$181,7,FALSE)/100 -> 66%
B126: Charlton Athletic | C126: 52% | D126: 51% | E126: 48% | F126: 50% | G126: 50% | H126: =VLOOKUP(B126,Reputation!$A$2:$G$181,7,FALSE)/100 -> 54%
B127: Reading | C127: 50% | D127: 46% | E127: 44% | F127: 46% | G127: 46% | H127: =VLOOKUP(B127,Reputation!$A$2:$G$181,7,FALSE)/100 -> 55%
B128: Sydney FC | C128: 50% | D128: 51% | E128: 49% | F128: 49% | G128: 49% | H128: =VLOOKUP(B128,Reputation!$A$2:$G$181,7,FALSE)/100 -> 50%
B129: Melbourne Victory | C129: 50% | D129: 50% | E129: 48% | F129: 49% | G129: 49% | H129: =VLOOKUP(B129,Reputation!$A$2:$G$181,7,FALSE)/100 -> 50%
B130: Melbourne City | C130: 49% | D130: 50% | E130: 48% | F130: 49% | G130: 49% | H130: =VLOOKUP(B130,Reputation!$A$2:$G$181,7,FALSE)/100 -> 50%
B131: Blackpool | C131: =(G131+H131)/2 -> 51% | D131: 51% | E131: 49% | F131: 50% | G131: =SUM(D131:F131)/3 -> 50% | H131: =VLOOKUP(B131,Reputation!$A$2:$G$181,7,FALSE)/100 -> 53%
B132: Oxford United | C132: 58% | D132: 54% | E132: 52% | F132: 52% | G132: 53% | H132: =VLOOKUP(B132,Reputation!$A$2:$G$181,7,FALSE)/100 -> 63%
B133: Western Sydney Wanderers | C133: 49% | D133: 49% | E133: 47% | F133: 48% | G133: 48% | H133: =VLOOKUP(B133,Reputation!$A$2:$G$181,7,FALSE)/100 -> 50%
B134: Perth Glory | C134: 49% | D134: 49% | E134: 47% | F134: 47% | G134: 48% | H134: =VLOOKUP(B134,Reputation!$A$2:$G$181,7,FALSE)/100 -> 50%
B135: Bristol | C135: 51% | D135: 51% | E135: 50% | F135: 50% | G135: 50% | H135: =VLOOKUP(B135,Reputation!$A$2:$G$181,7,FALSE)/100 -> 52%
B136: Brisbane Roar | C136: 49% | D136: 48% | E136: 46% | F136: 47% | G136: 47% | H136: =VLOOKUP(B136,Reputation!$A$2:$G$181,7,FALSE)/100 -> 50%
B137: Wellington Phoenix | C137: 49% | D137: 48% | E137: 46% | F137: 47% | G137: 47% | H137: =VLOOKUP(B137,Reputation!$A$2:$G$181,7,FALSE)/100 -> 50%
B138: Macarthur | C138: 49% | D138: 48% | E138: 46% | F138: 47% | G138: 47% | H138: =VLOOKUP(B138,Reputation!$A$2:$G$181,7,FALSE)/100 -> 50%
B139: Wycombe | C139: 51% | D139: 50% | E139: 48% | F139: 49% | G139: 49% | H139: =VLOOKUP(B139,Reputation!$A$2:$G$181,7,FALSE)/100 -> 52%
B140: Peterborough United | C140: 50% | D140: 48% | E140: 46% | F140: 47% | G140: 47% | H140: =VLOOKUP(B140,Reputation!$A$2:$G$181,7,FALSE)/100 -> 53%
B141: Adelaide United | C141: 48% | D141: 48% | E141: 46% | F141: 46% | G141: 47% | H141: =VLOOKUP(B141,Reputation!$A$2:$G$181,7,FALSE)/100 -> 50%
B142: Central Coast Mariners | C142: 48% | D142: 47% | E142: 45% | F142: 46% | G142: 46% | H142: =VLOOKUP(B142,Reputation!$A$2:$G$181,7,FALSE)/100 -> 50%
B143: Western United | C143: 48% | D143: 47% | E143: 45% | F143: 46% | G143: 46% | H143: =VLOOKUP(B143,Reputation!$A$2:$G$181,7,FALSE)/100 -> 50%
B144: Newcastle Jets | C144: 48% | D144: 47% | E144: 44% | F144: 45% | G144: 45% | H144: =VLOOKUP(B144,Reputation!$A$2:$G$181,7,FALSE)/100 -> 50%
B145: Wigan Athletic | C145: 49% | D145: 49% | E145: 47% | F145: 48% | G145: 48% | H145: =VLOOKUP(B145,Reputation!$A$2:$G$181,7,FALSE)/100 -> 51%
B146: Lincoln City | C146: 49% | D146: 50% | E146: 47% | F146: 50% | G146: 49% | H146: =VLOOKUP(B146,Reputation!$A$2:$G$181,7,FALSE)/100 -> 50%
B147: Wrexham | C147: 48% | D147: 48% | E147: 46% | F147: 48% | G147: 47% | H147: =VLOOKUP(B147,Reputation!$A$2:$G$181,7,FALSE)/100 -> 50%
B148: Milton Keynes Dons | C148: 43% | D148: 49% | E148: 47% | F148: 48% | G148: 48% | H148: =VLOOKUP(B148,Reputation!$A$2:$G$181,7,FALSE)/100 -> 37%
B149: Burton Albion | C149: 49% | D149: 50% | E149: 48% | F149: 49% | G149: 49% | H149: =VLOOKUP(B149,Reputation!$A$2:$G$181,7,FALSE)/100 -> 49%
B150: Exeter City | C150: 48% | D150: 49% | E150: 47% | F150: 48% | G150: 48% | H150: =VLOOKUP(B150,Reputation!$A$2:$G$181,7,FALSE)/100 -> 48%
B151: Shrewsbury Town | C151: 48% | D151: 49% | E151: 47% | F151: 49% | G151: 48% | H151: =VLOOKUP(B151,Reputation!$A$2:$G$181,7,FALSE)/100 -> 48%
B152: Fleetwood Town | C152: 41% | D152: 48% | E152: 45% | F152: 47% | G152: 47% | H152: =VLOOKUP(B152,Reputation!$A$2:$G$181,7,FALSE)/100 -> 35%
B153: Notts County | C153: 41% | D153: 49% | E153: 47% | F153: 48% | G153: 48% | H153: =VLOOKUP(B153,Reputation!$A$2:$G$181,7,FALSE)/100 -> 34%
B154: Cambridge United | C154: 46% | D154: 48% | E154: 45% | F154: 47% | G154: 47% | H154: =VLOOKUP(B154,Reputation!$A$2:$G$181,7,FALSE)/100 -> 46%
B155: Cheltenham Town | C155: 39% | D155: 44% | E155: 42% | F155: 43% | G155: 43% | H155: =VLOOKUP(B155,Reputation!$A$2:$G$181,7,FALSE)/100 -> 35%
B156: Bradford City | C156: 39% | D156: 46% | E156: 45% | F156: 46% | G156: 46% | H156: =VLOOKUP(B156,Reputation!$A$2:$G$181,7,FALSE)/100 -> 33%
B157: Leyton Orient | C157: 46% | D157: 49% | E157: 47% | F157: 48% | G157: 48% | H157: =VLOOKUP(B157,Reputation!$A$2:$G$181,7,FALSE)/100 -> 44%
B158: Northhampton Town | C158: 46% | D158: 49% | E158: 47% | F158: 48% | G158: 48% | H158: =VLOOKUP(B158,Reputation!$A$2:$G$181,7,FALSE)/100 -> 44%
B159: Gilingham | C159: 39% | D159: 46% | E159: 44% | F159: 46% | G159: 45% | H159: =VLOOKUP(B159,Reputation!$A$2:$G$181,7,FALSE)/100 -> 33%
B160: Port Vale | C160: 40% | D160: 49% | E160: 47% | F160: 49% | G160: 48% | H160: =VLOOKUP(B160,Reputation!$A$2:$G$181,7,FALSE)/100 -> 31%
B161: Carlisle United | C161: 39% | D161: 49% | E161: 47% | F161: 49% | G161: 48% | H161: =VLOOKUP(B161,Reputation!$A$2:$G$181,7,FALSE)/100 -> 31%
B162: Stockport County | C162: 46% | D162: 51% | E162: 49% | F162: 50% | G162: 50% | H162: =VLOOKUP(B162,Reputation!$A$2:$G$181,7,FALSE)/100 -> 41%
B163: Mansfield Town | C163: 45% | D163: 49% | E163: 47% | F163: 49% | G163: 48% | H163: =VLOOKUP(B163,Reputation!$A$2:$G$181,7,FALSE)/100 -> 42%
B164: Doncaster Rovers | C164: 38% | D164: 48% | E164: 45% | F164: 47% | G164: 47% | H164: =VLOOKUP(B164,Reputation!$A$2:$G$181,7,FALSE)/100 -> 30%
B165: Salford City | C165: 38% | D165: 49% | E165: 47% | F165: 49% | G165: 48% | H165: =VLOOKUP(B165,Reputation!$A$2:$G$181,7,FALSE)/100 -> 28%
B166: Swindon Town | C166: 37% | D166: 47% | E166: 45% | F166: 46% | G166: 46% | H166: =VLOOKUP(B166,Reputation!$A$2:$G$181,7,FALSE)/100 -> 29%
B167: Tranmere Rovers | C167: 36% | D167: 45% | E167: 43% | F167: 44% | G167: 44% | H167: =VLOOKUP(B167,Reputation!$A$2:$G$181,7,FALSE)/100 -> 28%
B168: AFC Wimbledon | C168: 36% | D168: 46% | E168: 44% | F168: 46% | G168: 45% | H168: =VLOOKUP(B168,Reputation!$A$2:$G$181,7,FALSE)/100 -> 27%
B169: Accrington Stanley | C169: 36% | D169: 45% | E169: 43% | F169: 45% | G169: 44% | H169: =VLOOKUP(B169,Reputation!$A$2:$G$181,7,FALSE)/100 -> 27%
B170: Crewe | C170: 36% | D170: 47% | E170: 45% | F170: 46% | G170: 46% | H170: =VLOOKUP(B170,Reputation!$A$2:$G$181,7,FALSE)/100 -> 26%
B171: Stevenage | C171: 42% | D171: 49% | E171: 47% | F171: 48% | G171: 48% | H171: =VLOOKUP(B171,Reputation!$A$2:$G$181,7,FALSE)/100 -> 37%
B172: Chesterfield | C172: 36% | D172: 48% | E172: 46% | F172: 47% | G172: 47% | H172: =VLOOKUP(B172,Reputation!$A$2:$G$181,7,FALSE)/100 -> 25%
B173: Grimsby Town | C173: 34% | D173: 43% | E173: 41% | F173: 43% | G173: 43% | H173: =VLOOKUP(B173,Reputation!$A$2:$G$181,7,FALSE)/100 -> 26%
B174: Morecambe | C174: 34% | D174: 46% | E174: 43% | F174: 45% | G174: 45% | H174: =VLOOKUP(B174,Reputation!$A$2:$G$181,7,FALSE)/100 -> 24%
B175: Colchester United | C175: 35% | D175: 48% | E175: 46% | F175: 47% | G175: 47% | H175: =VLOOKUP(B175,Reputation!$A$2:$G$181,7,FALSE)/100 -> 23%
B176: Walsall | C176: 34% | D176: 46% | E176: 44% | F176: 46% | G176: 45% | H176: =VLOOKUP(B176,Reputation!$A$2:$G$181,7,FALSE)/100 -> 23%
B177: Newport County | C177: 34% | D177: 45% | E177: 42% | F177: 44% | G177: 44% | H177: =VLOOKUP(B177,Reputation!$A$2:$G$181,7,FALSE)/100 -> 24%
B178: Crawley Town | C178: 40% | D178: 47% | E178: 45% | F178: 46% | G178: 46% | H178: =VLOOKUP(B178,Reputation!$A$2:$G$181,7,FALSE)/100 -> 34%
B179: Barrow AFC | C179: 34% | D179: 47% | E179: 45% | F179: 46% | G179: 46% | H179: =VLOOKUP(B179,Reputation!$A$2:$G$181,7,FALSE)/100 -> 22%
B180: Harrogate Town | C180: 33% | D180: 45% | E180: 43% | F180: 44% | G180: 44% | H180: =VLOOKUP(B180,Reputation!$A$2:$G$181,7,FALSE)/100 -> 21%
B181: Bromley | C181: 32% | D181: 45% | E181: 43% | F181: 45% | G181: 44% | H181: =VLOOKUP(B181,Reputation!$A$2:$G$181,7,FALSE)/100 -> 21%

Sheet Reputation (hidden)
A2: Team | B2: 1 | C2: 2 | D2: 3 | E2: 4 | F2: 5 | G2: Average | I2: New Position | J2: New Rep | L2: Starting Rep | N2: Lookup
A3: Manchester City | E3: 100 | F3: 100 | G3: =AVERAGE(B3:F3) -> 100 | I3: =VLOOKUP(A3,'League Table'!$B$2:$C$219,2,FALSE) -> 1 | J3: =IFERROR(VLOOKUP(I3,$N$3:$O$94,2,FALSE),F3) -> 100 | L3: 100 | N3: 1 | O3: 100 | Q3: Man City | R3: 100
A4: Liverpool | E4: 99 | F4: 100 | G4: =AVERAGE(B4:F4) -> 99.5 | I4: =VLOOKUP(A4,'League Table'!$B$2:$C$219,2,FALSE) -> 1 | J4: =IFERROR(VLOOKUP(I4,$N$3:$O$94,2,FALSE),F4) -> 100 | L4: 99 | N4: 2 | O4: =O3-1 -> 99 | Q4: Liverpool | R4: =R3-1 -> 99
A5: Manchester United | E5: 98 | F5: 100 | G5: 99 | I5: =VLOOKUP(A5,'League Table'!$B$2:$C$219,2,FALSE) -> 1 | J5: 100 | L5: 98 | N5: 3 | O5: =O4-1 -> 98 | Q5: Man Utd | R5: =R4-1 -> 98
A6: Arsenal | E6: 97 | F6: 100 | G6: 98.5 | I6: =VLOOKUP(A6,'League Table'!$B$2:$C$219,2,FALSE) -> 1 | J6: 100 | L6: 97 | N6: 4 | O6: 97 | Q6: Arsenal | R6: 97
A7: Chelsea | E7: 96 | F7: 100 | G7: 98 | I7: =VLOOKUP(A7,'League Table'!$B$2:$C$219,2,FALSE) -> 1 | J7: 100 | L7: 96 | N7: 5 | O7: 96 | Q7: Chelsea | R7: 96
A8: FC Bayern Munich | E8: 95 | F8: 95 | G8: 95 | I8: =VLOOKUP(A8,'League Table'!$B$2:$C$219,2,FALSE) -> BYM | J8: 95 | L8: 95 | N8: 6 | O8: 95 | Q8: Newcastle Utd | R8: 95
A9: Real Madrid | E9: 95 | F9: 95 | G9: 95 | I9: =VLOOKUP(A9,'League Table'!$B$2:$C$219,2,FALSE) -> RMD | J9: 95 | L9: 95 | N9: 7 | O9: 94 | Q9: Tottenham | R9: 94
A10: Barcelona | E10: 95 | F10: 95 | G10: 95 | I10: =VLOOKUP(A10,'League Table'!$B$2:$C$219,2,FALSE) -> BAC | J10: 95 | L10: 95 | N10: 8 | O10: 93 | Q10: Aston Villa | R10: 93
A11: Newcastle United | E11: 95 | F11: 100 | G11: 97.5 | I11: =VLOOKUP(A11,'League Table'!$B$2:$C$219,2,FALSE) -> 1 | J11: 100 | L11: 95 | N11: 9 | O11: 92 | Q11: West Ham | R11: 92
A12: Tottenham | E12: 94 | F12: 100 | G12: 97 | I12: =VLOOKUP(A12,'League Table'!$B$2:$C$219,2,FALSE) -> 1 | J12: 100 | L12: 94 | N12: 10 | O12: 91 | Q12: Brighton | R12: 91
A13: Aston Villa | E13: 93 | F13: 100 | G13: 96.5 | I13: =VLOOKUP(A13,'League Table'!$B$2:$C$219,2,FALSE) -> 1 | J13: 100 | L13: 93 | N13: 11 | O13: 90 | Q13: Crystal Palace | R13: 90
A14: West Ham | E14: 92 | F14: 100 | G14: 96 | I14: =VLOOKUP(A14,'League Table'!$B$2:$C$219,2,FALSE) -> 1 | J14: 100 | L14: 92 | N14: 12 | O14: 89 | Q14: Wolves | R14: 89
A15: Brighton & Hove Albion | E15: 91 | F15: 100 | G15: 95.5 | I15: =VLOOKUP(A15,'League Table'!$B$2:$C$219,2,FALSE) -> 1 | J15: 100 | L15: 91 | N15: 13 | O15: 88 | Q15: Everton | R15: 88
A16: Roma | E16: 90 | F16: 90 | G16: 90 | I16: =VLOOKUP(A16,'League Table'!$B$2:$C$219,2,FALSE) -> ROM | J16: 90 | L16: 90 | N16: 14 | O16: 87 | Q16: Fulham | R16: 87
A17: AC Milan | E17: 90 | F17: 90 | G17: 90 | I17: =VLOOKUP(A17,'League Table'!$B$2:$C$219,2,FALSE) -> ACM | J17: 90 | L17: 90 | N17: 15 | O17: 86 | Q17: Brentford | R17: 86
A18: Paris Saint-Germain | E18: 90 | F18: 90 | G18: 90 | I18: =VLOOKUP(A18,'League Table'!$B$2:$C$219,2,FALSE) -> PSG | J18: 90 | L18: 90 | N18: 16 | O18: 85 | Q18: Leicester | R18: 85
A19: Juventus | E19: 90 | F19: 90 | G19: 90 | I19: =VLOOKUP(A19,'League Table'!$B$2:$C$219,2,FALSE) -> JUV | J19: 90 | L19: 90 | N19: 17 | O19: 84 | Q19: Nott'm Forest | R19: 84
A20: Borussia Dortmund | E20: 90 | F20: 90 | G20: 90 | I20: =VLOOKUP(A20,'League Table'!$B$2:$C$219,2,FALSE) -> BRD | J20: 90 | L20: 90 | N20: 18 | O20: 83 | Q20: Bournemouth | R20: 83
A21: Athletic Madrid | E21: 90 | F21: 90 | G21: 90 | I21: =VLOOKUP(A21,'League Table'!$B$2:$C$219,2,FALSE) -> ATM | J21: 90 | L21: 90 | N21: 19 | O21: 82 | Q21: Burnley | R21: 82
A22: Inter Milan | E22: 90 | F22: 90 | G22: 90 | I22: =VLOOKUP(A22,'League Table'!$B$2:$C$219,2,FALSE) -> INT | J22: 90 | L22: 90 | N22: 20 | O22: 81 | Q22: Leeds Utd | R22: 81
A23: Vilarreal | E23: 90 | F23: 90 | G23: 90 | I23: =VLOOKUP(A23,'League Table'!$B$2:$C$219,2,FALSE) -> VIL | J23: 90 | L23: 90 | N23: 21 | O23: 80 | Q23: Sheffield Utd | R23: 80
A24: Fiorentina | E24: 90 | F24: 90 | G24: 90 | I24: =VLOOKUP(A24,'League Table'!$B$2:$C$219,2,FALSE) -> FIO | J24: 90 | L24: 90 | N24: 22 | O24: 79 | Q24: Southampton | R24: 79
A25: Atalanta | E25: 90 | F25: 90 | G25: 90 | I25: =VLOOKUP(A25,'League Table'!$B$2:$C$219,2,FALSE) -> ATA | J25: 90 | L25: 90 | N25: 23 | O25: 78 | Q25: Norwich | R25: 78
A26: Valencia | E26: 90 | F26: 90 | G26: 90 | I26: =VLOOKUP(A26,'League Table'!$B$2:$C$219,2,FALSE) -> VAL | J26: 90 | L26: 90 | N26: 24 | O26: 77 | Q26: Watford | R26: 77
A27: Crystal Palace | E27: 90 | F27: 100 | G27: 95 | I27: =VLOOKUP(A27,'League Table'!$B$2:$C$219,2,FALSE) -> 1 | J27: 100 | L27: 90 | N27: 25 | O27: 76 | Q27: Luton | R27: 76
A28: Wolves | E28: 89 | F28: 100 | G28: 94.5 | I28: =VLOOKUP(A28,'League Table'!$B$2:$C$219,2,FALSE) -> 1 | J28: 100 | L28: 89 | N28: 26 | O28: 75 | Q28: Middlesbrough | R28: 75
A29: Everton | E29: 88 | F29: 100 | G29: 94 | I29: =VLOOKUP(A29,'League Table'!$B$2:$C$219,2,FALSE) -> 21 | J29: 80 | L29: 88 | N29: 27 | O29: 74 | Q29: West Brom | R29: 74
A30: Fulham | E30: 87 | F30: 100 | G30: 93.5 | I30: =VLOOKUP(A30,'League Table'!$B$2:$C$219,2,FALSE) -> 1 | J30: 100 | L30: 87 | N30: 28 | O30: 73 | Q30: Sunderland | R30: 73
A31: Brentford | E31: 86 | F31: 100 | G31: 93 | I31: =VLOOKUP(A31,'League Table'!$B$2:$C$219,2,FALSE) -> 1 | J31: 100 | L31: 86 | N31: 29 | O31: 72 | Q31: Blackburn | R31: 72
A32: Real Sociedad | E32: 85 | F32: 85 | G32: 85 | I32: =VLOOKUP(A32,'League Table'!$B$2:$C$219,2,FALSE) -> RSD | J32: 85 | L32: 85 | N32: 30 | O32: 71 | Q32: Swansea | R32: 71
A33: Lazio | E33: 85 | F33: 85 | G33: 85 | I33: =VLOOKUP(A33,'League Table'!$B$2:$C$219,2,FALSE) -> LAZ | J33: 85 | L33: 85 | N33: 31 | O33: 70 | Q33: Bristol City | R33: 70
A34: Real Betis | E34: 85 | F34: 85 | G34: 85 | I34: =VLOOKUP(A34,'League Table'!$B$2:$C$219,2,FALSE) -> RBS | J34: 85 | L34: 85 | N34: 32 | O34: 69 | Q34: Coventry | R34: 69
A35: Napoli | E35: 85 | F35: 85 | G35: 85 | I35: =VLOOKUP(A35,'League Table'!$B$2:$C$219,2,FALSE) -> NAP | J35: 85 | L35: 85 | N35: 33 | O35: 68 | Q35: Sheff Wed | R35: 68
A36: Sevilla | E36: 85 | F36: 85 | G36: 85 | I36: =VLOOKUP(A36,'League Table'!$B$2:$C$219,2,FALSE) -> SEV | J36: 85 | L36: 85 | N36: 34 | O36: 67 | Q36: Stoke | R36: 67
A37: Rayo Vallecano | E37: 85 | F37: 85 | G37: 85 | I37: =VLOOKUP(A37,'League Table'!$B$2:$C$219,2,FALSE) -> RVC | J37: 85 | L37: 85 | N37: 35 | O37: 66 | Q37: Cardiff | R37: 66
A38: Athletic Bilbao | E38: 85 | F38: 85 | G38: 85 | I38: =VLOOKUP(A38,'League Table'!$B$2:$C$219,2,FALSE) -> ATB | J38: 85 | L38: 85 | N38: 36 | O38: 65 | Q38: Huddersfield | R38: 65
A39: Leicester City | E39: 85 | F39: 100 | G39: 92.5 | I39: =VLOOKUP(A39,'League Table'!$B$2:$C$219,2,FALSE) -> 1 | J39: 100 | L39: 85 | N39: 37 | O39: 64 | Q39: Hull | R39: 64
A40: Nottingham Forest | E40: 84 | F40: 100 | G40: 92 | I40: =VLOOKUP(A40,'League Table'!$B$2:$C$219,2,FALSE) -> 1 | J40: 100 | L40: 84 | N40: 38 | O40: 63 | Q40: Ipswich | R40: 63
A41: AFC Bournemouth | E41: 83 | F41: 100 | G41: 91.5 | I41: =VLOOKUP(A41,'League Table'!$B$2:$C$219,2,FALSE) -> 21 | J41: 80 | L41: 83 | N41: 39 | O41: 62 | Q41: Millwall | R41: 62
A42: Burnley | E42: 82 | F42: 80 | G42: 81 | I42: =VLOOKUP(A42,'League Table'!$B$2:$C$219,2,FALSE) -> 21 | J42: 80 | L42: 82 | N42: 40 | O42: 61 | Q42: Preston | R42: 61
A43: Leeds United | E43: 81 | F43: 80 | G43: 80.5 | I43: =VLOOKUP(A43,'League Table'!$B$2:$C$219,2,FALSE) -> 1 | J43: 100 | L43: 81 | N43: 41 | O43: 60 | Q43: QPR | R43: 60
A44: Lille | E44: 80 | F44: 80 | G44: 80 | I44: =VLOOKUP(A44,'League Table'!$B$2:$C$219,2,FALSE) -> LLL | J44: 80 | L44: 80 | N44: 42 | O44: 59 | Q44: Birmingham | R44: 59
A45: Monaco | E45: 80 | F45: 80 | G45: 80 | I45: =VLOOKUP(A45,'League Table'!$B$2:$C$219,2,FALSE) -> MON | J45: 80 | L45: 80 | N45: 43 | O45: 58 | Q45: Derby | R45: 58
A46: Girona | E46: 80 | F46: 80 | G46: 80 | I46: =VLOOKUP(A46,'League Table'!$B$2:$C$219,2,FALSE) -> GIR | J46: 80 | L46: 80 | N46: 44 | O46: 57 | Q46: Plymouth | R46: 57
A47: VfB Stuttgart | E47: 80 | F47: 80 | G47: 80 | I47: =VLOOKUP(A47,'League Table'!$B$2:$C$219,2,FALSE) -> STT | J47: 80 | L47: 80 | N47: 45 | O47: 56 | Q47: Rotherham | R47: 56
A48: Marsiele | E48: 80 | F48: 80 | G48: 80 | I48: =VLOOKUP(A48,'League Table'!$B$2:$C$219,2,FALSE) -> MAR | J48: 80 | L48: 80 | N48: 46 | O48: 55 | Q48: Barnsley | R48: 55
A49: Bologna | E49: 80 | F49: 80 | G49: 80 | I49: =VLOOKUP(A49,'League Table'!$B$2:$C$219,2,FALSE) -> BOG | J49: 80 | L49: 80 | N49: 47 | O49: 54 | Q49: Reading | R49: 54
A50: VfL Hoffenheim | E50: 80 | F50: 80 | G50: 80 | I50: =VLOOKUP(A50,'League Table'!$B$2:$C$219,2,FALSE) -> HOF | J50: 80 | L50: 80 | N50: 48 | O50: 53 | Q50: Bolton | R50: 53
A51: FC Union Berlin | E51: 80 | F51: 80 | G51: 80 | I51: =VLOOKUP(A51,'League Table'!$B$2:$C$219,2,FALSE) -> UNB | J51: 80 | L51: 80 | N51: 49 | O51: 52 | Q51: Portsmouth | R51: 52
A52: SC Freiburg | E52: 80 | F52: 80 | G52: 80 | I52: =VLOOKUP(A52,'League Table'!$B$2:$C$219,2,FALSE) -> SCF | J52: 80 | L52: 80 | N52: 50 | O52: 51 | Q52: Charlton | R52: 51
A53: Genoa | E53: 80 | F53: 80 | G53: 80 | I53: =VLOOKUP(A53,'League Table'!$B$2:$C$219,2,FALSE) -> GEN | J53: 80 | L53: 80 | N53: 51 | O53: 50 | Q53: Peterborough | R53: 50
A54: Bayer 04 Leverkusen | E54: 80 | F54: 80 | G54: 80 | I54: =VLOOKUP(A54,'League Table'!$B$2:$C$219,2,FALSE) -> BAY | J54: 80 | L54: 80 | N54: 52 | O54: 49 | Q54: Blackpool | R54: 49
A55: Udinese | E55: 80 | F55: 80 | G55: 80 | I55: =VLOOKUP(A55,'League Table'!$B$2:$C$219,2,FALSE) -> UDI | J55: 80 | L55: 80 | N55: 53 | O55: 48 | Q55: Wycombe | R55: 48
A56: RB Leipzig | E56: 80 | F56: 80 | G56: 80 | I56: =VLOOKUP(A56,'League Table'!$B$2:$C$219,2,FALSE) -> RBL | J56: 80 | L56: 80 | N56: 54 | O56: 47 | Q56: Bristol Rovers | R56: 47
A57: FSV Mainz 05 | E57: 80 | F57: 80 | G57: 80 | I57: =VLOOKUP(A57,'League Table'!$B$2:$C$219,2,FALSE) -> FSV | J57: 80 | L57: 80 | N57: 55 | O57: 46 | Q57: Oxford United | R57: 46
A58: Espanyol | E58: 80 | F58: 80 | G58: 80 | I58: =VLOOKUP(A58,'League Table'!$B$2:$C$219,2,FALSE) -> ESP | J58: 80 | L58: 80 | N58: 56 | O58: 45 | Q58: Wigan | R58: 45
A59: Sheffield United | E59: 80 | F59: 80 | G59: 80 | I59: =VLOOKUP(A59,'League Table'!$B$2:$C$219,2,FALSE) -> 1 | J59: 100 | L59: 80 | N59: 57 | O59: 44 | Q59: Lincoln | R59: 44
A60: FC Heidenheim 1846 | E60: 80 | F60: 80 | G60: 80 | I60: =VLOOKUP(A60,'League Table'!$B$2:$C$219,2,FALSE) -> HEI | J60: 80 | L60: 80 | N60: 58 | O60: 43 | Q60: Wrexham | R60: 43
A61: Southampton | E61: 79 | F61: 100 | G61: 89.5 | I61: =VLOOKUP(A61,'League Table'!$B$2:$C$219,2,FALSE) -> 1 | J61: 100 | L61: 79 | N61: 59 | O61: 42 | Q61: MK Dons | R61: 42
A62: Sheffield Wednesday | E62: 78 | F62: 80 | G62: 79 | I62: =VLOOKUP(A62,'League Table'!$B$2:$C$219,2,FALSE) -> 21 | J62: 80 | L62: 78 | N62: 60 | O62: 41 | Q62: Burton | R62: 41
A63: Norwich City | E63: 78 | F63: 80 | G63: 79 | I63: =VLOOKUP(A63,'League Table'!$B$2:$C$219,2,FALSE) -> 21 | J63: 80 | L63: 78 | N63: 61 | O63: 40 | Q63: Exeter | R63: 40
A64: Watford | E64: 77 | F64: 80 | G64: 78.5 | I64: =VLOOKUP(A64,'League Table'!$B$2:$C$219,2,FALSE) -> 1 | J64: 100 | L64: 77 | N64: 62 | O64: 39 | Q64: Shrewsbury | R64: 39
A65: Luton Town | E65: 76 | F65: 80 | G65: 78 | I65: =VLOOKUP(A65,'League Table'!$B$2:$C$219,2,FALSE) -> 21 | J65: 80 | L65: 76 | N65: 63 | O65: 38 | Q65: Cheltenham | R65: 38
A66: Celta Vigo | E66: 75 | F66: 75 | G66: 75 | I66: =VLOOKUP(A66,'League Table'!$B$2:$C$219,2,FALSE) -> CEL | J66: 75 | L66: 75 | N66: 64 | O66: 37 | Q66: Fleetwood | R66: 37
A67: Middlesbrough | E67: 75 | F67: 80 | G67: 77.5 | I67: =VLOOKUP(A67,'League Table'!$B$2:$C$219,2,FALSE) -> 21 | J67: 80 | L67: 75 | N67: 65 | O67: 36 | Q67: Cambridge | R67: 36
A68: West Brom | E68: 74 | F68: 80 | G68: =AVERAGE(B68:F68) -> 77 | I68: =VLOOKUP(A68,'League Table'!$B$2:$C$219,2,FALSE) -> 21 | J68: =IFERROR(VLOOKUP(I68,$N$3:$O$94,2,FALSE),F68) -> 80 | L68: 74 | N68: 66 | O68: 35 | Q68: Notts Co | R68: 35
A69: Sunderland | E69: 73 | F69: 80 | G69: 76.5 | I69: =VLOOKUP(A69,'League Table'!$B$2:$C$219,2,FALSE) -> 21 | J69: 80 | L69: 73 | N69: 67 | O69: =O68-1 -> 34 | Q69: Bradford City | R69: =R68-1 -> 34
A70: Blackburn | E70: 72 | F70: 80 | G70: 76 | I70: =VLOOKUP(A70,'League Table'!$B$2:$C$219,2,FALSE) -> 21 | J70: 80 | L70: 72 | N70: 68 | O70: 33 | Q70: Gillingham | R70: 33
A71: Swansea | E71: 71 | F71: 80 | G71: 75.5 | I71: =VLOOKUP(A71,'League Table'!$B$2:$C$219,2,FALSE) -> 21 | J71: 80 | L71: 71 | N71: 69 | O71: 32 | Q71: Leyton Orient | R71: 32
A72: RC Lens | E72: 70 | F72: 70 | G72: 70 | I72: =VLOOKUP(A72,'League Table'!$B$2:$C$219,2,FALSE) -> RCL | J72: 70 | L72: 70 | N72: 70 | O72: 31 | Q72: Northampton | R72: 31
A73: Rennes | E73: 70 | F73: 70 | G73: 70 | I73: =VLOOKUP(A73,'League Table'!$B$2:$C$219,2,FALSE) -> REN | J73: 70 | L73: 70 | N73: 71 | O73: 30 | Q73: Port Vale | R73: 30
A74: Osasuna | E74: 70 | F74: 70 | G74: 70 | I74: =VLOOKUP(A74,'League Table'!$B$2:$C$219,2,FALSE) -> OSA | J74: 70 | L74: 70 | N74: 72 | O74: 29 | Q74: Carlisle | R74: 29
A75: Brest | E75: 70 | F75: 70 | G75: 70 | I75: =VLOOKUP(A75,'League Table'!$B$2:$C$219,2,FALSE) -> BST | J75: 70 | L75: 70 | N75: 73 | O75: 28 | Q75: Doncaster | R75: 28
A76: Nice | E76: 70 | F76: 70 | G76: 70 | I76: =VLOOKUP(A76,'League Table'!$B$2:$C$219,2,FALSE) -> NCE | J76: 70 | L76: 70 | N76: 74 | O76: 27 | Q76: Mansfield | R76: 27
A77: Real Mallorca | E77: 70 | F77: 70 | G77: 70 | I77: =VLOOKUP(A77,'League Table'!$B$2:$C$219,2,FALSE) -> RMA | J77: 70 | L77: 70 | N77: 75 | O77: 26 | Q77: Stockport | R77: 26
A78: Alaves | E78: 70 | F78: 70 | G78: 70 | I78: =VLOOKUP(A78,'League Table'!$B$2:$C$219,2,FALSE) -> ALA | J78: 70 | L78: 70 | N78: 76 | O78: 25 | Q78: Swindon | R78: 25
A79: VfL Wolfsburg | E79: 70 | F79: 70 | G79: 70 | I79: =VLOOKUP(A79,'League Table'!$B$2:$C$219,2,FALSE) -> WLF | J79: 70 | L79: 70 | N79: 77 | O79: 24 | Q79: Salford | R79: 24
A80: Eintracht Frankfurt | E80: 70 | F80: 70 | G80: 70 | I80: =VLOOKUP(A80,'League Table'!$B$2:$C$219,2,FALSE) -> EIN | J80: 70 | L80: 70 | N80: 78 | O80: 23 | Q80: Tranmere | R80: 23
A81: Lecce | E81: 70 | F81: 70 | G81: 70 | I81: =VLOOKUP(A81,'League Table'!$B$2:$C$219,2,FALSE) -> LEC | J81: 70 | L81: 70 | N81: 79 | O81: 22 | Q81: Accrington Stanley | R81: 22
A82: SV Werder Bremen | E82: 70 | F82: 70 | G82: 70 | I82: =VLOOKUP(A82,'League Table'!$B$2:$C$219,2,FALSE) -> WER | J82: 70 | L82: 70 | N82: 80 | O82: 21 | Q82: AFC Wimbledon | R82: 21
A83: FC Augsburg | E83: 70 | F83: 70 | G83: 70 | I83: =VLOOKUP(A83,'League Table'!$B$2:$C$219,2,FALSE) -> FCA | J83: 70 | L83: 70 | N83: 81 | O83: 20 | Q83: Crewe | R83: 20
A84: Verona | E84: 70 | F84: 70 | G84: 70 | I84: =VLOOKUP(A84,'League Table'!$B$2:$C$219,2,FALSE) -> VER | J84: 70 | L84: 70 | N84: 82 | O84: 19 | Q84: Grimsby | R84: 19
A85: Torino | E85: 70 | F85: 70 | G85: 70 | I85: =VLOOKUP(A85,'League Table'!$B$2:$C$219,2,FALSE) -> TOR | J85: 70 | L85: 70 | N85: 83 | O85: 18 | Q85: Stevenage | R85: 18
A86: Las Palmas | E86: 70 | F86: 70 | G86: 70 | I86: =VLOOKUP(A86,'League Table'!$B$2:$C$219,2,FALSE) -> PAL | J86: 70 | L86: 70 | N86: 84 | O86: 17 | Q86: Chesterfield | R86: 17
A87: Como | E87: 70 | F87: 70 | G87: 70 | I87: =VLOOKUP(A87,'League Table'!$B$2:$C$219,2,FALSE) -> COM | J87: 70 | L87: 70 | N87: 85 | O87: 16 | Q87: Morecambe | R87: 16
A88: Lyon | E88: 70 | F88: 70 | G88: 70 | I88: =VLOOKUP(A88,'League Table'!$B$2:$C$219,2,FALSE) -> LYO | J88: 70 | L88: 70 | N88: 86 | O88: 15 | Q88: Newport County | R88: 15
A89: Nantes | E89: 70 | F89: 70 | G89: 70 | I89: =VLOOKUP(A89,'League Table'!$B$2:$C$219,2,FALSE) -> NAN | J89: 70 | L89: 70 | N89: 87 | O89: 14 | Q89: Walsall | R89: 14
A90: Strasbourg | E90: 70 | F90: 70 | G90: 70 | I90: =VLOOKUP(A90,'League Table'!$B$2:$C$219,2,FALSE) -> STA | J90: 70 | L90: 70 | N90: 88 | O90: 13 | Q90: Colchester | R90: 13
A91: Monza | E91: 70 | F91: 70 | G91: 70 | I91: =VLOOKUP(A91,'League Table'!$B$2:$C$219,2,FALSE) -> MOZ | J91: 70 | L91: 70 | N91: 89 | O91: 12 | Q91: Crawley | R91: 12
A92: Montpellier | E92: 70 | F92: 70 | G92: 70 | I92: =VLOOKUP(A92,'League Table'!$B$2:$C$219,2,FALSE) -> MOP | J92: 70 | L92: 70 | N92: 90 | O92: 11 | Q92: Barrow | R92: 11
A93: Cagliari | E93: 70 | F93: 70 | G93: 70 | I93: =VLOOKUP(A93,'League Table'!$B$2:$C$219,2,FALSE) -> CAG | J93: 70 | L93: 70 | N93: 91 | O93: 10 | Q93: Harrogate | R93: 10
A94: Borussia Monchengladbach | E94: 70 | F94: 70 | G94: 70 | I94: =VLOOKUP(A94,'League Table'!$B$2:$C$219,2,FALSE) -> BRM | J94: 70 | L94: 70 | N94: 92 | O94: 9 | Q94: Bromley | R94: 9
A95: Reims | E95: 70 | F95: 70 | G95: 70 | I95: =VLOOKUP(A95,'League Table'!$B$2:$C$219,2,FALSE) -> RIM | J95: 70 | L95: 70
A96: FC St.Pauli | E96: 70 | F96: 70 | G96: 70 | I96: =VLOOKUP(A96,'League Table'!$B$2:$C$219,2,FALSE) -> STP | J96: 70 | L96: 70
A97: Real Valladolid | E97: 70 | F97: 70 | G97: 70 | I97: =VLOOKUP(A97,'League Table'!$B$2:$C$219,2,FALSE) -> RVD | J97: 70 | L97: 70
A98: Angers | E98: 70 | F98: 70 | G98: 70 | I98: =VLOOKUP(A98,'League Table'!$B$2:$C$219,2,FALSE) -> ANG | J98: 70 | L98: 70
A99: Parma | E99: 70 | F99: 70 | G99: 70 | I99: =VLOOKUP(A99,'League Table'!$B$2:$C$219,2,FALSE) -> PRM | J99: 70 | L99: 70
A100: Getafe | E100: 70 | F100: 70 | G100: 70 | I100: =VLOOKUP(A100,'League Table'!$B$2:$C$219,2,FALSE) -> GET | J100: 70 | L100: 70
A101: Empoli | E101: 70 | F101: 70 | G101: 70 | I101: =VLOOKUP(A101,'League Table'!$B$2:$C$219,2,FALSE) -> EMP | J101: 70 | L101: 70
A102: St Etienne | E102: 70 | F102: 70 | G102: 70 | I102: =VLOOKUP(A102,'League Table'!$B$2:$C$219,2,FALSE) -> STE | J102: 70 | L102: 70
A103: Le Havre | E103: 70 | F103: 70 | G103: 70 | I103: =VLOOKUP(A103,'League Table'!$B$2:$C$219,2,FALSE) -> HAV | J103: 70 | L103: 70
A104: Venezia | E104: 70 | F104: 70 | G104: 70 | I104: =VLOOKUP(A104,'League Table'!$B$2:$C$219,2,FALSE) -> VEN | J104: 70 | L104: 70
A105: Holstein Kiel | E105: 70 | F105: 70 | G105: 70 | I105: =VLOOKUP(A105,'League Table'!$B$2:$C$219,2,FALSE) -> HOL | J105: 70 | L105: 70
A106: Leganes | E106: 70 | F106: 70 | G106: 70 | I106: =VLOOKUP(A106,'League Table'!$B$2:$C$219,2,FALSE) -> LEG | J106: 70 | L106: 70
A107: Auxerre | E107: 70 | F107: 70 | G107: 70 | I107: =VLOOKUP(A107,'League Table'!$B$2:$C$219,2,FALSE) -> AUX | J107: 70 | L107: 70
A108: VfL Bochum 1848 | E108: 70 | F108: 70 | G108: 70 | I108: =VLOOKUP(A108,'League Table'!$B$2:$C$219,2,FALSE) -> BOC | J108: 70 | L108: 70
A109: Bristol City | E109: 70 | F109: 80 | G109: 75 | I109: =VLOOKUP(A109,'League Table'!$B$2:$C$219,2,FALSE) -> 21 | J109: 80 | L109: 70
A110: Coventry City | E110: 69 | F110: 80 | G110: 74.5 | I110: =VLOOKUP(A110,'League Table'!$B$2:$C$219,2,FALSE) -> 21 | J110: 80 | L110: 69
A111: Stoke City | E111: 67 | F111: 80 | G111: 73.5 | I111: =VLOOKUP(A111,'League Table'!$B$2:$C$219,2,FALSE) -> 21 | J111: 80 | L111: 67
A112: Cardiff City | E112: 66 | F112: 80 | G112: 73 | I112: =VLOOKUP(A112,'League Table'!$B$2:$C$219,2,FALSE) -> 21 | J112: 80 | L112: 66
A113: Huddersfield | E113: 65 | F113: 56 | G113: 60.5 | I113: =VLOOKUP(A113,'League Table'!$B$2:$C$219,2,FALSE) -> 21 | J113: 80 | L113: 65
A114: Hull City | E114: 64 | F114: 80 | G114: 72 | I114: =VLOOKUP(A114,'League Table'!$B$2:$C$219,2,FALSE) -> 21 | J114: 80 | L114: 64
A115: Ipswich Town | E115: 63 | F115: 100 | G115: 81.5 | I115: =VLOOKUP(A115,'League Table'!$B$2:$C$219,2,FALSE) -> 21 | J115: 80 | L115: 63
A116: Millwall | E116: 62 | F116: 80 | G116: 71 | I116: =VLOOKUP(A116,'League Table'!$B$2:$C$219,2,FALSE) -> 21 | J116: 80 | L116: 62
A117: Preston North End | E117: 61 | F117: 80 | G117: 70.5 | I117: =VLOOKUP(A117,'League Table'!$B$2:$C$219,2,FALSE) -> 21 | J117: 80 | L117: 61
A118: Queens Park Rangers | E118: 60 | F118: 80 | G118: 70 | I118: =VLOOKUP(A118,'League Table'!$B$2:$C$219,2,FALSE) -> 21 | J118: 80 | L118: 60
A119: Birmingham | E119: 59 | F119: 56 | G119: 57.5 | I119: =VLOOKUP(A119,'League Table'!$B$2:$C$219,2,FALSE) -> 21 | J119: 80 | L119: 59
A120: Derby County | E120: 58 | F120: 80 | G120: 69 | I120: =VLOOKUP(A120,'League Table'!$B$2:$C$219,2,FALSE) -> 21 | J120: 80 | L120: 58
A121: Plymouth Argyle | E121: 57 | F121: 80 | G121: 68.5 | I121: =VLOOKUP(A121,'League Table'!$B$2:$C$219,2,FALSE) -> 45 | J121: 56 | L121: 57
A122: Rotherham United | E122: 56 | F122: 56 | G122: 56 | I122: =VLOOKUP(A122,'League Table'!$B$2:$C$219,2,FALSE) -> 21 | J122: 80 | L122: 56
A123: Barnsley | E123: 55 | F123: 56 | G123: 55.5 | I123: =VLOOKUP(A123,'League Table'!$B$2:$C$219,2,FALSE) -> 45 | J123: 56 | L123: 55
A124: Reading | E124: 54 | F124: 56 | G124: 55 | I124: =VLOOKUP(A124,'League Table'!$B$2:$C$219,2,FALSE) -> 45 | J124: 56 | L124: 54
A125: Bolton | E125: 53 | F125: 56 | G125: 54.5 | I125: =VLOOKUP(A125,'League Table'!$B$2:$C$219,2,FALSE) -> 45 | J125: 56 | L125: 53
A126: Portsmouth | E126: 52 | F126: 80 | G126: 66 | I126: =VLOOKUP(A126,'League Table'!$B$2:$C$219,2,FALSE) -> 45 | J126: 56 | L126: 52
A127: Charlton Athletic | E127: 51 | F127: 56 | G127: 53.5 | I127: =VLOOKUP(A127,'League Table'!$B$2:$C$219,2,FALSE) -> 45 | J127: 56 | L127: 51
A128: Sydney FC | E128: 50 | F128: 50 | G128: 50 | I128: =VLOOKUP(A128,'League Table'!$B$2:$C$219,2,FALSE) -> SFC | J128: 50 | L128: 50
A129: Melbourne Victory | E129: 50 | F129: 50 | G129: 50 | I129: =VLOOKUP(A129,'League Table'!$B$2:$C$219,2,FALSE) -> MLV | J129: 50 | L129: 50
A130: Melbourne City | E130: 50 | F130: 50 | G130: 50 | I130: =VLOOKUP(A130,'League Table'!$B$2:$C$219,2,FALSE) -> MLC | J130: 50 | L130: 50
A131: Western Sydney Wanderers | E131: 50 | F131: 50 | G131: 50 | I131: =VLOOKUP(A131,'League Table'!$B$2:$C$219,2,FALSE) -> WSW | J131: 50 | L131: 50
A132: Perth Glory | E132: 50 | F132: 50 | G132: =AVERAGE(B132:F132) -> 50 | I132: =VLOOKUP(A132,'League Table'!$B$2:$C$219,2,FALSE) -> PRG | J132: =IFERROR(VLOOKUP(I132,$N$3:$O$94,2,FALSE),F132) -> 50 | L132: 50
A133: Brisbane Roar | E133: 50 | F133: 50 | G133: 50 | I133: =VLOOKUP(A133,'League Table'!$B$2:$C$219,2,FALSE) -> BBR | J133: 50 | L133: 50
A134: Wellington Phoenix | E134: 50 | F134: 50 | G134: 50 | I134: =VLOOKUP(A134,'League Table'!$B$2:$C$219,2,FALSE) -> WPX | J134: 50 | L134: 50
A135: Macarthur | E135: 50 | F135: 50 | G135: 50 | I135: =VLOOKUP(A135,'League Table'!$B$2:$C$219,2,FALSE) -> MAC | J135: 50 | L135: 50
A136: Peterborough United | E136: 50 | F136: 56 | G136: 53 | I136: =VLOOKUP(A136,'League Table'!$B$2:$C$219,2,FALSE) -> 45 | J136: 56 | L136: 50
A137: Adelaide United | E137: 50 | F137: 50 | G137: 50 | I137: =VLOOKUP(A137,'League Table'!$B$2:$C$219,2,FALSE) -> ADL | J137: 50 | L137: 50
A138: Central Coast Mariners | E138: 50 | F138: 50 | G138: 50 | I138: =VLOOKUP(A138,'League Table'!$B$2:$C$219,2,FALSE) -> CCM | J138: 50 | L138: 50
A139: Western United | E139: 50 | F139: 50 | G139: 50 | I139: =VLOOKUP(A139,'League Table'!$B$2:$C$219,2,FALSE) -> WUN | J139: 50 | L139: 50
A140: Newcastle Jets | E140: 50 | F140: 50 | G140: 50 | I140: =VLOOKUP(A140,'League Table'!$B$2:$C$219,2,FALSE) -> NCJ | J140: 50 | L140: 50
A141: Blackpool | E141: 49 | F141: 56 | G141: 52.5 | I141: =VLOOKUP(A141,'League Table'!$B$2:$C$219,2,FALSE) -> 45 | J141: 56 | L141: 49
A142: Wycombe | E142: 48 | F142: 56 | G142: 52 | I142: =VLOOKUP(A142,'League Table'!$B$2:$C$219,2,FALSE) -> 45 | J142: 56 | L142: 48
A143: Bristol | E143: 47 | F143: 56 | G143: 51.5 | I143: =VLOOKUP(A143,'League Table'!$B$2:$C$219,2,FALSE) -> 45 | J143: 56 | L143: 47
A144: Oxford United | E144: 46 | F144: 80 | G144: 63 | I144: =VLOOKUP(A144,'League Table'!$B$2:$C$219,2,FALSE) -> 45 | J144: 56 | L144: 46
A145: Wigan Athletic | E145: 45 | F145: 56 | G145: 50.5 | I145: =VLOOKUP(A145,'League Table'!$B$2:$C$219,2,FALSE) -> 45 | J145: 56 | L145: 45
A146: Lincoln City | E146: 44 | F146: 56 | G146: 50 | I146: =VLOOKUP(A146,'League Table'!$B$2:$C$219,2,FALSE) -> 45 | J146: 56 | L146: 44
A147: Wrexham | E147: 43 | F147: 56 | G147: 49.5 | I147: =VLOOKUP(A147,'League Table'!$B$2:$C$219,2,FALSE) -> 45 | J147: 56 | L147: 43
A148: Milton Keynes Dons | E148: 42 | F148: 32 | G148: 37 | I148: =VLOOKUP(A148,'League Table'!$B$2:$C$219,2,FALSE) -> 45 | J148: 56 | L148: 42
A149: Burton Albion | E149: 41 | F149: 56 | G149: 48.5 | I149: =VLOOKUP(A149,'League Table'!$B$2:$C$219,2,FALSE) -> 45 | J149: 56 | L149: 41
A150: Exeter City | E150: 40 | F150: 56 | G150: 48 | I150: =VLOOKUP(A150,'League Table'!$B$2:$C$219,2,FALSE) -> 45 | J150: 56 | L150: 40
A151: Shrewsbury Town | E151: 39 | F151: 56 | G151: 47.5 | I151: =VLOOKUP(A151,'League Table'!$B$2:$C$219,2,FALSE) -> 45 | J151: 56 | L151: 39
A152: Cheltenham Town | E152: 38 | F152: 32 | G152: 35 | I152: =VLOOKUP(A152,'League Table'!$B$2:$C$219,2,FALSE) -> 45 | J152: 56 | L152: 38
A153: Fleetwood Town | E153: 37 | F153: 32 | G153: 34.5 | I153: =VLOOKUP(A153,'League Table'!$B$2:$C$219,2,FALSE) -> 45 | J153: 56 | L153: 37
A154: Cambridge United | E154: 36 | F154: 56 | G154: 46 | I154: =VLOOKUP(A154,'League Table'!$B$2:$C$219,2,FALSE) -> 45 | J154: 56 | L154: 36
A155: Notts County | E155: 35 | F155: 32 | G155: 33.5 | I155: =VLOOKUP(A155,'League Table'!$B$2:$C$219,2,FALSE) -> 69 | J155: 32 | L155: 35
A156: Bradford City | E156: 34 | F156: 32 | G156: 33 | I156: =VLOOKUP(A156,'League Table'!$B$2:$C$219,2,FALSE) -> 69 | J156: 32 | L156: 34
A157: Gilingham | E157: 33 | F157: 32 | G157: 32.5 | I157: =VLOOKUP(A157,'League Table'!$B$2:$C$219,2,FALSE) -> 45 | J157: 56 | L157: 33
A158: Leyton Orient | E158: 32 | F158: 56 | G158: 44 | I158: =VLOOKUP(A158,'League Table'!$B$2:$C$219,2,FALSE) -> 45 | J158: 56 | L158: 32
A159: Northhampton Town | E159: 31 | F159: 56 | G159: 43.5 | I159: =VLOOKUP(A159,'League Table'!$B$2:$C$219,2,FALSE) -> 45 | J159: 56 | L159: 31
A160: Port Vale | E160: 30 | F160: 32 | G160: 31 | I160: =VLOOKUP(A160,'League Table'!$B$2:$C$219,2,FALSE) -> 69 | J160: 32 | L160: 30
A161: Carlisle United | E161: 29 | F161: 32 | G161: 30.5 | I161: =VLOOKUP(A161,'League Table'!$B$2:$C$219,2,FALSE) -> 69 | J161: 32 | L161: 29
A162: Doncaster Rovers | E162: 28 | F162: 32 | G162: 30 | I162: =VLOOKUP(A162,'League Table'!$B$2:$C$219,2,FALSE) -> 69 | J162: 32 | L162: 28
A163: Mansfield Town | E163: 27 | F163: 56 | G163: 41.5 | I163: =VLOOKUP(A163,'League Table'!$B$2:$C$219,2,FALSE) -> 69 | J163: 32 | L163: 27
A164: Stockport County | E164: 26 | F164: 56 | G164: 41 | I164: =VLOOKUP(A164,'League Table'!$B$2:$C$219,2,FALSE) -> 69 | J164: 32 | L164: 26
A165: Swindon Town | E165: 25 | F165: 32 | G165: 28.5 | I165: =VLOOKUP(A165,'League Table'!$B$2:$C$219,2,FALSE) -> 69 | J165: 32 | L165: 25
A166: Salford City | E166: 24 | F166: 32 | G166: 28 | I166: =VLOOKUP(A166,'League Table'!$B$2:$C$219,2,FALSE) -> 69 | J166: 32 | L166: 24
A167: Tranmere Rovers | E167: 23 | F167: 32 | G167: 27.5 | I167: =VLOOKUP(A167,'League Table'!$B$2:$C$219,2,FALSE) -> 69 | J167: 32 | L167: 23
A168: Accrington Stanley | E168: 22 | F168: 32 | G168: 27 | I168: =VLOOKUP(A168,'League Table'!$B$2:$C$219,2,FALSE) -> 69 | J168: 32 | L168: 22
A169: AFC Wimbledon | E169: 21 | F169: 32 | G169: 26.5 | I169: =VLOOKUP(A169,'League Table'!$B$2:$C$219,2,FALSE) -> 69 | J169: 32 | L169: 21
A170: Crewe | E170: 20 | F170: 32 | G170: 26 | I170: =VLOOKUP(A170,'League Table'!$B$2:$C$219,2,FALSE) -> 69 | J170: 32 | L170: 20
A171: Grimsby Town | E171: 19 | F171: 32 | G171: 25.5 | I171: =VLOOKUP(A171,'League Table'!$B$2:$C$219,2,FALSE) -> 69 | J171: 32 | L171: 19
A172: Stevenage | E172: 18 | F172: 56 | G172: 37 | I172: =VLOOKUP(A172,'League Table'!$B$2:$C$219,2,FALSE) -> 69 | J172: 32 | L172: 18
A173: Chesterfield | E173: 17 | F173: 32 | G173: 24.5 | I173: =VLOOKUP(A173,'League Table'!$B$2:$C$219,2,FALSE) -> 69 | J173: 32 | L173: 17
A174: Morecambe | E174: 16 | F174: 32 | G174: 24 | I174: =VLOOKUP(A174,'League Table'!$B$2:$C$219,2,FALSE) -> 69 | J174: 32 | L174: 16
A175: Newport County | E175: 15 | F175: 32 | G175: 23.5 | I175: =VLOOKUP(A175,'League Table'!$B$2:$C$219,2,FALSE) -> 69 | J175: 32 | L175: 15
A176: Walsall | E176: 14 | F176: 32 | G176: 23 | I176: =VLOOKUP(A176,'League Table'!$B$2:$C$219,2,FALSE) -> 69 | J176: 32 | L176: 14
A177: Colchester United | E177: 13 | F177: 32 | G177: 22.5 | I177: =VLOOKUP(A177,'League Table'!$B$2:$C$219,2,FALSE) -> 69 | J177: 32 | L177: 13
A178: Crawley Town | E178: 12 | F178: 56 | G178: 34 | I178: =VLOOKUP(A178,'League Table'!$B$2:$C$219,2,FALSE) -> 69 | J178: 32 | L178: 12
A179: Barrow AFC | E179: 11 | F179: 32 | G179: 21.5 | I179: =VLOOKUP(A179,'League Table'!$B$2:$C$219,2,FALSE) -> 69 | J179: 32 | L179: 11
A180: Harrogate Town | E180: 10 | F180: 32 | G180: 21 | I180: =VLOOKUP(A180,'League Table'!$B$2:$C$219,2,FALSE) -> 69 | J180: 32 | L180: 10
A181: Bromley | E181: 9 | F181: 32 | G181: 20.5 | I181: =VLOOKUP(A181,'League Table'!$B$2:$C$219,2,FALSE) -> 69 | J181: 32 | L181: 9

Sheet Names (hidden)
A1: First Name | B1: Last Name | C1: Nationality | D1: Age | E1: Position | F1: Division
A2: Aaron | B2: Adams | C2: MAR | D2: 16 | E2: Outfield | F2: Generated
A3: Abdul | B3: Alexander | C3: ALB | D3: 17 | E3: Outfield | H3: Allocate 3 to every team (except Free) if spots availible. Determine spots by seeing team numbers (team can have up to 30 team members each allocated their own number 1-30)
A4: Abel | B4: Allen | C4: ALG | D4: 18 | E4: Outfield | H4: Give random number that is free
A5: Abraham | B5: Anderson | C5: AND | E5: Outfield | H5: Give random current ability 60-120 and allocate across attributes BF-BQ (note these add up to the random ability given)
A6: Adam | B6: Andrews | C6: ANG | E6: GK | H6: Give a random Potential ability 120-200 in column PS
A7: Adrian | B7: Armstrong | C7: ARG | H7: The name is in the formal FirstName Last Name
A8: Aidan | B8: Arnold | C8: ARM | H8: First Name sourced from column A of the Names tab
A9: Alan | B9: Atkinson | C9: ATG | H9: LastName sourced from Column B f the Name
A10: Albert | B10: Austin | C10: AUS
A11: Alberto | B11: Bailey | C11: AUT
A12: Alec | B12: Baker | C12: BDI
A13: Alejandro | B13: Banks | C13: BEL
A14: Alex | B14: Barnes | C14: BEN
A15: Alexander | B15: Bell | C15: BER
A16: Alfred | B16: Bennett | C16: BFA
A17: Ali | B17: Berry | C17: BIH
A18: Allen | B18: Black | C18: BRA
A19: Alonzo | B19: Blake | C19: BRB
A20: Alvin | B20: Bond | C20: BUL
A21: Amir | B21: Bowen | C21: CAN
A22: Andre | B22: Boyd | C22: CGO
A23: Andres | B23: Bradley | C23: CHI
A24: Andrew | B24: Brewer | C24: CIV
A25: Angel | B25: Brooks | C25: CMR
A26: Anthony | B26: Brown | C26: COD
A27: Antonio | B27: Bryant | C27: COL
A28: Arnold | B28: Burke | C28: COM
A29: Arthur | B29: Burns | C29: CPV
A30: Asher | B30: Butler | C30: CRC
A31: Ashton | B31: Byrd | C31: CRO
A32: Aubrey | B32: Campbell | C32: CTA
A33: August | B33: Carter | C33: CUB
A34: Austin | B34: Chambers | C34: CYP
A35: Avery | B35: Chapman | C35: CZE
A36: Axel | B36: Clark | C36: DEN
A37: Bailey | B37: Cole | C37: ECU
A38: Barry | B38: Collins | C38: EGY
A39: Beau | B39: Cook | C39: ENG
A40: Ben | B40: Cooper | C40: EQG
A41: Benjamin | B41: Cox | C41: ESP
A42: Bennett | B42: Craig | C42: EST
A43: Bernard | B43: Crawford | C43: FIN
A44: Bill | B44: Cruz | C44: FRA
A45: Billy | B45: Curtis | C45: GAB
A46: Blake | B46: Daniels | C46: GAM
A47: Bob | B47: Davidson | C47: GEO
A48: Bobby | B48: Davis | C48: GER
A49: Brad | B49: Dean | C49: GHA
A50: Bradley | B50: Diaz | C50: GIB
A51: Brady | B51: Dixon | C51: GLP
A52: Brandon | B52: Douglas | C52: GNB
A53: Brayden | B53: Duncan | C53: GRE
A54: Brendan | B54: Dunn | C54: GRN
A55: Brent | B55: Edwards | C55: GUA
A56: Brett | B56: Elliott | C56: GUF
A57: Brian | B57: Ellis | C57: GUI
A58: Brock | B58: Evans | C58: GUY
A59: Brody | B59: Ferguson | C59: HAI
A60: Bruce | B60: Fields | C60: HUN
A61: Bryan | B61: Fisher | C61: IDN
A62: Bryce | B62: Fletcher | C62: IRL
A63: Byron | B63: Ford | C63: IRN
A64: Caleb | B64: Foster | C64: IRQ
A65: Calvin | B65: Fowler | C65: ISL
A66: Camden | B66: Fox | C66: ISR
A67: Cameron | B67: Franklin | C67: ITA
A68: Carl | B68: Freeman | C68: JAM
A69: Carlos | B69: Garcia | C69: JOR
A70: Carter | B70: Gardner | C70: JPN
A71: Casey | B71: Garrett | C71: KEN
A72: Cecil | B72: George | C72: KOR
A73: Cedric | B73: Gibson | C73: KOS
A74: Chad | B74: Gilbert | C74: KSA
A75: Chance | B75: Glover | C75: LCA
A76: Charles | B76: Gonzalez | C76: LIB
A77: Charlie | B77: Gordon | C77: LTU
A78: Chase | B78: Graham | C78: LUX
A79: Chris | B79: Grant | C79: MAD
A80: Christian | B80: Gray | C80: MDA
A81: Christopher | B81: Green | C81: MEX
A82: Clarence | B82: Greene | C82: MKD
A83: Clayton | B83: Griffin | C83: MLI
A84: Clifford | B84: Gutierrez | C84: MLT
A85: Clint | B85: Hall | C85: MNE
A86: Clyde | B86: Hamilton | C86: MOZ
A87: Cody | B87: Hansen | C87: MSR
A88: Cole | B88: Hanson | C88: MTN
A89: Colin | B89: Harper | C89: MTQ
A90: Collin | B90: Harris | C90: NAM
A91: Conner | B91: Harrison | C91: NED
A92: Connor | B92: Hart | C92: NGA
A93: Corey | B93: Harvey | C93: NIR
A94: Craig | B94: Hayes | C94: NOR
A95: Cristian | B95: Henderson | C95: NZL
A96: Curtis | B96: Henry | C96: PAN
A97: Cyrus | B97: Hernandez | C97: PAR
A98: Dakota | B98: Hicks | C98: PER
A99: Dallas | B99: Hill | C99: PHI
A100: Dalton | B100: Hoffman | C100: POL
A101: Damian | B101: Holland | C101: POR
A102: Damien | B102: Holmes | C102: ROU
A103: Damon | B103: Howard | C103: RSA
A104: Dan | B104: Hughes | C104: RUS
A105: Daniel | B105: Hunt | C105: SCO
A106: Danny | B106: Hunter | C106: SEN
A107: Dante | B107: Jackson | C107: SLE
A108: Darius | B108: James | C108: SRB
A109: Darnell | B109: Jenkins | C109: SRI
A110: Darrell | B110: Johnson | C110: SUI
A111: Darren | B111: Jones | C111: SUR
A112: Daryl | B112: Jordan | C112: SVK
A113: Dave | B113: Keller | C113: SVN
A114: David | B114: Kelly | C114: SWE
A115: Dean | B115: Kennedy | C115: TAN
A116: Declan | B116: Kim | C116: TOG
A117: Dennis | B117: King | C117: TRI
A118: Derek | B118: Knight | C118: TUN
A119: Derrick | B119: Lambert | C119: TUR
A120: Desmond | B120: Lane | C120: UKR
A121: Devin | B121: Lawrence | C121: URU
A122: Devon | B122: Lawson | C122: USA
A123: Diego | B123: Lee | C123: UZB
A124: Dominic | B124: Lewis | C124: VAN
A125: Don | B125: Long | C125: VEN
A126: Donald | B126: Lopez | C126: WAL
A127: Donovan | B127: Love | C127: ZAM
A128: Dorian | B128: Lucas | C128: ZIM
A129: Douglas | B129: Lynch
A130: Drew | B130: Marshall
A131: Dustin | B131: Martin
A132: Dwayne | B132: Martinez
A133: Dwight | B133: Mason
A134: Dylan | B134: Matthews
A135: Earl | B135: May
A136: Easton | B136: McCarthy
A137: Eddie | B137: McDonald
A138: Edgar | B138: McGee
A139: Edison | B139: McKenzie
A140: Edmund | B140: Medina
A141: Edward | B141: Mendoza
A142: Edwin | B142: Meyer
A143: Eli | B143: Miller
A144: Elias | B144: Mills
A145: Elijah | B145: Mitchell
A146: Elliot | B146: Montgomery
A147: Elliott | B147: Moore
A148: Ellis | B148: Morales
A149: Emerson | B149: Morgan
A150: Emery | B150: Morris
A151: Emmanuel | B151: Morrison
A152: Enrique | B152: Murphy
A153: Eric | B153: Murray
A154: Erick | B154: Myers
A155: Erik | B155: Nelson
A156: Ernest | B156: Newman
A157: Esteban | B157: Newton
A158: Ethan | B158: Nichols
A159: Eugene | B159: Oliver
A160: Evan | B160: Ortiz
A161: Everett | B161: Owens
A162: Ezekiel | B162: Palmer
A163: Ezra | B163: Parker
A164: Felix | B164: Patterson
A165: Fernando | B165: Payne
A166: Floyd | B166: Pearson
A167: Forrest | B167: Perez
A168: Francis | B168: Perry
A169: Francisco | B169: Peterson
A170: Frank | B170: Phillips
A171: Franklin | B171: Porter
A172: Fred | B172: Powell
A173: Freddie | B173: Price
A174: Frederick | B174: Quinn
A175: Gabriel | B175: Ramirez
A176: Gage | B176: Ramos
A177: Garrett | B177: Ray
A178: Garry | B178: Reed
A179: Gary | B179: Reese
A180: Gavin | B180: Reeves
A181: Gene | B181: Reid
A182: George | B182: Reyes
A183: Gerald | B183: Reynolds
A184: Gerard | B184: Rice
A185: Gilbert | B185: Richards
A186: Glen | B186: Richardson
A187: Glenn | B187: Riley
A188: Gordon | B188: Rivera
A189: Graham | B189: Roberts
A190: Grant | B190: Robertson
A191: Grayson | B191: Robinson
A192: Greg | B192: Rodriguez
A193: Gregory | B193: Rogers
A194: Griffin | B194: Romero
A195: Guillermo | B195: Rose
A196: Gunnar | B196: Ross
A197: Gus | B197: Ruiz
A198: Guy | B198: Russell
A199: Harley | B199: Sanders
A200: Harold | B200: Sanchez
... 293 more rows

Sheet Starting League Table (hidden)
A2: English Premier League | B2: Teams | C2: English Rank | D2: Nickname | E2: Played | F2: Won | G2: Drawn | H2: Lost | I2: GF | J2: GA | K2: GD | L2: Points | M2: Rank
A3: 1 | B3: AFC Bournemouth | C3: =M3 -> 1 | D3: BOU | L3: =3*F3+G3 -> 0 | M3: =RANK(L3,$L$3:$L$22,0) -> 1 | N3: Premier League
A4: 2 | B4: Arsenal | C4: =M4 -> 1 | D4: ARS | L4: =3*F4+G4 -> 0 | M4: =RANK(L4,$L$3:$L$22,0) -> 1 | N4: Premier League
A5: 3 | B5: Aston Villa | C5: 1 | D5: AST | L5: 0 | M5: 1 | N5: Premier League
A6: 4 | B6: Brentford | C6: 1 | D6: BTD | L6: 0 | M6: 1 | N6: Premier League
A7: 5 | B7: Brighton & Hove Albion | C7: 1 | D7: BHA | L7: 0 | M7: 1 | N7: Premier League
A8: 6 | B8: Chelsea | C8: 1 | D8: CHE | L8: 0 | M8: 1 | N8: Premier League
A9: 7 | B9: Crystal Palace | C9: 1 | D9: CRY | L9: 0 | M9: 1 | N9: Premier League
A10: 8 | B10: Everton | C10: 1 | D10: EVE | L10: 0 | M10: 1 | N10: Premier League
A11: 9 | B11: Fulham | C11: 1 | D11: FUL | L11: 0 | M11: 1 | N11: Premier League
A12: 10 | B12: Ipswich Town | C12: 1 | D12: IPS | L12: 0 | M12: 1 | N12: Premier League
A13: 11 | B13: Leicester City | C13: 1 | D13: LEI | L13: 0 | M13: 1 | N13: Premier League
A14: 12 | B14: Liverpool | C14: 1 | D14: LIV | L14: 0 | M14: 1 | N14: Premier League
A15: 13 | B15: Manchester City | C15: 1 | D15: MCY | L15: 0 | M15: 1 | N15: Premier League
A16: 14 | B16: Manchester United | C16: 1 | D16: MNU | L16: 0 | M16: 1 | N16: Premier League
A17: 15 | B17: Newcastle United | C17: 1 | D17: NEW | L17: 0 | M17: 1 | N17: Premier League
A18: 16 | B18: Nottingham Forest | C18: 1 | D18: NOT | L18: 0 | M18: 1 | N18: Premier League
A19: 17 | B19: Southampton | C19: 1 | D19: SOU | L19: 0 | M19: 1 | N19: Premier League
A20: 18 | B20: Tottenham | C20: 1 | D20: TOT | L20: 0 | M20: 1 | N20: Premier League
A21: 19 | B21: West Ham | C21: 1 | D21: WES | L21: 0 | M21: 1 | N21: Premier League
A22: 20 | B22: Wolves | C22: 1 | D22: WOL | L22: 0 | M22: 1 | N22: Premier League
A24: English Championship | B24: Teams | C24: English Rank | D24: Nickname | E24: Played | F24: Won | G24: Drawn | H24: Lost | I24: GF | J24: GA | K24: GD | L24: Points | M24: Rank
A25: 1 | B25: Blackburn | C25: =20+M25 -> 21 | D25: BLK | L25: =3*F25+G25 -> 0 | M25: =RANK(L25,$L$25:$L$48,0) -> 1 | N25: Championship
A26: 2 | B26: Bristol City | C26: =20+M26 -> 21 | D26: BRI | L26: =3*F26+G26 -> 0 | M26: =RANK(L26,$L$25:$L$48,0) -> 1 | N26: Championship
A27: 3 | B27: Burnley | C27: 21 | D27: BUR | L27: 0 | M27: 1 | N27: Championship
A28: 4 | B28: Cardiff City | C28: 21 | D28: CAR | L28: 0 | M28: 1 | N28: Championship
A29: 5 | B29: Coventry City | C29: 21 | D29: COV | L29: 0 | M29: 1 | N29: Championship
A30: 6 | B30: Derby County | C30: 21 | D30: DER | L30: 0 | M30: 1 | N30: Championship
A31: 7 | B31: Hull City | C31: 21 | D31: HUL | L31: 0 | M31: 1 | N31: Championship
A32: 8 | B32: Leeds United | C32: 21 | D32: LEE | L32: 0 | M32: 1 | N32: Championship
A33: 9 | B33: Luton Town | C33: 21 | D33: LUT | L33: 0 | M33: =RANK(L33,$L$25:$L$48,0) -> 1 | N33: Championship
A34: 10 | B34: Middlesbrough | C34: 21 | D34: MID | L34: 0 | M34: 1 | N34: Championship
A35: 11 | B35: Millwall | C35: 21 | D35: MIL | L35: 0 | M35: 1 | N35: Championship
A36: 12 | B36: Norwich City | C36: 21 | D36: NOR | L36: 0 | M36: 1 | N36: Championship
A37: 13 | B37: Oxford United | C37: 21 | D37: OXF | L37: 0 | M37: 1 | N37: Championship
A38: 14 | B38: Plymouth Argyle | C38: 21 | D38: PLY | L38: 0 | M38: 1 | N38: Championship
A39: 15 | B39: Portsmouth | C39: 21 | D39: POR | L39: 0 | M39: 1 | N39: Championship
A40: 16 | B40: Preston North End | C40: 21 | D40: PRE | L40: 0 | M40: 1 | N40: Championship
A41: 17 | B41: Queens Park Rangers | C41: 21 | D41: QUE | L41: 0 | M41: 1 | N41: Championship
A42: 18 | B42: Sheffield United | C42: 21 | D42: SHU | L42: 0 | M42: 1 | N42: Championship
A43: 19 | B43: Sheffield Wednesday | C43: 21 | D43: SHW | L43: 0 | M43: 1 | N43: Championship
A44: 20 | B44: Stoke City | C44: 21 | D44: STO | L44: 0 | M44: 1 | N44: Championship
A45: 21 | B45: Sunderland | C45: 21 | D45: SUN | L45: 0 | M45: 1 | N45: Championship
A46: 22 | B46: Swansea | C46: 21 | D46: SWA | L46: 0 | M46: 1 | N46: Championship
A47: 23 | B47: Watford | C47: 21 | D47: WAT | L47: 0 | M47: 1 | N47: Championship
A48: 24 | B48: West Brom | C48: 21 | D48: WSB | L48: 0 | M48: 1 | N48: Championship
A50: English League One | B50: Teams | C50: English Rank | D50: Nickname | E50: Played | F50: Won | G50: Drawn | H50: Lost | I50: GF | J50: GA | K50: GD | L50: Points | M50: Rank
A51: 1 | B51: Barnsley | C51: =44+M51 -> 45 | D51: BAR | L51: =3*F51+G51 -> 0 | M51: =RANK(L51,$L$51:$L$74,0) -> 1 | N51: League One
A52: 2 | B52: Birmingham | C52: =44+M52 -> 45 | D52: BIR | L52: 0 | M52: =RANK(L52,$L$51:$L$74,0) -> 1 | N52: League One
A53: 3 | B53: Blackpool | C53: 45 | D53: BLA | L53: 0 | M53: 1 | N53: League One
A54: 4 | B54: Bolton | C54: 45 | D54: BOL | L54: 0 | M54: 1 | N54: League One
A55: 5 | B55: Bristol | C55: 45 | D55: BRR | L55: 0 | M55: 1 | N55: League One
A56: 6 | B56: Burton Albion | C56: 45 | D56: BUA | L56: 0 | M56: 1 | N56: League One
A57: 7 | B57: Cambridge United | C57: 45 | D57: CAM | L57: 0 | M57: 1 | N57: League One
A58: 8 | B58: Charlton Athletic | C58: 45 | D58: CHA | L58: 0 | M58: 1 | N58: League One
A59: 9 | B59: Crawley Town | C59: 45 | D59: CRA | L59: 0 | M59: 1 | N59: League One
A60: 10 | B60: Exeter City | C60: 45 | D60: EXE | L60: 0 | M60: 1 | N60: League One
A61: 11 | B61: Huddersfield | C61: 45 | D61: HUD | L61: 0 | M61: 1 | N61: League One
A62: 12 | B62: Leyton Orient | C62: 45 | D62: LEY | L62: 0 | M62: 1 | N62: League One
A63: 13 | B63: Lincoln City | C63: 45 | D63: LIN | L63: 0 | M63: 1 | N63: League One
A64: 14 | B64: Mansfield Town | C64: 45 | D64: MAN | L64: 0 | M64: 1 | N64: League One
A65: 15 | B65: Northhampton Town | C65: 45 | D65: NHT | L65: 0 | M65: 1 | N65: League One
A66: 16 | B66: Peterborough United | C66: 45 | D66: PET | L66: 0 | M66: 1 | N66: League One
A67: 17 | B67: Reading | C67: 45 | D67: REA | L67: 0 | M67: 1 | N67: League One
A68: 18 | B68: Rotherham United | C68: 45 | D68: ROT | L68: 0 | M68: 1 | N68: League One
A69: 19 | B69: Shrewsbury Town | C69: 45 | D69: SHR | L69: 0 | M69: 1 | N69: League One
A70: 20 | B70: Stevenage | C70: 45 | D70: STE | L70: 0 | M70: 1 | N70: League One
A71: 21 | B71: Stockport County | C71: 45 | D71: STP | L71: 0 | M71: =RANK(L71,$L$51:$L$74,0) -> 1 | N71: League One
A72: 22 | B72: Wigan Athletic | C72: 45 | D72: WIG | L72: 0 | M72: 1 | N72: League One
A73: 23 | B73: Wrexham | C73: 45 | D73: WRE | L73: 0 | M73: 1 | N73: League One
A74: 24 | B74: Wycombe | C74: 45 | D74: WYC | L74: 0 | M74: 1 | N74: League One
A76: English League Two | B76: Teams | C76: English Rank | D76: Nickname | E76: Played | F76: Won | G76: Drawn | H76: Lost | I76: GF | J76: GA | K76: GD | L76: Points | M76: Rank
A77: 1 | B77: Accrington Stanley | C77: =68+M77 -> 69 | D77: ACC | L77: =3*F77+G77 -> 0 | M77: =RANK(L77,$L$77:$L$100,0) -> 1 | N77: League Two
A78: 2 | B78: AFC Wimbledon | C78: =68+M78 -> 69 | D78: WIM | L78: 0 | M78: =RANK(L78,$L$77:$L$100,0) -> 1 | N78: League Two
A79: 3 | B79: Barrow AFC | C79: 69 | D79: BRW | L79: 0 | M79: 1 | N79: League Two
A80: 4 | B80: Bradford City | C80: 69 | D80: BRA | L80: 0 | M80: 1 | N80: League Two
A81: 5 | B81: Bromley | C81: 69 | D81: BRO | L81: 0 | M81: 1 | N81: League Two
A82: 6 | B82: Carlisle United | C82: 69 | D82: CRU | L82: 0 | M82: 1 | N82: League Two
A83: 7 | B83: Cheltenham Town | C83: 69 | D83: CHT | L83: 0 | M83: 1 | N83: League Two
A84: 8 | B84: Chesterfield | C84: 69 | D84: CST | L84: 0 | M84: 1 | N84: League Two
A85: 9 | B85: Colchester United | C85: 69 | D85: CCH | L85: 0 | M85: 1 | N85: League Two
A86: 10 | B86: Crewe | C86: 69 | D86: CRW | L86: 0 | M86: 1 | N86: League Two
A87: 11 | B87: Doncaster Rovers | C87: 69 | D87: DON | L87: 0 | M87: 1 | N87: League Two
A88: 12 | B88: Fleetwood Town | C88: 69 | D88: FLE | L88: 0 | M88: 1 | N88: League Two
A89: 13 | B89: Gilingham | C89: 69 | D89: GIL | L89: 0 | M89: 1 | N89: League Two
A90: 14 | B90: Grimsby Town | C90: 69 | D90: GRI | L90: 0 | M90: 1 | N90: League Two
A91: 15 | B91: Harrogate Town | C91: 69 | D91: HAR | L91: 0 | M91: 1 | N91: League Two
A92: 16 | B92: Milton Keynes Dons | C92: 69 | D92: MKD | L92: 0 | M92: 1 | N92: League Two
A93: 17 | B93: Morecambe | C93: 69 | D93: MOR | L93: 0 | M93: 1 | N93: League Two
A94: 18 | B94: Newport County | C94: 69 | D94: NWC | L94: 0 | M94: 1 | N94: League Two
A95: 19 | B95: Notts County | C95: 69 | D95: NTC | L95: 0 | M95: 1 | N95: League Two
A96: 20 | B96: Port Vale | C96: 69 | D96: PRV | L96: 0 | M96: 1 | N96: League Two
A97: 21 | B97: Salford City | C97: 69 | D97: SLF | L97: 0 | M97: 1 | N97: League Two
A98: 22 | B98: Swindon Town | C98: 69 | D98: SWI | L98: 0 | M98: 1 | N98: League Two
A99: 23 | B99: Tranmere Rovers | C99: 69 | D99: TRM | L99: 0 | M99: 1 | N99: League Two
A100: 24 | B100: Walsall | C100: 69 | D100: WAL | L100: 0 | M100: 1 | N100: League Two
B102: Other Teams
B103: AC Milan | C103: ACM
B104: Adelaide United | C104: ADL
B105: Alaves | C105: ALA
B106: Angers | C106: ANG
B107: Atalanta | C107: ATA
B108: Athletic Bilbao | C108: ATB
B109: Athletic Madrid | C109: ATM
B110: Auxerre | C110: AUX
B111: Barcelona | C111: BAC
B112: Bayer 04 Leverkusen | C112: BAY
B113: Bologna | C113: BOG
B114: Borussia Dortmund | C114: BRD
B115: Borussia Monchengladbach | C115: BRM
B116: Brest | C116: BST
B117: Brisbane Roar | C117: BBR
B118: Cagliari | C118: CAG
B119: Celta Vigo | C119: CEL
B120: Central Coast Mariners | C120: CCM
B121: Como | C121: COM
B122: Eintracht Frankfurt | C122: EIN
B123: Empoli | C123: EMP
B124: Espanyol | C124: ESP
B125: FC Augsburg | C125: FCA
B126: FC Bayern Munich | C126: BYM
B127: FC Heidenheim 1846 | C127: HEI
B128: FC St.Pauli | C128: STP
B129: FC Union Berlin | C129: UNB
B130: Fiorentina | C130: FIO
B131: FSV Mainz 05 | C131: FSV
B132: Genoa | C132: GEN
B133: Getafe | C133: GET
B134: Girona | C134: GIR
B135: Holstein Kiel | C135: HOL
B136: Inter Milan | C136: INT
B137: Juventus | C137: JUV
B138: Las Palmas | C138: PAL
B139: Lazio | C139: LAZ
B140: Le Havre | C140: HAV
B141: Lecce | C141: LEC
B142: Leganes | C142: LEG
B143: Lille | C143: LLL
B144: Lyon | C144: LYO
B145: Macarthur | C145: MAC
B146: Marsiele | C146: MAR
B147: Melbourne City | C147: MLC
B148: Melbourne Victory | C148: MLV
B149: Monaco | C149: MON
B150: Montpellier | C150: MOP
B151: Monza | C151: MOZ
B152: Nantes | C152: NAN
B153: Napoli | C153: NAP
B154: Newcastle Jets | C154: NCJ
B155: Nice | C155: NCE
B156: Osasuna | C156: OSA
B157: Paris Saint-Germain | C157: PSG
B158: Parma | C158: PRM
B159: Perth Glory | C159: PRG
B160: Rayo Vallecano | C160: RVC
B161: RB Leipzig | C161: RBL
B162: RC Lens | C162: RCL
B163: Real Betis | C163: RBS
B164: Real Madrid | C164: RMD
B165: Real Mallorca | C165: RMA
B166: Real Sociedad | C166: RSD
B167: Real Valladolid | C167: RVD
B168: Reims | C168: RIM
B169: Rennes | C169: REN
B170: Roma | C170: ROM
B171: SC Freiburg | C171: SCF
B172: Sevilla | C172: SEV
B173: St Etienne | C173: STE
B174: Strasbourg | C174: STA
B175: SV Werder Bremen | C175: WER
B176: Sydney FC | C176: SFC
B177: Torino | C177: TOR
B178: Udinese | C178: UDI
B179: Valencia | C179: VAL
B180: Venezia | C180: VEN
B181: Verona | C181: VER
B182: VfB Stuttgart | C182: STT
B183: VfL Bochum 1848 | C183: BOC
B184: VfL Hoffenheim | C184: HOF
B185: VfL Wolfsburg | C185: WLF
B186: Vilarreal | C186: VIL
B187: Wellington Phoenix | C187: WPX
B188: Western Sydney Wanderers | C188: WSW
B189: Western United | C189: WUN
D194: Nickname | E194: Name
D195: BOU | E195: AFC Bournemouth
D196: ARS | E196: Arsenal
D197: AST | E197: Aston Villa
D198: BTD | E198: Brentford
D199: BHA | E199: Brighton & Hove Albion
D200: CHE | E200: Chelsea
D201: CRY | E201: Crystal Palace
D202: EVE | E202: Everton
D203: FUL | E203: Fulham
D204: IPS | E204: Ipswich Town
D205: LEI | E205: Leicester City
D206: LIV | E206: Liverpool
D207: MCY | E207: Manchester City
D208: MNU | E208: Manchester United
D209: NEW | E209: Newcastle United
... 170 more rows

Sheet Starting Player Data (hidden)
B1: Division | C1: Club | D1: Player Number (1-30) | E1: Name | F1: Position | G1: Age | H1: Nat | BF1: Passing | BG1: Shooting | BH1: Defending | BI1: Ball Skill | BJ1: Mindset | BK1: Team Work | BL1: Set Pieces | BM1: Speed | BN1: Mobility | BO1: Jumping | BP1: Strength | BQ1: Goal Keeping | BR1: Ability Score | BS1: Potential Score
B2: Serie A | C2: Genoa | D2: 1 | E2: Aarón | F2: Outfield | G2: 27 | H2: ESP | BF2: 13.3 | BG2: 7.5 | BH2: 12.3 | BI2: 14.0 | BJ2: 12.6 | BK2: 10.0 | BL2: 14.0 | BM2: 12.5 | BN2: 13.7 | BO2: 8.0 | BP2: 11.7 | BQ2: 2.2 | BR2: =IF(F2="GK",BQ2*10,SUM(BF2:BP2)) -> 130 | BS2: 135
B3: League One | C3: Bolton | D3: 1 | E3: Aaron Collins | F3: Outfield | G3: 27 | H3: WAL | BF3: 10.0 | BG3: 12.5 | BH3: 5.3 | BI3: 13.3 | BJ3: 11.4 | BK3: 8.5 | BL3: 9.0 | BM3: 12.5 | BN3: 12.5 | BO3: 9.0 | BP3: 9.7 | BQ3: 2.2 | BR3: 114 | BS3: 122
B4: Premier League | C4: West Ham | D4: 1 | E4: Aaron Cresswell | F4: Outfield | G4: 34 | H4: ENG | BF4: 12.7 | BG4: 11.0 | BH4: 13.0 | BI4: 12.5 | BJ4: 13.6 | BK4: 14.0 | BL4: 13.3 | BM4: 12.5 | BN4: 13.8 | BO4: 9.5 | BP4: 10.3 | BQ4: 1.8 | BR4: 136 | BS4: 145
B5: League Two | C5: Colchester United | D5: 1 | E5: Aaron Donnelly | F5: Outfield | G5: 21 | H5: NIR | BF5: 8.3 | BG5: 5.5 | BH5: 11.0 | BI5: 8.3 | BJ5: 11.0 | BK5: 10.5 | BL5: 5.0 | BM5: 11.5 | BN5: 10.8 | BO5: 11.0 | BP5: 9.7 | BQ5: 2.3 | BR5: 103 | BS5: 105
B6: League Two | C6: Swindon Town | D6: 1 | E6: Aaron Drinan | F6: Outfield | G6: 26 | H6: IRL | BF6: 8.3 | BG6: 8.5 | BH6: 6.0 | BI6: 8.8 | BJ6: 11.4 | BK6: 10.5 | BL6: 6.5 | BM6: 13.5 | BN6: 12.0 | BO6: 10.0 | BP6: 13.3 | BQ6: 2.5 | BR6: 109 | BS6: 105
B7: League Two | C7: Carlisle United | D7: 1 | E7: Aaron Hayden | F7: Outfield | G7: 27 | H7: ENG | BF7: 7.0 | BG7: 5.5 | BH7: 10.3 | BI7: 8.0 | BJ7: 11.4 | BK7: 13.0 | BL7: 5.0 | BM7: 11.0 | BN7: 11.0 | BO7: 13.0 | BP7: 12.3 | BQ7: 2.1 | BR7: 108 | BS7: 115
B8: Premier League | C8: Brentford | D8: 1 | E8: Aaron Hickey | F8: Outfield | G8: 22 | H8: SCO | BF8: 12.7 | BG8: 11.0 | BH8: 12.3 | BI8: 13.0 | BJ8: 12.8 | BK8: 11.5 | BL8: 9.5 | BM8: 14.0 | BN8: 12.8 | BO8: 10.5 | BP8: 12.7 | BQ8: 2.5 | BR8: 133 | BS8: 165
B9: League One | C9: Mansfield Town | D9: 1 | E9: Aaron Lewis | F9: Outfield | G9: 26 | H9: WAL | BF9: 10.0 | BG9: 8.5 | BH9: 10.3 | BI9: 11.0 | BJ9: 10.8 | BK9: 9.5 | BL9: 13.0 | BM9: 10.5 | BN9: 11.3 | BO9: 7.5 | BP9: 11.3 | BQ9: 1.8 | BR9: 114 | BS9: 110
B10: A-league | C10: Perth Glory | D10: 1 | E10: Aaron McEneff | F10: Outfield | G10: 28 | H10: IRL | BF10: 11.0 | BG10: 10.5 | BH10: 9.3 | BI10: 11.8 | BJ10: 11.2 | BK10: 11.0 | BL10: 10.8 | BM10: 12.5 | BN10: 12.7 | BO10: 8.5 | BP10: 10.7 | BQ10: 1.6 | BR10: 120 | BS10: 105
B11: League One | C11: Northhampton Town | D11: 1 | E11: Aaron McGowan | F11: Outfield | G11: 27 | H11: ENG | BF11: 8.0 | BG11: 6.5 | BH11: 13.0 | BI11: 9.5 | BJ11: 12.8 | BK11: 15.0 | BL11: 6.3 | BM11: 9.0 | BN11: 11.7 | BO11: 10.5 | BP11: 14.0 | BQ11: 1.8 | BR11: 116 | BS11: 113
B12: League One | C12: Bolton | D12: 2 | E12: Aaron Morley | F12: Outfield | G12: 24 | H12: ENG | BF12: 13.0 | BG12: 10.0 | BH12: 9.3 | BI12: 10.8 | BJ12: 11.6 | BK12: 12.0 | BL12: 10.8 | BM12: 12.0 | BN12: 11.7 | BO12: 8.5 | BP12: 11.3 | BQ12: 2.5 | BR12: 121 | BS12: 126
B13: League Two | C13: Milton Keynes Dons | D13: 1 | E13: Aaron Nemane | F13: Outfield | G13: 26 | H13: ENG | BF13: 10.0 | BG13: 9.5 | BH13: 7.7 | BI13: 9.3 | BJ13: 8.8 | BK13: 6.5 | BL13: 6.5 | BM13: 17.5 | BN13: 11.3 | BO13: 5.0 | BP13: 8.7 | BQ13: 1.9 | BR13: 101 | BS13: 105
B14: League One | C14: Shrewsbury Town | D14: 1 | E14: Aaron Pierre | F14: Outfield | G14: 31 | H14: GRN | BF14: 7.0 | BG14: 7.5 | BH14: 11.3 | BI14: 10.0 | BJ14: 11.2 | BK14: 13.0 | BL14: 4.8 | BM14: 9.0 | BN14: 9.5 | BO14: 12.0 | BP14: 13.0 | BQ14: 1.5 | BR14: 108 | BS14: 120
B15: League One | C15: Stevenage | D15: 1 | E15: Aaron Pressley | F15: Outfield | G15: 22 | H15: SCO | BF15: 9.7 | BG15: 10.5 | BH15: 5.7 | BI15: 9.8 | BJ15: 10.6 | BK15: 10.5 | BL15: 7.8 | BM15: 10.5 | BN15: 11.5 | BO15: 13.5 | BP15: 13.0 | BQ15: 1.9 | BR15: 113 | BS15: 117
B16: Premier League | C16: Southampton | D16: 1 | E16: Aaron Ramsdale | F16: GK | G16: 26 | H16: ENG | BF16: 8.7 | BG16: 1.5 | BH16: 5.3 | BI16: 9.3 | BJ16: 13.2 | BK16: 14.0 | BL16: 3.8 | BM16: 7.5 | BN16: 11.5 | BO16: 10.0 | BP16: 14.3 | BQ16: 14.2 | BR16: 142 | BS16: 160
B17: Championship | C17: Burnley | D17: 1 | E17: Aaron Ramsey | F17: Outfield | G17: 21 | H17: ENG | BF17: 13.3 | BG17: 11.5 | BH17: 9.0 | BI17: 13.8 | BJ17: 12.8 | BK17: 8.5 | BL17: 7.5 | BM17: 14.0 | BN17: 12.3 | BO17: 7.5 | BP17: 8.0 | BQ17: 1.6 | BR17: 118 | BS17: 145
B18: League Two | C18: Gilingham | D18: 1 | E18: Aaron Rowe | F18: Outfield | G18: 23 | H18: ENG | BF18: 9.3 | BG18: 9.5 | BH18: 8.0 | BI18: 10.5 | BJ18: 8.6 | BK18: 10.0 | BL18: 7.5 | BM18: 12.0 | BN18: 10.7 | BO18: 6.5 | BP18: 7.7 | BQ18: 2.4 | BR18: 100 | BS18: 108
B19: Premier League | C19: West Ham | D19: 2 | E19: Aaron Wan-Bissaka | F19: Outfield | G19: 26 | H19: ENG | BF19: 9.3 | BG19: 5.0 | BH19: 15.0 | BI19: 12.0 | BJ19: 11.6 | BK19: 10.5 | BL19: 6.0 | BM19: 16.0 | BN19: 14.8 | BO19: 9.0 | BP19: 15.3 | BQ19: 2.2 | BR19: 125 | BS19: 150
B20: League Two | C20: Newport County | D20: 1 | E20: Aaron Wildig | F20: Outfield | G20: 32 | H20: ENG | BF20: 11.3 | BG20: 9.0 | BH20: 9.0 | BI20: 11.0 | BJ20: 11.4 | BK20: 13.0 | BL20: 7.3 | BM20: 10.0 | BN20: 11.2 | BO20: 9.0 | BP20: 9.7 | BQ20: 2.0 | BR20: 112 | BS20: 106
B21: Ligue 1 | C21: Strasbourg | D21: 1 | E21: Abakar Sylla | F21: Outfield | G21: 21 | H21: CIV | BF21: 9.0 | BG21: 8.5 | BH21: 12.3 | BI21: 11.5 | BJ21: 10.4 | BK21: 16.5 | BL21: 8.3 | BM21: 14.5 | BN21: 14.0 | BO21: 14.5 | BP21: 16.3 | BQ21: 1.9 | BR21: 136 | BS21: 160
B22: Premier League | C22: Brighton & Hove Albion | D22: 1 | E22: Abdallah Sima | F22: Outfield | G22: 23 | H22: SEN | BF22: 8.3 | BG22: 14.0 | BH22: 6.0 | BI22: 12.3 | BJ22: 11.0 | BK22: 11.5 | BL22: 7.0 | BM22: 17.0 | BN22: 11.7 | BO22: 15.5 | BP22: 11.3 | BQ22: 2.1 | BR22: 126 | BS22: 144
B23: LaLiga | C23: Alaves | D23: 1 | E23: Abde | F23: Outfield | G23: 25 | H23: ALG | BF23: 10.7 | BG23: 11.0 | BH23: 7.0 | BI23: 11.8 | BJ23: 12.4 | BK23: 12.5 | BL23: 8.8 | BM23: 13.5 | BN23: 12.0 | BO23: 8.5 | BP23: 12.0 | BQ23: 2.4 | BR23: 120 | BS23: 135
B24: Serie A | C24: Fiorentina | D24: 1 | E24: Abdelhamid Sabiri | F24: Outfield | G24: 27 | H24: MAR | BF24: 13.7 | BG24: 13.0 | BH24: 7.7 | BI24: 14.8 | BJ24: 12.0 | BK24: 9.5 | BL24: 12.5 | BM24: 12.0 | BN24: 12.7 | BO24: 12.0 | BP24: 13.3 | BQ24: 1.8 | BR24: 133 | BS24: 140
B25: LaLiga | C25: Alaves | D25: 2 | E25: Abdelkabir Abqar | F25: Outfield | G25: 25 | H25: MAR | BF25: 8.0 | BG25: 6.0 | BH25: 13.3 | BI25: 8.5 | BJ25: 12.0 | BK25: 14.0 | BL25: 5.3 | BM25: 12.0 | BN25: 11.0 | BO25: 13.5 | BP25: 15.0 | BQ25: 2.5 | BR25: 119 | BS25: 137
B26: League One | C26: Wigan Athletic | D26: 1 | E26: Abdi Sharif | F26: Outfield | G26: 23 | H26: ENG | BF26: 9.3 | BG26: 7.5 | BH26: 10.0 | BI26: 8.5 | BJ26: 9.0 | BK26: 10.5 | BL26: 6.0 | BM26: 12.0 | BN26: 11.3 | BO26: 6.0 | BP26: 7.7 | BQ26: 2.4 | BR26: 98 | BS26: 108
B27: LaLiga | C27: Real Mallorca | D27: 1 | E27: Abdón Prats | F27: Outfield | G27: 31 | H27: ESP | BF27: 11.3 | BG27: 13.0 | BH27: 6.7 | BI27: 11.5 | BJ27: 13.6 | BK27: 14.5 | BL27: 9.8 | BM27: 13.5 | BN27: 14.2 | BO27: 11.5 | BP27: 12.7 | BQ27: 1.4 | BR27: 132 | BS27: 139
B28: Serie A | C28: Verona | D28: 1 | E28: Abdou Harroui | F28: Outfield | G28: 26 | H28: MAR | BF28: 11.0 | BG28: 12.0 | BH28: 11.0 | BI28: 11.8 | BJ28: 13.0 | BK28: 12.5 | BL28: 9.3 | BM28: 12.0 | BN28: 13.3 | BO28: 11.0 | BP28: 13.3 | BQ28: 2.3 | BR28: 130 | BS28: 140
B29: Ligue 1 | C29: Angers | D29: 1 | E29: Abdoulaye Bamba | F29: Outfield | G29: 34 | H29: CIV | BF29: 10.7 | BG29: 6.0 | BH29: 12.7 | BI29: 9.3 | BJ29: 12.0 | BK29: 12.5 | BL29: 8.5 | BM29: 13.0 | BN29: 13.3 | BO29: 12.0 | BP29: 12.3 | BQ29: 2.3 | BR29: 122 | BS29: 124
B30: Premier League | C30: Everton | D30: 1 | E30: Abdoulaye Doucouré | F30: Outfield | G30: 31 | H30: MLI | BF30: 12.0 | BG30: 13.0 | BH30: 12.0 | BI30: 12.5 | BJ30: 14.0 | BK30: 13.0 | BL30: 6.3 | BM30: 13.5 | BN30: 15.2 | BO30: 12.0 | BP30: 14.7 | BQ30: 2.6 | BR30: 138 | BS30: 160
B31: Championship | C31: Portsmouth | D31: 1 | E31: Abdoulaye Kamara | F31: Outfield | G31: 19 | H31: GUI | BF31: 10.7 | BG31: 7.5 | BH31: 11.7 | BI31: 12.5 | BJ31: 10.2 | BK31: 9.5 | BL31: 7.3 | BM31: 12.0 | BN31: 11.0 | BO31: 10.0 | BP31: 12.3 | BQ31: 2.1 | BR31: 115 | BS31: 122
B32: LaLiga | C32: Getafe | D32: 1 | E32: Abdoulaye Keita | F32: Outfield | G32: 21 | H32: ESP | BF32: 10.0 | BG32: 8.5 | BH32: 6.3 | BI32: 13.0 | BJ32: 10.4 | BK32: 10.0 | BL32: 4.3 | BM32: 13.0 | BN32: 11.0 | BO32: 6.5 | BP32: 9.0 | BQ32: 1.8 | BR32: 102 | BS32: 119
B33: Ligue 1 | C33: Brest | D33: 1 | E33: Abdoulaye Ndiaye | F33: Outfield | G33: 22 | H33: SEN | BF33: 10.0 | BG33: 10.5 | BH33: 11.3 | BI33: 8.8 | BJ33: 11.2 | BK33: 11.5 | BL33: 5.3 | BM33: 11.0 | BN33: 12.7 | BO33: 14.5 | BP33: 14.3 | BQ33: 2.3 | BR33: 121 | BS33: 149
B34: Ligue 1 | C34: Le Havre | D34: 1 | E34: Abdoulaye Touré | F34: Outfield | G34: 30 | H34: GUI | BF34: 10.7 | BG34: 11.5 | BH34: 13.0 | BI34: 11.8 | BJ34: 13.4 | BK34: 13.0 | BL34: 8.5 | BM34: 12.0 | BN34: 13.5 | BO34: 13.0 | BP34: 14.0 | BQ34: 2.2 | BR34: 134 | BS34: 134
B35: Championship | C35: Sunderland | D35: 1 | E35: Abdoullah Ba | F35: Outfield | G35: 20 | H35: MTN | BF35: 12.0 | BG35: 11.0 | BH35: 10.0 | BI35: 13.8 | BJ35: 10.8 | BK35: 11.0 | BL35: 6.8 | BM35: 13.5 | BN35: 12.8 | BO35: 7.5 | BP35: 10.3 | BQ35: 2.2 | BR35: 120 | BS35: 154
B36: Ligue 1 | C36: RC Lens | D36: 1 | E36: Abdukodir Khusanov | F36: Outfield | G36: 20 | H36: UZB | BF36: 7.3 | BG36: 5.5 | BH36: 13.3 | BI36: 8.0 | BJ36: 12.6 | BK36: 12.0 | BL36: 4.0 | BM36: 12.0 | BN36: 10.3 | BO36: 12.0 | BP36: 13.3 | BQ36: 2.1 | BR36: 110 | BS36: 143
B37: Premier League | C37: Leicester City | D37: 1 | E37: Abdul Fatawu | F37: Outfield | G37: 20 | H37: GHA | BF37: 12.0 | BG37: 13.5 | BH37: 7.0 | BI37: 13.5 | BJ37: 11.0 | BK37: 10.5 | BL37: 10.8 | BM37: 16.0 | BN37: 12.3 | BO37: 7.0 | BP37: 12.7 | BQ37: 1.5 | BR37: 126 | BS37: 160
B38: LaLiga | C38: Rayo Vallecano | D38: 1 | E38: Abdul Mumin | F38: Outfield | G38: 26 | H38: GHA | BF38: 10.0 | BG38: 6.0 | BH38: 14.0 | BI38: 13.0 | BJ38: 12.6 | BK38: 8.5 | BL38: 5.3 | BM38: 15.0 | BN38: 12.5 | BO38: 14.0 | BP38: 14.0 | BQ38: 2.1 | BR38: 125 | BS38: 140
B39: Championship | C39: Hull City | D39: 1 | E39: Abdülkadir Ömür | F39: Outfield | G39: 25 | H39: TUR | BF39: 11.7 | BG39: 11.0 | BH39: 6.7 | BI39: 15.0 | BJ39: 12.8 | BK39: 12.0 | BL39: 9.0 | BM39: 14.0 | BN39: 14.0 | BO39: 7.5 | BP39: 10.3 | BQ39: 2.3 | BR39: 124 | BS39: 140
B40: League Two | C40: Walsall | D40: 1 | E40: Abdul-Malik Lawal-Olumegbon | F40: Outfield | G40: 18 | H40: ENG | BF40: 5.3 | BG40: 3.0 | BH40: 9.3 | BI40: 6.3 | BJ40: 6.6 | BK40: 4.0 | BL40: 4.0 | BM40: 11.0 | BN40: 8.3 | BO40: 12.0 | BP40: 6.7 | BQ40: 2.5 | BR40: 77 | BS40: 89
B41: LaLiga | C41: Osasuna | D41: 1 | E41: Abel Bretones | F41: Outfield | G41: 23 | H41: ESP | BF41: 12.0 | BG41: 11.0 | BH41: 12.3 | BI41: 10.8 | BJ41: 11.8 | BK41: 10.0 | BL41: 9.5 | BM41: 13.0 | BN41: 11.3 | BO41: 11.5 | BP41: 7.7 | BQ41: 2.3 | BR41: 121 | BS41: 132
B42: LaLiga | C42: Girona | D42: 1 | E42: Abel Ruiz | F42: Outfield | G42: 24 | H42: ESP | BF42: 12.7 | BG42: 12.5 | BH42: 6.0 | BI42: 14.3 | BJ42: 12.2 | BK42: 12.0 | BL42: 8.8 | BM42: 14.0 | BN42: 13.7 | BO42: 12.0 | BP42: 11.7 | BQ42: 2.2 | BR42: 130 | BS42: 146
B43: League One | C43: Peterborough United | D43: 1 | E43: Abraham Odoh | F43: Outfield | G43: 23 | H43: ENG | BF43: 8.3 | BG43: 8.5 | BH43: 6.3 | BI43: 13.5 | BJ43: 7.6 | BK43: 7.0 | BL43: 4.3 | BM43: 12.5 | BN43: 12.2 | BO43: 6.0 | BP43: 5.7 | BQ43: 2.1 | BR43: 92 | BS43: 114
B44: Championship | C44: Hull City | D44: 2 | E44: Abu Kamara | F44: Outfield | G44: 20 | H44: ENG | BF44: 9.7 | BG44: 11.0 | BH44: 7.3 | BI44: 11.5 | BJ44: 11.4 | BK44: 7.0 | BL44: 8.5 | BM44: 14.0 | BN44: 11.5 | BO44: 8.0 | BP44: 6.3 | BQ44: 2.0 | BR44: 106 | BS44: 135
B45: Free | C45: Free | E45: Abu Kanu | F45: Outfield | G45: 18 | H45: ENG | BF45: 4.3 | BG45: 5.0 | BH45: 4.0 | BI45: 10.5 | BJ45: 7.0 | BK45: 3.0 | BL45: 3.0 | BM45: 12.0 | BN45: 6.8 | BO45: 7.5 | BP45: 8.0 | BQ45: 2.3 | BR45: 71 | BS45: 90
B46: Ligue 1 | C46: Paris Saint-Germain | D46: 1 | E46: Achraf Hakimi | F46: Outfield | G46: 25 | H46: MAR | BF46: 14.0 | BG46: 13.0 | BH46: 11.7 | BI46: 13.5 | BJ46: 12.6 | BK46: 10.5 | BL46: 10.0 | BM46: 18.5 | BN46: 15.2 | BO46: 8.5 | BP46: 12.3 | BQ46: 2.3 | BR46: 140 | BS46: 164
B47: Premier League | C47: Southampton | D47: 2 | E47: Adam Armstrong | F47: Outfield | G47: 27 | H47: ENG | BF47: 9.3 | BG47: 12.5 | BH47: 5.3 | BI47: 12.3 | BJ47: 12.0 | BK47: 9.5 | BL47: 9.0 | BM47: 17.0 | BN47: 12.8 | BO47: 8.0 | BP47: 8.3 | BQ47: 1.9 | BR47: 116 | BS47: 138
B48: League Two | C48: Notts County | D48: 1 | E48: Adam Chicksen | F48: Outfield | G48: 32 | H48: ZIM | BF48: 10.7 | BG48: 8.0 | BH48: 10.3 | BI48: 9.8 | BJ48: 10.6 | BK48: 12.5 | BL48: 6.3 | BM48: 10.5 | BN48: 12.3 | BO48: 7.0 | BP48: 8.3 | BQ48: 1.9 | BR48: 106 | BS48: 105
B49: Championship | C49: Sheffield United | D49: 1 | E49: Adam Davies | F49: GK | G49: 31 | H49: WAL | BF49: 6.7 | BG49: 3.0 | BH49: 6.0 | BI49: 6.0 | BJ49: 11.6 | BK49: 13.0 | BL49: 4.3 | BM49: 10.0 | BN49: 12.3 | BO49: 10.5 | BP49: 12.0 | BQ49: 11.9 | BR49: 119 | BS49: 130
B50: Bundesliga | C50: FC St.Pauli | D50: 1 | E50: Adam Dźwigała | F50: Outfield | G50: 28 | H50: POL | BF50: 10.0 | BG50: 7.0 | BH50: 13.0 | BI50: 9.5 | BJ50: 11.8 | BK50: 11.0 | BL50: 6.0 | BM50: 13.0 | BN50: 11.5 | BO50: 13.0 | BP50: 13.7 | BQ50: 2.3 | BR50: 120 | BS50: 115
B51: Championship | C51: Plymouth Argyle | D51: 1 | E51: Adam Forshaw | F51: Outfield | G51: 32 | H51: ENG | BF51: 12.3 | BG51: 7.0 | BH51: 11.0 | BI51: 11.8 | BJ51: 13.6 | BK51: 13.5 | BL51: 9.3 | BM51: 9.5 | BN51: 13.0 | BO51: 7.0 | BP51: 12.7 | BQ51: 2.2 | BR51: 121 | BS51: 135
B52: Bundesliga | C52: VfL Hoffenheim | D52: 1 | E52: Adam Hložek | F52: Outfield | G52: 21 | H52: CZE | BF52: 11.3 | BG52: 12.0 | BH52: 6.3 | BI52: 12.8 | BJ52: 11.4 | BK52: 9.5 | BL52: 11.0 | BM52: 14.5 | BN52: 12.0 | BO52: 13.0 | BP52: 12.7 | BQ52: 2.0 | BR52: 127 | BS52: 152
B53: League One | C53: Lincoln City | D53: 1 | E53: Adam Jackson | F53: Outfield | G53: 30 | H53: ENG | BF53: 7.3 | BG53: 5.5 | BH53: 12.7 | BI53: 7.3 | BJ53: 12.8 | BK53: 13.0 | BL53: 4.3 | BM53: 8.0 | BN53: 11.0 | BO53: 13.5 | BP53: 13.3 | BQ53: 1.7 | BR53: 109 | BS53: 123
B54: Premier League | C54: Southampton | D54: 3 | E54: Adam Lallana | F54: Outfield | G54: 36 | H54: ENG | BF54: 14.3 | BG54: 7.5 | BH54: 11.0 | BI54: 16.5 | BJ54: 15.8 | BK54: 16.0 | BL54: 7.8 | BM54: 10.0 | BN54: 13.3 | BO54: 6.0 | BP54: 11.0 | BQ54: 2.5 | BR54: 129 | BS54: 159
B55: League Two | C55: Morecambe | D55: 1 | E55: Adam Lewis | F55: Outfield | G55: 24 | H55: ENG | BF55: 12.0 | BG55: 9.5 | BH55: 9.3 | BI55: 12.3 | BJ55: 11.0 | BK55: 10.5 | BL55: 10.3 | BM55: 13.0 | BN55: 10.3 | BO55: 5.5 | BP55: 11.3 | BQ55: 2.4 | BR55: 115 | BS55: 118
B56: Serie A | C56: Lazio | D56: 1 | E56: Adam Marušić | F56: Outfield | G56: 31 | H56: MNE | BF56: 11.7 | BG56: 12.0 | BH56: 14.0 | BI56: 11.8 | BJ56: 12.4 | BK56: 13.5 | BL56: 5.8 | BM56: 14.5 | BN56: 14.2 | BO56: 10.5 | BP56: 15.0 | BQ56: 2.4 | BR56: 135 | BS56: 150
B57: Serie A | C57: Torino | D57: 1 | E57: Adam Masina | F57: Outfield | G57: 30 | H57: MAR | BF57: 11.7 | BG57: 8.5 | BH57: 12.7 | BI57: 11.3 | BJ57: 12.4 | BK57: 13.5 | BL57: 9.5 | BM57: 12.0 | BN57: 13.7 | BO57: 14.0 | BP57: 14.3 | BQ57: 2.4 | BR57: 134 | BS57: 139
B58: Championship | C58: Millwall | D58: 1 | E58: Adam Mayor | F58: Outfield | G58: 20 | H58: ENG | BF58: 11.3 | BG58: 8.5 | BH58: 7.7 | BI58: 9.8 | BJ58: 9.6 | BK58: 9.0 | BL58: 11.3 | BM58: 13.0 | BN58: 12.2 | BO58: 8.0 | BP58: 13.0 | BQ58: 2.4 | BR58: 113 | BS58: 124
B59: Serie A | C59: Cagliari | D59: 1 | E59: Adam Obert | F59: Outfield | G59: 21 | H59: SVK | BF59: 11.7 | BG59: 7.5 | BH59: 13.3 | BI59: 9.5 | BJ59: 12.8 | BK59: 10.0 | BL59: 8.3 | BM59: 12.5 | BN59: 11.8 | BO59: 13.5 | BP59: 12.0 | BQ59: 1.9 | BR59: 123 | BS59: 147
B60: A-league | C60: Central Coast Mariners | D60: 1 | E60: Adam Pavlešić | F60: GK | G60: 21 | H60: AUS | BF60: 3.0 | BG60: 2.0 | BH60: 3.0 | BI60: 2.0 | BJ60: 9.2 | BK60: 3.5 | BL60: 2.8 | BM60: 10.0 | BN60: 7.5 | BO60: 6.5 | BP60: 8.0 | BQ60: 8.9 | BR60: 89 | BS60: 84
B61: League One | C61: Barnsley | D61: 1 | E61: Adam Phillips | F61: Outfield | G61: 26 | H61: ENG | BF61: 12.3 | BG61: 12.0 | BH61: 7.7 | BI61: 12.5 | BJ61: 11.4 | BK61: 11.5 | BL61: 9.8 | BM61: 11.5 | BN61: 11.3 | BO61: 8.0 | BP61: 10.0 | BQ61: 1.6 | BR61: 118 | BS61: 129
B62: Championship | C62: Plymouth Argyle | D62: 2 | E62: Adam Randell | F62: Outfield | G62: 23 | H62: ENG | BF62: 10.7 | BG62: 8.0 | BH62: 10.7 | BI62: 10.0 | BJ62: 12.6 | BK62: 13.5 | BL62: 8.3 | BM62: 11.0 | BN62: 13.7 | BO62: 7.5 | BP62: 11.3 | BQ62: 1.7 | BR62: 117 | BS62: 118
B63: Premier League | C63: AFC Bournemouth | D63: 1 | E63: Adam Smith | F63: Outfield | G63: 33 | H63: ENG | BF63: 11.3 | BG63: 8.0 | BH63: 12.7 | BI63: 11.8 | BJ63: 12.6 | BK63: 12.0 | BL63: 4.8 | BM63: 14.0 | BN63: 14.2 | BO63: 7.0 | BP63: 10.7 | BQ63: 2.0 | BR63: 119 | BS63: 136
B64: A-league | C64: Perth Glory | D64: 2 | E64: Adam Taggart | F64: Outfield | G64: 31 | H64: AUS | BF64: 10.7 | BG64: 13.5 | BH64: 7.3 | BI64: 12.0 | BJ64: 10.8 | BK64: 9.0 | BL64: 8.3 | BM64: 12.0 | BN64: 12.5 | BO64: 11.5 | BP64: 10.0 | BQ64: 2.3 | BR64: 118 | BS64: 150
B65: Premier League | C65: Brighton & Hove Albion | D65: 2 | E65: Adam Webster | F65: Outfield | G65: 29 | H65: ENG | BF65: 11.0 | BG65: 6.5 | BH65: 14.0 | BI65: 11.5 | BJ65: 13.6 | BK65: 13.5 | BL65: 5.8 | BM65: 13.5 | BN65: 11.7 | BO65: 14.5 | BP65: 13.0 | BQ65: 2.4 | BR65: 129 | BS65: 145
B66: Premier League | C66: Crystal Palace | D66: 1 | E66: Adam Wharton | F66: Outfield | G66: 20 | H66: ENG | BF66: 14.3 | BG66: 8.5 | BH66: 9.0 | BI66: 15.3 | BJ66: 11.6 | BK66: 10.0 | BL66: 9.0 | BM66: 12.5 | BN66: 12.8 | BO66: 9.5 | BP66: 11.0 | BQ66: 1.8 | BR66: =IF(F66="GK",BQ66*10,SUM(BF66:BP66)) -> 124 | BS66: 155
B67: League Two | C67: Bradford City | D67: 1 | E67: Adam Wilson | F67: Outfield | G67: 24 | H67: ENG | BF67: 7.7 | BG67: 10.0 | BH67: 5.3 | BI67: 11.0 | BJ67: 7.8 | BK67: 7.5 | BL67: 8.5 | BM67: 13.5 | BN67: 10.3 | BO67: 5.0 | BP67: 8.7 | BQ67: 1.9 | BR67: 95 | BS67: 104
B68: Serie A | C68: Bologna | D68: 1 | E68: Adama Soumaoro | F68: Outfield | G68: 32 | H68: FRA | BF68: 7.3 | BG68: 7.0 | BH68: 14.3 | BI68: 8.3 | BJ68: 12.6 | BK68: 10.5 | BL68: 6.0 | BM68: 11.0 | BN68: 12.2 | BO68: 14.5 | BP68: 15.0 | BQ68: 2.3 | BR68: 119 | BS68: 135
B69: Premier League | C69: Fulham | D69: 1 | E69: Adama Traoré | F69: Outfield | G69: 28 | H69: ESP | BF69: 10.3 | BG69: 10.5 | BH69: 8.0 | BI69: 14.5 | BJ69: 9.4 | BK69: 7.0 | BL69: 7.5 | BM69: 19.0 | BN69: 11.7 | BO69: 12.5 | BP69: 13.3 | BQ69: 2.4 | BR69: 124 | BS69: 154
B70: League One | C70: Crawley Town | D70: 1 | E70: Ade Adeyemo | F70: Outfield | G70: 25 | H70: ENG | BF70: 6.3 | BG70: 8.0 | BH70: 5.0 | BI70: 9.8 | BJ70: 8.8 | BK70: 8.5 | BL70: 5.3 | BM70: 12.5 | BN70: 10.5 | BO70: 7.5 | BP70: 6.7 | BQ70: 2.5 | BR70: 89 | BS70: 87
B71: Ligue 1 | C71: Nantes | D71: 1 | E71: Adel Mahamoud | F71: Outfield | G71: 21 | H71: COM | BF71: 10.7 | BG71: 10.5 | BH71: 4.7 | BI71: 13.3 | BJ71: 11.8 | BK71: 10.0 | BL71: 6.8 | BM71: 13.0 | BN71: 9.8 | BO71: 8.5 | BP71: 7.0 | BQ71: 2.1 | BR71: 106 | BS71: 121
B72: Serie A | C72: Atalanta | D72: 1 | E72: Ademola Lookman | F72: Outfield | G72: 26 | H72: NGA | BF72: 12.3 | BG72: 13.5 | BH72: 4.3 | BI72: 14.8 | BJ72: 12.6 | BK72: 9.5 | BL72: 9.3 | BM72: 16.0 | BN72: 13.8 | BO72: 7.5 | BP72: 10.3 | BQ72: 1.4 | BR72: 124 | BS72: 157
B73: League Two | C73: Bradford City | D73: 2 | E73: Aden Baldwin | F73: Outfield | G73: 27 | H73: ENG | BF73: 10.0 | BG73: 7.0 | BH73: 11.3 | BI73: 7.5 | BJ73: 12.4 | BK73: 9.5 | BL73: 6.0 | BM73: 11.5 | BN73: 11.0 | BO73: 12.5 | BP73: 10.7 | BQ73: 2.3 | BR73: 109 | BS73: 105
B74: League One | C74: Mansfield Town | D74: 2 | E74: Aden Flint | F74: Outfield | G74: 34 | H74: ENG | BF74: 7.0 | BG74: 7.5 | BH74: 13.7 | BI74: 7.0 | BJ74: 12.2 | BK74: 14.5 | BL74: 6.0 | BM74: 7.5 | BN74: 11.7 | BO74: 15.5 | BP74: 15.3 | BQ74: 1.8 | BR74: 118 | BS74: 124
B75: Championship | C75: Sunderland | D75: 2 | E75: Adil Aouchiche | F75: Outfield | G75: 21 | H75: FRA | BF75: 12.3 | BG75: 11.5 | BH75: 6.0 | BI75: 14.3 | BJ75: 11.6 | BK75: 10.5 | BL75: 11.0 | BM75: 13.0 | BN75: 12.3 | BO75: 7.5 | BP75: 11.0 | BQ75: 2.5 | BR75: 121 | BS75: 150
B76: LaLiga | C76: Las Palmas | D76: 1 | E76: Adnan Januzaj | F76: Outfield | G76: 29 | H76: BEL | BF76: 14.7 | BG76: 13.0 | BH76: 6.7 | BI76: 16.5 | BJ76: 11.6 | BK76: 7.5 | BL76: 11.5 | BM76: 13.0 | BN76: 11.7 | BO76: 7.0 | BP76: 9.0 | BQ76: 2.2 | BR76: 122 | BS76: 155
B77: Ligue 1 | C77: Auxerre | D77: 1 | E77: Ado Onaiwu | F77: Outfield | G77: 28 | H77: JPN | BF77: 10.7 | BG77: 11.0 | BH77: 8.3 | BI77: 12.8 | BJ77: 12.2 | BK77: 10.5 | BL77: 8.3 | BM77: 14.5 | BN77: 12.3 | BO77: 10.5 | BP77: 11.3 | BQ77: 2.2 | BR77: 122 | BS77: 127
B78: LaLiga | C78: Leganes | D78: 1 | E78: Adrià Altimira | F78: Outfield | G78: 23 | H78: ESP | BF78: 10.3 | BG78: 7.0 | BH78: 10.7 | BI78: 11.0 | BJ78: 10.8 | BK78: 9.0 | BL78: 7.8 | BM78: 14.0 | BN78: 12.7 | BO78: 7.0 | BP78: 11.7 | BQ78: 2.1 | BR78: 112 | BS78: 132
B79: LaLiga | C79: Sevilla | D79: 1 | E79: Adrià Pedrosa | F79: Outfield | G79: 26 | H79: ESP | BF79: 12.7 | BG79: 10.0 | BH79: 12.7 | BI79: 12.5 | BJ79: 12.4 | BK79: 11.5 | BL79: 9.0 | BM79: 14.5 | BN79: 14.0 | BO79: 10.5 | BP79: 11.7 | BQ79: 2.3 | BR79: 132 | BS79: 150
B80: LaLiga | C80: Real Betis | D80: 1 | E80: Adrián | F80: GK | G80: 37 | H80: ESP | BF80: 7.3 | BG80: 2.0 | BH80: 5.0 | BI80: 6.8 | BJ80: 12.8 | BK80: 10.0 | BL80: 4.3 | BM80: 9.5 | BN80: 10.7 | BO80: 7.5 | BP80: 13.3 | BQ80: 13.3 | BR80: 133 | BS80: 140
B81: Bundesliga | C81: FC Heidenheim 1846 | D81: 1 | E81: Adrian Beck | F81: Outfield | G81: 27 | H81: GER | BF81: 11.7 | BG81: 11.0 | BH81: 10.0 | BI81: 12.3 | BJ81: 12.2 | BK81: 12.0 | BL81: 11.3 | BM81: 12.0 | BN81: 13.2 | BO81: 12.0 | BP81: 11.7 | BQ81: 1.6 | BR81: 129 | BS81: 122
B82: Serie A | C82: Parma | D82: 1 | E82: Adrian Benedyczak | F82: Outfield | G82: 23 | H82: POL | BF82: 9.3 | BG82: 12.5 | BH82: 7.7 | BI82: 12.3 | BJ82: 12.4 | BK82: 10.0 | BL82: 7.5 | BM82: 13.5 | BN82: 12.8 | BO82: 13.5 | BP82: 11.3 | BQ82: 2.0 | BR82: 123 | BS82: 139
B83: Serie A | C83: Parma | D83: 2 | E83: Adrián Bernabé | F83: Outfield | G83: 23 | H83: ESP | BF83: 14.0 | BG83: 11.0 | BH83: 9.7 | BI83: 14.3 | BJ83: 12.8 | BK83: 10.5 | BL83: 10.5 | BM83: 13.5 | BN83: 13.0 | BO83: 6.5 | BP83: 11.0 | BQ83: 2.3 | BR83: 127 | BS83: 155
B84: LaLiga | C84: Rayo Vallecano | D84: 2 | E84: Adrián Embarba | F84: Outfield | G84: 32 | H84: ESP | BF84: 13.3 | BG84: 12.0 | BH84: 5.7 | BI84: 14.0 | BJ84: 13.6 | BK84: 10.0 | BL84: 10.3 | BM84: 14.0 | BN84: 13.0 | BO84: 7.0 | BP84: 10.7 | BQ84: 2.4 | BR84: 124 | BS84: 142
B85: A-league | C85: Sydney FC | D85: 1 | E85: Adrian Segecic | F85: Outfield | G85: 20 | H85: AUS | BF85: 12.7 | BG85: 10.5 | BH85: 4.7 | BI85: 13.0 | BJ85: 12.0 | BK85: 11.0 | BL85: 8.0 | BM85: 9.5 | BN85: 11.7 | BO85: 7.5 | BP85: 8.0 | BQ85: 2.1 | BR85: 109 | BS85: 121
B86: Ligue 1 | C86: Angers | D86: 2 | E86: Adrien Hunou | F86: Outfield | G86: 30 | H86: FRA | BF86: 12.3 | BG86: 11.5 | BH86: 10.0 | BI86: 13.3 | BJ86: 12.4 | BK86: 11.0 | BL86: 8.8 | BM86: 12.0 | BN86: 12.3 | BO86: 12.0 | BP86: 11.3 | BQ86: 2.3 | BR86: 127 | BS86: 128
B87: Ligue 1 | C87: Marsiele | D87: 1 | E87: Adrien Rabiot | F87: Outfield | G87: 29 | H87: FRA | BF87: 14.0 | BG87: 13.5 | BH87: 14.3 | BI87: 13.3 | BJ87: 11.8 | BK87: 15.5 | BL87: 10.0 | BM87: 14.5 | BN87: 15.7 | BO87: 14.0 | BP87: 14.7 | BQ87: 2.1 | BR87: 151 | BS87: 159
B88: Serie A | C88: Torino | D88: 2 | E88: Adrien Tameze | F88: Outfield | G88: 30 | H88: FRA | BF88: 11.3 | BG88: 10.5 | BH88: 12.7 | BI88: 11.8 | BJ88: 13.6 | BK88: 12.0 | BL88: 6.5 | BM88: 13.5 | BN88: 14.8 | BO88: 10.5 | BP88: 13.3 | BQ88: 2.0 | BR88: 131 | BS88: 139
B89: Ligue 1 | C89: RC Lens | D89: 2 | E89: Adrien Thomasson | F89: Outfield | G89: 30 | H89: FRA | BF89: 13.0 | BG89: 13.0 | BH89: 10.7 | BI89: 13.0 | BJ89: 11.8 | BK89: 13.0 | BL89: 9.0 | BM89: 13.5 | BN89: 14.0 | BO89: 10.5 | BP89: 12.0 | BQ89: 1.9 | BR89: 134 | BS89: 136
B90: Ligue 1 | C90: Rennes | D90: 1 | E90: Adrien Truffert | F90: Outfield | G90: 22 | H90: FRA | BF90: 14.0 | BG90: 12.0 | BH90: 14.0 | BI90: 13.0 | BJ90: 12.6 | BK90: 11.5 | BL90: 5.8 | BM90: 14.5 | BN90: 13.7 | BO90: 8.5 | BP90: 12.7 | BQ90: 2.3 | BR90: 132 | BS90: 152
B91: LaLiga | C91: Athletic Bilbao | D91: 1 | E91: Adu Ares | F91: Outfield | G91: 22 | H91: ESP | BF91: 11.7 | BG91: 11.5 | BH91: 9.3 | BI91: 11.8 | BJ91: 11.0 | BK91: 10.5 | BL91: 10.3 | BM91: 15.0 | BN91: 11.8 | BO91: 10.5 | BP91: 11.7 | BQ91: 2.1 | BR91: 125 | BS91: 136
B92: Bundesliga | C92: VfL Bochum 1848 | D92: 1 | E92: Agon Elezi | F92: Outfield | G92: 23 | H92: MKD | BF92: 10.3 | BG92: 11.5 | BH92: 10.7 | BI92: 11.3 | BJ92: 11.8 | BK92: 9.5 | BL92: 7.8 | BM92: 12.5 | BN92: 12.7 | BO92: 8.5 | BP92: 12.0 | BQ92: 2.1 | BR92: 119 | BS92: 121
B93: Championship | C93: Middlesbrough | D93: 1 | E93: Aidan Morris | F93: Outfield | G93: 22 | H93: USA | BF93: 11.0 | BG93: 9.5 | BH93: 13.0 | BI93: 11.3 | BJ93: 12.0 | BK93: 12.0 | BL93: 7.8 | BM93: 12.0 | BN93: 13.5 | BO93: 10.5 | BP93: 13.7 | BQ93: 2.3 | BR93: 126 | BS93: 141
B94: League Two | C94: Notts County | D94: 2 | E94: Aidan Stone | F94: GK | G94: 24 | H94: ENG | BF94: 8.0 | BG94: 3.0 | BH94: 4.7 | BI94: 5.3 | BJ94: 11.0 | BK94: 11.0 | BL94: 3.8 | BM94: 9.0 | BN94: 9.5 | BO94: 8.0 | BP94: 8.3 | BQ94: 10.4 | BR94: 104 | BS94: 110
B95: Championship | C95: Millwall | D95: 2 | E95: Aidomo Emakhu | F95: Outfield | G95: 20 | H95: IRL | BF95: 9.0 | BG95: 10.5 | BH95: 6.0 | BI95: 11.3 | BJ95: 9.2 | BK95: 6.5 | BL95: 5.8 | BM95: 15.5 | BN95: 11.7 | BO95: 10.5 | BP95: 10.7 | BQ95: 1.7 | BR95: 107 | BS95: 122
B96: LaLiga | C96: Real Sociedad | D96: 1 | E96: Aihen Muñoz | F96: Outfield | G96: 26 | H96: ESP | BF96: 12.7 | BG96: 10.5 | BH96: 14.7 | BI96: 11.5 | BJ96: 13.4 | BK96: 12.5 | BL96: 9.8 | BM96: 13.5 | BN96: 13.7 | BO96: 9.0 | BP96: 13.3 | BQ96: 2.0 | BR96: 135 | BS96: 147
B97: LaLiga | C97: Osasuna | D97: 2 | E97: Aimar | F97: Outfield | G97: 22 | H97: ESP | BF97: 14.3 | BG97: 10.5 | BH97: 9.3 | BI97: 15.5 | BJ97: 13.8 | BK97: 13.5 | BL97: 11.3 | BM97: 13.0 | BN97: 11.8 | BO97: 8.0 | BP97: 10.0 | BQ97: 2.3 | BR97: 131 | BS97: 155
B98: Free | C98: Free | E98: Aimar Peña | F98: Outfield | G98: 20 | H98: ESP | BF98: 5.7 | BG98: 6.5 | BH98: 4.7 | BI98: 10.5 | BJ98: 9.4 | BK98: 5.0 | BL98: 3.8 | BM98: 11.5 | BN98: 12.2 | BO98: 7.5 | BP98: 9.0 | BQ98: 2.1 | BR98: 86 | BS98: 135
B99: Ligue 1 | C99: St Etienne | D99: 1 | E99: Aïmen Moueffek | F99: Outfield | G99: 23 | H99: MAR | BF99: 10.7 | BG99: 11.0 | BH99: 12.7 | BI99: 9.8 | BJ99: 9.8 | BK99: 6.0 | BL99: 7.3 | BM99: 13.0 | BN99: 12.5 | BO99: 9.5 | BP99: 8.3 | BQ99: 2.2 | BR99: 111 | BS99: 142
B100: Ligue 1 | C100: Lille | D100: 1 | E100: Aïssa Mandi | F100: Outfield | G100: 32 | H100: ALG | BF100: 14.0 | BG100: 5.0 | BH100: 14.7 | BI100: 10.5 | BJ100: 13.6 | BK100: 13.0 | BL100: 7.5 | BM100: 13.5 | BN100: 13.5 | BO100: 13.5 | BP100: 15.0 | BQ100: 1.8 | BR100: 134 | BS100: 148
B101: LaLiga | C101: Osasuna | D101: 3 | E101: Aitor Fernández | F101: GK | G101: 33 | H101: ESP | BF101: 7.0 | BG101: 3.0 | BH101: 6.3 | BI101: 6.5 | BJ101: 13.8 | BK101: 11.5 | BL101: 1.8 | BM101: 11.0 | BN101: 10.7 | BO101: 10.5 | BP101: 11.3 | BQ101: 12.5 | BR101: 125 | BS101: 145
B102: LaLiga | C102: Athletic Bilbao | D102: 2 | E102: Aitor Paredes | F102: Outfield | G102: 24 | H102: ESP | BF102: 12.0 | BG102: 7.5 | BH102: 14.0 | BI102: 10.3 | BJ102: 12.2 | BK102: 11.5 | BL102: 8.3 | BM102: 13.0 | BN102: 11.7 | BO102: 13.0 | BP102: 10.3 | BQ102: 2.0 | BR102: 124 | BS102: 135
B103: LaLiga | C103: Real Betis | D103: 2 | E103: Aitor Ruibal | F103: Outfield | G103: 28 | H103: ESP | BF103: 10.7 | BG103: 11.0 | BH103: 10.3 | BI103: 11.5 | BJ103: 12.6 | BK103: 12.0 | BL103: 10.8 | BM103: 13.5 | BN103: 14.3 | BO103: 8.5 | BP103: 14.7 | BQ103: 2.0 | BR103: 130 | BS103: 146
B104: Championship | C104: Sunderland | D104: 3 | E104: Aji Alese | F104: Outfield | G104: 23 | H104: ENG | BF104: 10.3 | BG104: 5.5 | BH104: 12.7 | BI104: 10.8 | BJ104: 11.8 | BK104: 13.0 | BL104: 4.3 | BM104: 14.5 | BN104: 12.2 | BO104: 13.5 | BP104: 11.7 | BQ104: 2.3 | BR104: 120 | BS104: 137
B105: Ligue 1 | C105: Lille | D105: 2 | E105: Akim Zedadka | F105: Outfield | G105: 29 | H105: ALG | BF105: 12.3 | BG105: 8.5 | BH105: 11.3 | BI105: 12.8 | BJ105: 10.8 | BK105: 8.5 | BL105: 10.5 | BM105: 13.0 | BN105: 13.0 | BO105: 8.5 | BP105: 10.3 | BQ105: 2.2 | BR105: 120 | BS105: 129
B106: Championship | C106: Sheffield Wednesday | D106: 1 | E106: Akin Famewo | F106: Outfield | G106: 25 | H106: ENG | BF106: 8.0 | BG106: 5.0 | BH106: 12.3 | BI106: 6.5 | BJ106: 11.0 | BK106: 13.0 | BL106: 5.3 | BM106: 13.0 | BN106: 11.5 | BO106: 13.0 | BP106: 14.3 | BQ106: 1.5 | BR106: 113 | BS106: 137
B107: League One | C107: Northhampton Town | D107: 2 | E107: Akin Odimayo | F107: Outfield | G107: 24 | H107: ENG | BF107: 11.0 | BG107: 5.0 | BH107: 11.7 | BI107: 10.3 | BJ107: 9.2 | BK107: 8.0 | BL107: 7.5 | BM107: 13.0 | BN107: 9.7 | BO107: 10.0 | BP107: 9.0 | BQ107: 1.9 | BR107: 104 | BS107: 130
B108: Ligue 1 | C108: Montpellier | D108: 1 | E108: Akor Adams | F108: Outfield | G108: 24 | H108: NGA | BF108: 9.0 | BG108: 11.5 | BH108: 7.0 | BI108: 11.0 | BJ108: 12.4 | BK108: 10.5 | BL108: 6.8 | BM108: 15.0 | BN108: 13.2 | BO108: 13.5 | BP108: 14.7 | BQ108: 1.9 | BR108: 125 | BS108: 135
B109: Championship | C109: Sunderland | D109: 4 | E109: Alan Browne | F109: Outfield | G109: 29 | H109: IRL | BF109: 10.7 | BG109: 11.0 | BH109: 12.3 | BI109: 11.0 | BJ109: 11.8 | BK109: 15.5 | BL109: 10.3 | BM109: 11.0 | BN109: 12.8 | BO109: 11.5 | BP109: 12.7 | BQ109: 2.4 | BR109: 131 | BS109: 125
B110: Serie A | C110: Genoa | D110: 2 | E110: Alan Matturro | F110: Outfield | G110: 19 | H110: URU | BF110: 12.7 | BG110: 10.5 | BH110: 12.7 | BI110: 11.3 | BJ110: 11.2 | BK110: 12.5 | BL110: 8.3 | BM110: 12.0 | BN110: 12.2 | BO110: 13.5 | BP110: 13.0 | BQ110: 1.5 | BR110: 130 | BS110: 151
B111: League Two | C111: Notts County | D111: 3 | E111: Alassana Jatta | F111: Outfield | G111: 25 | H111: GAM | BF111: 9.3 | BG111: 11.5 | BH111: 7.3 | BI111: 10.3 | BJ111: 11.8 | BK111: 7.5 | BL111: 8.8 | BM111: 11.5 | BN111: 10.7 | BO111: 14.0 | BP111: 12.3 | BQ111: 2.6 | BR111: 115 | BS111: 120
B112: Bundesliga | C112: Borussia Monchengladbach | D112: 1 | E112: Alassane Pléa | F112: Outfield | G112: 31 | H112: FRA | BF112: 14.0 | BG112: 14.0 | BH112: 6.0 | BI112: 14.3 | BJ112: 13.2 | BK112: 10.5 | BL112: 10.3 | BM112: 13.0 | BN112: 12.7 | BO112: 11.5 | BP112: 12.7 | BQ112: 1.8 | BR112: 132 | BS112: 147
B113: Ligue 1 | C113: Nantes | D113: 2 | E113: Alban Lafont | F113: GK | G113: 25 | H113: FRA | BF113: 8.3 | BG113: 1.0 | BH113: 6.3 | BI113: 7.8 | BJ113: 12.8 | BK113: 12.0 | BL113: 2.0 | BM113: 11.0 | BN113: 11.3 | BO113: 8.5 | BP113: 10.7 | BQ113: 12.9 | BR113: 129 | BS113: 143
B114: League Two | C114: Walsall | D114: 2 | E114: Albert Adomah | F114: Outfield | G114: 36 | H114: GHA | BF114: 13.0 | BG114: 10.5 | BH114: 8.0 | BI114: 13.0 | BJ114: 11.4 | BK114: 10.5 | BL114: 8.3 | BM114: 9.5 | BN114: 13.0 | BO114: 9.0 | BP114: 7.3 | BQ114: 2.0 | BR114: 114 | BS114: 132
B115: Ligue 1 | C115: Rennes | D115: 2 | E115: Albert Grønbæk | F115: Outfield | G115: 23 | H115: DEN | BF115: 12.0 | BG115: 12.5 | BH115: 7.3 | BI115: 14.5 | BJ115: 11.8 | BK115: 10.0 | BL115: 10.0 | BM115: 14.5 | BN115: 13.7 | BO115: 11.0 | BP115: 11.3 | BQ115: 1.8 | BR115: 129 | BS115: 150
B116: Serie A | C116: Fiorentina | D116: 2 | E116: Albert Guðmundsson | F116: Outfield | G116: 27 | H116: ISL | BF116: 14.3 | BG116: 14.0 | BH116: 6.0 | BI116: 16.5 | BJ116: 11.4 | BK116: 8.0 | BL116: 11.8 | BM116: 15.5 | BN116: 12.5 | BO116: 7.5 | BP116: 9.7 | BQ116: 2.0 | BR116: 127 | BS116: 157
B117: Premier League | C117: Arsenal | D117: 1 | E117: Albert Sambi Lokonga | F117: Outfield | G117: 24 | H117: BEL | BF117: 12.3 | BG117: 10.0 | BH117: 11.7 | BI117: 13.8 | BJ117: 13.8 | BK117: 14.0 | BL117: 10.3 | BM117: 13.5 | BN117: 13.3 | BO117: 10.0 | BP117: 12.0 | BQ117: 1.6 | BR117: 135 | BS117: 154
B118: Serie A | C118: Como | D118: 1 | E118: Alberto Cerri | F118: Outfield | G118: 28 | H118: ITA | BF118: 10.7 | BG118: 12.0 | BH118: 8.0 | BI118: 10.8 | BJ118: 12.4 | BK118: 13.0 | BL118: 7.5 | BM118: 10.0 | BN118: 13.2 | BO118: 16.0 | BP118: 13.7 | BQ118: 2.0 | BR118: 127 | BS118: 125
B119: LaLiga | C119: Real Sociedad | D119: 2 | E119: Alberto Dadie | F119: Outfield | G119: 21 | H119: ESP | BF119: 9.0 | BG119: 11.5 | BH119: 9.0 | BI119: 10.3 | BJ119: 10.2 | BK119: 5.5 | BL119: 7.0 | BM119: 13.5 | BN119: 12.0 | BO119: 9.0 | BP119: 8.3 | BQ119: 2.2 | BR119: 105 | BS119: 97
B120: Serie A | C120: Como | D120: 2 | E120: Alberto Dossena | F120: Outfield | G120: 25 | H120: ITA | BF120: 8.7 | BG120: 7.5 | BH120: 14.0 | BI120: 9.0 | BJ120: 13.8 | BK120: 12.5 | BL120: 6.0 | BM120: 11.5 | BN120: 12.8 | BO120: 15.0 | BP120: 13.0 | BQ120: 1.9 | BR120: 124 | BS120: 140
B121: Serie A | C121: Empoli | D121: 1 | E121: Alberto Grassi | F121: Outfield | G121: 29 | H121: ITA | BF121: 12.0 | BG121: 8.5 | BH121: 12.3 | BI121: 12.3 | BJ121: 13.2 | BK121: 11.5 | BL121: 7.8 | BM121: 12.5 | BN121: 13.0 | BO121: 12.0 | BP121: 13.0 | BQ121: 1.8 | BR121: 128 | BS121: 130
B122: LaLiga | C122: Valencia | D122: 1 | E122: Alberto Marí | F122: Outfield | G122: 22 | H122: ESP | BF122: 11.0 | BG122: 13.0 | BH122: 6.7 | BI122: 11.0 | BJ122: 11.4 | BK122: 11.5 | BL122: 7.3 | BM122: 12.5 | BN122: 13.2 | BO122: 13.0 | BP122: 12.3 | BQ122: 2.1 | BR122: 123 | BS122: 135
B123: LaLiga | C123: Las Palmas | D123: 2 | E123: Alberto Moleiro | F123: Outfield | G123: 20 | H123: ESP | BF123: 14.0 | BG123: 12.0 | BH123: 5.7 | BI123: 16.3 | BJ123: 12.2 | BK123: 10.5 | BL123: 10.0 | BM123: 13.0 | BN123: 13.0 | BO123: 7.0 | BP123: 8.7 | BQ123: 2.6 | BR123: 122 | BS123: 156
B124: Serie A | C124: Como | D124: 3 | E124: Alberto Moreno | F124: Outfield | G124: 31 | H124: ESP | BF124: 14.0 | BG124: 8.5 | BH124: 13.3 | BI124: 13.3 | BJ124: 12.6 | BK124: 11.0 | BL124: 8.8 | BM124: 14.5 | BN124: 15.5 | BO124: 8.0 | BP124: 13.7 | BQ124: 1.6 | BR124: 133 | BS124: 150
B125: Serie A | C125: Torino | D125: 3 | E125: Alberto Paleari | F125: GK | G125: 31 | H125: ITA | BF125: 6.3 | BG125: 2.0 | BH125: 4.3 | BI125: 5.8 | BJ125: 11.6 | BK125: 11.0 | BL125: 3.5 | BM125: 9.0 | BN125: 10.7 | BO125: 10.5 | BP125: 11.3 | BQ125: 11.3 | BR125: 113 | BS125: 125
B126: League One | C126: Blackpool | D126: 1 | E126: Albie Morgan | F126: Outfield | G126: 24 | H126: ENG | BF126: 12.0 | BG126: 11.0 | BH126: 7.7 | BI126: 12.0 | BJ126: 10.8 | BK126: 9.5 | BL126: 9.5 | BM126: 12.5 | BN126: 12.7 | BO126: 7.0 | BP126: 10.7 | BQ126: 1.5 | BR126: 115 | BS126: 128
B127: Free | C127: Free | E127: Albion Jahaj | F127: Outfield | G127: 18 | H127: GER | BF127: 11.0 | BG127: 6.5 | BH127: 7.3 | BI127: 11.5 | BJ127: 6.0 | BK127: 7.5 | BL127: 5.8 | BM127: 13.5 | BN127: 10.3 | BO127: 6.5 | BP127: 6.3 | BQ127: 2.4 | BR127: 92 | BS127: 117
B128: A-league | C128: Wellington Phoenix | D128: 1 | E128: Alby Kelly-Heald | F128: GK | G128: 19 | H128: NZL | BF128: 3.7 | BG128: 1.5 | BH128: 4.0 | BI128: 3.5 | BJ128: 10.8 | BK128: 9.5 | BL128: 3.0 | BM128: 10.0 | BN128: 5.7 | BO128: 8.0 | BP128: 9.3 | BQ128: 9.4 | BR128: 94 | BS128: 96
B129: Free | C129: Free | E129: Aldo Graziano | F129: Outfield | G129: 19 | H129: ITA | BF129: 5.0 | BG129: 5.0 | BH129: 11.7 | BI129: 5.0 | BJ129: 8.2 | BK129: 9.0 | BL129: 4.3 | BM129: 8.5 | BN129: 10.3 | BO129: 13.0 | BP129: 14.7 | BQ129: 1.9 | BR129: 95 | BS129: 93
B130: LaLiga | C130: Las Palmas | D130: 3 | E130: Ale García | F130: Outfield | G130: 21 | H130: ESP | BF130: 9.0 | BG130: 11.0 | BH130: 8.0 | BI130: 13.5 | BJ130: 10.0 | BK130: 5.5 | BL130: 7.0 | BM130: 14.0 | BN130: 11.8 | BO130: 8.0 | BP130: 6.3 | BQ130: 2.3 | BR130: =IF(F130="GK",BQ130*10,SUM(BF130:BP130)) -> 104 | BS130: 124
B131: Bundesliga | C131: Bayer 04 Leverkusen | D131: 1 | E131: Aleix García | F131: Outfield | G131: 27 | H131: ESP | BF131: 13.7 | BG131: 11.0 | BH131: 12.7 | BI131: 13.8 | BJ131: 14.2 | BK131: 14.0 | BL131: 12.0 | BM131: 12.0 | BN131: 13.5 | BO131: 8.0 | BP131: 11.7 | BQ131: 2.2 | BR131: 137 | BS131: 148
B132: LaLiga | C132: Barcelona | D132: 1 | E132: Alejandro Balde | F132: Outfield | G132: 20 | H132: ESP | BF132: 13.0 | BG132: 9.0 | BH132: 11.3 | BI132: 13.8 | BJ132: 12.2 | BK132: 10.0 | BL132: 8.8 | BM132: 17.0 | BN132: 14.3 | BO132: 8.5 | BP132: 11.7 | BQ132: 2.2 | BR132: 130 | BS132: 172
B133: League One | C133: Burton Albion | D133: 1 | E133: Alejandro Bran | F133: Outfield | G133: 23 | H133: CRC | BF133: 12.3 | BG133: 10.5 | BH133: 12.7 | BI133: 9.8 | BJ133: 11.2 | BK133: 10.0 | BL133: 12.3 | BM133: 8.0 | BN133: 11.0 | BO133: 9.5 | BP133: 10.0 | BQ133: 2.1 | BR133: 117 | BS133: 111
B134: LaLiga | C134: Osasuna | D134: 4 | E134: Alejandro Catena | F134: Outfield | G134: 29 | H134: ESP | BF134: 9.3 | BG134: 8.0 | BH134: 14.3 | BI134: 10.5 | BJ134: 13.2 | BK134: 14.0 | BL134: 8.0 | BM134: 12.0 | BN134: 12.0 | BO134: 16.0 | BP134: 13.7 | BQ134: 1.8 | BR134: 131 | BS134: 146
B135: LaLiga | C135: Girona | D135: 2 | E135: Alejandro Francés | F135: Outfield | G135: 21 | H135: ESP | BF135: 11.0 | BG135: 7.0 | BH135: 13.7 | BI135: 9.8 | BJ135: 13.4 | BK135: 12.5 | BL135: 6.3 | BM135: 13.0 | BN135: 12.2 | BO135: 12.0 | BP135: 11.7 | BQ135: 2.4 | BR135: 123 | BS135: 148
B136: Premier League | C136: Manchester United | D136: 1 | E136: Alejandro Garnacho | F136: Outfield | G136: 20 | H136: ARG | BF136: 11.7 | BG136: 12.0 | BH136: 3.7 | BI136: 14.8 | BJ136: 11.4 | BK136: 7.0 | BL136: 8.0 | BM136: 17.0 | BN136: 14.2 | BO136: 7.0 | BP136: 12.0 | BQ136: 2.2 | BR136: 119 | BS136: 177
B137: LaLiga | C137: Espanyol | D137: 1 | E137: Alejo Veliz | F137: Outfield | G137: 20 | H137: ARG | BF137: 10.0 | BG137: 13.0 | BH137: 7.7 | BI137: 11.3 | BJ137: 12.6 | BK137: 10.0 | BL137: 9.3 | BM137: 12.5 | BN137: 12.8 | BO137: 14.5 | BP137: 11.7 | BQ137: 2.3 | BR137: 125 | BS137: 158
B138: Bundesliga | C138: FC Bayern Munich | D138: 1 | E138: Aleksandar Pavlović | F138: Outfield | G138: 20 | H138: GER | BF138: 12.0 | BG138: 8.0 | BH138: 12.0 | BI138: 12.3 | BJ138: 13.2 | BK138: 12.0 | BL138: 11.0 | BM138: 11.5 | BN138: 12.2 | BO138: 12.0 | BP138: 12.0 | BQ138: 2.4 | BR138: 128 | BS138: 155
B139: LaLiga | C139: Alaves | D139: 3 | E139: Aleksandar Sedlar | F139: Outfield | G139: 32 | H139: SRB | BF139: 11.0 | BG139: 10.0 | BH139: 13.0 | BI139: 9.5 | BJ139: 12.6 | BK139: 13.5 | BL139: 8.5 | BM139: 12.0 | BN139: 12.2 | BO139: 11.0 | BP139: 13.3 | BQ139: 2.2 | BR139: 127 | BS139: 125
B140: A-league | C140: Newcastle Jets | D140: 1 | E140: Aleksandar Šušnjar | F140: Outfield | G140: 28 | H140: AUS | BF140: 8.3 | BG140: 6.5 | BH140: 13.0 | BI140: 7.3 | BJ140: 11.8 | BK140: 10.5 | BL140: 6.0 | BM140: 10.0 | BN140: 11.5 | BO140: 15.0 | BP140: 12.7 | BQ140: 2.1 | BR140: 113 | BS140: 119
B141: Serie A | C141: Inter Milan | D141: 1 | E141: Alem Nezirević | F141: Outfield | G141: 20 | H141: SWE | BF141: 10.3 | BG141: 7.0 | BH141: 9.7 | BI141: 9.8 | BJ141: 10.4 | BK141: 8.0 | BL141: 7.3 | BM141: 12.0 | BN141: 10.8 | BO141: 9.5 | BP141: 9.7 | BQ141: 1.8 | BR141: 105 | BS141: 105
B142: Serie A | C142: Cagliari | D142: 2 | E142: Alen Sherri | F142: GK | G142: 26 | H142: ALB | BF142: 5.3 | BG142: 1.5 | BH142: 4.3 | BI142: 2.3 | BJ142: 8.8 | BK142: 6.5 | BL142: 3.3 | BM142: 14.0 | BN142: 7.2 | BO142: 7.5 | BP142: 8.7 | BQ142: 9.6 | BR142: 96 | BS142: 94
B143: Free | C143: Free | E143: Alessandro Abbenante | F143: Outfield | G143: 19 | H143: ITA | BF143: 5.7 | BG143: 6.0 | BH143: 11.0 | BI143: 6.5 | BJ143: 9.4 | BK143: 7.0 | BL143: 6.0 | BM143: 9.5 | BN143: 9.5 | BO143: 13.0 | BP143: 12.7 | BQ143: 2.3 | BR143: 96 | BS143: 87
B144: Serie A | C144: Inter Milan | D144: 2 | E144: Alessandro Bastoni | F144: Outfield | G144: 25 | H144: ITA | BF144: 13.7 | BG144: 8.0 | BH144: 15.0 | BI144: 12.8 | BJ144: 14.2 | BK144: 14.5 | BL144: 7.3 | BM144: 14.5 | BN144: 14.7 | BO144: 15.0 | BP144: 15.3 | BQ144: 2.1 | BR144: 145 | BS144: 165
B145: Serie A | C145: Como | D145: 4 | E145: Alessandro Bellemo | F145: Outfield | G145: 28 | H145: ITA | BF145: 12.7 | BG145: 11.0 | BH145: 11.3 | BI145: 11.5 | BJ145: 12.0 | BK145: 13.5 | BL145: 10.8 | BM145: 12.5 | BN145: 11.8 | BO145: 9.0 | BP145: 10.0 | BQ145: 2.5 | BR145: 126 | BS145: 123
B146: Free | C146: Free | E146: Alessandro Berardi | F146: GK | G146: 33 | H146: ITA | BF146: 3.3 | BG146: 1.0 | BH146: 4.7 | BI146: 3.5 | BJ146: 12.4 | BK146: 9.0 | BL146: 2.0 | BM146: 8.5 | BN146: 10.3 | BO146: 7.5 | BP146: 12.0 | BQ146: 11.5 | BR146: 115 | BS146: 105
B147: Serie A | C147: Monza | D147: 1 | E147: Alessandro Bianco | F147: Outfield | G147: 21 | H147: ITA | BF147: 12.3 | BG147: 9.5 | BH147: 10.7 | BI147: 12.0 | BJ147: 12.0 | BK147: 12.5 | BL147: 8.5 | BM147: 13.0 | BN147: 12.0 | BO147: 8.5 | BP147: 11.0 | BQ147: 2.3 | BR147: 122 | BS147: 149
B148: Serie A | C148: Napoli | D148: 1 | E148: Alessandro Buongiorno | F148: Outfield | G148: 25 | H148: ITA | BF148: 10.3 | BG148: 10.0 | BH148: 15.3 | BI148: 10.0 | BJ148: 14.0 | BK148: 12.5 | BL148: 5.5 | BM148: 12.0 | BN148: 13.7 | BO148: 15.0 | BP148: 14.0 | BQ148: 2.3 | BR148: 132 | BS148: 160
B149: Serie A | C149: Parma | D149: 3 | E149: Alessandro Circati | F149: Outfield | G149: 20 | H149: AUS | BF149: 9.7 | BG149: 9.5 | BH149: 13.7 | BI149: 9.8 | BJ149: 13.6 | BK149: 12.0 | BL149: 8.8 | BM149: 13.0 | BN149: 12.8 | BO149: 14.0 | BP149: 13.0 | BQ149: 1.7 | BR149: 130 | BS149: 150
B150: Free | C150: Free | E150: Alessandro Debenedetti | F150: Outfield | G150: 20 | H150: ITA | BF150: 8.3 | BG150: 10.5 | BH150: 6.7 | BI150: 8.8 | BJ150: 9.8 | BK150: 8.0 | BL150: 8.8 | BM150: 12.0 | BN150: 12.0 | BO150: 12.5 | BP150: 9.0 | BQ150: 2.2 | BR150: 106 | BS150: 100
B151: Serie A | C151: Cagliari | D151: 3 | E151: Alessandro Deiola | F151: Outfield | G151: 28 | H151: ITA | BF151: 11.3 | BG151: 10.5 | BH151: 12.3 | BI151: 10.8 | BJ151: 11.8 | BK151: 12.0 | BL151: 8.3 | BM151: 13.0 | BN151: 12.8 | BO151: 13.0 | BP151: 12.7 | BQ151: 2.0 | BR151: 129 | BS151: 130
B152: Serie A | C152: Cagliari | D152: 4 | E152: Alessandro Di Pardo | F152: Outfield | G152: 24 | H152: ITA | BF152: 11.7 | BG152: 7.5 | BH152: 11.3 | BI152: 11.5 | BJ152: 11.6 | BK152: 11.5 | BL152: 8.3 | BM152: 13.5 | BN152: 12.2 | BO152: 11.0 | BP152: 10.7 | BQ152: 1.7 | BR152: 121 | BS152: 129
B153: Serie A | C153: AC Milan | D153: 1 | E153: Alessandro Florenzi | F153: Outfield | G153: 33 | H153: ITA | BF153: 12.7 | BG153: 10.0 | BH153: 12.7 | BI153: 12.5 | BJ153: 14.0 | BK153: 14.0 | BL153: 11.8 | BM153: 13.5 | BN153: 13.2 | BO153: 8.5 | BP153: 13.0 | BQ153: 2.1 | BR153: 136 | BS153: 154
B154: Free | C154: Free | E154: Alessandro Gabrielloni | F154: Outfield | G154: 29 | H154: ITA | BF154: 10.0 | BG154: 11.5 | BH154: 6.3 | BI154: 12.0 | BJ154: 13.2 | BK154: 12.0 | BL154: 6.5 | BM154: 12.0 | BN154: 13.7 | BO154: 12.0 | BP154: 11.7 | BQ154: 1.7 | BR154: 121 | BS154: 125
B155: A-league | C155: Melbourne City | D155: 1 | E155: Alessandro Lopane | F155: Outfield | G155: 20 | H155: AUS | BF155: 9.7 | BG155: 9.0 | BH155: 8.7 | BI155: 9.5 | BJ155: 9.6 | BK155: 10.0 | BL155: 6.0 | BM155: 9.0 | BN155: 9.5 | BO155: 7.5 | BP155: 8.3 | BQ155: 2.4 | BR155: 97 | BS155: 101
B156: Serie A | C156: Genoa | D156: 3 | E156: Alessandro Marcandalli | F156: Outfield | G156: 22 | H156: ITA | BF156: 7.7 | BG156: 5.0 | BH156: 14.0 | BI156: 8.5 | BJ156: 11.8 | BK156: 9.5 | BL156: 5.8 | BM156: 13.5 | BN156: 11.5 | BO156: 14.5 | BP156: 11.3 | BQ156: 2.0 | BR156: 113 | BS156: 154
B157: Serie A | C157: Genoa | D157: 4 | E157: Alessandro Vogliacco | F157: Outfield | G157: 25 | H157: ITA | BF157: 10.3 | BG157: 8.0 | BH157: 13.3 | BI157: 10.3 | BJ157: 12.8 | BK157: 11.0 | BL157: 9.3 | BM157: 12.5 | BN157: 11.5 | BO157: 13.5 | BP157: 12.3 | BQ157: 2.7 | BR157: 125 | BS157: 130
B158: Serie A | C158: Genoa | D158: 5 | E158: Alessandro Zanoli | F158: Outfield | G158: 23 | H158: ITA | BF158: 10.7 | BG158: 6.5 | BH158: 13.0 | BI158: 9.8 | BJ158: 12.8 | BK158: 10.0 | BL158: 8.0 | BM158: 13.5 | BN158: 13.2 | BO158: 12.0 | BP158: 11.3 | BQ158: 2.3 | BR158: 121 | BS158: 140
B159: Serie A | C159: Monza | D159: 2 | E159: Alessio Cragno | F159: GK | G159: 30 | H159: ITA | BF159: 5.0 | BG159: 2.0 | BH159: 6.7 | BI159: 5.3 | BJ159: 12.8 | BK159: 10.0 | BL159: 2.3 | BM159: 10.0 | BN159: 10.2 | BO159: 8.5 | BP159: 10.0 | BQ159: 13.0 | BR159: 130 | BS159: 146
B160: Free | C160: Free | E160: Alessio Furlanetto | F160: GK | G160: 22 | H160: ITA | BF160: 8.0 | BG160: 1.5 | BH160: 5.3 | BI160: 5.8 | BJ160: 9.2 | BK160: 12.0 | BL160: 3.8 | BM160: 9.5 | BN160: 8.3 | BO160: 6.0 | BP160: 8.3 | BQ160: 9.6 | BR160: 96 | BS160: 126
B161: Free | C161: Free | E161: Alessio Iovine | F161: Outfield | G161: 33 | H161: ITA | BF161: 12.7 | BG161: 8.5 | BH161: 10.3 | BI161: 12.0 | BJ161: 12.0 | BK161: 10.5 | BL161: 8.3 | BM161: 11.5 | BN161: 12.2 | BO161: 7.5 | BP161: 10.0 | BQ161: 2.2 | BR161: 116 | BS161: 118
B162: Serie A | C162: Lazio | D162: 2 | E162: Alessio Romagnoli | F162: Outfield | G162: 29 | H162: ITA | BF162: 10.0 | BG162: 7.5 | BH162: 15.0 | BI162: 9.5 | BJ162: 14.2 | BK162: 14.5 | BL162: 8.3 | BM162: 12.5 | BN162: 13.3 | BO162: 15.5 | BP162: 15.0 | BQ162: 2.6 | BR162: 135 | BS162: 155
B163: Serie A | C163: Empoli | D163: 2 | E163: Alessio Rossi | F163: Outfield | G163: 20 | H163: ITA | BF163: 10.0 | BG163: 7.5 | BH163: 10.0 | BI163: 9.3 | BJ163: 11.0 | BK163: 12.0 | BL163: 7.3 | BM163: 12.0 | BN163: 11.0 | BO163: 8.0 | BP163: 11.0 | BQ163: 2.0 | BR163: 109 | BS163: 110
B164: Serie A | C164: Napoli | D164: 2 | E164: Alessio Zerbin | F164: Outfield | G164: 25 | H164: ITA | BF164: 12.3 | BG164: 12.5 | BH164: 6.3 | BI164: 13.3 | BJ164: 12.6 | BK164: 10.5 | BL164: 8.3 | BM164: 14.0 | BN164: 13.7 | BO164: 9.0 | BP164: 10.0 | BQ164: 2.0 | BR164: 123 | BS164: 140
B165: LaLiga | C165: Leganes | D165: 2 | E165: Álex | F165: Outfield | G165: 21 | H165: ESP | BF165: 8.0 | BG165: 9.5 | BH165: 10.0 | BI165: 7.8 | BJ165: 8.4 | BK165: 7.5 | BL165: 4.8 | BM165: 12.0 | BN165: 9.8 | BO165: 8.5 | BP165: 6.7 | BQ165: 1.9 | BR165: 93 | BS165: 91
B166: LaLiga | C166: Vilarreal | D166: 1 | E166: Álex Baena | F166: Outfield | G166: 22 | H166: ESP | BF166: 14.0 | BG166: 13.5 | BH166: 9.0 | BI166: 14.8 | BJ166: 10.0 | BK166: 10.5 | BL166: 11.3 | BM166: 13.0 | BN166: 12.8 | BO166: 9.0 | BP166: 12.3 | BQ166: 2.3 | BR166: 130 | BS166: 164
B167: Free | C167: Free | E167: Alex Baker | F167: Outfield | G167: 21 | H167: ENG | BF167: 5.7 | BG167: 7.0 | BH167: 3.0 | BI167: 10.8 | BJ167: 9.8 | BK167: 5.0 | BL167: 4.0 | BM167: 12.0 | BN167: 9.3 | BO167: 9.5 | BP167: 8.7 | BQ167: 2.5 | BR167: 85 | BS167: 100
B168: Championship | C168: Middlesbrough | D168: 2 | E168: Alex Bangura | F168: Outfield | G168: 24 | H168: SLE | BF168: 10.0 | BG168: 8.5 | BH168: 10.3 | BI168: 11.0 | BJ168: 12.2 | BK168: 10.0 | BL168: 8.3 | BM168: 15.0 | BN168: 11.7 | BO168: 11.0 | BP168: 11.3 | BQ168: 2.5 | BR168: 119 | BS168: 133
B169: League One | C169: Burton Albion | D169: 2 | E169: Alex Bannon | F169: Outfield | G169: 20 | H169: SCO | BF169: 10.0 | BG169: 5.0 | BH169: 12.0 | BI169: 8.3 | BJ169: 10.2 | BK169: 9.5 | BL169: 6.0 | BM169: 12.5 | BN169: 11.7 | BO169: 9.0 | BP169: 9.3 | BQ169: 2.2 | BR169: 104 | BS169: 104
B170: League Two | C170: Notts County | D170: 4 | E170: Alex Bass | F170: GK | G170: 26 | H170: ENG | BF170: 6.7 | BG170: 1.0 | BH170: 5.3 | BI170: 6.0 | BJ170: 10.0 | BK170: 10.0 | BL170: 2.8 | BM170: 8.0 | BN170: 10.3 | BO170: 8.5 | BP170: 10.7 | BQ170: 11.1 | BR170: 111 | BS170: 130
B171: LaLiga | C171: Athletic Bilbao | D171: 3 | E171: Álex Berenguer | F171: Outfield | G171: 28 | H171: ESP | BF171: 12.3 | BG171: 11.5 | BH171: 8.0 | BI171: 14.0 | BJ171: 11.8 | BK171: 9.5 | BL171: 9.8 | BM171: 14.0 | BN171: 13.5 | BO171: 6.5 | BP171: 9.3 | BQ171: 2.2 | BR171: 120 | BS171: 153
B172: Championship | C172: Leeds United | D172: 1 | E172: Alex Cairns | F172: GK | G172: 31 | H172: ENG | BF172: 8.3 | BG172: 3.0 | BH172: 4.0 | BI172: 5.8 | BJ172: 11.2 | BK172: 11.0 | BL172: 4.3 | BM172: 9.5 | BN172: 10.8 | BO172: 8.5 | BP172: 10.7 | BQ172: 11.6 | BR172: 116 | BS172: 120
B173: League One | C173: Birmingham | D173: 1 | E173: Alex Cochrane | F173: Outfield | G173: 24 | H173: ENG | BF173: 10.3 | BG173: 6.0 | BH173: 12.3 | BI173: 9.3 | BJ173: 11.2 | BK173: 13.0 | BL173: 8.5 | BM173: 13.5 | BN173: 12.2 | BO173: 10.5 | BP173: 13.0 | BQ173: 2.5 | BR173: 120 | BS173: 125
B174: LaLiga | C174: Real Betis | D174: 3 | E174: Álex Collado | F174: Outfield | G174: 25 | H174: ESP | BF174: 13.7 | BG174: 12.0 | BH174: 6.3 | BI174: 16.0 | BJ174: 12.4 | BK174: 10.5 | BL174: 11.8 | BM174: 13.5 | BN174: 13.2 | BO174: 8.0 | BP174: 9.3 | BQ174: 1.8 | BR174: 127 | BS174: 140
B175: Ligue 1 | C175: Lyon | D175: 1 | E175: Álex Domínguez | F175: GK | G175: 25 | H175: ESP | BF175: 8.7 | BG175: 1.5 | BH175: 5.3 | BI175: 6.0 | BJ175: 11.2 | BK175: 9.5 | BL175: 2.8 | BM175: 10.0 | BN175: 9.0 | BO175: 8.5 | BP175: 11.0 | BQ175: 11.0 | BR175: 110 | BS175: 126
B176: Championship | C176: Middlesbrough | D176: 3 | E176: Alex Gilbert | F176: Outfield | G176: 22 | H176: IRL | BF176: 11.0 | BG176: 10.0 | BH176: 6.3 | BI176: 12.0 | BJ176: 10.8 | BK176: 9.0 | BL176: 8.3 | BM176: 12.0 | BN176: 12.2 | BO176: 10.0 | BP176: 10.3 | BQ176: 2.5 | BR176: 112 | BS176: 119
B177: League Two | C177: Milton Keynes Dons | D177: 2 | E177: Alex Gilbey | F177: Outfield | G177: 29 | H177: ENG | BF177: 9.7 | BG177: 10.0 | BH177: 9.7 | BI177: 10.8 | BJ177: 11.8 | BK177: 12.5 | BL177: 7.8 | BM177: 10.0 | BN177: 12.5 | BO177: 10.5 | BP177: 12.3 | BQ177: 2.2 | BR177: 118 | BS177: 125
B178: League Two | C178: Gilingham | D178: 2 | E178: Alex Giles | F178: Outfield | G178: 17 | H178: ENG | BF178: 3.0 | BG178: 1.0 | BH178: 10.0 | BI178: 4.3 | BJ178: 8.8 | BK178: 7.5 | BL178: 2.0 | BM178: 10.0 | BN178: 6.5 | BO178: 8.5 | BP178: 9.0 | BQ178: 1.9 | BR178: 71 | BS178: 63
B179: League One | C179: Shrewsbury Town | D179: 2 | E179: Alex Gilliead | F179: Outfield | G179: 28 | H179: ENG | BF179: 8.7 | BG179: 7.5 | BH179: 9.7 | BI179: 11.0 | BJ179: 9.6 | BK179: 15.5 | BL179: 7.0 | BM179: 11.0 | BN179: 12.8 | BO179: 11.5 | BP179: 11.0 | BQ179: 2.0 | BR179: 115 | BS179: 102
B180: Bundesliga | C180: Bayer 04 Leverkusen | D180: 2 | E180: Álex Grimaldo | F180: Outfield | G180: 28 | H180: ESP | BF180: 16.0 | BG180: 14.5 | BH180: 11.3 | BI180: 15.5 | BJ180: 13.8 | BK180: 13.0 | BL180: 15.3 | BM180: 14.5 | BN180: 14.8 | BO180: 7.5 | BP180: 11.0 | BQ180: 2.1 | BR180: 147 | BS180: 156
B181: League One | C181: Wycombe | D181: 1 | E181: Alex Hartridge | F181: Outfield | G181: 25 | H181: ENG | BF181: 8.0 | BG181: 7.0 | BH181: 12.0 | BI181: 7.0 | BJ181: 10.2 | BK181: 10.5 | BL181: 9.0 | BM181: 12.5 | BN181: 10.3 | BO181: 12.5 | BP181: 12.0 | BQ181: 2.2 | BR181: 111 | BS181: 117
B182: Premier League | C182: Fulham | D182: 2 | E182: Alex Iwobi | F182: Outfield | G182: 28 | H182: NGA | BF182: 13.3 | BG182: 12.0 | BH182: 11.0 | BI182: 14.5 | BJ182: 13.8 | BK182: 11.5 | BL182: 8.3 | BM182: 14.0 | BN182: 14.3 | BO182: 10.0 | BP182: 10.3 | BQ182: 2.1 | BR182: 133 | BS182: 155
B183: LaLiga | C183: Espanyol | D183: 2 | E183: Alex Král | F183: Outfield | G183: 26 | H183: CZE | BF183: 11.3 | BG183: 8.0 | BH183: 13.0 | BI183: 12.0 | BJ183: 14.4 | BK183: 14.5 | BL183: 6.0 | BM183: 12.5 | BN183: 13.7 | BO183: 13.0 | BP183: 13.0 | BQ183: 2.3 | BR183: 131 | BS183: 140
B184: League One | C184: Blackpool | D184: 2 | E184: Alex Lankshear | F184: Outfield | G184: 21 | H184: ENG | BF184: 7.7 | BG184: 4.5 | BH184: 7.3 | BI184: 6.3 | BJ184: 11.6 | BK184: 7.5 | BL184: 5.8 | BM184: 12.5 | BN184: 9.2 | BO184: 10.5 | BP184: 7.0 | BQ184: 2.5 | BR184: 90 | BS184: 85
B185: League One | C185: Rotherham United | D185: 1 | E185: Alex MacDonald | F185: Outfield | G185: 34 | H185: SCO | BF185: 11.3 | BG185: 8.5 | BH185: 10.3 | BI185: 10.3 | BJ185: 10.2 | BK185: 14.0 | BL185: 10.3 | BM185: 7.0 | BN185: 11.7 | BO185: 6.5 | BP185: 13.7 | BQ185: 1.8 | BR185: 114 | BS185: 110
B186: Premier League | C186: Southampton | D186: 4 | E186: Alex McCarthy | F186: GK | G186: 34 | H186: ENG | BF186: 6.0 | BG186: 2.0 | BH186: 6.7 | BI186: 6.5 | BJ186: 11.6 | BK186: 9.5 | BL186: 3.0 | BM186: 9.0 | BN186: 11.5 | BO186: 11.0 | BP186: 11.3 | BQ186: 12.5 | BR186: 125 | BS186: 140
B187: Serie A | C187: Napoli | D187: 3 | E187: Alex Meret | F187: GK | G187: 27 | H187: ITA | BF187: 5.7 | BG187: 1.5 | BH187: 6.0 | BI187: 5.8 | BJ187: 13.6 | BK187: 11.5 | BL187: 2.5 | BM187: 11.5 | BN187: 12.3 | BO187: 11.5 | BP187: 11.0 | BQ187: 12.6 | BR187: 126 | BS187: 158
B188: League One | C188: Charlton Athletic | D188: 1 | E188: Alex Mitchell | F188: Outfield | G188: 22 | H188: ENG | BF188: 6.3 | BG188: 4.0 | BH188: 12.3 | BI188: 5.8 | BJ188: 10.8 | BK188: 11.0 | BL188: 5.5 | BM188: 10.5 | BN188: 10.7 | BO188: 13.5 | BP188: 14.0 | BQ188: 2.1 | BR188: 104 | BS188: 124
B189: Premier League | C189: Aston Villa | D189: 1 | E189: Álex Moreno | F189: Outfield | G189: 31 | H189: ESP | BF189: 13.0 | BG189: 9.5 | BH189: 12.3 | BI189: 14.0 | BJ189: 11.8 | BK189: 11.0 | BL189: 9.8 | BM189: 16.5 | BN189: 14.5 | BO189: 9.0 | BP189: 11.0 | BQ189: 2.0 | BR189: 132 | BS189: 156
B190: Championship | C190: West Brom | D190: 1 | E190: Alex Mowatt | F190: Outfield | G190: 29 | H190: ENG | BF190: 12.3 | BG190: 12.0 | BH190: 11.0 | BI190: 13.0 | BJ190: 13.8 | BK190: 13.5 | BL190: 11.0 | BM190: 10.5 | BN190: 14.0 | BO190: 10.5 | BP190: 12.0 | BQ190: 2.3 | BR190: 134 | BS190: 129
B191: LaLiga | C191: Las Palmas | D191: 4 | E191: Álex Muñoz | F191: Outfield | G191: 29 | H191: ESP | BF191: 12.0 | BG191: 14.0 | BH191: 13.0 | BI191: 11.8 | BJ191: 13.0 | BK191: 12.0 | BL191: 11.3 | BM191: 13.5 | BN191: 12.7 | BO191: 13.0 | BP191: 12.3 | BQ191: 2.3 | BR191: 139 | BS191: 138
B192: Championship | C192: West Brom | D192: 2 | E192: Alex Palmer | F192: GK | G192: 27 | H192: ENG | BF192: 6.7 | BG192: 2.5 | BH192: 5.0 | BI192: 6.0 | BJ192: 11.8 | BK192: 8.5 | BL192: 2.0 | BM192: 8.5 | BN192: 11.7 | BO192: 7.0 | BP192: 9.7 | BQ192: 12.2 | BR192: 122 | BS192: 127
B193: A-league | C193: Brisbane Roar | D193: 1 | E193: Alex Parsons | F193: Outfield | G193: 24 | H193: AUS | BF193: 9.3 | BG193: 10.0 | BH193: 8.0 | BI193: 11.5 | BJ193: 8.2 | BK193: 12.5 | BL193: 8.5 | BM193: 11.0 | BN193: 12.0 | BO193: 10.0 | BP193: 9.3 | BQ193: 2.0 | BR193: 110 | BS193: 103
B194: League Two | C194: Bradford City | D194: 3 | E194: Alex Pattison | F194: Outfield | G194: 26 | H194: ENG | BF194: 9.3 | BG194: 11.5 | BH194: 8.0 | BI194: 11.3 | BJ194: 11.4 | BK194: 10.5 | BL194: 8.3 | BM194: 11.5 | BN194: 13.2 | BO194: 7.5 | BP194: 9.3 | BQ194: 1.9 | BR194: =IF(F194="GK",BQ194*10,SUM(BF194:BP194)) -> 112 | BS194: 120
B195: Premier League | C195: AFC Bournemouth | D195: 2 | E195: Alex Paulsen | F195: GK | G195: 21 | H195: NZL | BF195: 7.3 | BG195: 2.5 | BH195: 4.7 | BI195: 9.0 | BJ195: 11.8 | BK195: 8.5 | BL195: 3.3 | BM195: 8.5 | BN195: 9.5 | BO195: 9.0 | BP195: 8.7 | BQ195: 11.6 | BR195: 116 | BS195: 150
B196: LaLiga | C196: Real Sociedad | D196: 3 | E196: Álex Remiro | F196: GK | G196: 29 | H196: ESP | BF196: 10.7 | BG196: 2.0 | BH196: 6.0 | BI196: 8.5 | BJ196: 12.2 | BK196: 12.5 | BL196: 4.0 | BM196: 13.0 | BN196: 10.7 | BO196: 9.0 | BP196: 10.3 | BQ196: 13.4 | BR196: 134 | BS196: 153
B197: Championship | C197: Cardiff City | D197: 1 | E197: Alex Robertson | F197: Outfield | G197: 21 | H197: AUS | BF197: 11.3 | BG197: 12.0 | BH197: 11.7 | BI197: 12.0 | BJ197: 10.6 | BK197: 7.0 | BL197: 8.5 | BM197: 12.0 | BN197: 11.3 | BO197: 10.0 | BP197: 10.0 | BQ197: 2.3 | BR197: 116 | BS197: 133
B198: A-league | C198: Wellington Phoenix | D198: 2 | E198: Alex Rufer | F198: Outfield | G198: 28 | H198: NZL | BF198: 12.3 | BG198: 11.5 | BH198: 12.0 | BI198: 11.3 | BJ198: 12.4 | BK198: 13.5 | BL198: 8.5 | BM198: 8.5 | BN198: 11.5 | BO198: 10.0 | BP198: 13.7 | BQ198: 2.1 | BR198: 125 | BS198: 112
B199: Premier League | C199: AFC Bournemouth | D199: 3 | E199: Alex Scott | F199: Outfield | G199: 20 | H199: ENG | BF199: 13.0 | BG199: 10.0 | BH199: 11.0 | BI199: 14.0 | BJ199: 14.2 | BK199: 11.5 | BL199: 5.5 | BM199: 13.5 | BN199: 14.2 | BO199: 8.0 | BP199: 11.0 | BQ199: 2.2 | BR199: 126 | BS199: 175
B200: LaLiga | C200: Getafe | D200: 2 | E200: Álex Sola | F200: Outfield | G200: 25 | H200: ESP | BF200: 10.7 | BG200: 9.0 | BH200: 11.0 | BI200: 11.0 | BJ200: 12.6 | BK200: 7.0 | BL200: 8.3 | BM200: 14.5 | BN200: 12.2 | BO200: 8.5 | BP200: 11.3 | BQ200: 2.5 | BR200: 116 | BS200: 133
... 2050 more rows

Sheet Live Player Data (hidden)
B1: Division | C1: Club | D1: Player Number (1-30) | E1: Name | F1: Position | G1: Age | H1: Nat | BF1: Passing | BG1: Shooting | BH1: Defending | BI1: Ball Skill | BJ1: Mindset | BK1: Team Work | BL1: Set Pieces | BM1: Speed | BN1: Mobility | BO1: Jumping | BP1: Strength | BQ1: Goal Keeping | BR1: Ability Score | BS1: Potential Score | BT1: Team Reputation | BU1: Value | BV1: Development Flag | BW1: =B1 -> Division
B2: LaLiga | C2: Real Madrid | D2: 18 | E2: Jude Bellingham | F2: Outfield | G2: 22 | H2: ENG | BF2: 15.0 | BG2: 14.5 | BH2: 13.0 | BI2: 17.0 | BJ2: 16.4 | BK2: 16.5 | BL2: 10.3 | BM2: 14.5 | BN2: 16.0 | BO2: 13.0 | BP2: 15.7 | BQ2: 2.5 | BR2: =IF(F2="GK",BQ2*10,SUM(BF2:BP2)) -> 162 | BS2: 188 | BT2: =IFERROR(VLOOKUP(C2,Reputation!$A$2:$G$181,7,FALSE),0) -> 95 | BU2: =MAX(BR2*75000+BT2*500000,50000) -> 59,642,500 | BV2: =BS2>BR2 -> TRUE | BW2: =B2 -> LaLiga
B3: Bundesliga | C3: FC Bayern Munich | D3: 7 | E3: Harry Kane | F3: Outfield | G3: 31 | H3: ENG | BF3: 17.3 | BG3: 17.0 | BH3: 8.3 | BI3: 14.5 | BJ3: 17.0 | BK3: 17.0 | BL3: 11.5 | BM3: 13.0 | BN3: 15.3 | BO3: 15.5 | BP3: 13.3 | BQ3: 2.5 | BR3: =IF(F3="GK",BQ3*10,SUM(BF3:BP3)) -> 160 | BS3: 185 | BT3: =IFERROR(VLOOKUP(C3,Reputation!$A$2:$G$181,7,FALSE),0) -> 95 | BU3: =MAX(BR3*75000+BT3*500000,50000) -> 59,477,500 | BV3: =BS3>BR3 -> TRUE | BW3: =B3 -> Bundesliga
B4: Premier League | C4: Manchester City | D4: 3 | E4: Erling Haaland | F4: Outfield | G4: 24 | H4: NOR | BF4: 12.3 | BG4: 15.5 | BH4: 6.7 | BI4: 15.3 | BJ4: 17.4 | BK4: 13.5 | BL4: 10.5 | BM4: 18.0 | BN4: 16.2 | BO4: 16.5 | BP4: 15.7 | BQ4: 2.5 | BR4: =IF(F4="GK",BQ4*10,SUM(BF4:BP4)) -> 158 | BS4: 195 | BT4: =IFERROR(VLOOKUP(C4,Reputation!$A$2:$G$181,7,FALSE),0) -> 100 | BU4: =MAX(BR4*75000+BT4*500000,50000) -> 61,820,000 | BV4: =BS4>BR4 -> TRUE | BW4: =B4 -> Premier League
B5: Bundesliga | C5: FC Bayern Munich | D5: 11 | E5: Joshua Kimmich | F5: Outfield | G5: 30 | H5: GER | BF5: 17.3 | BG5: 12.5 | BH5: 12.3 | BI5: 14.3 | BJ5: 15.8 | BK5: 17.0 | BL5: 14.5 | BM5: 12.0 | BN5: 16.0 | BO5: 10.0 | BP5: 13.3 | BQ5: 2.0 | BR5: =IF(F5="GK",BQ5*10,SUM(BF5:BP5)) -> 155 | BS5: 183 | BT5: =IFERROR(VLOOKUP(C5,Reputation!$A$2:$G$181,7,FALSE),0) -> 95 | BU5: =MAX(BR5*75000+BT5*500000,50000) -> 59,125,000 | BV5: =BS5>BR5 -> TRUE | BW5: =B5 -> Bundesliga
B6: Premier League | C6: Arsenal | D6: 5 | E6: Declan Rice | F6: Outfield | G6: 26 | H6: ENG | BF6: 14.0 | BG6: 9.0 | BH6: 16.3 | BI6: 13.3 | BJ6: 17.0 | BK6: 17.5 | BL6: 10.5 | BM6: 13.5 | BN6: 15.8 | BO6: 14.0 | BP6: 14.0 | BQ6: 2.2 | BR6: =IF(F6="GK",BQ6*10,SUM(BF6:BP6)) -> 155 | BS6: 182 | BT6: =IFERROR(VLOOKUP(C6,Reputation!$A$2:$G$181,7,FALSE),0) -> 98.5 | BU6: =MAX(BR6*75000+BT6*500000,50000) -> 60,867,500 | BV6: =BS6>BR6 -> TRUE | BW6: =B6 -> Premier League
B7: Premier League | C7: Manchester City | D7: 10 | E7: Kevin De Bruyne | F7: Outfield | G7: 34 | H7: BEL | BF7: 19.0 | BG7: 16.5 | BH7: 9.3 | BI7: 16.5 | BJ7: 15.6 | BK7: 13.5 | BL7: 13.3 | BM7: 15.0 | BN7: 14.8 | BO7: 8.0 | BP7: 12.7 | BQ7: 1.7 | BR7: =IF(F7="GK",BQ7*10,SUM(BF7:BP7)) -> 154 | BS7: 190 | BT7: =IFERROR(VLOOKUP(C7,Reputation!$A$2:$G$181,7,FALSE),0) -> 100 | BU7: =MAX(BR7*75000+BT7*500000,50000) -> 61,565,000 | BV7: =BS7>BR7 -> TRUE | BW7: =B7 -> Premier League
B8: Bundesliga | C8: FC Bayern Munich | D8: 18 | E8: Manuel Neuer | F8: GK | G8: 39 | H8: GER | BF8: 12.7 | BG8: 7.0 | BH8: 12.0 | BI8: 12.5 | BJ8: 15.2 | BK8: 14.5 | BL8: 8.8 | BM8: 9.5 | BN8: 14.0 | BO8: 14.0 | BP8: 14.0 | BQ8: 15.4 | BR8: =IF(F8="GK",BQ8*10,SUM(BF8:BP8)) -> 154 | BS8: 193 | BT8: =IFERROR(VLOOKUP(C8,Reputation!$A$2:$G$181,7,FALSE),0) -> 95 | BU8: =MAX(BR8*75000+BT8*500000,50000) -> 59,050,000 | BV8: =BS8>BR8 -> TRUE | BW8: =B8 -> Bundesliga
B9: Serie A | C9: Inter Milan | D9: 7 | E9: Federico Dimarco | F9: Outfield | G9: 27 | H9: ITA | BF9: 15.3 | BG9: 14.5 | BH9: 13.0 | BI9: 14.0 | BJ9: 15.4 | BK9: 15.5 | BL9: 14.0 | BM9: 14.0 | BN9: 14.3 | BO9: 10.5 | BP9: 13.3 | BQ9: 1.9 | BR9: =IF(F9="GK",BQ9*10,SUM(BF9:BP9)) -> 154 | BS9: 160 | BT9: =IFERROR(VLOOKUP(C9,Reputation!$A$2:$G$181,7,FALSE),0) -> 90 | BU9: =MAX(BR9*75000+BT9*500000,50000) -> 56,535,000 | BV9: =BS9>BR9 -> TRUE | BW9: =B9 -> Serie A
B10: Premier League | C10: Manchester United | D10: 6 | E10: Bruno Fernandes | F10: Outfield | G10: 30 | H10: POR | BF10: 17.3 | BG10: 15.5 | BH10: 6.3 | BI10: 15.5 | BJ10: 14.8 | BK10: 16.0 | BL10: 13.8 | BM10: 13.0 | BN10: 16.8 | BO10: 9.5 | BP10: 15.0 | BQ10: 2.3 | BR10: =IF(F10="GK",BQ10*10,SUM(BF10:BP10)) -> 154 | BS10: 174 | BT10: =IFERROR(VLOOKUP(C10,Reputation!$A$2:$G$181,7,FALSE),0) -> 99 | BU10: =MAX(BR10*75000+BT10*500000,50000) -> 61,012,500 | BV10: =BS10>BR10 -> TRUE | BW10: =B10 -> Premier League
B11: Premier League | C11: Liverpool | D11: 23 | E11: Virgil van Dijk | F11: Outfield | G11: 33 | H11: NED | BF11: 12 | BG11: 7.5 | BH11: 16.3 | BI11: 14.3 | BJ11: 16.2 | BK11: 16.5 | BL11: 8.8 | BM11: 15 | BN11: 13.7 | BO11: 17 | BP11: 16 | BQ11: 2.4 | BR11: =IF(F11="GK",BQ11*10,SUM(BF11:BP11)) -> 153 | BS11: 183 | BT11: =IFERROR(VLOOKUP(C11,Reputation!$A$2:$G$181,7,FALSE),0) -> 99.5 | BU11: =MAX(BR11*75000+BT11*500000,50000) -> 61247500 | BV11: =BS11>BR11 -> TRUE | BW11: =B11 -> Premier League
B12: Premier League | C12: Manchester United | D12: 7 | E12: Casemiro | F12: Outfield | G12: 33 | H12: BRA | BF12: 12.7 | BG12: 12.5 | BH12: 15.3 | BI12: 12.8 | BJ12: 14.8 | BK12: 17.0 | BL12: 10.8 | BM12: 11.5 | BN12: 13.5 | BO12: 15.0 | BP12: 17.3 | BQ12: 2.3 | BR12: =IF(F12="GK",BQ12*10,SUM(BF12:BP12)) -> 153 | BS12: 170 | BT12: =IFERROR(VLOOKUP(C12,Reputation!$A$2:$G$181,7,FALSE),0) -> 99 | BU12: =MAX(BR12*75000+BT12*500000,50000) -> 60,990,000 | BV12: =BS12>BR12 -> TRUE | BW12: =B12 -> Premier League
B13: LaLiga | C13: Real Madrid | D13: 13 | E13: Federico Valverde | F13: Outfield | G13: 26 | H13: URU | BF13: 13.3 | BG13: 15.0 | BH13: 12.7 | BI13: 13.3 | BJ13: 12.8 | BK13: 15.0 | BL13: 11.8 | BM13: 17.0 | BN13: 15.8 | BO13: 12.0 | BP13: 13.7 | BQ13: 2.6 | BR13: =IF(F13="GK",BQ13*10,SUM(BF13:BP13)) -> 152 | BS13: 175 | BT13: =IFERROR(VLOOKUP(C13,Reputation!$A$2:$G$181,7,FALSE),0) -> 95 | BU13: =MAX(BR13*75000+BT13*500000,50000) -> 58,930,000 | BV13: =BS13>BR13 -> TRUE | BW13: =B13 -> LaLiga
B14: Premier League | C14: Manchester City | D14: 1 | E14: Bernardo Silva | F14: Outfield | G14: 30 | H14: POR | BF14: 16.3 | BG14: 14.0 | BH14: 11.0 | BI14: 17.3 | BJ14: 15.6 | BK14: 14.5 | BL14: 10.5 | BM14: 14.5 | BN14: 17.7 | BO14: 8.5 | BP14: 12.3 | BQ14: 2.0 | BR14: =IF(F14="GK",BQ14*10,SUM(BF14:BP14)) -> 152 | BS14: 180 | BT14: =IFERROR(VLOOKUP(C14,Reputation!$A$2:$G$181,7,FALSE),0) -> 100 | BU14: =MAX(BR14*75000+BT14*500000,50000) -> 61,415,000 | BV14: =BS14>BR14 -> TRUE | BW14: =B14 -> Premier League
B15: LaLiga | C15: Real Sociedad | D15: 19 | E15: Mikel Oyarzábal | F15: Outfield | G15: 28 | H15: ESP | BF15: 14.3 | BG15: 13.5 | BH15: 12.7 | BI15: 14.8 | BJ15: 14.4 | BK15: 15.5 | BL15: 14.8 | BM15: 12 | BN15: 14.3 | BO15: 12.5 | BP15: 13.3 | BQ15: 2.4 | BR15: =IF(F15="GK",BQ15*10,SUM(BF15:BP15)) -> 152 | BS15: 167 | BT15: =IFERROR(VLOOKUP(C15,Reputation!$A$2:$G$181,7,FALSE),0) -> 85 | BU15: =MAX(BR15*75000+BT15*500000,50000) -> 53907500 | BV15: =BS15>BR15 -> TRUE | BW15: =B15 -> LaLiga
B16: Bundesliga | C16: Bayer 04 Leverkusen | D16: 10 | E16: Granit Xhaka | F16: Outfield | G16: 32 | H16: SUI | BF16: 15.3 | BG16: 14.0 | BH16: 11.7 | BI16: 14.5 | BJ16: 14.6 | BK16: 17.0 | BL16: 11.8 | BM16: 11.0 | BN16: 14.2 | BO16: 12.5 | BP16: 15.0 | BQ16: 2.4 | BR16: =IF(F16="GK",BQ16*10,SUM(BF16:BP16)) -> 152 | BS16: 160 | BT16: =IFERROR(VLOOKUP(C16,Reputation!$A$2:$G$181,7,FALSE),0) -> 80 | BU16: =MAX(BR16*75000+BT16*500000,50000) -> 51,370,000 | BV16: =BS16>BR16 -> TRUE | BW16: =B16 -> Bundesliga
B17: Bundesliga | C17: FC Bayern Munich | D17: 16 | E17: Leon Goretzka | F17: Outfield | G17: 30 | H17: GER | BF17: 13.0 | BG17: 12.5 | BH17: 13.3 | BI17: 13.5 | BJ17: 15.0 | BK17: 15.0 | BL17: 9.3 | BM17: 13.5 | BN17: 14.7 | BO17: 16.0 | BP17: 15.7 | BQ17: 1.9 | BR17: =IF(F17="GK",BQ17*10,SUM(BF17:BP17)) -> 152 | BS17: 170 | BT17: =IFERROR(VLOOKUP(C17,Reputation!$A$2:$G$181,7,FALSE),0) -> 95 | BU17: =MAX(BR17*75000+BT17*500000,50000) -> 58,862,500 | BV17: =BS17>BR17 -> TRUE | BW17: =B17 -> Bundesliga
B18: LaLiga | C18: Barcelona | D18: 26 | E18: Robert Lewandowski | F18: Outfield | G18: 36 | H18: POL | BF18: 11.7 | BG18: 15.0 | BH18: 7.0 | BI18: 15.3 | BJ18: 17.2 | BK18: 14.5 | BL18: 10.0 | BM18: 13.5 | BN18: 16.3 | BO18: 16.0 | BP18: 15.0 | BQ18: 1.9 | BR18: =IF(F18="GK",BQ18*10,SUM(BF18:BP18)) -> 152 | BS18: 190 | BT18: =IFERROR(VLOOKUP(C18,Reputation!$A$2:$G$181,7,FALSE),0) -> 95 | BU18: =MAX(BR18*75000+BT18*500000,50000) -> 58,862,500 | BV18: =BS18>BR18 -> TRUE | BW18: =B18 -> LaLiga
B19: Premier League | C19: Newcastle United | D19: 3 | E19: Bruno Guimarães | F19: Outfield | G19: 27 | H19: BRA | BF19: 15.7 | BG19: 12.5 | BH19: 14.3 | BI19: 16.5 | BJ19: 15.6 | BK19: 13.5 | BL19: 9.8 | BM19: 12.0 | BN19: 14.3 | BO19: 11.5 | BP19: 15.7 | BQ19: 1.7 | BR19: =IF(F19="GK",BQ19*10,SUM(BF19:BP19)) -> 151 | BS19: 170 | BT19: =IFERROR(VLOOKUP(C19,Reputation!$A$2:$G$181,7,FALSE),0) -> 97.5 | BU19: =MAX(BR19*75000+BT19*500000,50000) -> 60,105,000 | BV19: =BS19>BR19 -> TRUE | BW19: =B19 -> Premier League
B20: Ligue 1 | C20: Marsiele | D20: 1 | E20: Adrien Rabiot | F20: Outfield | G20: 30 | H20: FRA | BF20: 14.0 | BG20: 13.5 | BH20: 14.3 | BI20: 13.3 | BJ20: 11.8 | BK20: 15.5 | BL20: 10.0 | BM20: 14.5 | BN20: 15.7 | BO20: 14.0 | BP20: 14.7 | BQ20: 2.1 | BR20: =IF(F20="GK",BQ20*10,SUM(BF20:BP20)) -> 151 | BS20: 159 | BT20: =IFERROR(VLOOKUP(C20,Reputation!$A$2:$G$181,7,FALSE),0) -> 80 | BU20: =MAX(BR20*75000+BT20*500000,50000) -> 51,347,500 | BV20: =BS20>BR20 -> TRUE | BW20: =B20 -> Ligue 1
B21: Premier League | C21: Manchester City | D21: 18 | E21: Rodri | F21: Outfield | G21: 29 | H21: ESP | BF21: 13.3 | BG21: 14.0 | BH21: 15.7 | BI21: 12.8 | BJ21: 17.0 | BK21: 13.5 | BL21: 6.8 | BM21: 13.5 | BN21: 14.7 | BO21: 15.0 | BP21: 14.7 | BQ21: 2.7 | BR21: =IF(F21="GK",BQ21*10,SUM(BF21:BP21)) -> 151 | BS21: 180 | BT21: =IFERROR(VLOOKUP(C21,Reputation!$A$2:$G$181,7,FALSE),0) -> 100 | BU21: =MAX(BR21*75000+BT21*500000,50000) -> 61,325,000 | BV21: =BS21>BR21 -> TRUE | BW21: =B21 -> Premier League
B22: LaLiga | C22: Real Madrid | D22: 9 | E22: David Alaba | F22: Outfield | G22: 33 | H22: AUT | BF22: 13.7 | BG22: 12.0 | BH22: 14.0 | BI22: 13.5 | BJ22: 14.4 | BK22: 15.0 | BL22: 13.5 | BM22: 15.0 | BN22: 14.5 | BO22: 12.5 | BP22: 12.7 | BQ22: 2.5 | BR22: =IF(F22="GK",BQ22*10,SUM(BF22:BP22)) -> 151 | BS22: 174 | BT22: =IFERROR(VLOOKUP(C22,Reputation!$A$2:$G$181,7,FALSE),0) -> 95 | BU22: =MAX(BR22*75000+BT22*500000,50000) -> 58,810,000 | BV22: =BS22>BR22 -> TRUE | BW22: =B22 -> LaLiga
B23: LaLiga | C23: Real Madrid | D23: 10 | E23: Éder Militão | F23: Outfield | G23: 27 | H23: BRA | BF23: 12.0 | BG23: 9.5 | BH23: 15.7 | BI23: 11.5 | BJ23: 14.2 | BK23: 15.0 | BL23: 10.8 | BM23: 16.0 | BN23: 15.3 | BO23: 15.0 | BP23: 15.7 | BQ23: 2.2 | BR23: =IF(F23="GK",BQ23*10,SUM(BF23:BP23)) -> 151 | BS23: 168 | BT23: =IFERROR(VLOOKUP(C23,Reputation!$A$2:$G$181,7,FALSE),0) -> 95 | BU23: =MAX(BR23*75000+BT23*500000,50000) -> 58,802,500 | BV23: =BS23>BR23 -> TRUE | BW23: =B23 -> LaLiga
B24: Serie A | C24: Inter Milan | D24: 16 | E24: Lautaro Martínez | F24: Outfield | G24: 27 | H24: ARG | BF24: 10.7 | BG24: 16.0 | BH24: 6.7 | BI24: 15.8 | BJ24: 15.0 | BK24: 15.5 | BL24: 7.8 | BM24: 16.0 | BN24: 17.3 | BO24: 13.5 | BP24: 16.3 | BQ24: 2.2 | BR24: =IF(F24="GK",BQ24*10,SUM(BF24:BP24)) -> 151 | BS24: 177 | BT24: =IFERROR(VLOOKUP(C24,Reputation!$A$2:$G$181,7,FALSE),0) -> 90 | BU24: =MAX(BR24*75000+BT24*500000,50000) -> 56,295,000 | BV24: =BS24>BR24 -> TRUE | BW24: =B24 -> Serie A
B25: LaLiga | C25: Barcelona | D25: 27 | E25: Ronald Araujo | F25: Outfield | G25: 26 | H25: URU | BF25: 9.7 | BG25: 11 | BH25: 16.7 | BI25: 11.3 | BJ25: 16 | BK25: 15.5 | BL25: 8.8 | BM25: 15 | BN25: 13.3 | BO25: 16.5 | BP25: 16.7 | BQ25: 2.3 | BR25: =IF(F25="GK",BQ25*10,SUM(BF25:BP25)) -> 151 | BS25: 176 | BT25: =IFERROR(VLOOKUP(C25,Reputation!$A$2:$G$181,7,FALSE),0) -> 95 | BU25: =MAX(BR25*75000+BT25*500000,50000) -> 58787500 | BV25: =BS25>BR25 -> TRUE | BW25: =B25 -> LaLiga
B26: Premier League | C26: Chelsea | D26: 23 | E26: Reece James | F26: Outfield | G26: 25 | H26: ENG | BF26: 13.0 | BG26: 11.5 | BH26: 13.3 | BI26: 13.0 | BJ26: 15.2 | BK26: 14.0 | BL26: 12.0 | BM26: 14.5 | BN26: 14.5 | BO26: 12.0 | BP26: 17.3 | BQ26: 1.9 | BR26: =IF(F26="GK",BQ26*10,SUM(BF26:BP26)) -> 150 | BS26: 170 | BT26: =IFERROR(VLOOKUP(C26,Reputation!$A$2:$G$181,7,FALSE),0) -> 98 | BU26: =MAX(BR26*75000+BT26*500000,50000) -> 60,272,500 | BV26: =BS26>BR26 -> TRUE | BW26: =B26 -> Premier League
B27: LaLiga | C27: Real Madrid | D27: 11 | E27: Eduardo Camavinga | F27: Outfield | G27: 22 | H27: FRA | BF27: 13.3 | BG27: 11.5 | BH27: 15.0 | BI27: 13.5 | BJ27: 14.8 | BK27: 14.0 | BL27: 8.0 | BM27: 16.0 | BN27: 16.0 | BO27: 12.5 | BP27: 15.7 | BQ27: 1.9 | BR27: =IF(F27="GK",BQ27*10,SUM(BF27:BP27)) -> 150 | BS27: 180 | BT27: =IFERROR(VLOOKUP(C27,Reputation!$A$2:$G$181,7,FALSE),0) -> 95 | BU27: =MAX(BR27*75000+BT27*500000,50000) -> 58,772,500 | BV27: =BS27>BR27 -> TRUE | BW27: =B27 -> LaLiga
B28: LaLiga | C28: Barcelona | D28: 19 | E28: Marc-André ter Stegen | F28: GK | G28: 33 | H28: GER | BF28: 9.3 | BG28: 2.0 | BH28: 5.0 | BI28: 8.3 | BJ28: 16.4 | BK28: 14.5 | BL28: 5.8 | BM28: 12.5 | BN28: 11.7 | BO28: 11.5 | BP28: 13.7 | BQ28: 15.0 | BR28: =IF(F28="GK",BQ28*10,SUM(BF28:BP28)) -> 150 | BS28: 183 | BT28: =IFERROR(VLOOKUP(C28,Reputation!$A$2:$G$181,7,FALSE),0) -> 95 | BU28: =MAX(BR28*75000+BT28*500000,50000) -> 58,750,000 | BV28: =BS28>BR28 -> TRUE | BW28: =B28 -> LaLiga
B29: Premier League | C29: Newcastle United | D29: 15 | E29: Joelinton | F29: Outfield | G29: 28 | H29: BRA | BF29: 12.3 | BG29: 10.5 | BH29: 12.0 | BI29: 14.8 | BJ29: 14.2 | BK29: 16.0 | BL29: 8.0 | BM29: 13.0 | BN29: 14.8 | BO29: 15.5 | BP29: 18.3 | BQ29: 2.6 | BR29: =IF(F29="GK",BQ29*10,SUM(BF29:BP29)) -> 149 | BS29: 158 | BT29: =IFERROR(VLOOKUP(C29,Reputation!$A$2:$G$181,7,FALSE),0) -> 97.5 | BU29: =MAX(BR29*75000+BT29*500000,50000) -> 59,955,000 | BV29: =BS29>BR29 -> TRUE | BW29: =B29 -> Premier League
B30: Serie A | C30: Inter Milan | D30: 21 | E30: Nicolò Barella | F30: Outfield | G30: 28 | H30: ITA | BF30: 14.7 | BG30: 13.0 | BH30: 13.3 | BI30: 14.5 | BJ30: 14.0 | BK30: 16.0 | BL30: 10.3 | BM30: 14.5 | BN30: 16.3 | BO30: 6.5 | BP30: 16.3 | BQ30: 2.0 | BR30: =IF(F30="GK",BQ30*10,SUM(BF30:BP30)) -> 149 | BS30: 169 | BT30: =IFERROR(VLOOKUP(C30,Reputation!$A$2:$G$181,7,FALSE),0) -> 90 | BU30: =MAX(BR30*75000+BT30*500000,50000) -> 56,205,000 | BV30: =BS30>BR30 -> TRUE | BW30: =B30 -> Serie A
B31: Premier League | C31: Liverpool | D31: 17 | E31: Mohamed Salah | F31: Outfield | G31: 33 | H31: EGY | BF31: 16.0 | BG31: 14.5 | BH31: 7.0 | BI31: 16.3 | BJ31: 15.8 | BK31: 13.5 | BL31: 11.5 | BM31: 17.5 | BN31: 16.3 | BO31: 9.0 | BP31: 12.0 | BQ31: 1.8 | BR31: =IF(F31="GK",BQ31*10,SUM(BF31:BP31)) -> 149 | BS31: 187 | BT31: =IFERROR(VLOOKUP(C31,Reputation!$A$2:$G$181,7,FALSE),0) -> 99.5 | BU31: =MAX(BR31*75000+BT31*500000,50000) -> 60,955,000 | BV31: =BS31>BR31 -> TRUE | BW31: =B31 -> Premier League
B32: Premier League | C32: Newcastle United | D32: 17 | E32: Kieran Trippier | F32: Outfield | G32: 34 | H32: ENG | BF32: 16.0 | BG32: 10.5 | BH32: 14.3 | BI32: 12.8 | BJ32: 14.8 | BK32: 17.5 | BL32: 12.3 | BM32: 13.0 | BN32: 15.0 | BO32: 10.5 | BP32: 12.7 | BQ32: 2.0 | BR32: =IF(F32="GK",BQ32*10,SUM(BF32:BP32)) -> 149 | BS32: 159 | BT32: =IFERROR(VLOOKUP(C32,Reputation!$A$2:$G$181,7,FALSE),0) -> 97.5 | BU32: =MAX(BR32*75000+BT32*500000,50000) -> 59,955,000 | BV32: =BS32>BR32 -> TRUE | BW32: =B32 -> Premier League
B33: Serie A | C33: AC Milan | D33: 21 | E33: Theo Hernández | F33: Outfield | G33: 27 | H33: FRA | BF33: 13.0 | BG33: 13.5 | BH33: 13.0 | BI33: 13.3 | BJ33: 12.8 | BK33: 13.0 | BL33: 10.5 | BM33: 17.5 | BN33: 15.3 | BO33: 12.5 | BP33: 15.0 | BQ33: 2.1 | BR33: =IF(F33="GK",BQ33*10,SUM(BF33:BP33)) -> 149 | BS33: 164 | BT33: =IFERROR(VLOOKUP(C33,Reputation!$A$2:$G$181,7,FALSE),0) -> 90 | BU33: =MAX(BR33*75000+BT33*500000,50000) -> 56,205,000 | BV33: =BS33>BR33 -> TRUE | BW33: =B33 -> Serie A
B34: Premier League | C34: Arsenal | D34: 17 | E34: Martin Ødegaard | F34: Outfield | G34: 26 | H34: NOR | BF34: 17.0 | BG34: 15.0 | BH34: 9.3 | BI34: 17.0 | BJ34: 16.4 | BK34: 16.0 | BL34: 12.0 | BM34: 13.0 | BN34: 15.2 | BO34: 8.5 | BP34: 9.7 | BQ34: 2.4 | BR34: =IF(F34="GK",BQ34*10,SUM(BF34:BP34)) -> 149 | BS34: 180 | BT34: =IFERROR(VLOOKUP(C34,Reputation!$A$2:$G$181,7,FALSE),0) -> 98.5 | BU34: =MAX(BR34*75000+BT34*500000,50000) -> 60,432,500 | BV34: =BS34>BR34 -> TRUE | BW34: =B34 -> Premier League
B35: Serie A | C35: Como | D35: 24 | E35: Pepe Reina | F35: GK | G35: 42 | H35: ESP | BF35: 10.0 | BG35: 2.5 | BH35: 5.3 | BI35: 8.0 | BJ35: 15.2 | BK35: 15.5 | BL35: 3.8 | BM35: 8.5 | BN35: 11.3 | BO35: 10.0 | BP35: 12.0 | BQ35: 14.9 | BR35: =IF(F35="GK",BQ35*10,SUM(BF35:BP35)) -> 149 | BS35: 175 | BT35: =IFERROR(VLOOKUP(C35,Reputation!$A$2:$G$181,7,FALSE),0) -> 70 | BU35: =MAX(BR35*75000+BT35*500000,50000) -> 46,175,000 | BV35: =BS35>BR35 -> TRUE | BW35: =B35 -> Serie A
B36: Premier League | C36: Liverpool | D36: 2 | E36: Alisson | F36: GK | G36: 32 | H36: BRA | BF36: 9 | BG36: 1.5 | BH36: 8 | BI36: 12.3 | BJ36: 16.6 | BK36: 11 | BL36: 2.8 | BM36: 12.5 | BN36: 14.8 | BO36: 10.5 | BP36: 13.7 | BQ36: 14.9 | BR36: =IF(F36="GK",BQ36*10,SUM(BF36:BP36)) -> 149 | BS36: 180 | BT36: =IFERROR(VLOOKUP(C36,Reputation!$A$2:$G$181,7,FALSE),0) -> 99.5 | BU36: =MAX(BR36*75000+BT36*500000,50000) -> 60925000 | BV36: =BS36>BR36 -> TRUE | BW36: =B36 -> Premier League
B37: LaLiga | C37: Celta Vigo | D37: 10 | E37: Iago Aspas | F37: Outfield | G37: 37 | H37: ESP | BF37: 13.7 | BG37: 15.5 | BH37: 6.3 | BI37: 15.8 | BJ37: 15.4 | BK37: 18.5 | BL37: 12.3 | BM37: 13.0 | BN37: 14.7 | BO37: 12.0 | BP37: 11.7 | BQ37: 2.2 | BR37: =IF(F37="GK",BQ37*10,SUM(BF37:BP37)) -> 149 | BS37: 160 | BT37: =IFERROR(VLOOKUP(C37,Reputation!$A$2:$G$181,7,FALSE),0) -> 75 | BU37: =MAX(BR37*75000+BT37*500000,50000) -> 48,667,500 | BV37: =BS37>BR37 -> TRUE | BW37: =B37 -> LaLiga
B38: Bundesliga | C38: FC Bayern Munich | D38: 25 | E38: Thomas Müller | F38: Outfield | G38: 35 | H38: GER | BF38: 15.7 | BG38: 11.5 | BH38: 10.3 | BI38: 12.5 | BJ38: 15.8 | BK38: 18.0 | BL38: 9.8 | BM38: 12.5 | BN38: 15.8 | BO38: 13.5 | BP38: 13.3 | BQ38: 2.1 | BR38: =IF(F38="GK",BQ38*10,SUM(BF38:BP38)) -> 149 | BS38: 174 | BT38: =IFERROR(VLOOKUP(C38,Reputation!$A$2:$G$181,7,FALSE),0) -> 95 | BU38: =MAX(BR38*75000+BT38*500000,50000) -> 58,652,500 | BV38: =BS38>BR38 -> TRUE | BW38: =B38 -> Bundesliga
B39: Premier League | C39: Liverpool | D39: 1 | E39: Alexis Mac Allister | F39: Outfield | G39: 26 | H39: ARG | BF39: 15.3 | BG39: 14.5 | BH39: 12.3 | BI39: 14.8 | BJ39: 15.2 | BK39: 13.5 | BL39: 13.5 | BM39: 13.0 | BN39: 13.5 | BO39: 9.0 | BP39: 13.7 | BQ39: 2.1 | BR39: =IF(F39="GK",BQ39*10,SUM(BF39:BP39)) -> 148 | BS39: 165 | BT39: =IFERROR(VLOOKUP(C39,Reputation!$A$2:$G$181,7,FALSE),0) -> 99.5 | BU39: =MAX(BR39*75000+BT39*500000,50000) -> 60,872,500 | BV39: =BS39>BR39 -> TRUE | BW39: =B39 -> Premier League
B40: Serie A | C40: Roma | D40: 3 | E40: Bryan Cristante | F40: Outfield | G40: 30 | H40: ITA | BF40: 13.3 | BG40: 14.5 | BH40: 14.0 | BI40: 11.8 | BJ40: 14.0 | BK40: 16.5 | BL40: 9.0 | BM40: 11.0 | BN40: 15.2 | BO40: 16.5 | BP40: 12.3 | BQ40: 1.5 | BR40: =IF(F40="GK",BQ40*10,SUM(BF40:BP40)) -> 148 | BS40: 155 | BT40: =IFERROR(VLOOKUP(C40,Reputation!$A$2:$G$181,7,FALSE),0) -> 90 | BU40: =MAX(BR40*75000+BT40*500000,50000) -> 56,107,500 | BV40: =BS40>BR40 -> TRUE | BW40: =B40 -> Serie A
B41: Serie A | C41: Napoli | D41: 23 | E41: Romelu Lukaku | F41: Outfield | G41: 32 | H41: BEL | BF41: 11.0 | BG41: 16.0 | BH41: 6.3 | BI41: 13.0 | BJ41: 14.0 | BK41: 16.5 | BL41: 9.8 | BM41: 15.0 | BN41: 13.8 | BO41: 15.5 | BP41: 17.0 | BQ41: 2.2 | BR41: =IF(F41="GK",BQ41*10,SUM(BF41:BP41)) -> 148 | BS41: 170 | BT41: =IFERROR(VLOOKUP(C41,Reputation!$A$2:$G$181,7,FALSE),0) -> 85 | BU41: =MAX(BR41*75000+BT41*500000,50000) -> 53,592,500 | BV41: =BS41>BR41 -> TRUE | BW41: =B41 -> Serie A
B42: LaLiga | C42: Athletic Madrid | D42: 16 | E42: Koke | F42: Outfield | G42: 33 | H42: ESP | BF42: 15.3 | BG42: 13.0 | BH42: 13.7 | BI42: 12.8 | BJ42: 15.2 | BK42: 16.5 | BL42: 11.3 | BM42: 13.0 | BN42: 14.2 | BO42: 9.0 | BP42: 13.7 | BQ42: 2.4 | BR42: =IF(F42="GK",BQ42*10,SUM(BF42:BP42)) -> 148 | BS42: 162 | BT42: =IFERROR(VLOOKUP(C42,Reputation!$A$2:$G$181,7,FALSE),0) -> 90 | BU42: =MAX(BR42*75000+BT42*500000,50000) -> 56,077,500 | BV42: =BS42>BR42 -> TRUE | BW42: =B42 -> LaLiga
B43: Bundesliga | C43: Borussia Dortmund | D43: 4 | E43: Emre Can | F43: Outfield | G43: 31 | H43: GER | BF43: 12.0 | BG43: 12.0 | BH43: 14.0 | BI43: 13.5 | BJ43: 13.8 | BK43: 13.5 | BL43: 11.3 | BM43: 14.0 | BN43: 13.7 | BO43: 13.5 | BP43: 16.3 | BQ43: 1.7 | BR43: =IF(F43="GK",BQ43*10,SUM(BF43:BP43)) -> 148 | BS43: 155 | BT43: =IFERROR(VLOOKUP(C43,Reputation!$A$2:$G$181,7,FALSE),0) -> 90 | BU43: =MAX(BR43*75000+BT43*500000,50000) -> 56,070,000 | BV43: =BS43>BR43 -> TRUE | BW43: =B43 -> Bundesliga
B44: Premier League | C44: Arsenal | D44: 15 | E44: Kieran Tierney | F44: Outfield | G44: 28 | H44: SCO | BF44: 13.0 | BG44: 11.0 | BH44: 13.7 | BI44: 13.3 | BJ44: 14.0 | BK44: 16.5 | BL44: 10.8 | BM44: 14.5 | BN44: 14.8 | BO44: 12.0 | BP44: 14.0 | BQ44: 2.3 | BR44: =IF(F44="GK",BQ44*10,SUM(BF44:BP44)) -> 148 | BS44: 164 | BT44: =IFERROR(VLOOKUP(C44,Reputation!$A$2:$G$181,7,FALSE),0) -> 98.5 | BU44: =MAX(BR44*75000+BT44*500000,50000) -> 60,320,000 | BV44: =BS44>BR44 -> TRUE | BW44: =B44 -> Premier League
B45: Bundesliga | C45: Bayer 04 Leverkusen | D45: 2 | E45: Álex Grimaldo | F45: Outfield | G45: 29 | H45: ESP | BF45: 16.0 | BG45: 14.5 | BH45: 11.3 | BI45: 15.5 | BJ45: 13.8 | BK45: 13.0 | BL45: 15.3 | BM45: 14.5 | BN45: 14.8 | BO45: 7.5 | BP45: 11.0 | BQ45: 2.1 | BR45: =IF(F45="GK",BQ45*10,SUM(BF45:BP45)) -> 147 | BS45: 156 | BT45: =IFERROR(VLOOKUP(C45,Reputation!$A$2:$G$181,7,FALSE),0) -> 80 | BU45: =MAX(BR45*75000+BT45*500000,50000) -> 51,040,000 | BV45: =BS45>BR45 -> TRUE | BW45: =B45 -> Bundesliga
B46: Serie A | C46: Napoli | D46: 11 | E46: Giovanni Di Lorenzo | F46: Outfield | G46: 31 | H46: ITA | BF46: 12.3 | BG46: 11.5 | BH46: 14.3 | BI46: 10.0 | BJ46: 13.8 | BK46: 16.0 | BL46: 7.0 | BM46: 15.5 | BN46: 16.2 | BO46: 15.5 | BP46: 15.0 | BQ46: 2.2 | BR46: =IF(F46="GK",BQ46*10,SUM(BF46:BP46)) -> 147 | BS46: 159 | BT46: =IFERROR(VLOOKUP(C46,Reputation!$A$2:$G$181,7,FALSE),0) -> 85 | BU46: =MAX(BR46*75000+BT46*500000,50000) -> 53,532,500 | BV46: =BS46>BR46 -> TRUE | BW46: =B46 -> Serie A
B47: Premier League | C47: Manchester City | D47: 2 | E47: Ederson | F47: GK | G47: 31 | H47: BRA | BF47: 12.3 | BG47: 7.0 | BH47: 7.0 | BI47: 10.8 | BJ47: 16.8 | BK47: 10.5 | BL47: 6.8 | BM47: 13.5 | BN47: 13.8 | BO47: 11.0 | BP47: 14.3 | BQ47: 14.7 | BR47: =IF(F47="GK",BQ47*10,SUM(BF47:BP47)) -> 147 | BS47: 180 | BT47: =IFERROR(VLOOKUP(C47,Reputation!$A$2:$G$181,7,FALSE),0) -> 100 | BU47: =MAX(BR47*75000+BT47*500000,50000) -> 61,025,000 | BV47: =BS47>BR47 -> TRUE | BW47: =B47 -> Premier League
B48: LaLiga | C48: Real Madrid | D48: 21 | E48: Luka Modrić | F48: Outfield | G48: 39 | H48: CRO | BF48: 18.0 | BG48: 11.5 | BH48: 11.3 | BI48: 17.3 | BJ48: 17.6 | BK48: 15.5 | BL48: 12.5 | BM48: 11.0 | BN48: 13.3 | BO48: 7.5 | BP48: 11.3 | BQ48: 1.7 | BR48: =IF(F48="GK",BQ48*10,SUM(BF48:BP48)) -> 147 | BS48: 180 | BT48: =IFERROR(VLOOKUP(C48,Reputation!$A$2:$G$181,7,FALSE),0) -> 95 | BU48: =MAX(BR48*75000+BT48*500000,50000) -> 58,510,000 | BV48: =BS48>BR48 -> TRUE | BW48: =B48 -> LaLiga
B49: Serie A | C49: Juventus | D49: 24 | E49: Weston McKennie | F49: Outfield | G49: 26 | H49: USA | BF49: 13.0 | BG49: 10.5 | BH49: 12.7 | BI49: 12.3 | BJ49: 13.4 | BK49: 14.5 | BL49: 10.3 | BM49: 13.5 | BN49: 15.5 | BO49: 15.0 | BP49: 16.0 | BQ49: 2.2 | BR49: =IF(F49="GK",BQ49*10,SUM(BF49:BP49)) -> 147 | BS49: 153 | BT49: =IFERROR(VLOOKUP(C49,Reputation!$A$2:$G$181,7,FALSE),0) -> 90 | BU49: =MAX(BR49*75000+BT49*500000,50000) -> 56,002,500 | BV49: =BS49>BR49 -> TRUE | BW49: =B49 -> Serie A
B50: Serie A | C50: Juventus | D50: 5 | E50: Douglas Luiz | F50: Outfield | G50: 27 | H50: BRA | BF50: 13.3 | BG50: 13.0 | BH50: 13.3 | BI50: 14.3 | BJ50: 13.6 | BK50: 13.0 | BL50: 13.3 | BM50: 14.0 | BN50: 14.7 | BO50: 11.5 | BP50: 12.7 | BQ50: 2.0 | BR50: =IF(F50="GK",BQ50*10,SUM(BF50:BP50)) -> 147 | BS50: 158 | BT50: =IFERROR(VLOOKUP(C50,Reputation!$A$2:$G$181,7,FALSE),0) -> 90 | BU50: =MAX(BR50*75000+BT50*500000,50000) -> 56,002,500 | BV50: =BS50>BR50 -> TRUE | BW50: =B50 -> Serie A
B51: Premier League | C51: Newcastle United | D51: 27 | E51: Sandro Tonali | F51: Outfield | G51: 25 | H51: ITA | BF51: 13.7 | BG51: 10.5 | BH51: 14.0 | BI51: 13.8 | BJ51: 15.0 | BK51: 15.5 | BL51: 12.0 | BM51: 13.5 | BN51: 14.5 | BO51: 9.0 | BP51: 15.0 | BQ51: 2.1 | BR51: =IF(F51="GK",BQ51*10,SUM(BF51:BP51)) -> 147 | BS51: 171 | BT51: =IFERROR(VLOOKUP(C51,Reputation!$A$2:$G$181,7,FALSE),0) -> 97.5 | BU51: =MAX(BR51*75000+BT51*500000,50000) -> 59,737,500 | BV51: =BS51>BR51 -> TRUE | BW51: =B51 -> Premier League
B52: Premier League | C52: Arsenal | D52: 8 | E52: Gabriel Jesus | F52: Outfield | G52: 28 | H52: BRA | BF52: 13.3 | BG52: 13.0 | BH52: 8.3 | BI52: 15.8 | BJ52: 14.8 | BK52: 15.0 | BL52: 9.0 | BM52: 15.0 | BN52: 15.8 | BO52: 12.5 | BP52: 14.0 | BQ52: 2.0 | BR52: =IF(F52="GK",BQ52*10,SUM(BF52:BP52)) -> 147 | BS52: 175 | BT52: =IFERROR(VLOOKUP(C52,Reputation!$A$2:$G$181,7,FALSE),0) -> 98.5 | BU52: =MAX(BR52*75000+BT52*500000,50000) -> 60,237,500 | BV52: =BS52>BR52 -> TRUE | BW52: =B52 -> Premier League
B53: LaLiga | C53: Real Madrid | D53: 5 | E53: Aurélien Tchouameni | F53: Outfield | G53: 25 | H53: FRA | BF53: 13 | BG53: 9.5 | BH53: 15.3 | BI53: 13.3 | BJ53: 15.2 | BK53: 13 | BL53: 8 | BM53: 14 | BN53: 15.2 | BO53: 14 | BP53: 16 | BQ53: 1.8 | BR53: =IF(F53="GK",BQ53*10,SUM(BF53:BP53)) -> 147 | BS53: 177 | BT53: =IFERROR(VLOOKUP(C53,Reputation!$A$2:$G$181,7,FALSE),0) -> 95 | BU53: =MAX(BR53*75000+BT53*500000,50000) -> 58487500 | BV53: =BS53>BR53 -> TRUE | BW53: =B53 -> LaLiga
B54: Serie A | C54: Juventus | D54: 16 | E54: Manuel Locatelli | F54: Outfield | G54: 27 | H54: ITA | BF54: 13.3 | BG54: 12.0 | BH54: 15.0 | BI54: 13.5 | BJ54: 14.2 | BK54: 15.5 | BL54: 9.3 | BM54: 12.5 | BN54: 14.0 | BO54: 13.0 | BP54: 14.0 | BQ54: 2.2 | BR54: =IF(F54="GK",BQ54*10,SUM(BF54:BP54)) -> 146 | BS54: 155 | BT54: =IFERROR(VLOOKUP(C54,Reputation!$A$2:$G$181,7,FALSE),0) -> 90 | BU54: =MAX(BR54*75000+BT54*500000,50000) -> 55,972,500 | BV54: =BS54>BR54 -> TRUE | BW54: =B54 -> Serie A
B55: Premier League | C55: Tottenham | D55: 27 | E55: Yves Bissouma | F55: Outfield | G55: 28 | H55: MLI | BF55: 11.7 | BG55: 11.0 | BH55: 15.0 | BI55: 15.3 | BJ55: 14.8 | BK55: 13.0 | BL55: 10.3 | BM55: 15.0 | BN55: 14.2 | BO55: 12.0 | BP55: 14.0 | BQ55: 2.3 | BR55: =IF(F55="GK",BQ55*10,SUM(BF55:BP55)) -> 146 | BS55: 165 | BT55: =IFERROR(VLOOKUP(C55,Reputation!$A$2:$G$181,7,FALSE),0) -> 97 | BU55: =MAX(BR55*75000+BT55*500000,50000) -> 59,472,500 | BV55: =BS55>BR55 -> TRUE | BW55: =B55 -> Premier League
B56: Premier League | C56: Manchester City | D56: 4 | E56: İlkay Gündoğan | F56: Outfield | G56: 34 | H56: GER | BF56: 14.3 | BG56: 12.5 | BH56: 12.3 | BI56: 15.0 | BJ56: 15.2 | BK56: 15.0 | BL56: 11.3 | BM56: 13.5 | BN56: 15.0 | BO56: 8.5 | BP56: 13.7 | BQ56: 1.9 | BR56: =IF(F56="GK",BQ56*10,SUM(BF56:BP56)) -> 146 | BS56: 167 | BT56: =IFERROR(VLOOKUP(C56,Reputation!$A$2:$G$181,7,FALSE),0) -> 100 | BU56: =MAX(BR56*75000+BT56*500000,50000) -> 60,972,500 | BV56: =BS56>BR56 -> TRUE | BW56: =B56 -> Premier League
B57: LaLiga | C57: Athletic Madrid | D57: 3 | E57: Antoine Griezmann | F57: Outfield | G57: 34 | H57: FRA | BF57: 16.0 | BG57: 14.0 | BH57: 8.7 | BI57: 16.8 | BJ57: 14.6 | BK57: 13.0 | BL57: 11.3 | BM57: 14.5 | BN57: 14.7 | BO57: 11.0 | BP57: 11.7 | BQ57: 2.0 | BR57: =IF(F57="GK",BQ57*10,SUM(BF57:BP57)) -> 146 | BS57: 180 | BT57: =IFERROR(VLOOKUP(C57,Reputation!$A$2:$G$181,7,FALSE),0) -> 90 | BU57: =MAX(BR57*75000+BT57*500000,50000) -> 55,972,500 | BV57: =BS57>BR57 -> TRUE | BW57: =B57 -> LaLiga
B58: Premier League | C58: Arsenal | D58: 18 | E58: Mikel Merino | F58: Outfield | G58: 29 | H58: ESP | BF58: 14.3 | BG58: 11.0 | BH58: 13.7 | BI58: 14.0 | BJ58: 14.2 | BK58: 13.5 | BL58: 9.0 | BM58: 12.5 | BN58: 14.7 | BO58: 14.0 | BP58: 15.3 | BQ58: 1.9 | BR58: =IF(F58="GK",BQ58*10,SUM(BF58:BP58)) -> 146 | BS58: 159 | BT58: =IFERROR(VLOOKUP(C58,Reputation!$A$2:$G$181,7,FALSE),0) -> 98.5 | BU58: =MAX(BR58*75000+BT58*500000,50000) -> 60,215,000 | BV58: =BS58>BR58 -> TRUE | BW58: =B58 -> Premier League
B59: LaLiga | C59: Real Madrid | D59: 3 | E59: Antonio Rüdiger | F59: Outfield | G59: 32 | H59: GER | BF59: 10.7 | BG59: 7.5 | BH59: 15.3 | BI59: 10.0 | BJ59: 15.2 | BK59: 15.5 | BL59: 8.8 | BM59: 16.5 | BN59: 13.7 | BO59: 15.0 | BP59: 18.0 | BQ59: 2.1 | BR59: =IF(F59="GK",BQ59*10,SUM(BF59:BP59)) -> 146 | BS59: 166 | BT59: =IFERROR(VLOOKUP(C59,Reputation!$A$2:$G$181,7,FALSE),0) -> 95 | BU59: =MAX(BR59*75000+BT59*500000,50000) -> 58,465,000 | BV59: =BS59>BR59 -> TRUE | BW59: =B59 -> LaLiga
B60: Premier League | C60: Arsenal | D60: 3 | E60: Bukayo Saka | F60: Outfield | G60: 23 | H60: ENG | BF60: 14.0 | BG60: 15.0 | BH60: 9.7 | BI60: 16.0 | BJ60: 15.4 | BK60: 13.0 | BL60: 10.8 | BM60: 16.0 | BN60: 16.3 | BO60: 8.0 | BP60: 12.0 | BQ60: 1.9 | BR60: =IF(F60="GK",BQ60*10,SUM(BF60:BP60)) -> 146 | BS60: 186 | BT60: =IFERROR(VLOOKUP(C60,Reputation!$A$2:$G$181,7,FALSE),0) -> 98.5 | BU60: =MAX(BR60*75000+BT60*500000,50000) -> 60,215,000 | BV60: =BS60>BR60 -> TRUE | BW60: =B60 -> Premier League
B61: Premier League | C61: Liverpool | D61: 22 | E61: Trent Alexander-Arnold | F61: Outfield | G61: 26 | H61: ENG | BF61: 17.3 | BG61: 10.0 | BH61: 10.7 | BI61: 14.8 | BJ61: 13.8 | BK61: 14.5 | BL61: 13.5 | BM61: 14.0 | BN61: 14.2 | BO61: 11.0 | BP61: 12.3 | BQ61: 2.5 | BR61: =IF(F61="GK",BQ61*10,SUM(BF61:BP61)) -> 146 | BS61: 174 | BT61: =IFERROR(VLOOKUP(C61,Reputation!$A$2:$G$181,7,FALSE),0) -> 99.5 | BU61: =MAX(BR61*75000+BT61*500000,50000) -> 60,707,500 | BV61: =BS61>BR61 -> TRUE | BW61: =B61 -> Premier League
B62: LaLiga | C62: Real Madrid | D62: 28 | E62: Vinícius Júnior | F62: Outfield | G62: 24 | H62: BRA | BF62: 14.0 | BG62: 14.0 | BH62: 6.0 | BI62: 16.0 | BJ62: 15.8 | BK62: 13.0 | BL62: 7.8 | BM62: 18.5 | BN62: 15.7 | BO62: 10.0 | BP62: 15.3 | BQ62: 1.9 | BR62: =IF(F62="GK",BQ62*10,SUM(BF62:BP62)) -> 146 | BS62: 190 | BT62: =IFERROR(VLOOKUP(C62,Reputation!$A$2:$G$181,7,FALSE),0) -> 95 | BU62: =MAX(BR62*75000+BT62*500000,50000) -> 58,457,500 | BV62: =BS62>BR62 -> TRUE | BW62: =B62 -> LaLiga
B63: Ligue 1 | C63: Marsiele | D63: 11 | E63: Geoffrey Kondogbia | F63: Outfield | G63: 32 | H63: CTA | BF63: 13.0 | BG63: 12.5 | BH63: 14.0 | BI63: 14.5 | BJ63: 12.6 | BK63: 14.0 | BL63: 8.0 | BM63: 13.0 | BN63: 14.8 | BO63: 14.0 | BP63: 15.7 | BQ63: 2.1 | BR63: =IF(F63="GK",BQ63*10,SUM(BF63:BP63)) -> 146 | BS63: 155 | BT63: =IFERROR(VLOOKUP(C63,Reputation!$A$2:$G$181,7,FALSE),0) -> 80 | BU63: =MAX(BR63*75000+BT63*500000,50000) -> 50,957,500 | BV63: =BS63>BR63 -> TRUE | BW63: =B63 -> Ligue 1
B64: Bundesliga | C64: FC Union Berlin | D64: 6 | E64: Christopher Trimmel | F64: Outfield | G64: 38 | H64: AUT | BF64: 13.3 | BG64: 8.5 | BH64: 12.0 | BI64: 11.3 | BJ64: 13.4 | BK64: 16.5 | BL64: 15.0 | BM64: 13.0 | BN64: 14.8 | BO64: 13.5 | BP64: 14.7 | BQ64: 2.2 | BR64: =IF(F64="GK",BQ64*10,SUM(BF64:BP64)) -> 146 | BS64: 138 | BT64: =IFERROR(VLOOKUP(C64,Reputation!$A$2:$G$181,7,FALSE),0) -> 80 | BU64: =MAX(BR64*75000+BT64*500000,50000) -> 50,950,000 | BV64: =BS64>BR64 -> FALSE | BW64: =B64 -> Bundesliga
B65: Premier League | C65: Arsenal | D65: 4 | E65: David Raya | F65: GK | G65: 29 | H65: ESP | BF65: 10.7 | BG65: 3.0 | BH65: 5.7 | BI65: 10.3 | BJ65: 13.4 | BK65: 11.5 | BL65: 3.8 | BM65: 11.0 | BN65: 12.3 | BO65: 10.0 | BP65: 12.3 | BQ65: 14.6 | BR65: =IF(F65="GK",BQ65*10,SUM(BF65:BP65)) -> 146 | BS65: 158 | BT65: =IFERROR(VLOOKUP(C65,Reputation!$A$2:$G$181,7,FALSE),0) -> 98.5 | BU65: =MAX(BR65*75000+BT65*500000,50000) -> 60,200,000 | BV65: =BS65>BR65 -> TRUE | BW65: =B65 -> Premier League
B66: Serie A | C66: Juventus | D66: 21 | E66: Teun Koopmeiners | F66: Outfield | G66: 27 | H66: NED | BF66: 14.0 | BG66: 14.5 | BH66: 12.0 | BI66: 12.8 | BJ66: 15.0 | BK66: 16.0 | BL66: 12.0 | BM66: 12.0 | BN66: 14.5 | BO66: 10.5 | BP66: 12.7 | BQ66: 2.0 | BR66: =IF(F66="GK",BQ66*10,SUM(BF66:BP66)) -> 146 | BS66: 164 | BT66: =IFERROR(VLOOKUP(C66,Reputation!$A$2:$G$181,7,FALSE),0) -> 90 | BU66: =MAX(BR66*75000+BT66*500000,50000) -> 55,950,000 | BV66: =BS66>BR66 -> TRUE | BW66: =B66 -> Serie A
B67: Ligue 1 | C67: Paris Saint-Germain | D67: 13 | E67: Lucas Hernández | F67: Outfield | G67: 29 | H67: FRA | BF67: 13 | BG67: 6.5 | BH67: 16.3 | BI67: 12.3 | BJ67: 15.6 | BK67: 14.5 | BL67: 7.8 | BM67: 14.5 | BN67: 14.2 | BO67: 14.5 | BP67: 16.7 | BQ67: 2.5 | BR67: =IF(F67="GK",BQ67*10,SUM(BF67:BP67)) -> 146 | BS67: 165 | BT67: =IFERROR(VLOOKUP(C67,Reputation!$A$2:$G$181,7,FALSE),0) -> 90 | BU67: =MAX(BR67*75000+BT67*500000,50000) -> 55942500 | BV67: =BS67>BR67 -> TRUE | BW67: =B67 -> Ligue 1
B68: Premier League | C68: Aston Villa | D68: 14 | E68: John McGinn | F68: Outfield | G68: 30 | H68: SCO | BF68: 13.7 | BG68: 13.5 | BH68: 12.0 | BI68: 13.8 | BJ68: 13.2 | BK68: 14.5 | BL68: 10.3 | BM68: 14.0 | BN68: 15.0 | BO68: 11.0 | BP68: 14.7 | BQ68: 2.0 | BR68: =IF(F68="GK",BQ68*10,SUM(BF68:BP68)) -> 146 | BS68: 155 | BT68: =IFERROR(VLOOKUP(C68,Reputation!$A$2:$G$181,7,FALSE),0) -> 96.5 | BU68: =MAX(BR68*75000+BT68*500000,50000) -> 59,177,500 | BV68: =BS68>BR68 -> TRUE | BW68: =B68 -> Premier League
B69: Bundesliga | C69: Borussia Dortmund | D69: 14 | E69: Marcel Sabitzer | F69: Outfield | G69: 31 | H69: AUT | BF69: 13.3 | BG69: 14.0 | BH69: 12.7 | BI69: 12.8 | BJ69: 13.8 | BK69: 14.5 | BL69: 12.3 | BM69: 13.0 | BN69: 14.8 | BO69: 10.0 | BP69: 14.3 | BQ69: 2.0 | BR69: =IF(F69="GK",BQ69*10,SUM(BF69:BP69)) -> 146 | BS69: 156 | BT69: =IFERROR(VLOOKUP(C69,Reputation!$A$2:$G$181,7,FALSE),0) -> 90 | BU69: =MAX(BR69*75000+BT69*500000,50000) -> 55,912,500 | BV69: =BS69>BR69 -> TRUE | BW69: =B69 -> Bundesliga
B70: Premier League | C70: Tottenham | D70: 19 | E70: Pedro Porro | F70: Outfield | G70: 25 | H70: ESP | BF70: 16.0 | BG70: 12.5 | BH70: 13.0 | BI70: 15.5 | BJ70: 13.0 | BK70: 10.0 | BL70: 12.3 | BM70: 15.5 | BN70: 15.0 | BO70: 8.0 | BP70: 14.7 | BQ70: 1.8 | BR70: =IF(F70="GK",BQ70*10,SUM(BF70:BP70)) -> 146 | BS70: 164 | BT70: =IFERROR(VLOOKUP(C70,Reputation!$A$2:$G$181,7,FALSE),0) -> 97 | BU70: =MAX(BR70*75000+BT70*500000,50000) -> 59,412,500 | BV70: =BS70>BR70 -> TRUE | BW70: =B70 -> Premier League
B71: Bundesliga | C71: Borussia Dortmund | D71: 18 | E71: Pascal Groß | F71: Outfield | G71: 34 | H71: GER | BF71: 16.3 | BG71: 14.0 | BH71: 12.0 | BI71: 14.0 | BJ71: 15.2 | BK71: 14.5 | BL71: 12.8 | BM71: 8.5 | BN71: 15.3 | BO71: 10.5 | BP71: 12.3 | BQ71: 2.3 | BR71: =IF(F71="GK",BQ71*10,SUM(BF71:BP71)) -> 145 | BS71: 150 | BT71: =IFERROR(VLOOKUP(C71,Reputation!$A$2:$G$181,7,FALSE),0) -> 90 | BU71: =MAX(BR71*75000+BT71*500000,50000) -> 55,905,000 | BV71: =BS71>BR71 -> TRUE | BW71: =B71 -> Bundesliga
B72: Serie A | C72: Lazio | D72: 15 | E72: Matías Vecino | F72: Outfield | G72: 33 | H72: URU | BF72: 12.3 | BG72: 13.5 | BH72: 13.0 | BI72: 12.8 | BJ72: 14.6 | BK72: 14.5 | BL72: 8.8 | BM72: 11.5 | BN72: 15.0 | BO72: 15.0 | BP72: 14.3 | BQ72: 1.9 | BR72: =IF(F72="GK",BQ72*10,SUM(BF72:BP72)) -> 145 | BS72: 150 | BT72: =IFERROR(VLOOKUP(C72,Reputation!$A$2:$G$181,7,FALSE),0) -> 85 | BU72: =MAX(BR72*75000+BT72*500000,50000) -> 53,397,500 | BV72: =BS72>BR72 -> TRUE | BW72: =B72 -> Serie A
B73: LaLiga | C73: Real Madrid | D73: 7 | E73: Dani Carvajal | F73: Outfield | G73: 33 | H73: ESP | BF73: 13.0 | BG73: 10.5 | BH73: 14.3 | BI73: 12.5 | BJ73: 14.2 | BK73: 15.0 | BL73: 10.3 | BM73: 14.5 | BN73: 16.0 | BO73: 9.0 | BP73: 16.0 | BQ73: 2.4 | BR73: =IF(F73="GK",BQ73*10,SUM(BF73:BP73)) -> 145 | BS73: 162 | BT73: =IFERROR(VLOOKUP(C73,Reputation!$A$2:$G$181,7,FALSE),0) -> 95 | BU73: =MAX(BR73*75000+BT73*500000,50000) -> 58,397,500 | BV73: =BS73>BR73 -> TRUE | BW73: =B73 -> LaLiga
B74: Serie A | C74: Roma | D74: 13 | E74: Mats Hummels | F74: Outfield | G74: 36 | H74: GER | BF74: 14.3 | BG74: 8.5 | BH74: 16.0 | BI74: 13.3 | BJ74: 16.2 | BK74: 15.5 | BL74: 7.8 | BM74: 10.5 | BN74: 12.2 | BO74: 16.0 | BP74: 15.0 | BQ74: 1.7 | BR74: =IF(F74="GK",BQ74*10,SUM(BF74:BP74)) -> 145 | BS74: 177 | BT74: =IFERROR(VLOOKUP(C74,Reputation!$A$2:$G$181,7,FALSE),0) -> 90 | BU74: =MAX(BR74*75000+BT74*500000,50000) -> 55,897,500 | BV74: =BS74>BR74 -> TRUE | BW74: =B74 -> Serie A
B75: LaLiga | C75: Athletic Madrid | D75: 23 | E75: Rodrigo De Paul | F75: Outfield | G75: 31 | H75: ARG | BF75: 15.0 | BG75: 14.0 | BH75: 10.7 | BI75: 15.0 | BJ75: 14.2 | BK75: 15.0 | BL75: 11.8 | BM75: 14.0 | BN75: 14.0 | BO75: 8.5 | BP75: 13.0 | BQ75: 2.0 | BR75: =IF(F75="GK",BQ75*10,SUM(BF75:BP75)) -> 145 | BS75: 160 | BT75: =IFERROR(VLOOKUP(C75,Reputation!$A$2:$G$181,7,FALSE),0) -> 90 | BU75: =MAX(BR75*75000+BT75*500000,50000) -> 55,890,000 | BV75: =BS75>BR75 -> TRUE | BW75: =B75 -> LaLiga
B76: Premier League | C76: Arsenal | D76: 25 | E76: Thomas Partey | F76: Outfield | G76: 32 | H76: GHA | BF76: 13.3 | BG76: 12.0 | BH76: 13.7 | BI76: 14.5 | BJ76: 15.0 | BK76: 14.0 | BL76: 8.8 | BM76: 13.0 | BN76: 13.7 | BO76: 13.5 | BP76: 13.7 | BQ76: 2.5 | BR76: =IF(F76="GK",BQ76*10,SUM(BF76:BP76)) -> 145 | BS76: 162 | BT76: =IFERROR(VLOOKUP(C76,Reputation!$A$2:$G$181,7,FALSE),0) -> 98.5 | BU76: =MAX(BR76*75000+BT76*500000,50000) -> 60,140,000 | BV76: =BS76>BR76 -> TRUE | BW76: =B76 -> Premier League
B77: Bundesliga | C77: Borussia Dortmund | D77: 21 | E77: Ramy Bensebaïni | F77: Outfield | G77: 30 | H77: ALG | BF77: 12.7 | BG77: 9 | BH77: 13.7 | BI77: 12.8 | BJ77: 13.8 | BK77: 13 | BL77: 11.5 | BM77: 14 | BN77: 13.3 | BO77: 16 | BP77: 15.3 | BQ77: 1.8 | BR77: =IF(F77="GK",BQ77*10,SUM(BF77:BP77)) -> 145 | BS77: 148 | BT77: =IFERROR(VLOOKUP(C77,Reputation!$A$2:$G$181,7,FALSE),0) -> 90 | BU77: =MAX(BR77*75000+BT77*500000,50000) -> 55882500 | BV77: =BS77>BR77 -> TRUE | BW77: =B77 -> Bundesliga
B78: LaLiga | C78: Valencia | D78: 22 | E78: Stole Dimitrievski | F78: GK | G78: 31 | H78: MKD | BF78: 8.0 | BG78: 2.0 | BH78: 6.3 | BI78: 5.5 | BJ78: 13.4 | BK78: 10.5 | BL78: 4.3 | BM78: 11.0 | BN78: 9.7 | BO78: 7.5 | BP78: 13.3 | BQ78: 14.5 | BR78: =IF(F78="GK",BQ78*10,SUM(BF78:BP78)) -> 145 | BS78: 142 | BT78: =IFERROR(VLOOKUP(C78,Reputation!$A$2:$G$181,7,FALSE),0) -> 90 | BU78: =MAX(BR78*75000+BT78*500000,50000) -> 55,875,000 | BV78: =BS78>BR78 -> FALSE | BW78: =B78 -> LaLiga
B79: Premier League | C79: Manchester United | D79: 4 | E79: André Onana | F79: GK | G79: 29 | H79: CMR | BF79: 8.3 | BG79: 2.0 | BH79: 6.7 | BI79: 10.3 | BJ79: 13.6 | BK79: 14.0 | BL79: 2.8 | BM79: 11.0 | BN79: 12.7 | BO79: 10.5 | BP79: 11.7 | BQ79: 14.5 | BR79: =IF(F79="GK",BQ79*10,SUM(BF79:BP79)) -> 145 | BS79: 160 | BT79: =IFERROR(VLOOKUP(C79,Reputation!$A$2:$G$181,7,FALSE),0) -> 99 | BU79: =MAX(BR79*75000+BT79*500000,50000) -> 60,375,000 | BV79: =BS79>BR79 -> TRUE | BW79: =B79 -> Premier League
B80: Serie A | C80: Inter Milan | D80: 2 | E80: Alessandro Bastoni | F80: Outfield | G80: 26 | H80: ITA | BF80: 13.7 | BG80: 8.0 | BH80: 15.0 | BI80: 12.8 | BJ80: 14.2 | BK80: 14.5 | BL80: 7.3 | BM80: 14.5 | BN80: 14.7 | BO80: 15.0 | BP80: 15.3 | BQ80: 2.1 | BR80: =IF(F80="GK",BQ80*10,SUM(BF80:BP80)) -> 145 | BS80: 165 | BT80: =IFERROR(VLOOKUP(C80,Reputation!$A$2:$G$181,7,FALSE),0) -> 90 | BU80: =MAX(BR80*75000+BT80*500000,50000) -> 55,875,000 | BV80: =BS80>BR80 -> TRUE | BW80: =B80 -> Serie A
B81: Bundesliga | C81: FC Union Berlin | D81: 23 | E81: Robin Gosens | F81: Outfield | G81: 30 | H81: GER | BF81: 12.3 | BG81: 12.5 | BH81: 12.0 | BI81: 11.3 | BJ81: 13.8 | BK81: 14.0 | BL81: 9.8 | BM81: 14.0 | BN81: 15.2 | BO81: 15.0 | BP81: 15.0 | BQ81: 1.9 | BR81: =IF(F81="GK",BQ81*10,SUM(BF81:BP81)) -> 145 | BS81: 154 | BT81: =IFERROR(VLOOKUP(C81,Reputation!$A$2:$G$181,7,FALSE),0) -> 80 | BU81: =MAX(BR81*75000+BT81*500000,50000) -> 50,867,500 | BV81: =BS81>BR81 -> TRUE | BW81: =B81 -> Bundesliga
B82: Premier League | C82: Nottingham Forest | D82: 11 | E82: Ibrahim Sangaré | F82: Outfield | G82: 27 | H82: CIV | BF82: 12.0 | BG82: 10.0 | BH82: 14.7 | BI82: 12.5 | BJ82: 12.8 | BK82: 15.5 | BL82: 7.3 | BM82: 12.5 | BN82: 14.8 | BO82: 16.0 | BP82: 16.7 | BQ82: 1.6 | BR82: =IF(F82="GK",BQ82*10,SUM(BF82:BP82)) -> 145 | BS82: 149 | BT82: =IFERROR(VLOOKUP(C82,Reputation!$A$2:$G$181,7,FALSE),0) -> 92 | BU82: =MAX(BR82*75000+BT82*500000,50000) -> 56,860,000 | BV82: =BS82>BR82 -> TRUE | BW82: =B82 -> Premier League
B83: Premier League | C83: Manchester City | D83: 8 | E83: John Stones | F83: Outfield | G83: 31 | H83: ENG | BF83: 12.0 | BG83: 7.0 | BH83: 15.0 | BI83: 14.0 | BJ83: 15.6 | BK83: 14.5 | BL83: 7.3 | BM83: 14.5 | BN83: 14.8 | BO83: 15.0 | BP83: 15.0 | BQ83: 2.1 | BR83: =IF(F83="GK",BQ83*10,SUM(BF83:BP83)) -> 145 | BS83: 170 | BT83: =IFERROR(VLOOKUP(C83,Reputation!$A$2:$G$181,7,FALSE),0) -> 100 | BU83: =MAX(BR83*75000+BT83*500000,50000) -> 60,852,500 | BV83: =BS83>BR83 -> TRUE | BW83: =B83 -> Premier League
B84: Bundesliga | C84: Borussia Dortmund | D84: 16 | E84: Nico Schlotterbeck | F84: Outfield | G84: 25 | H84: GER | BF84: 13.0 | BG84: 10.0 | BH84: 14.7 | BI84: 12.8 | BJ84: 14.0 | BK84: 13.5 | BL84: 8.0 | BM84: 13.5 | BN84: 13.3 | BO84: 15.5 | BP84: 16.3 | BQ84: 2.4 | BR84: =IF(F84="GK",BQ84*10,SUM(BF84:BP84)) -> 145 | BS84: 165 | BT84: =IFERROR(VLOOKUP(C84,Reputation!$A$2:$G$181,7,FALSE),0) -> 90 | BU84: =MAX(BR84*75000+BT84*500000,50000) -> 55,845,000 | BV84: =BS84>BR84 -> TRUE | BW84: =B84 -> Bundesliga
B85: Premier League | C85: West Ham | D85: 5 | E85: Carlos Soler | F85: Outfield | G85: 28 | H85: ESP | BF85: 14.3 | BG85: 14.0 | BH85: 11.7 | BI85: 14.3 | BJ85: 13.6 | BK85: 13.5 | BL85: 12.3 | BM85: 13.0 | BN85: 13.7 | BO85: 11.5 | BP85: 12.7 | BQ85: 2.2 | BR85: =IF(F85="GK",BQ85*10,SUM(BF85:BP85)) -> 145 | BS85: 154 | BT85: =IFERROR(VLOOKUP(C85,Reputation!$A$2:$G$181,7,FALSE),0) -> 96 | BU85: =MAX(BR85*75000+BT85*500000,50000) -> 58,845,000 | BV85: =BS85>BR85 -> TRUE | BW85: =B85 -> Premier League
B86: Bundesliga | C86: VfL Wolfsburg | D86: 18 | E86: Maximilian Arnold | F86: Outfield | G86: 31 | H86: GER | BF86: 14.0 | BG86: 12.5 | BH86: 12.7 | BI86: 12.3 | BJ86: 13.8 | BK86: 15.5 | BL86: 12.8 | BM86: 12.0 | BN86: 14.7 | BO86: 10.5 | BP86: 13.7 | BQ86: 2.4 | BR86: =IF(F86="GK",BQ86*10,SUM(BF86:BP86)) -> 145 | BS86: 148 | BT86: =IFERROR(VLOOKUP(C86,Reputation!$A$2:$G$181,7,FALSE),0) -> 70 | BU86: =MAX(BR86*75000+BT86*500000,50000) -> 45,837,500 | BV86: =BS86>BR86 -> TRUE | BW86: =B86 -> Bundesliga
B87: Serie A | C87: Inter Milan | D87: 3 | E87: Benjamin Pavard | F87: Outfield | G87: 29 | H87: FRA | BF87: 13.0 | BG87: 11.0 | BH87: 15.3 | BI87: 12.3 | BJ87: 15.6 | BK87: 14.5 | BL87: 6.8 | BM87: 13.0 | BN87: 14.2 | BO87: 15.5 | BP87: 13.3 | BQ87: 2.3 | BR87: =IF(F87="GK",BQ87*10,SUM(BF87:BP87)) -> 145 | BS87: 160 | BT87: =IFERROR(VLOOKUP(C87,Reputation!$A$2:$G$181,7,FALSE),0) -> 90 | BU87: =MAX(BR87*75000+BT87*500000,50000) -> 55,837,500 | BV87: =BS87>BR87 -> TRUE | BW87: =B87 -> Serie A
B88: Premier League | C88: Nottingham Forest | D88: 12 | E88: James Ward-Prowse | F88: Outfield | G88: 30 | H88: ENG | BF88: 16.0 | BG88: 11.5 | BH88: 11.3 | BI88: 12.3 | BJ88: 14.0 | BK88: 17.5 | BL88: 14.8 | BM88: 10.5 | BN88: 16.2 | BO88: 7.0 | BP88: 13.3 | BQ88: 2.3 | BR88: =IF(F88="GK",BQ88*10,SUM(BF88:BP88)) -> 144 | BS88: 155 | BT88: =IFERROR(VLOOKUP(C88,Reputation!$A$2:$G$181,7,FALSE),0) -> 92 | BU88: =MAX(BR88*75000+BT88*500000,50000) -> 56,830,000 | BV88: =BS88>BR88 -> TRUE | BW88: =B88 -> Premier League
B89: Premier League | C89: Manchester United | D89: 16 | E89: Luke Shaw | F89: Outfield | G89: 29 | H89: ENG | BF89: 14.0 | BG89: 7.0 | BH89: 14.0 | BI89: 13.3 | BJ89: 13.8 | BK89: 14.0 | BL89: 11.8 | BM89: 15.0 | BN89: 14.5 | BO89: 13.0 | BP89: 14.0 | BQ89: 1.9 | BR89: =IF(F89="GK",BQ89*10,SUM(BF89:BP89)) -> 144 | BS89: 162 | BT89: =IFERROR(VLOOKUP(C89,Reputation!$A$2:$G$181,7,FALSE),0) -> 99 | BU89: =MAX(BR89*75000+BT89*500000,50000) -> 60,330,000 | BV89: =BS89>BR89 -> TRUE | BW89: =B89 -> Premier League
B90: Bundesliga | C90: FC Bayern Munich | D90: 10 | E90: João Palhinha | F90: Outfield | G90: 29 | H90: POR | BF90: 12.7 | BG90: 11.0 | BH90: 16.3 | BI90: 11.3 | BJ90: 15.4 | BK90: 14.5 | BL90: 7.3 | BM90: 11.5 | BN90: 13.7 | BO90: 15.0 | BP90: 15.7 | BQ90: 1.9 | BR90: =IF(F90="GK",BQ90*10,SUM(BF90:BP90)) -> 144 | BS90: 164 | BT90: =IFERROR(VLOOKUP(C90,Reputation!$A$2:$G$181,7,FALSE),0) -> 95 | BU90: =MAX(BR90*75000+BT90*500000,50000) -> 58,330,000 | BV90: =BS90>BR90 -> TRUE | BW90: =B90 -> Bundesliga
B91: Ligue 1 | C91: Paris Saint-Germain | D91: 14 | E91: Marco Asensio | F91: Outfield | G91: 29 | H91: ESP | BF91: 15.7 | BG91: 16.5 | BH91: 7.7 | BI91: 16.8 | BJ91: 14.0 | BK91: 12.0 | BL91: 12.8 | BM91: 14.5 | BN91: 14.3 | BO91: 9.0 | BP91: 11.0 | BQ91: 1.7 | BR91: =IF(F91="GK",BQ91*10,SUM(BF91:BP91)) -> 144 | BS91: 163 | BT91: =IFERROR(VLOOKUP(C91,Reputation!$A$2:$G$181,7,FALSE),0) -> 90 | BU91: =MAX(BR91*75000+BT91*500000,50000) -> 55,822,500 | BV91: =BS91>BR91 -> TRUE | BW91: =B91 -> Ligue 1
B92: LaLiga | C92: Rayo Vallecano | D92: 13 | E92: James Rodríguez | F92: Outfield | G92: 33 | H92: COL | BF92: 17.7 | BG92: 16.5 | BH92: 7.0 | BI92: 17.3 | BJ92: 15.0 | BK92: 14.0 | BL92: 13.3 | BM92: 10.0 | BN92: 12.5 | BO92: 11.0 | BP92: 10.0 | BQ92: 2.0 | BR92: =IF(F92="GK",BQ92*10,SUM(BF92:BP92)) -> 144 | BS92: 175 | BT92: =IFERROR(VLOOKUP(C92,Reputation!$A$2:$G$181,7,FALSE),0) -> 85 | BU92: =MAX(BR92*75000+BT92*500000,50000) -> 53,322,500 | BV92: =BS92>BR92 -> TRUE | BW92: =B92 -> LaLiga
B93: Premier League | C93: Manchester City | D93: 14 | E93: Matheus Nunes | F93: Outfield | G93: 26 | H93: POR | BF93: 13.3 | BG93: 13.0 | BH93: 11.3 | BI93: 14.8 | BJ93: 14.2 | BK93: 12.0 | BL93: 10.8 | BM93: 14.0 | BN93: 14.8 | BO93: 11.0 | BP93: 15.0 | BQ93: 2.0 | BR93: =IF(F93="GK",BQ93*10,SUM(BF93:BP93)) -> 144 | BS93: 161 | BT93: =IFERROR(VLOOKUP(C93,Reputation!$A$2:$G$181,7,FALSE),0) -> 100 | BU93: =MAX(BR93*75000+BT93*500000,50000) -> 60,815,000 | BV93: =BS93>BR93 -> TRUE | BW93: =B93 -> Premier League
B94: Bundesliga | C94: VfL Hoffenheim | D94: 4 | E94: Anton Stach | F94: Outfield | G94: 26 | H94: GER | BF94: 12.3 | BG94: 10.0 | BH94: 13.3 | BI94: 12.3 | BJ94: 14.2 | BK94: 14.0 | BL94: 11.5 | BM94: 13.0 | BN94: 14.0 | BO94: 14.5 | BP94: 15.0 | BQ94: 1.7 | BR94: =IF(F94="GK",BQ94*10,SUM(BF94:BP94)) -> 144 | BS94: 146 | BT94: =IFERROR(VLOOKUP(C94,Reputation!$A$2:$G$181,7,FALSE),0) -> 80 | BU94: =MAX(BR94*75000+BT94*500000,50000) -> 50,807,500 | BV94: =BS94>BR94 -> TRUE | BW94: =B94 -> Bundesliga
B95: Serie A | C95: Napoli | D95: 24 | E95: Scott McTominay | F95: Outfield | G95: 28 | H95: SCO | BF95: 11.3 | BG95: 13.5 | BH95: 11.7 | BI95: 10.8 | BJ95: 13.2 | BK95: 16.0 | BL95: 6.8 | BM95: 13.5 | BN95: 15.8 | BO95: 15.5 | BP95: 16.0 | BQ95: 1.6 | BR95: =IF(F95="GK",BQ95*10,SUM(BF95:BP95)) -> 144 | BS95: 148 | BT95: =IFERROR(VLOOKUP(C95,Reputation!$A$2:$G$181,7,FALSE),0) -> 85 | BU95: =MAX(BR95*75000+BT95*500000,50000) -> 53,307,500 | BV95: =BS95>BR95 -> TRUE | BW95: =B95 -> Serie A
B96: LaLiga | C96: Celta Vigo | D96: 19 | E96: Marcos Alonso | F96: Outfield | G96: 34 | H96: ESP | BF96: 13.0 | BG96: 13.5 | BH96: 13.3 | BI96: 12.5 | BJ96: 13.8 | BK96: 11.5 | BL96: 13.3 | BM96: 12.0 | BN96: 14.2 | BO96: 14.0 | BP96: 13.0 | BQ96: 2.2 | BR96: =IF(F96="GK",BQ96*10,SUM(BF96:BP96)) -> 144 | BS96: 151 | BT96: =IFERROR(VLOOKUP(C96,Reputation!$A$2:$G$181,7,FALSE),0) -> 75 | BU96: =MAX(BR96*75000+BT96*500000,50000) -> 48,307,500 | BV96: =BS96>BR96 -> TRUE | BW96: =B96 -> LaLiga
B97: Serie A | C97: Fiorentina | D97: 7 | E97: Cristiano Biraghi | F97: Outfield | G97: 32 | H97: ITA | BF97: 14.7 | BG97: 11.0 | BH97: 13.0 | BI97: 11.8 | BJ97: 12.0 | BK97: 14.5 | BL97: 14.5 | BM97: 14.0 | BN97: 13.7 | BO97: 11.5 | BP97: 13.3 | BQ97: 2.2 | BR97: =IF(F97="GK",BQ97*10,SUM(BF97:BP97)) -> 144 | BS97: 150 | BT97: =IFERROR(VLOOKUP(C97,Reputation!$A$2:$G$181,7,FALSE),0) -> 90 | BU97: =MAX(BR97*75000+BT97*500000,50000) -> 55,800,000 | BV97: =BS97>BR97 -> TRUE | BW97: =B97 -> Serie A
B98: Premier League | C98: Fulham | D98: 5 | E98: Bernd Leno | F98: GK | G98: 33 | H98: GER | BF98: 6.7 | BG98: 2.5 | BH98: 5.7 | BI98: 6.5 | BJ98: 12.4 | BK98: 12.5 | BL98: 3.8 | BM98: 11.5 | BN98: 12.3 | BO98: 10.0 | BP98: 11.3 | BQ98: 14.4 | BR98: =IF(F98="GK",BQ98*10,SUM(BF98:BP98)) -> 144 | BS98: 163 | BT98: =IFERROR(VLOOKUP(C98,Reputation!$A$2:$G$181,7,FALSE),0) -> 93.5 | BU98: =MAX(BR98*75000+BT98*500000,50000) -> 57,550,000 | BV98: =BS98>BR98 -> TRUE | BW98: =B98 -> Premier League
B99: Serie A | C99: Juventus | D99: 6 | E99: Dušan Vlahović | F99: Outfield | G99: 25 | H99: SRB | BF99: 10.3 | BG99: 15.5 | BH99: 6.0 | BI99: 13.3 | BJ99: 15.8 | BK99: 12.5 | BL99: 11.3 | BM99: 13.5 | BN99: 14.5 | BO99: 15.0 | BP99: 16.3 | BQ99: 2.1 | BR99: =IF(F99="GK",BQ99*10,SUM(BF99:BP99)) -> 144 | BS99: 165 | BT99: =IFERROR(VLOOKUP(C99,Reputation!$A$2:$G$181,7,FALSE),0) -> 90 | BU99: =MAX(BR99*75000+BT99*500000,50000) -> 55,800,000 | BV99: =BS99>BR99 -> TRUE | BW99: =B99 -> Serie A
B100: Premier League | C100: Chelsea | D100: 9 | E100: Enzo Fernández | F100: Outfield | G100: 24 | H100: ARG | BF100: 15.0 | BG100: 14.0 | BH100: 12.3 | BI100: 14.5 | BJ100: 14.0 | BK100: 13.5 | BL100: 10.8 | BM100: 12.0 | BN100: 15.7 | BO100: 8.5 | BP100: 13.7 | BQ100: 2.2 | BR100: =IF(F100="GK",BQ100*10,SUM(BF100:BP100)) -> 144 | BS100: 174 | BT100: =IFERROR(VLOOKUP(C100,Reputation!$A$2:$G$181,7,FALSE),0) -> 98 | BU100: =MAX(BR100*75000+BT100*500000,50000) -> 59,800,000 | BV100: =BS100>BR100 -> TRUE | BW100: =B100 -> Premier League
B101: Premier League | C101: Manchester City | D101: 19 | E101: Rúben Dias | F101: Outfield | G101: 28 | H101: POR | BF101: 12.7 | BG101: 5.0 | BH101: 17.3 | BI101: 11.5 | BJ101: 16.0 | BK101: 16.5 | BL101: 5.5 | BM101: 13.0 | BN101: 14.3 | BO101: 15.5 | BP101: 16.7 | BQ101: 2.0 | BR101: =IF(F101="GK",BQ101*10,SUM(BF101:BP101)) -> 144 | BS101: 177 | BT101: =IFERROR(VLOOKUP(C101,Reputation!$A$2:$G$181,7,FALSE),0) -> 100 | BU101: =MAX(BR101*75000+BT101*500000,50000) -> 60,800,000 | BV101: =BS101>BR101 -> TRUE | BW101: =B101 -> Premier League
B102: Premier League | C102: Arsenal | D102: 26 | E102: William Saliba | F102: Outfield | G102: 24 | H102: FRA | BF102: 11.7 | BG102: 10.0 | BH102: 15.0 | BI102: 12.3 | BJ102: 15.8 | BK102: 13.5 | BL102: 7.0 | BM102: 14.0 | BN102: 13.7 | BO102: 16.0 | BP102: 15.0 | BQ102: 2.1 | BR102: =IF(F102="GK",BQ102*10,SUM(BF102:BP102)) -> 144 | BS102: 182 | BT102: =IFERROR(VLOOKUP(C102,Reputation!$A$2:$G$181,7,FALSE),0) -> 98.5 | BU102: =MAX(BR102*75000+BT102*500000,50000) -> 60,050,000 | BV102: =BS102>BR102 -> TRUE | BW102: =B102 -> Premier League
B103: Premier League | C103: Tottenham | D103: 20 | E103: Pierre-Emile Højbjerg | F103: Outfield | G103: 29 | H103: DEN | BF103: 12.3 | BG103: 10 | BH103: 12.3 | BI103: 12.5 | BJ103: 14.6 | BK103: 16.5 | BL103: 12 | BM103: 12.5 | BN103: 15.5 | BO103: 10 | BP103: 15.7 | BQ103: 1.8 | BR103: =IF(F103="GK",BQ103*10,SUM(BF103:BP103)) -> 144 | BS103: 165 | BT103: =IFERROR(VLOOKUP(C103,Reputation!$A$2:$G$181,7,FALSE),0) -> 97 | BU103: =MAX(BR103*75000+BT103*500000,50000) -> 59292500 | BV103: =BS103>BR103 -> TRUE | BW103: =B103 -> Premier League
B104: LaLiga | C104: Athletic Madrid | D104: 26 | E104: Saúl | F104: Outfield | G104: 30 | H104: ESP | BF104: 14.0 | BG104: 12.5 | BH104: 13.7 | BI104: 14.8 | BJ104: 13.4 | BK104: 13.5 | BL104: 11.3 | BM104: 13.0 | BN104: 13.2 | BO104: 14.0 | BP104: 10.3 | BQ104: 2.5 | BR104: =IF(F104="GK",BQ104*10,SUM(BF104:BP104)) -> 144 | BS104: 162 | BT104: =IFERROR(VLOOKUP(C104,Reputation!$A$2:$G$181,7,FALSE),0) -> 90 | BU104: =MAX(BR104*75000+BT104*500000,50000) -> 55,777,500 | BV104: =BS104>BR104 -> TRUE | BW104: =B104 -> LaLiga
B105: LaLiga | C105: Barcelona | D105: 12 | E105: Gavi | F105: Outfield | G105: 20 | H105: ESP | BF105: 14.3 | BG105: 11.0 | BH105: 12.3 | BI105: 14.8 | BJ105: 15.0 | BK105: 14.5 | BL105: 10.0 | BM105: 13.5 | BN105: 16.0 | BO105: 6.0 | BP105: 16.3 | BQ105: 2.4 | BR105: =IF(F105="GK",BQ105*10,SUM(BF105:BP105)) -> 144 | BS105: 169 | BT105: =IFERROR(VLOOKUP(C105,Reputation!$A$2:$G$181,7,FALSE),0) -> 95 | BU105: =MAX(BR105*75000+BT105*500000,50000) -> 58,277,500 | BV105: =BS105>BR105 -> TRUE | BW105: =B105 -> LaLiga
B106: LaLiga | C106: Sevilla | D106: 17 | E106: Nemanja Gudelj | F106: Outfield | G106: 33 | H106: SRB | BF106: 11.7 | BG106: 12.5 | BH106: 12.7 | BI106: 11.8 | BJ106: 13.6 | BK106: 14.5 | BL106: 10.3 | BM106: 13 | BN106: 13.7 | BO106: 14.5 | BP106: 15.3 | BQ106: 2.2 | BR106: =IF(F106="GK",BQ106*10,SUM(BF106:BP106)) -> 144 | BS106: 144 | BT106: =IFERROR(VLOOKUP(C106,Reputation!$A$2:$G$181,7,FALSE),0) -> 85 | BU106: =MAX(BR106*75000+BT106*500000,50000) -> 53270000 | BV106: =BS106>BR106 -> TRUE | BW106: =B106 -> LaLiga
B107: Ligue 1 | C107: Paris Saint-Germain | D107: 15 | E107: Marquinhos | F107: Outfield | G107: 31 | H107: BRA | BF107: 12.7 | BG107: 9.0 | BH107: 16.0 | BI107: 11.5 | BJ107: 16.0 | BK107: 16.0 | BL107: 5.8 | BM107: 13.5 | BN107: 13.8 | BO107: 15.0 | BP107: 14.3 | BQ107: 2.8 | BR107: =IF(F107="GK",BQ107*10,SUM(BF107:BP107)) -> 144 | BS107: 165 | BT107: =IFERROR(VLOOKUP(C107,Reputation!$A$2:$G$181,7,FALSE),0) -> 90 | BU107: =MAX(BR107*75000+BT107*500000,50000) -> 55,770,000 | BV107: =BS107>BR107 -> TRUE | BW107: =B107 -> Ligue 1
B108: LaLiga | C108: Real Madrid | D108: 25 | E108: Rodrygo | F108: Outfield | G108: 24 | H108: BRA | BF108: 13.3 | BG108: 15.5 | BH108: 7.0 | BI108: 15.5 | BJ108: 14.4 | BK108: 12.5 | BL108: 11.3 | BM108: 15.5 | BN108: 15.3 | BO108: 10.5 | BP108: 12.7 | BQ108: 2.5 | BR108: =IF(F108="GK",BQ108*10,SUM(BF108:BP108)) -> 144 | BS108: 178 | BT108: =IFERROR(VLOOKUP(C108,Reputation!$A$2:$G$181,7,FALSE),0) -> 95 | BU108: =MAX(BR108*75000+BT108*500000,50000) -> 58,262,500 | BV108: =BS108>BR108 -> TRUE | BW108: =B108 -> LaLiga
B109: Serie A | C109: Inter Milan | D109: 9 | E109: Hakan Çalhanoğlu | F109: Outfield | G109: 31 | H109: TUR | BF109: 17.3 | BG109: 15.0 | BH109: 11.7 | BI109: 15.0 | BJ109: 14.2 | BK109: 13.5 | BL109: 14.5 | BM109: 12.0 | BN109: 13.2 | BO109: 7.0 | BP109: 10.0 | BQ109: 1.7 | BR109: =IF(F109="GK",BQ109*10,SUM(BF109:BP109)) -> 143 | BS109: 160 | BT109: =IFERROR(VLOOKUP(C109,Reputation!$A$2:$G$181,7,FALSE),0) -> 90 | BU109: =MAX(BR109*75000+BT109*500000,50000) -> 55,755,000 | BV109: =BS109>BR109 -> TRUE | BW109: =B109 -> Serie A
B110: Serie A | C110: Bologna | D110: 14 | E110: Lewis Ferguson | F110: Outfield | G110: 25 | H110: SCO | BF110: 11.7 | BG110: 13.0 | BH110: 13.7 | BI110: 12.0 | BJ110: 13.6 | BK110: 13.0 | BL110: 9.3 | BM110: 13.0 | BN110: 15.7 | BO110: 13.0 | BP110: 15.3 | BQ110: 1.7 | BR110: =IF(F110="GK",BQ110*10,SUM(BF110:BP110)) -> 143 | BS110: 155 | BT110: =IFERROR(VLOOKUP(C110,Reputation!$A$2:$G$181,7,FALSE),0) -> 80 | BU110: =MAX(BR110*75000+BT110*500000,50000) -> 50,747,500 | BV110: =BS110>BR110 -> TRUE | BW110: =B110 -> Serie A
B111: Bundesliga | C111: FC Bayern Munich | D111: 17 | E111: Leroy Sané | F111: Outfield | G111: 29 | H111: GER | BF111: 14.7 | BG111: 15.5 | BH111: 7.7 | BI111: 16.5 | BJ111: 13.6 | BK111: 10.5 | BL111: 12.3 | BM111: 17.5 | BN111: 13.8 | BO111: 9.5 | BP111: 11.7 | BQ111: 2.1 | BR111: =IF(F111="GK",BQ111*10,SUM(BF111:BP111)) -> 143 | BS111: 172 | BT111: =IFERROR(VLOOKUP(C111,Reputation!$A$2:$G$181,7,FALSE),0) -> 95 | BU111: =MAX(BR111*75000+BT111*500000,50000) -> 58,247,500 | BV111: =BS111>BR111 -> TRUE | BW111: =B111 -> Bundesliga
B112: Premier League | C112: Aston Villa | D112: 27 | E112: Tyrone Mings | F112: Outfield | G112: 32 | H112: ENG | BF112: 12.3 | BG112: 7.5 | BH112: 14.3 | BI112: 12.5 | BJ112: 13.8 | BK112: 16.5 | BL112: 7.0 | BM112: 14.5 | BN112: 14.0 | BO112: 15.5 | BP112: 15.3 | BQ112: 2.0 | BR112: =IF(F112="GK",BQ112*10,SUM(BF112:BP112)) -> 143 | BS112: 145 | BT112: =IFERROR(VLOOKUP(C112,Reputation!$A$2:$G$181,7,FALSE),0) -> 96.5 | BU112: =MAX(BR112*75000+BT112*500000,50000) -> 58,990,000 | BV112: =BS112>BR112 -> TRUE | BW112: =B112 -> Premier League
B113: LaLiga | C113: Valencia | D113: 16 | E113: José Gayà | F113: Outfield | G113: 30 | H113: ESP | BF113: 14.3 | BG113: 9.5 | BH113: 13.3 | BI113: 14.5 | BJ113: 15.0 | BK113: 15.5 | BL113: 12.3 | BM113: 16.0 | BN113: 14.8 | BO113: 6.0 | BP113: 12.0 | BQ113: 2.3 | BR113: =IF(F113="GK",BQ113*10,SUM(BF113:BP113)) -> 143 | BS113: 160 | BT113: =IFERROR(VLOOKUP(C113,Reputation!$A$2:$G$181,7,FALSE),0) -> 90 | BU113: =MAX(BR113*75000+BT113*500000,50000) -> 55,740,000 | BV113: =BS113>BR113 -> TRUE | BW113: =B113 -> LaLiga
B114: Ligue 1 | C114: Paris Saint-Germain | D114: 10 | E114: João Neves | F114: Outfield | G114: 20 | H114: POR | BF114: 13.3 | BG114: 11.0 | BH114: 11.0 | BI114: 14.0 | BJ114: 14.6 | BK114: 13.0 | BL114: 11.0 | BM114: 13.0 | BN114: 15.2 | BO114: 12.0 | BP114: 15.0 | BQ114: 2.6 | BR114: =IF(F114="GK",BQ114*10,SUM(BF114:BP114)) -> 143 | BS114: 157 | BT114: =IFERROR(VLOOKUP(C114,Reputation!$A$2:$G$181,7,FALSE),0) -> 90 | BU114: =MAX(BR114*75000+BT114*500000,50000) -> 55,732,500 | BV114: =BS114>BR114 -> TRUE | BW114: =B114 -> Ligue 1
B115: Premier League | C115: Liverpool | D115: 25 | E115: Wataru Endo | F115: Outfield | G115: 32 | H115: JPN | BF115: 11.3 | BG115: 10.5 | BH115: 14.3 | BI115: 12.0 | BJ115: 15.0 | BK115: 17.5 | BL115: 7.8 | BM115: 12.0 | BN115: 15.2 | BO115: 13.5 | BP115: 14.0 | BQ115: 2.0 | BR115: =IF(F115="GK",BQ115*10,SUM(BF115:BP115)) -> 143 | BS115: 145 | BT115: =IFERROR(VLOOKUP(C115,Reputation!$A$2:$G$181,7,FALSE),0) -> 99.5 | BU115: =MAX(BR115*75000+BT115*500000,50000) -> 60,482,500 | BV115: =BS115>BR115 -> TRUE | BW115: =B115 -> Premier League
B116: Bundesliga | C116: FC Bayern Munich | D116: 5 | E116: Dayot Upamecano | F116: Outfield | G116: 26 | H116: FRA | BF116: 13.0 | BG116: 7.0 | BH116: 15.7 | BI116: 12.5 | BJ116: 14.6 | BK116: 14.0 | BL116: 5.8 | BM116: 16.0 | BN116: 13.3 | BO116: 14.5 | BP116: 16.7 | BQ116: 2.4 | BR116: =IF(F116="GK",BQ116*10,SUM(BF116:BP116)) -> 143 | BS116: 168 | BT116: =IFERROR(VLOOKUP(C116,Reputation!$A$2:$G$181,7,FALSE),0) -> 95 | BU116: =MAX(BR116*75000+BT116*500000,50000) -> 58,232,500 | BV116: =BS116>BR116 -> TRUE | BW116: =B116 -> Bundesliga
B117: Premier League | C117: Manchester United | D117: 20 | E117: Matthijs de Ligt | F117: Outfield | G117: 25 | H117: NED | BF117: 10.7 | BG117: 10.0 | BH117: 16.0 | BI117: 10.5 | BJ117: 13.8 | BK117: 15.5 | BL117: 7.3 | BM117: 13.0 | BN117: 13.0 | BO117: 16.0 | BP117: 17.3 | BQ117: 1.6 | BR117: =IF(F117="GK",BQ117*10,SUM(BF117:BP117)) -> 143 | BS117: 173 | BT117: =IFERROR(VLOOKUP(C117,Reputation!$A$2:$G$181,7,FALSE),0) -> 99 | BU117: =MAX(BR117*75000+BT117*500000,50000) -> 60,232,500 | BV117: =BS117>BR117 -> TRUE | BW117: =B117 -> Premier League
B118: Premier League | C118: Arsenal | D118: 20 | E118: Oleksandr Zinchenko | F118: Outfield | G118: 28 | H118: UKR | BF118: 14.3 | BG118: 11.5 | BH118: 11.7 | BI118: 14.5 | BJ118: 14.6 | BK118: 15.0 | BL118: 10.8 | BM118: 13.5 | BN118: 14.5 | BO118: 11.0 | BP118: 11.7 | BQ118: 2.1 | BR118: =IF(F118="GK",BQ118*10,SUM(BF118:BP118)) -> 143 | BS118: 165 | BT118: =IFERROR(VLOOKUP(C118,Reputation!$A$2:$G$181,7,FALSE),0) -> 98.5 | BU118: =MAX(BR118*75000+BT118*500000,50000) -> 59,982,500 | BV118: =BS118>BR118 -> TRUE | BW118: =B118 -> Premier League
B119: Serie A | C119: Inter Milan | D119: 6 | E119: Denzel Dumfries | F119: Outfield | G119: 29 | H119: NED | BF119: 12.0 | BG119: 11.5 | BH119: 11.7 | BI119: 11.8 | BJ119: 12.4 | BK119: 11.0 | BL119: 9.8 | BM119: 17.5 | BN119: 15.0 | BO119: 15.0 | BP119: 15.3 | BQ119: 1.9 | BR119: =IF(F119="GK",BQ119*10,SUM(BF119:BP119)) -> 143 | BS119: 158 | BT119: =IFERROR(VLOOKUP(C119,Reputation!$A$2:$G$181,7,FALSE),0) -> 90 | BU119: =MAX(BR119*75000+BT119*500000,50000) -> 55,725,000 | BV119: =BS119>BR119 -> TRUE | BW119: =B119 -> Serie A
B120: Serie A | C120: Napoli | D120: 5 | E120: André-Franck Zambo Anguissa | F120: Outfield | G120: 29 | H120: CMR | BF120: 13.0 | BG120: 11.0 | BH120: 14.0 | BI120: 15.5 | BJ120: 15.0 | BK120: 13.0 | BL120: 5.5 | BM120: 14.0 | BN120: 15.3 | BO120: 12.0 | BP120: 14.7 | BQ120: 2.2 | BR120: =IF(F120="GK",BQ120*10,SUM(BF120:BP120)) -> 143 | BS120: 162 | BT120: =IFERROR(VLOOKUP(C120,Reputation!$A$2:$G$181,7,FALSE),0) -> 85 | BU120: =MAX(BR120*75000+BT120*500000,50000) -> 53,225,000 | BV120: =BS120>BR120 -> TRUE | BW120: =B120 -> Serie A
B121: LaLiga | C121: Real Madrid | D121: 27 | E121: Thibaut Courtois | F121: GK | G121: 33 | H121: BEL | BF121: 8.3 | BG121: 2.0 | BH121: 7.0 | BI121: 11.5 | BJ121: 15.0 | BK121: 13.5 | BL121: 4.0 | BM121: 11.5 | BN121: 10.0 | BO121: 14.0 | BP121: 12.3 | BQ121: 14.3 | BR121: =IF(F121="GK",BQ121*10,SUM(BF121:BP121)) -> 143 | BS121: 181 | BT121: =IFERROR(VLOOKUP(C121,Reputation!$A$2:$G$181,7,FALSE),0) -> 95 | BU121: =MAX(BR121*75000+BT121*500000,50000) -> 58,225,000 | BV121: =BS121>BR121 -> TRUE | BW121: =B121 -> LaLiga
B122: LaLiga | C122: Real Madrid | D122: 19 | E122: Kylian Mbappé | F122: Outfield | G122: 26 | H122: FRA | BF122: 14.0 | BG122: 16.0 | BH122: 3.7 | BI122: 17.8 | BJ122: 16.2 | BK122: 11.5 | BL122: 11.3 | BM122: 20.0 | BN122: 14.7 | BO122: 8.0 | BP122: 9.7 | BQ122: 2.0 | BR122: =IF(F122="GK",BQ122*10,SUM(BF122:BP122)) -> 143 | BS122: 197 | BT122: =IFERROR(VLOOKUP(C122,Reputation!$A$2:$G$181,7,FALSE),0) -> 95 | BU122: =MAX(BR122*75000+BT122*500000,50000) -> 58,217,500 | BV122: =BS122>BR122 -> TRUE | BW122: =B122 -> LaLiga
B123: Serie A | C123: Inter Milan | D123: 5 | E123: Davide Frattesi | F123: Outfield | G123: 25 | H123: ITA | BF123: 12.0 | BG123: 14.5 | BH123: 11.3 | BI123: 13.8 | BJ123: 15.0 | BK123: 12.5 | BL123: 7.0 | BM123: 15.0 | BN123: 15.2 | BO123: 13.5 | BP123: 13.0 | BQ123: 2.4 | BR123: =IF(F123="GK",BQ123*10,SUM(BF123:BP123)) -> 143 | BS123: 164 | BT123: =IFERROR(VLOOKUP(C123,Reputation!$A$2:$G$181,7,FALSE),0) -> 90 | BU123: =MAX(BR123*75000+BT123*500000,50000) -> 55,710,000 | BV123: =BS123>BR123 -> TRUE | BW123: =B123 -> Serie A
B124: Premier League | C124: Newcastle United | D124: 7 | E124: Fabian Schär | F124: Outfield | G124: 33 | H124: SUI | BF124: 13.3 | BG124: 11.0 | BH124: 15.7 | BI124: 12.3 | BJ124: 14.0 | BK124: 13.5 | BL124: 10.0 | BM124: 11.5 | BN124: 11.3 | BO124: 14.5 | BP124: 15.7 | BQ124: 2.0 | BR124: =IF(F124="GK",BQ124*10,SUM(BF124:BP124)) -> 143 | BS124: 148 | BT124: =IFERROR(VLOOKUP(C124,Reputation!$A$2:$G$181,7,FALSE),0) -> 97.5 | BU124: =MAX(BR124*75000+BT124*500000,50000) -> 59,460,000 | BV124: =BS124>BR124 -> TRUE | BW124: =B124 -> Premier League
B125: Premier League | C125: West Ham | D125: 23 | E125: Niclas Füllkrug | F125: Outfield | G125: 32 | H125: GER | BF125: 11.3 | BG125: 14.0 | BH125: 7.0 | BI125: 12.5 | BJ125: 14.8 | BK125: 15.0 | BL125: 10.3 | BM125: 12.0 | BN125: 14.2 | BO125: 16.0 | BP125: 15.7 | BQ125: 2.1 | BR125: =IF(F125="GK",BQ125*10,SUM(BF125:BP125)) -> 143 | BS125: 150 | BT125: =IFERROR(VLOOKUP(C125,Reputation!$A$2:$G$181,7,FALSE),0) -> 96 | BU125: =MAX(BR125*75000+BT125*500000,50000) -> 58,710,000 | BV125: =BS125>BR125 -> TRUE | BW125: =B125 -> Premier League
B126: Premier League | C126: Liverpool | D126: 3 | E126: Andrew Robertson | F126: Outfield | G126: 31 | H126: SCO | BF126: 14.0 | BG126: 5.0 | BH126: 14.0 | BI126: 13.0 | BJ126: 14.8 | BK126: 15.5 | BL126: 10.8 | BM126: 16.0 | BN126: 15.5 | BO126: 9.5 | BP126: 14.7 | BQ126: 2.3 | BR126: =IF(F126="GK",BQ126*10,SUM(BF126:BP126)) -> 143 | BS126: 165 | BT126: =IFERROR(VLOOKUP(C126,Reputation!$A$2:$G$181,7,FALSE),0) -> 99.5 | BU126: =MAX(BR126*75000+BT126*500000,50000) -> 60,460,000 | BV126: =BS126>BR126 -> TRUE | BW126: =B126 -> Premier League
B127: Premier League | C127: Brentford | D127: 28 | E127: Vitaly Janelt | F127: Outfield | G127: 27 | H127: GER | BF127: 13.3 | BG127: 12.5 | BH127: 13.0 | BI127: 12.0 | BJ127: 13.8 | BK127: 13.5 | BL127: 10.8 | BM127: 12.0 | BN127: 14.0 | BO127: 12.5 | BP127: 15.3 | BQ127: 2.1 | BR127: =IF(F127="GK",BQ127*10,SUM(BF127:BP127)) -> 143 | BS127: 148 | BT127: =IFERROR(VLOOKUP(C127,Reputation!$A$2:$G$181,7,FALSE),0) -> 93 | BU127: =MAX(BR127*75000+BT127*500000,50000) -> 57,202,500 | BV127: =BS127>BR127 -> TRUE | BW127: =B127 -> Premier League
B128: Ligue 1 | C128: Paris Saint-Germain | D128: 7 | E128: Fabián | F128: Outfield | G128: 29 | H128: ESP | BF128: 14.3 | BG128: 14.0 | BH128: 13.3 | BI128: 15.3 | BJ128: 13.6 | BK128: 13.0 | BL128: 9.3 | BM128: 11.5 | BN128: 14.2 | BO128: 12.5 | BP128: 11.7 | BQ128: 1.9 | BR128: =IF(F128="GK",BQ128*10,SUM(BF128:BP128)) -> 143 | BS128: 157 | BT128: =IFERROR(VLOOKUP(C128,Reputation!$A$2:$G$181,7,FALSE),0) -> 90 | BU128: =MAX(BR128*75000+BT128*500000,50000) -> 55,702,500 | BV128: =BS128>BR128 -> TRUE | BW128: =B128 -> Ligue 1
B129: Premier League | C129: Tottenham | D129: 23 | E129: Rodrigo Bentancur | F129: Outfield | G129: 28 | H129: URU | BF129: 14.0 | BG129: 10.5 | BH129: 15.3 | BI129: 13.5 | BJ129: 13.8 | BK129: 12.5 | BL129: 9.8 | BM129: 12.5 | BN129: 14.0 | BO129: 12.5 | BP129: 14.3 | BQ129: 1.8 | BR129: =IF(F129="GK",BQ129*10,SUM(BF129:BP129)) -> 143 | BS129: 164 | BT129: =IFERROR(VLOOKUP(C129,Reputation!$A$2:$G$181,7,FALSE),0) -> 97 | BU129: =MAX(BR129*75000+BT129*500000,50000) -> 59,202,500 | BV129: =BS129>BR129 -> TRUE | BW129: =B129 -> Premier League
B130: LaLiga | C130: Barcelona | D130: 14 | E130: Íñigo Martínez | F130: Outfield | G130: 34 | H130: ESP | BF130: 11.7 | BG130: 12.0 | BH130: 16.0 | BI130: 12.3 | BJ130: 13.4 | BK130: 14.5 | BL130: 8.3 | BM130: 13.5 | BN130: 12.0 | BO130: 13.0 | BP130: 16.0 | BQ130: 2.1 | BR130: =IF(F130="GK",BQ130*10,SUM(BF130:BP130)) -> 143 | BS130: 165 | BT130: =IFERROR(VLOOKUP(C130,Reputation!$A$2:$G$181,7,FALSE),0) -> 95 | BU130: =MAX(BR130*75000+BT130*500000,50000) -> 58,202,500 | BV130: =BS130>BR130 -> TRUE | BW130: =B130 -> LaLiga
B131: Premier League | C131: Manchester United | D131: 19 | E131: Mason Mount | F131: Outfield | G131: 26 | H131: ENG | BF131: 12.7 | BG131: 13 | BH131: 10.7 | BI131: 13.3 | BJ131: 14.4 | BK131: 14.5 | BL131: 12 | BM131: 14.5 | BN131: 15.7 | BO131: 8.5 | BP131: 13.3 | BQ131: 2.2 | BR131: =IF(F131="GK",BQ131*10,SUM(BF131:BP131)) -> 143 | BS131: 170 | BT131: =IFERROR(VLOOKUP(C131,Reputation!$A$2:$G$181,7,FALSE),0) -> 99 | BU131: =MAX(BR131*75000+BT131*500000,50000) -> 60195000 | BV131: =BS131>BR131 -> TRUE | BW131: =B131 -> Premier League
B132: LaLiga | C132: Vilarreal | D132: 6 | E132: Dani Parejo | F132: Outfield | G132: 36 | H132: ESP | BF132: 16.3 | BG132: 14.5 | BH132: 12.0 | BI132: 14.3 | BJ132: 14.8 | BK132: 15.0 | BL132: 13.8 | BM132: 9.5 | BN132: 12.7 | BO132: 9.0 | BP132: 10.7 | BQ132: 2.1 | BR132: =IF(F132="GK",BQ132*10,SUM(BF132:BP132)) -> 143 | BS132: 159 | BT132: =IFERROR(VLOOKUP(C132,Reputation!$A$2:$G$181,7,FALSE),0) -> 90 | BU132: =MAX(BR132*75000+BT132*500000,50000) -> 55,695,000 | BV132: =BS132>BR132 -> TRUE | BW132: =B132 -> LaLiga
B133: Serie A | C133: Juventus | D133: 14 | E133: Khephren Thuram | F133: Outfield | G133: 24 | H133: FRA | BF133: 12.0 | BG133: 12.5 | BH133: 13.0 | BI133: 14.8 | BJ133: 13.2 | BK133: 14.0 | BL133: 6.8 | BM133: 14.5 | BN133: 14.5 | BO133: 13.5 | BP133: 13.7 | BQ133: 2.1 | BR133: =IF(F133="GK",BQ133*10,SUM(BF133:BP133)) -> 143 | BS133: 166 | BT133: =IFERROR(VLOOKUP(C133,Reputation!$A$2:$G$181,7,FALSE),0) -> 90 | BU133: =MAX(BR133*75000+BT133*500000,50000) -> 55,687,500 | BV133: =BS133>BR133 -> TRUE | BW133: =B133 -> Serie A
B134: Premier League | C134: Liverpool | D134: 9 | E134: Dominik Szoboszlai | F134: Outfield | G134: 24 | H134: HUN | BF134: 14.7 | BG134: 13.0 | BH134: 9.0 | BI134: 15.0 | BJ134: 13.6 | BK134: 13.5 | BL134: 13.3 | BM134: 15.5 | BN134: 14.2 | BO134: 9.0 | BP134: 11.7 | BQ134: 2.4 | BR134: =IF(F134="GK",BQ134*10,SUM(BF134:BP134)) -> 143 | BS134: 170 | BT134: =IFERROR(VLOOKUP(C134,Reputation!$A$2:$G$181,7,FALSE),0) -> 99.5 | BU134: =MAX(BR134*75000+BT134*500000,50000) -> 60,437,500 | BV134: =BS134>BR134 -> TRUE | BW134: =B134 -> Premier League
B135: LaLiga | C135: Barcelona | D135: 11 | E135: Frenkie de Jong | F135: Outfield | G135: 28 | H135: NED | BF135: 16.0 | BG135: 10.5 | BH135: 11.3 | BI135: 16.3 | BJ135: 15.6 | BK135: 14.5 | BL135: 10.5 | BM135: 13.5 | BN135: 14.3 | BO135: 10.0 | BP135: 10.0 | BQ135: 1.9 | BR135: =IF(F135="GK",BQ135*10,SUM(BF135:BP135)) -> 143 | BS135: 181 | BT135: =IFERROR(VLOOKUP(C135,Reputation!$A$2:$G$181,7,FALSE),0) -> 95 | BU135: =MAX(BR135*75000+BT135*500000,50000) -> 58,187,500 | BV135: =BS135>BR135 -> TRUE | BW135: =B135 -> LaLiga
B136: Premier League | C136: Chelsea | D136: 5 | E136: Christopher Nkunku | F136: Outfield | G136: 27 | H136: FRA | BF136: 14 | BG136: 14 | BH136: 8 | BI136: 16 | BJ136: 14.4 | BK136: 10 | BL136: 12.8 | BM136: 15.5 | BN136: 14 | BO136: 11 | BP136: 12.7 | BQ136: 2.2 | BR136: =IF(F136="GK",BQ136*10,SUM(BF136:BP136)) -> 142 | BS136: 172 | BT136: =IFERROR(VLOOKUP(C136,Reputation!$A$2:$G$181,7,FALSE),0) -> 98 | BU136: =MAX(BR136*75000+BT136*500000,50000) -> 59680000 | BV136: =BS136>BR136 -> TRUE | BW136: =B136 -> Premier League
B137: Premier League | C137: West Ham | D137: 8 | E137: Edson Álvarez | F137: Outfield | G137: 27 | H137: MEX | BF137: 11.7 | BG137: 9.5 | BH137: 15.0 | BI137: 11.8 | BJ137: 14.4 | BK137: 15.0 | BL137: 7.8 | BM137: 12.0 | BN137: 14.7 | BO137: 14.5 | BP137: 15.7 | BQ137: 2.5 | BR137: =IF(F137="GK",BQ137*10,SUM(BF137:BP137)) -> 142 | BS137: 155 | BT137: =IFERROR(VLOOKUP(C137,Reputation!$A$2:$G$181,7,FALSE),0) -> 96 | BU137: =MAX(BR137*75000+BT137*500000,50000) -> 58,657,500 | BV137: =BS137>BR137 -> TRUE | BW137: =B137 -> Premier League
B138: LaLiga | C138: Barcelona | D138: 15 | E138: Jules Koundé | F138: Outfield | G138: 26 | H138: FRA | BF138: 13.3 | BG138: 8 | BH138: 15.3 | BI138: 12.5 | BJ138: 14.4 | BK138: 14 | BL138: 6.8 | BM138: 14.5 | BN138: 15 | BO138: 14 | BP138: 14.3 | BQ138: 2 | BR138: =IF(F138="GK",BQ138*10,SUM(BF138:BP138)) -> 142 | BS138: 175 | BT138: =IFERROR(VLOOKUP(C138,Reputation!$A$2:$G$181,7,FALSE),0) -> 95 | BU138: =MAX(BR138*75000+BT138*500000,50000) -> 58157500 | BV138: =BS138>BR138 -> TRUE | BW138: =B138 -> LaLiga
B139: Premier League | C139: Manchester City | D139: 9 | E139: Joško Gvardiol | F139: Outfield | G139: 23 | H139: CRO | BF139: 13.7 | BG139: 7.5 | BH139: 14.0 | BI139: 13.3 | BJ139: 14.8 | BK139: 14.5 | BL139: 6.8 | BM139: 14.5 | BN139: 14.0 | BO139: 13.0 | BP139: 16.0 | BQ139: 1.7 | BR139: =IF(F139="GK",BQ139*10,SUM(BF139:BP139)) -> 142 | BS139: 178 | BT139: =IFERROR(VLOOKUP(C139,Reputation!$A$2:$G$181,7,FALSE),0) -> 100 | BU139: =MAX(BR139*75000+BT139*500000,50000) -> 60,657,500 | BV139: =BS139>BR139 -> TRUE | BW139: =B139 -> Premier League
B140: Premier League | C140: Everton | D140: 18 | E140: Jordan Pickford | F140: GK | G140: 31 | H140: ENG | BF140: 10.0 | BG140: 2.0 | BH140: 6.0 | BI140: 7.8 | BJ140: 13.2 | BK140: 12.0 | BL140: 4.3 | BM140: 8.0 | BN140: 11.5 | BO140: 11.0 | BP140: 15.3 | BQ140: 14.2 | BR140: =IF(F140="GK",BQ140*10,SUM(BF140:BP140)) -> 142 | BS140: 152 | BT140: =IFERROR(VLOOKUP(C140,Reputation!$A$2:$G$181,7,FALSE),0) -> 94 | BU140: =MAX(BR140*75000+BT140*500000,50000) -> 57,650,000 | BV140: =BS140>BR140 -> TRUE | BW140: =B140 -> Premier League
B141: Premier League | C141: Brighton & Hove Albion | D141: 26 | E141: Pervis Estupiñán | F141: Outfield | G141: 27 | H141: ECU | BF141: 13.3 | BG141: 12 | BH141: 12.7 | BI141: 14.3 | BJ141: 13 | BK141: 12.5 | BL141: 11 | BM141: 15.5 | BN141: 15 | BO141: 10 | BP141: 12.7 | BQ141: 2.2 | BR141: =IF(F141="GK",BQ141*10,SUM(BF141:BP141)) -> 142 | BS141: 158 | BT141: =IFERROR(VLOOKUP(C141,Reputation!$A$2:$G$181,7,FALSE),0) -> 95.5 | BU141: =MAX(BR141*75000+BT141*500000,50000) -> 58400000 | BV141: =BS141>BR141 -> TRUE | BW141: =B141 -> Premier League
B142: Premier League | C142: Southampton | D142: 1 | E142: Aaron Ramsdale | F142: GK | G142: 27 | H142: ENG | BF142: 8.7 | BG142: 1.5 | BH142: 5.3 | BI142: 9.3 | BJ142: 13.2 | BK142: 14 | BL142: 3.8 | BM142: 7.5 | BN142: 11.5 | BO142: 10 | BP142: 14.3 | BQ142: 14.2 | BR142: =IF(F142="GK",BQ142*10,SUM(BF142:BP142)) -> 142 | BS142: 160 | BT142: =IFERROR(VLOOKUP(C142,Reputation!$A$2:$G$181,7,FALSE),0) -> 89.5 | BU142: =MAX(BR142*75000+BT142*500000,50000) -> 55400000 | BV142: =BS142>BR142 -> TRUE | BW142: =B142 -> Premier League
B143: Premier League | C143: Manchester City | D143: 11 | E143: Kyle Walker | F143: Outfield | G143: 35 | H143: ENG | BF143: 12.0 | BG143: 7.5 | BH143: 13.7 | BI143: 12.5 | BJ143: 14.2 | BK143: 15.0 | BL143: 8.3 | BM143: 18.5 | BN143: 15.3 | BO143: 12.0 | BP143: 13.0 | BQ143: 1.7 | BR143: =IF(F143="GK",BQ143*10,SUM(BF143:BP143)) -> 142 | BS143: 164 | BT143: =IFERROR(VLOOKUP(C143,Reputation!$A$2:$G$181,7,FALSE),0) -> 100 | BU143: =MAX(BR143*75000+BT143*500000,50000) -> 60,650,000 | BV143: =BS143>BR143 -> TRUE | BW143: =B143 -> Premier League
B144: LaLiga | C144: Athletic Madrid | D144: 11 | E144: Jan Oblak | F144: GK | G144: 32 | H144: SVN | BF144: 8.3 | BG144: 2.5 | BH144: 6.7 | BI144: 9.8 | BJ144: 14.4 | BK144: 13.5 | BL144: 7.5 | BM144: 12.0 | BN144: 10.2 | BO144: 7.5 | BP144: 11.3 | BQ144: 14.2 | BR144: =IF(F144="GK",BQ144*10,SUM(BF144:BP144)) -> 142 | BS144: 178 | BT144: =IFERROR(VLOOKUP(C144,Reputation!$A$2:$G$181,7,FALSE),0) -> 90 | BU144: =MAX(BR144*75000+BT144*500000,50000) -> 55,650,000 | BV144: =BS144>BR144 -> TRUE | BW144: =B144 -> LaLiga
B145: Bundesliga | C145: Borussia Dortmund | D145: 22 | E145: Salih Özcan | F145: Outfield | G145: 27 | H145: TUR | BF145: 13.0 | BG145: 9.5 | BH145: 13.3 | BI145: 12.5 | BJ145: 14.0 | BK145: 14.0 | BL145: 11.3 | BM145: 13.0 | BN145: 13.8 | BO145: 12.5 | BP145: 15.0 | BQ145: 2.3 | BR145: =IF(F145="GK",BQ145*10,SUM(BF145:BP145)) -> 142 | BS145: 145 | BT145: =IFERROR(VLOOKUP(C145,Reputation!$A$2:$G$181,7,FALSE),0) -> 90 | BU145: =MAX(BR145*75000+BT145*500000,50000) -> 55,642,500 | BV145: =BS145>BR145 -> TRUE | BW145: =B145 -> Bundesliga
B146: Ligue 1 | C146: RC Lens | D146: 9 | E146: Facundo Medina | F146: Outfield | G146: 26 | H146: ARG | BF146: 13.7 | BG146: 8.5 | BH146: 13.3 | BI146: 13.3 | BJ146: 13.4 | BK146: 15.0 | BL146: 9.0 | BM146: 13.5 | BN146: 14.7 | BO146: 13.5 | BP146: 14.0 | BQ146: 2.1 | BR146: =IF(F146="GK",BQ146*10,SUM(BF146:BP146)) -> 142 | BS146: 149 | BT146: =IFERROR(VLOOKUP(C146,Reputation!$A$2:$G$181,7,FALSE),0) -> 70 | BU146: =MAX(BR146*75000+BT146*500000,50000) -> 45,642,500 | BV146: =BS146>BR146 -> TRUE | BW146: =B146 -> Ligue 1
B147: Serie A | C147: Inter Milan | D147: 4 | E147: Carlos Augusto | F147: Outfield | G147: 26 | H147: BRA | BF147: 13.3 | BG147: 12.5 | BH147: 12.7 | BI147: 13.3 | BJ147: 13.2 | BK147: 11.5 | BL147: 11.8 | BM147: 15.0 | BN147: 13.0 | BO147: 11.5 | BP147: 14.0 | BQ147: 2.5 | BR147: =IF(F147="GK",BQ147*10,SUM(BF147:BP147)) -> 142 | BS147: 155 | BT147: =IFERROR(VLOOKUP(C147,Reputation!$A$2:$G$181,7,FALSE),0) -> 90 | BU147: =MAX(BR147*75000+BT147*500000,50000) -> 55,635,000 | BV147: =BS147>BR147 -> TRUE | BW147: =B147 -> Serie A
B148: LaLiga | C148: Real Sociedad | D148: 9 | E148: Brais Méndez | F148: Outfield | G148: 28 | H148: ESP | BF148: 15.0 | BG148: 14.0 | BH148: 9.0 | BI148: 14.5 | BJ148: 15.0 | BK148: 13.5 | BL148: 13.0 | BM148: 13.0 | BN148: 13.7 | BO148: 11.0 | BP148: 10.0 | BQ148: 2.3 | BR148: =IF(F148="GK",BQ148*10,SUM(BF148:BP148)) -> 142 | BS148: 155 | BT148: =IFERROR(VLOOKUP(C148,Reputation!$A$2:$G$181,7,FALSE),0) -> 85 | BU148: =MAX(BR148*75000+BT148*500000,50000) -> 53,127,500 | BV148: =BS148>BR148 -> TRUE | BW148: =B148 -> LaLiga
B149: Serie A | C149: AC Milan | D149: 3 | E149: Álvaro Morata | F149: Outfield | G149: 32 | H149: ESP | BF149: 12.3 | BG149: 14.5 | BH149: 6.0 | BI149: 14.0 | BJ149: 13.8 | BK149: 14.5 | BL149: 8.5 | BM149: 15.0 | BN149: 14.7 | BO149: 15.0 | BP149: 13.3 | BQ149: 2.1 | BR149: =IF(F149="GK",BQ149*10,SUM(BF149:BP149)) -> 142 | BS149: 166 | BT149: =IFERROR(VLOOKUP(C149,Reputation!$A$2:$G$181,7,FALSE),0) -> 90 | BU149: =MAX(BR149*75000+BT149*500000,50000) -> 55,620,000 | BV149: =BS149>BR149 -> TRUE | BW149: =B149 -> Serie A
B150: Ligue 1 | C150: Monaco | D150: 5 | E150: Denis Zakaria | F150: Outfield | G150: 28 | H150: SUI | BF150: 11.0 | BG150: 10.5 | BH150: 14.3 | BI150: 13.0 | BJ150: 12.8 | BK150: 13.5 | BL150: 7.8 | BM150: 14.5 | BN150: 15.2 | BO150: 13.0 | BP150: 16.0 | BQ150: 2.0 | BR150: =IF(F150="GK",BQ150*10,SUM(BF150:BP150)) -> 142 | BS150: 150 | BT150: =IFERROR(VLOOKUP(C150,Reputation!$A$2:$G$181,7,FALSE),0) -> 80 | BU150: =MAX(BR150*75000+BT150*500000,50000) -> 50,620,000 | BV150: =BS150>BR150 -> TRUE | BW150: =B150 -> Ligue 1
B151: Premier League | C151: West Ham | D151: 24 | E151: Tomáš Souček | F151: Outfield | G151: 30 | H151: CZE | BF151: 9.3 | BG151: 13.0 | BH151: 14.7 | BI151: 8.8 | BJ151: 15.0 | BK151: 14.5 | BL151: 4.8 | BM151: 12.5 | BN151: 15.5 | BO151: 17.5 | BP151: 16.0 | BQ151: 2.3 | BR151: =IF(F151="GK",BQ151*10,SUM(BF151:BP151)) -> 142 | BS151: 155 | BT151: =IFERROR(VLOOKUP(C151,Reputation!$A$2:$G$181,7,FALSE),0) -> 96 | BU151: =MAX(BR151*75000+BT151*500000,50000) -> 58,620,000 | BV151: =BS151>BR151 -> TRUE | BW151: =B151 -> Premier League
B152: Premier League | C152: West Ham | D152: 16 | E152: Lucas Paquetá | F152: Outfield | G152: 27 | H152: BRA | BF152: 13.7 | BG152: 12.5 | BH152: 10.7 | BI152: 16.3 | BJ152: 12.8 | BK152: 11.5 | BL152: 11.3 | BM152: 13 | BN152: 14 | BO152: 11.5 | BP152: 14.3 | BQ152: 2.2 | BR152: =IF(F152="GK",BQ152*10,SUM(BF152:BP152)) -> 142 | BS152: 161 | BT152: =IFERROR(VLOOKUP(C152,Reputation!$A$2:$G$181,7,FALSE),0) -> 96 | BU152: =MAX(BR152*75000+BT152*500000,50000) -> 58620000 | BV152: =BS152>BR152 -> TRUE | BW152: =B152 -> Premier League
B153: Serie A | C153: AC Milan | D153: 10 | E153: Ismaël Bennacer | F153: Outfield | G153: 27 | H153: ALG | BF153: 14.0 | BG153: 11.5 | BH153: 14.7 | BI153: 14.8 | BJ153: 14.6 | BK153: 14.0 | BL153: 10.5 | BM153: 13.5 | BN153: 14.3 | BO153: 7.0 | BP153: 12.7 | BQ153: 2.1 | BR153: =IF(F153="GK",BQ153*10,SUM(BF153:BP153)) -> 142 | BS153: 159 | BT153: =IFERROR(VLOOKUP(C153,Reputation!$A$2:$G$181,7,FALSE),0) -> 90 | BU153: =MAX(BR153*75000+BT153*500000,50000) -> 55,620,000 | BV153: =BS153>BR153 -> TRUE | BW153: =B153 -> Serie A
B154: Premier League | C154: Chelsea | D154: 3 | E154: Ben Chilwell | F154: Outfield | G154: 28 | H154: ENG | BF154: 13.3 | BG154: 7.0 | BH154: 14.0 | BI154: 13.5 | BJ154: 13.8 | BK154: 13.0 | BL154: 11.5 | BM154: 15.0 | BN154: 14.3 | BO154: 13.5 | BP154: 12.7 | BQ154: 2.3 | BR154: =IF(F154="GK",BQ154*10,SUM(BF154:BP154)) -> 142 | BS154: 165 | BT154: =IFERROR(VLOOKUP(C154,Reputation!$A$2:$G$181,7,FALSE),0) -> 98 | BU154: =MAX(BR154*75000+BT154*500000,50000) -> 59,620,000 | BV154: =BS154>BR154 -> TRUE | BW154: =B154 -> Premier League
B155: Premier League | C155: Liverpool | D155: 15 | E155: Kostas Tsimikas | F155: Outfield | G155: 29 | H155: GRE | BF155: 15.0 | BG155: 7.0 | BH155: 14.0 | BI155: 14.5 | BJ155: 14.2 | BK155: 12.5 | BL155: 12.5 | BM155: 15.0 | BN155: 14.5 | BO155: 9.0 | BP155: 13.3 | BQ155: 2.4 | BR155: =IF(F155="GK",BQ155*10,SUM(BF155:BP155)) -> 142 | BS155: 159 | BT155: =IFERROR(VLOOKUP(C155,Reputation!$A$2:$G$181,7,FALSE),0) -> 99.5 | BU155: =MAX(BR155*75000+BT155*500000,50000) -> 60,362,500 | BV155: =BS155>BR155 -> TRUE | BW155: =B155 -> Premier League
B156: Premier League | C156: Manchester United | D156: 17 | E156: Manuel Ugarte | F156: Outfield | G156: 24 | H156: URU | BF156: 11.7 | BG156: 9.0 | BH156: 16.0 | BI156: 12.0 | BJ156: 15.6 | BK156: 15.0 | BL156: 8.5 | BM156: 12.5 | BN156: 14.5 | BO156: 10.0 | BP156: 16.7 | BQ156: 2.2 | BR156: =IF(F156="GK",BQ156*10,SUM(BF156:BP156)) -> 142 | BS156: 175 | BT156: =IFERROR(VLOOKUP(C156,Reputation!$A$2:$G$181,7,FALSE),0) -> 99 | BU156: =MAX(BR156*75000+BT156*500000,50000) -> 60,112,500 | BV156: =BS156>BR156 -> TRUE | BW156: =B156 -> Premier League
B157: Bundesliga | C157: Bayer 04 Leverkusen | D157: 25 | E157: Robert Andrich | F157: Outfield | G157: 30 | H157: GER | BF157: 11.0 | BG157: 10.5 | BH157: 14.3 | BI157: 10.5 | BJ157: 14.6 | BK157: 16.0 | BL157: 10.5 | BM157: 11.5 | BN157: 13.3 | BO157: 13.5 | BP157: 15.7 | BQ157: 1.6 | BR157: =IF(F157="GK",BQ157*10,SUM(BF157:BP157)) -> 141 | BS157: 142 | BT157: =IFERROR(VLOOKUP(C157,Reputation!$A$2:$G$181,7,FALSE),0) -> 80 | BU157: =MAX(BR157*75000+BT157*500000,50000) -> 50,605,000 | BV157: =BS157>BR157 -> TRUE | BW157: =B157 -> Bundesliga
B158: LaLiga | C158: Athletic Bilbao | D158: 30 | E158: Yuri | F158: Outfield | G158: 35 | H158: ESP | BF158: 12.7 | BG158: 11.0 | BH158: 14.7 | BI158: 12.0 | BJ158: 13.2 | BK158: 11.5 | BL158: 11.8 | BM158: 13.0 | BN158: 14.2 | BO158: 13.0 | BP158: 14.3 | BQ158: 1.9 | BR158: =IF(F158="GK",BQ158*10,SUM(BF158:BP158)) -> 141 | BS158: 155 | BT158: =IFERROR(VLOOKUP(C158,Reputation!$A$2:$G$181,7,FALSE),0) -> 85 | BU158: =MAX(BR158*75000+BT158*500000,50000) -> 53,105,000 | BV158: =BS158>BR158 -> TRUE | BW158: =B158 -> LaLiga
B159: Serie A | C159: Fiorentina | D159: 22 | E159: Nicolás González | F159: Outfield | G159: 27 | H159: ARG | BF159: 13.7 | BG159: 14.0 | BH159: 5.3 | BI159: 15.3 | BJ159: 13.8 | BK159: 10.0 | BL159: 9.0 | BM159: 16.0 | BN159: 14.0 | BO159: 16.0 | BP159: 14.3 | BQ159: 2.0 | BR159: =IF(F159="GK",BQ159*10,SUM(BF159:BP159)) -> 141 | BS159: 160 | BT159: =IFERROR(VLOOKUP(C159,Reputation!$A$2:$G$181,7,FALSE),0) -> 90 | BU159: =MAX(BR159*75000+BT159*500000,50000) -> 55,605,000 | BV159: =BS159>BR159 -> TRUE | BW159: =B159 -> Serie A
B160: Serie A | C160: Monza | D160: 15 | E160: Matteo Pessina | F160: Outfield | G160: 28 | H160: ITA | BF160: 13.3 | BG160: 12.0 | BH160: 10.3 | BI160: 14.0 | BJ160: 14.2 | BK160: 14.5 | BL160: 8.3 | BM160: 14.0 | BN160: 13.8 | BO160: 13.0 | BP160: 14.0 | BQ160: 1.9 | BR160: =IF(F160="GK",BQ160*10,SUM(BF160:BP160)) -> 141 | BS160: 145 | BT160: =IFERROR(VLOOKUP(C160,Reputation!$A$2:$G$181,7,FALSE),0) -> 70 | BU160: =MAX(BR160*75000+BT160*500000,50000) -> 45,605,000 | BV160: =BS160>BR160 -> TRUE | BW160: =B160 -> Serie A
B161: Serie A | C161: AC Milan | D161: 25 | E161: Ruben Loftus-Cheek | F161: Outfield | G161: 29 | H161: ENG | BF161: 13.0 | BG161: 12.0 | BH161: 12.3 | BI161: 13.0 | BJ161: 13.8 | BK161: 14.5 | BL161: 7.8 | BM161: 13.5 | BN161: 13.8 | BO161: 13.0 | BP161: 14.7 | BQ161: 1.7 | BR161: =IF(F161="GK",BQ161*10,SUM(BF161:BP161)) -> 141 | BS161: 156 | BT161: =IFERROR(VLOOKUP(C161,Reputation!$A$2:$G$181,7,FALSE),0) -> 90 | BU161: =MAX(BR161*75000+BT161*500000,50000) -> 55,605,000 | BV161: =BS161>BR161 -> TRUE | BW161: =B161 -> Serie A
B162: Serie A | C162: Lazio | D162: 7 | E162: Gaetano Castrovilli | F162: Outfield | G162: 28 | H162: ITA | BF162: 13.7 | BG162: 12.5 | BH162: 11.0 | BI162: 15.3 | BJ162: 13.0 | BK162: 13.0 | BL162: 10.5 | BM162: 13.5 | BN162: 12.8 | BO162: 13.0 | BP162: 13.0 | BQ162: 2.0 | BR162: =IF(F162="GK",BQ162*10,SUM(BF162:BP162)) -> 141 | BS162: 145 | BT162: =IFERROR(VLOOKUP(C162,Reputation!$A$2:$G$181,7,FALSE),0) -> 85 | BU162: =MAX(BR162*75000+BT162*500000,50000) -> 53,097,500 | BV162: =BS162>BR162 -> TRUE | BW162: =B162 -> Serie A
B163: Premier League | C163: Ipswich Town | D163: 20 | E163: Kalvin Phillips | F163: Outfield | G163: 29 | H163: ENG | BF163: 13.7 | BG163: 10.0 | BH163: 14.7 | BI163: 11.8 | BJ163: 14.0 | BK163: 12.5 | BL163: 10.3 | BM163: 13.5 | BN163: 14.8 | BO163: 11.0 | BP163: 15.0 | BQ163: 2.5 | BR163: =IF(F163="GK",BQ163*10,SUM(BF163:BP163)) -> 141 | BS163: 156 | BT163: =IFERROR(VLOOKUP(C163,Reputation!$A$2:$G$181,7,FALSE),0) -> 81.5 | BU163: =MAX(BR163*75000+BT163*500000,50000) -> 51,347,500 | BV163: =BS163>BR163 -> TRUE | BW163: =B163 -> Premier League
B164: Premier League | C164: Manchester United | D164: 15 | E164: Lisandro Martínez | F164: Outfield | G164: 27 | H164: ARG | BF164: 12.7 | BG164: 6.5 | BH164: 15.7 | BI164: 12.5 | BJ164: 15.4 | BK164: 13.5 | BL164: 9.0 | BM164: 13.0 | BN164: 13.7 | BO164: 13.0 | BP164: 16.3 | BQ164: 2.1 | BR164: =IF(F164="GK",BQ164*10,SUM(BF164:BP164)) -> 141 | BS164: 165 | BT164: =IFERROR(VLOOKUP(C164,Reputation!$A$2:$G$181,7,FALSE),0) -> 99 | BU164: =MAX(BR164*75000+BT164*500000,50000) -> 60,097,500 | BV164: =BS164>BR164 -> TRUE | BW164: =B164 -> Premier League
B165: Serie A | C165: Roma | D165: 8 | E165: Leandro Paredes | F165: Outfield | G165: 31 | H165: ARG | BF165: 13.3 | BG165: 12.0 | BH165: 13.7 | BI165: 13.3 | BJ165: 13.4 | BK165: 11.0 | BL165: 12.5 | BM165: 14.0 | BN165: 13.3 | BO165: 11.0 | BP165: 13.7 | BQ165: 2.1 | BR165: =IF(F165="GK",BQ165*10,SUM(BF165:BP165)) -> 141 | BS165: 155 | BT165: =IFERROR(VLOOKUP(C165,Reputation!$A$2:$G$181,7,FALSE),0) -> 90 | BU165: =MAX(BR165*75000+BT165*500000,50000) -> 55,590,000 | BV165: =BS165>BR165 -> TRUE | BW165: =B165 -> Serie A
B166: Premier League | C166: Brentford | D166: 6 | E166: Christian Nørgaard | F166: Outfield | G166: 31 | H166: DEN | BF166: 13.3 | BG166: 9.0 | BH166: 14.3 | BI166: 13.0 | BJ166: 14.6 | BK166: 15.0 | BL166: 8.8 | BM166: 12.0 | BN166: 13.8 | BO166: 14.0 | BP166: 13.3 | BQ166: 1.9 | BR166: =IF(F166="GK",BQ166*10,SUM(BF166:BP166)) -> 141 | BS166: 146 | BT166: =IFERROR(VLOOKUP(C166,Reputation!$A$2:$G$181,7,FALSE),0) -> 93 | BU166: =MAX(BR166*75000+BT166*500000,50000) -> 57,082,500 | BV166: =BS166>BR166 -> TRUE | BW166: =B166 -> Premier League
B167: Serie A | C167: Roma | D167: 2 | E167: Artem Dovbyk | F167: Outfield | G167: 28 | H167: UKR | BF167: 10.3 | BG167: 13.0 | BH167: 8.0 | BI167: 12.0 | BJ167: 14.6 | BK167: 13.5 | BL167: 9.3 | BM167: 14.0 | BN167: 15.7 | BO167: 16.0 | BP167: 14.7 | BQ167: 1.6 | BR167: =IF(F167="GK",BQ167*10,SUM(BF167:BP167)) -> 141 | BS167: 155 | BT167: =IFERROR(VLOOKUP(C167,Reputation!$A$2:$G$181,7,FALSE),0) -> 90 | BU167: =MAX(BR167*75000+BT167*500000,50000) -> 55,582,500 | BV167: =BS167>BR167 -> TRUE | BW167: =B167 -> Serie A
B168: Serie A | C168: Lazio | D168: 17 | E168: Matteo Guendouzi | F168: Outfield | G168: 26 | H168: FRA | BF168: 14.7 | BG168: 10.0 | BH168: 13.3 | BI168: 14.8 | BJ168: 13.4 | BK168: 13.5 | BL168: 7.5 | BM168: 14.0 | BN168: 14.7 | BO168: 11.5 | BP168: 13.7 | BQ168: 1.9 | BR168: =IF(F168="GK",BQ168*10,SUM(BF168:BP168)) -> 141 | BS168: 160 | BT168: =IFERROR(VLOOKUP(C168,Reputation!$A$2:$G$181,7,FALSE),0) -> 85 | BU168: =MAX(BR168*75000+BT168*500000,50000) -> 53,082,500 | BV168: =BS168>BR168 -> TRUE | BW168: =B168 -> Serie A
B169: Bundesliga | C169: FC Bayern Munich | D169: 2 | E169: Alexander Nübel | F169: GK | G169: 28 | H169: GER | BF169: 9.0 | BG169: 2.0 | BH169: 6.0 | BI169: 7.5 | BJ169: 12.8 | BK169: 12.5 | BL169: 1.0 | BM169: 8.0 | BN169: 11.0 | BO169: 12.0 | BP169: 14.7 | BQ169: 14.1 | BR169: =IF(F169="GK",BQ169*10,SUM(BF169:BP169)) -> 141 | BS169: 150 | BT169: =IFERROR(VLOOKUP(C169,Reputation!$A$2:$G$181,7,FALSE),0) -> 95 | BU169: =MAX(BR169*75000+BT169*500000,50000) -> 58,075,000 | BV169: =BS169>BR169 -> TRUE | BW169: =B169 -> Bundesliga
B170: Serie A | C170: Lazio | D170: 9 | E170: Ivan Provedel | F170: GK | G170: 31 | H170: ITA | BF170: 8.7 | BG170: 2.5 | BH170: 6.3 | BI170: 5.8 | BJ170: 14.0 | BK170: 13.5 | BL170: 4.0 | BM170: 14.0 | BN170: 13.2 | BO170: 12.5 | BP170: 11.0 | BQ170: 14.1 | BR170: =IF(F170="GK",BQ170*10,SUM(BF170:BP170)) -> 141 | BS170: 155 | BT170: =IFERROR(VLOOKUP(C170,Reputation!$A$2:$G$181,7,FALSE),0) -> 85 | BU170: =MAX(BR170*75000+BT170*500000,50000) -> 53,075,000 | BV170: =BS170>BR170 -> TRUE | BW170: =B170 -> Serie A
B171: Premier League | C171: Brighton & Hove Albion | D171: 14 | E171: James Milner | F171: Outfield | G171: 39 | H171: ENG | BF171: 12.7 | BG171: 9.0 | BH171: 13.0 | BI171: 12.0 | BJ171: 14.6 | BK171: 17.5 | BL171: 12.8 | BM171: 10.5 | BN171: 14.7 | BO171: 8.5 | BP171: 15.7 | BQ171: 1.9 | BR171: =IF(F171="GK",BQ171*10,SUM(BF171:BP171)) -> 141 | BS171: 157 | BT171: =IFERROR(VLOOKUP(C171,Reputation!$A$2:$G$181,7,FALSE),0) -> 95.5 | BU171: =MAX(BR171*75000+BT171*500000,50000) -> 58,325,000 | BV171: =BS171>BR171 -> TRUE | BW171: =B171 -> Premier League
B172: Serie A | C172: Inter Milan | D172: 10 | E172: Henrikh Mkhitaryan | F172: Outfield | G172: 36 | H172: ARM | BF172: 13.7 | BG172: 13.5 | BH172: 11.3 | BI172: 14.8 | BJ172: 15.4 | BK172: 12.5 | BL172: 10.5 | BM172: 13.5 | BN172: 14.5 | BO172: 9.0 | BP172: 12.3 | BQ172: 2.5 | BR172: =IF(F172="GK",BQ172*10,SUM(BF172:BP172)) -> 141 | BS172: 165 | BT172: =IFERROR(VLOOKUP(C172,Reputation!$A$2:$G$181,7,FALSE),0) -> 90 | BU172: =MAX(BR172*75000+BT172*500000,50000) -> 55,575,000 | BV172: =BS172>BR172 -> TRUE | BW172: =B172 -> Serie A
B173: Premier League | C173: Manchester City | D173: 13 | E173: Mateo Kovačić | F173: Outfield | G173: 31 | H173: CRO | BF173: 13.0 | BG173: 8.5 | BH173: 13.0 | BI173: 16.3 | BJ173: 15.2 | BK173: 13.0 | BL173: 10.3 | BM173: 14.5 | BN173: 14.0 | BO173: 9.5 | BP173: 13.7 | BQ173: 1.9 | BR173: =IF(F173="GK",BQ173*10,SUM(BF173:BP173)) -> 141 | BS173: 172 | BT173: =IFERROR(VLOOKUP(C173,Reputation!$A$2:$G$181,7,FALSE),0) -> 100 | BU173: =MAX(BR173*75000+BT173*500000,50000) -> 60,575,000 | BV173: =BS173>BR173 -> TRUE | BW173: =B173 -> Premier League
B174: Serie A | C174: Roma | D174: 9 | E174: Lorenzo Pellegrini | F174: Outfield | G174: 29 | H174: ITA | BF174: 15.3 | BG174: 11.5 | BH174: 12.3 | BI174: 15.3 | BJ174: 13.0 | BK174: 14.0 | BL174: 11.5 | BM174: 12.5 | BN174: 13.7 | BO174: 9.5 | BP174: 12.3 | BQ174: 2.2 | BR174: =IF(F174="GK",BQ174*10,SUM(BF174:BP174)) -> 141 | BS174: 155 | BT174: =IFERROR(VLOOKUP(C174,Reputation!$A$2:$G$181,7,FALSE),0) -> 90 | BU174: =MAX(BR174*75000+BT174*500000,50000) -> 55,567,500 | BV174: =BS174>BR174 -> TRUE | BW174: =B174 -> Serie A
B175: LaLiga | C175: Real Mallorca | D175: 23 | E175: Vedat Muriqi | F175: Outfield | G175: 31 | H175: KOS | BF175: 11.0 | BG175: 13.0 | BH175: 8.7 | BI175: 11.3 | BJ175: 15.0 | BK175: 15.5 | BL175: 6.3 | BM175: 10.5 | BN175: 15.3 | BO175: 17.0 | BP175: 17.3 | BQ175: 2.0 | BR175: =IF(F175="GK",BQ175*10,SUM(BF175:BP175)) -> 141 | BS175: 144 | BT175: =IFERROR(VLOOKUP(C175,Reputation!$A$2:$G$181,7,FALSE),0) -> 70 | BU175: =MAX(BR175*75000+BT175*500000,50000) -> 45,567,500 | BV175: =BS175>BR175 -> TRUE | BW175: =B175 -> LaLiga
B176: Ligue 1 | C176: Nice | D176: 8 | E176: Gaëtan Laborde | F176: Outfield | G176: 31 | H176: FRA | BF176: 13.3 | BG176: 15.0 | BH176: 5.3 | BI176: 13.3 | BJ176: 13.8 | BK176: 15.5 | BL176: 8.3 | BM176: 12.0 | BN176: 15.2 | BO176: 15.5 | BP176: 13.7 | BQ176: 2.2 | BR176: =IF(F176="GK",BQ176*10,SUM(BF176:BP176)) -> 141 | BS176: 145 | BT176: =IFERROR(VLOOKUP(C176,Reputation!$A$2:$G$181,7,FALSE),0) -> 70 | BU176: =MAX(BR176*75000+BT176*500000,50000) -> 45,567,500 | BV176: =BS176>BR176 -> TRUE | BW176: =B176 -> Ligue 1
B177: Serie A | C177: Bologna | D177: 11 | E177: Juan Miranda | F177: Outfield | G177: 25 | H177: ESP | BF177: 14.3 | BG177: 11.0 | BH177: 12.0 | BI177: 13.3 | BJ177: 12.4 | BK177: 11.0 | BL177: 15.3 | BM177: 12.5 | BN177: 14.0 | BO177: 11.0 | BP177: 14.0 | BQ177: 1.9 | BR177: =IF(F177="GK",BQ177*10,SUM(BF177:BP177)) -> 141 | BS177: 148 | BT177: =IFERROR(VLOOKUP(C177,Reputation!$A$2:$G$181,7,FALSE),0) -> 80 | BU177: =MAX(BR177*75000+BT177*500000,50000) -> 50,560,000 | BV177: =BS177>BR177 -> TRUE | BW177: =B177 -> Serie A
B178: Bundesliga | C178: RB Leipzig | D178: 8 | E178: Christoph Baumgartner | F178: Outfield | G178: 25 | H178: AUT | BF178: 11.7 | BG178: 12.0 | BH178: 9.7 | BI178: 14.3 | BJ178: 14.2 | BK178: 13.5 | BL178: 10.5 | BM178: 14.0 | BN178: 14.7 | BO178: 12.5 | BP178: 13.7 | BQ178: 2.4 | BR178: =IF(F178="GK",BQ178*10,SUM(BF178:BP178)) -> 141 | BS178: 150 | BT178: =IFERROR(VLOOKUP(C178,Reputation!$A$2:$G$181,7,FALSE),0) -> 80 | BU178: =MAX(BR178*75000+BT178*500000,50000) -> 50,560,000 | BV178: =BS178>BR178 -> TRUE | BW178: =B178 -> Bundesliga
B179: Bundesliga | C179: Bayer 04 Leverkusen | D179: 13 | E179: Jonas Hofmann | F179: Outfield | G179: 32 | H179: GER | BF179: 15.0 | BG179: 12.0 | BH179: 9.3 | BI179: 13.3 | BJ179: 14.4 | BK179: 15.0 | BL179: 14.0 | BM179: 14.0 | BN179: 14.8 | BO179: 7.0 | BP179: 12.0 | BQ179: 1.9 | BR179: =IF(F179="GK",BQ179*10,SUM(BF179:BP179)) -> 141 | BS179: 152 | BT179: =IFERROR(VLOOKUP(C179,Reputation!$A$2:$G$181,7,FALSE),0) -> 80 | BU179: =MAX(BR179*75000+BT179*500000,50000) -> 50,560,000 | BV179: =BS179>BR179 -> TRUE | BW179: =B179 -> Bundesliga
B180: LaLiga | C180: Girona | D180: 17 | E180: Miguel Gutiérrez | F180: Outfield | G180: 23 | H180: ESP | BF180: 15.3 | BG180: 9.5 | BH180: 11.7 | BI180: 14.3 | BJ180: 14.6 | BK180: 13.5 | BL180: 11.0 | BM180: 14.5 | BN180: 14.0 | BO180: 10.0 | BP180: 12.3 | BQ180: 1.9 | BR180: =IF(F180="GK",BQ180*10,SUM(BF180:BP180)) -> 141 | BS180: 160 | BT180: =IFERROR(VLOOKUP(C180,Reputation!$A$2:$G$181,7,FALSE),0) -> 80 | BU180: =MAX(BR180*75000+BT180*500000,50000) -> 50,552,500 | BV180: =BS180>BR180 -> TRUE | BW180: =B180 -> LaLiga
B181: Bundesliga | C181: FC Bayern Munich | D181: 15 | E181: Konrad Laimer | F181: Outfield | G181: 28 | H181: AUT | BF181: 12.0 | BG181: 11.0 | BH181: 14.3 | BI181: 12.3 | BJ181: 14.2 | BK181: 16.0 | BL181: 7.3 | BM181: 14.5 | BN181: 14.8 | BO181: 8.5 | BP181: 15.7 | BQ181: 2.1 | BR181: =IF(F181="GK",BQ181*10,SUM(BF181:BP181)) -> 141 | BS181: 154 | BT181: =IFERROR(VLOOKUP(C181,Reputation!$A$2:$G$181,7,FALSE),0) -> 95 | BU181: =MAX(BR181*75000+BT181*500000,50000) -> 58,045,000 | BV181: =BS181>BR181 -> TRUE | BW181: =B181 -> Bundesliga
B182: LaLiga | C182: Real Betis | D182: 23 | E182: Ricardo Rodríguez | F182: Outfield | G182: 32 | H182: SUI | BF182: 13.0 | BG182: 10.0 | BH182: 13.7 | BI182: 11.5 | BJ182: 13.8 | BK182: 13.0 | BL182: 14.0 | BM182: 12.5 | BN182: 13.3 | BO182: 13.0 | BP182: 12.7 | BQ182: 2.0 | BR182: =IF(F182="GK",BQ182*10,SUM(BF182:BP182)) -> 141 | BS182: 149 | BT182: =IFERROR(VLOOKUP(C182,Reputation!$A$2:$G$181,7,FALSE),0) -> 85 | BU182: =MAX(BR182*75000+BT182*500000,50000) -> 53,037,500 | BV182: =BS182>BR182 -> TRUE | BW182: =B182 -> LaLiga
B183: Serie A | C183: Napoli | D183: 17 | E183: Mathías Olivera | F183: Outfield | G183: 27 | H183: URU | BF183: 12.7 | BG183: 9.5 | BH183: 14.3 | BI183: 12.3 | BJ183: 13.2 | BK183: 13 | BL183: 10.3 | BM183: 14 | BN183: 14.2 | BO183: 14 | BP183: 13 | BQ183: 1.8 | BR183: =IF(F183="GK",BQ183*10,SUM(BF183:BP183)) -> 141 | BS183: 150 | BT183: =IFERROR(VLOOKUP(C183,Reputation!$A$2:$G$181,7,FALSE),0) -> 85 | BU183: =MAX(BR183*75000+BT183*500000,50000) -> 53037500 | BV183: =BS183>BR183 -> TRUE | BW183: =B183 -> Serie A
B184: LaLiga | C184: Vilarreal | D184: 10 | E184: Gerard Moreno | F184: Outfield | G184: 33 | H184: ESP | BF184: 12.7 | BG184: 15.0 | BH184: 6.3 | BI184: 13.8 | BJ184: 14.8 | BK184: 13.5 | BL184: 10.0 | BM184: 13.5 | BN184: 14.0 | BO184: 13.5 | BP184: 13.3 | BQ184: 1.9 | BR184: =IF(F184="GK",BQ184*10,SUM(BF184:BP184)) -> 140 | BS184: 161 | BT184: =IFERROR(VLOOKUP(C184,Reputation!$A$2:$G$181,7,FALSE),0) -> 90 | BU184: =MAX(BR184*75000+BT184*500000,50000) -> 55,530,000 | BV184: =BS184>BR184 -> TRUE | BW184: =B184 -> LaLiga
B185: Ligue 1 | C185: Paris Saint-Germain | D185: 17 | E185: Milan Škriniar | F185: Outfield | G185: 30 | H185: SVK | BF185: 9.7 | BG185: 7.5 | BH185: 16.3 | BI185: 9.3 | BJ185: 14.8 | BK185: 15.0 | BL185: 7.3 | BM185: 13.5 | BN185: 13.7 | BO185: 16.0 | BP185: 17.3 | BQ185: 2.4 | BR185: =IF(F185="GK",BQ185*10,SUM(BF185:BP185)) -> 140 | BS185: 168 | BT185: =IFERROR(VLOOKUP(C185,Reputation!$A$2:$G$181,7,FALSE),0) -> 90 | BU185: =MAX(BR185*75000+BT185*500000,50000) -> 55,530,000 | BV185: =BS185>BR185 -> TRUE | BW185: =B185 -> Ligue 1
B186: Serie A | C186: Atalanta | D186: 15 | E186: Marten de Roon | F186: Outfield | G186: 34 | H186: NED | BF186: 11.0 | BG186: 9.0 | BH186: 15.7 | BI186: 10.5 | BJ186: 14.8 | BK186: 16.0 | BL186: 7.0 | BM186: 12.5 | BN186: 14.5 | BO186: 14.0 | BP186: 15.3 | BQ186: 1.8 | BR186: =IF(F186="GK",BQ186*10,SUM(BF186:BP186)) -> 140 | BS186: 152 | BT186: =IFERROR(VLOOKUP(C186,Reputation!$A$2:$G$181,7,FALSE),0) -> 90 | BU186: =MAX(BR186*75000+BT186*500000,50000) -> 55,522,500 | BV186: =BS186>BR186 -> TRUE | BW186: =B186 -> Serie A
B187: Bundesliga | C187: Eintracht Frankfurt | D187: 4 | E187: Ellyes Skhiri | F187: Outfield | G187: 30 | H187: TUN | BF187: 11.3 | BG187: 12.5 | BH187: 14.0 | BI187: 12.3 | BJ187: 14.6 | BK187: 14.5 | BL187: 5.8 | BM187: 12.5 | BN187: 15.5 | BO187: 13.0 | BP187: 14.3 | BQ187: 2.3 | BR187: =IF(F187="GK",BQ187*10,SUM(BF187:BP187)) -> 140 | BS187: 146 | BT187: =IFERROR(VLOOKUP(C187,Reputation!$A$2:$G$181,7,FALSE),0) -> 70 | BU187: =MAX(BR187*75000+BT187*500000,50000) -> 45,522,500 | BV187: =BS187>BR187 -> TRUE | BW187: =B187 -> Bundesliga
B188: LaLiga | C188: Girona | D188: 7 | E188: Daley Blind | F188: Outfield | G188: 35 | H188: NED | BF188: 14.7 | BG188: 8.0 | BH188: 14.0 | BI188: 11.8 | BJ188: 16.0 | BK188: 16.5 | BL188: 10.8 | BM188: 9.0 | BN188: 14.3 | BO188: 12.5 | BP188: 12.7 | BQ188: 1.8 | BR188: =IF(F188="GK",BQ188*10,SUM(BF188:BP188)) -> 140 | BS188: 152 | BT188: =IFERROR(VLOOKUP(C188,Reputation!$A$2:$G$181,7,FALSE),0) -> 80 | BU188: =MAX(BR188*75000+BT188*500000,50000) -> 50,522,500 | BV188: =BS188>BR188 -> TRUE | BW188: =B188 -> LaLiga
B189: Premier League | C189: Brentford | D189: 15 | E189: Kristoffer Ajer | F189: Outfield | G189: 27 | H189: NOR | BF189: 11.3 | BG189: 9.5 | BH189: 13.7 | BI189: 11 | BJ189: 14.2 | BK189: 14.5 | BL189: 8.5 | BM189: 13.5 | BN189: 13.2 | BO189: 15.5 | BP189: 15.3 | BQ189: 1.9 | BR189: =IF(F189="GK",BQ189*10,SUM(BF189:BP189)) -> 140 | BS189: 151 | BT189: =IFERROR(VLOOKUP(C189,Reputation!$A$2:$G$181,7,FALSE),0) -> 93 | BU189: =MAX(BR189*75000+BT189*500000,50000) -> 57015000 | BV189: =BS189>BR189 -> TRUE | BW189: =B189 -> Premier League
B190: LaLiga | C190: Celta Vigo | D190: 1 | E190: Borja Iglesias | F190: Outfield | G190: 32 | H190: ESP | BF190: 12.0 | BG190: 14.0 | BH190: 9.0 | BI190: 12.8 | BJ190: 14.2 | BK190: 13.5 | BL190: 10.3 | BM190: 12.5 | BN190: 13.2 | BO190: 14.0 | BP190: 14.7 | BQ190: 2.0 | BR190: =IF(F190="GK",BQ190*10,SUM(BF190:BP190)) -> 140 | BS190: 155 | BT190: =IFERROR(VLOOKUP(C190,Reputation!$A$2:$G$181,7,FALSE),0) -> 75 | BU190: =MAX(BR190*75000+BT190*500000,50000) -> 48,015,000 | BV190: =BS190>BR190 -> TRUE | BW190: =B190 -> LaLiga
B191: Serie A | C191: Juventus | D191: 7 | E191: Federico Gatti | F191: Outfield | G191: 27 | H191: ITA | BF191: 10.7 | BG191: 10.5 | BH191: 14.7 | BI191: 9.5 | BJ191: 14.2 | BK191: 15.0 | BL191: 6.8 | BM191: 12.5 | BN191: 13.8 | BO191: 15.5 | BP191: 17.0 | BQ191: 1.7 | BR191: =IF(F191="GK",BQ191*10,SUM(BF191:BP191)) -> 140 | BS191: 155 | BT191: =IFERROR(VLOOKUP(C191,Reputation!$A$2:$G$181,7,FALSE),0) -> 90 | BU191: =MAX(BR191*75000+BT191*500000,50000) -> 55,515,000 | BV191: =BS191>BR191 -> TRUE | BW191: =B191 -> Serie A
B192: Serie A | C192: Venezia | D192: 1 | E192: Alfred Duncan | F192: Outfield | G192: 32 | H192: GHA | BF192: 12.0 | BG192: 11.5 | BH192: 13.7 | BI192: 12.5 | BJ192: 13.6 | BK192: 13.0 | BL192: 11.3 | BM192: 13.0 | BN192: 14.7 | BO192: 10.0 | BP192: 14.7 | BQ192: 2.3 | BR192: =IF(F192="GK",BQ192*10,SUM(BF192:BP192)) -> 140 | BS192: 145 | BT192: =IFERROR(VLOOKUP(C192,Reputation!$A$2:$G$181,7,FALSE),0) -> 70 | BU192: =MAX(BR192*75000+BT192*500000,50000) -> 45,500,000 | BV192: =BS192>BR192 -> TRUE | BW192: =B192 -> Serie A
B193: LaLiga | C193: Real Sociedad | D193: 6 | E193: Aritz Elustondo | F193: Outfield | G193: 31 | H193: ESP | BF193: 13.0 | BG193: 11.5 | BH193: 14.3 | BI193: 9.8 | BJ193: 14.4 | BK193: 16.5 | BL193: 6.5 | BM193: 13.0 | BN193: 12.7 | BO193: 14.0 | BP193: 14.3 | BQ193: 1.8 | BR193: =IF(F193="GK",BQ193*10,SUM(BF193:BP193)) -> 140 | BS193: 145 | BT193: =IFERROR(VLOOKUP(C193,Reputation!$A$2:$G$181,7,FALSE),0) -> 85 | BU193: =MAX(BR193*75000+BT193*500000,50000) -> 53,000,000 | BV193: =BS193>BR193 -> TRUE | BW193: =B193 -> LaLiga
B194: Bundesliga | C194: Borussia Dortmund | D194: 17 | E194: Niklas Süle | F194: Outfield | G194: 29 | H194: GER | BF194: 13.0 | BG194: 10.0 | BH194: 14.7 | BI194: 12.5 | BJ194: 13.6 | BK194: 13.0 | BL194: 7.0 | BM194: 14.0 | BN194: 12.5 | BO194: 15.0 | BP194: 14.7 | BQ194: 1.2 | BR194: =IF(F194="GK",BQ194*10,SUM(BF194:BP194)) -> 140 | BS194: 159 | BT194: =IFERROR(VLOOKUP(C194,Reputation!$A$2:$G$181,7,FALSE),0) -> 90 | BU194: =MAX(BR194*75000+BT194*500000,50000) -> 55,500,000 | BV194: =BS194>BR194 -> TRUE | BW194: =B194 -> Bundesliga
B195: Premier League | C195: Chelsea | D195: 24 | E195: Robert Sánchez | F195: GK | G195: 27 | H195: ESP | BF195: 8.3 | BG195: 1.5 | BH195: 4.7 | BI195: 9.0 | BJ195: 11.0 | BK195: 9.5 | BL195: 5.8 | BM195: 11.0 | BN195: 11.2 | BO195: 9.5 | BP195: 12.3 | BQ195: 14.0 | BR195: =IF(F195="GK",BQ195*10,SUM(BF195:BP195)) -> 140 | BS195: 160 | BT195: =IFERROR(VLOOKUP(C195,Reputation!$A$2:$G$181,7,FALSE),0) -> 98 | BU195: =MAX(BR195*75000+BT195*500000,50000) -> 59,500,000 | BV195: =BS195>BR195 -> TRUE | BW195: =B195 -> Premier League
B196: LaLiga | C196: Athletic Bilbao | D196: 26 | E196: Unai Simón | F196: GK | G196: 28 | H196: ESP | BF196: 9.7 | BG196: 1.0 | BH196: 6.7 | BI196: 7.3 | BJ196: 13.8 | BK196: 12.5 | BL196: 4.5 | BM196: 13.0 | BN196: 10.2 | BO196: 14.0 | BP196: 9.7 | BQ196: 14.0 | BR196: =IF(F196="GK",BQ196*10,SUM(BF196:BP196)) -> 140 | BS196: 168 | BT196: =IFERROR(VLOOKUP(C196,Reputation!$A$2:$G$181,7,FALSE),0) -> 85 | BU196: =MAX(BR196*75000+BT196*500000,50000) -> 53,000,000 | BV196: =BS196>BR196 -> TRUE | BW196: =B196 -> LaLiga
B197: Ligue 1 | C197: Paris Saint-Germain | D197: 8 | E197: Gianluigi Donnarumma | F197: GK | G197: 26 | H197: ITA | BF197: 6.0 | BG197: 1.0 | BH197: 7.7 | BI197: 5.8 | BJ197: 14.6 | BK197: 14.5 | BL197: 4.3 | BM197: 10.5 | BN197: 12.8 | BO197: 12.5 | BP197: 13.3 | BQ197: 14.0 | BR197: =IF(F197="GK",BQ197*10,SUM(BF197:BP197)) -> 140 | BS197: 170 | BT197: =IFERROR(VLOOKUP(C197,Reputation!$A$2:$G$181,7,FALSE),0) -> 90 | BU197: =MAX(BR197*75000+BT197*500000,50000) -> 55,500,000 | BV197: =BS197>BR197 -> TRUE | BW197: =B197 -> Ligue 1
B198: Premier League | C198: Manchester City | D198: 16 | E198: Phil Foden | F198: Outfield | G198: 25 | H198: ENG | BF198: 15.7 | BG198: 13.5 | BH198: 8.7 | BI198: 16.8 | BJ198: 14.8 | BK198: 11.0 | BL198: 10.8 | BM198: 16.0 | BN198: 15.5 | BO198: 7.5 | BP198: 9.7 | BQ198: 1.7 | BR198: =IF(F198="GK",BQ198*10,SUM(BF198:BP198)) -> 140 | BS198: 180 | BT198: =IFERROR(VLOOKUP(C198,Reputation!$A$2:$G$181,7,FALSE),0) -> 100 | BU198: =MAX(BR198*75000+BT198*500000,50000) -> 60,500,000 | BV198: =BS198>BR198 -> TRUE | BW198: =B198 -> Premier League
B199: LaLiga | C199: Athletic Madrid | D199: 5 | E199: Axel Witsel | F199: Outfield | G199: 36 | H199: BEL | BF199: 12.3 | BG199: 10.0 | BH199: 12.7 | BI199: 12.8 | BJ199: 16.4 | BK199: 15.5 | BL199: 9.8 | BM199: 10.0 | BN199: 14.3 | BO199: 13.5 | BP199: 12.7 | BQ199: 1.5 | BR199: =IF(F199="GK",BQ199*10,SUM(BF199:BP199)) -> 140 | BS199: 160 | BT199: =IFERROR(VLOOKUP(C199,Reputation!$A$2:$G$181,7,FALSE),0) -> 90 | BU199: =MAX(BR199*75000+BT199*500000,50000) -> 55,500,000 | BV199: =BS199>BR199 -> TRUE | BW199: =B199 -> LaLiga
B200: LaLiga | C200: Girona | D200: 16 | E200: Ladislav Krejčí | F200: Outfield | G200: 26 | H200: CZE | BF200: 10.3 | BG200: 11.5 | BH200: 12.7 | BI200: 11.8 | BJ200: 13.8 | BK200: 14.5 | BL200: 9.3 | BM200: 13.0 | BN200: 13.3 | BO200: 15.0 | BP200: 14.7 | BQ200: 1.7 | BR200: =IF(F200="GK",BQ200*10,SUM(BF200:BP200)) -> 140 | BS200: 144 | BT200: =IFERROR(VLOOKUP(C200,Reputation!$A$2:$G$181,7,FALSE),0) -> 80 | BU200: =MAX(BR200*75000+BT200*500000,50000) -> 50,492,500 | BV200: =BS200>BR200 -> TRUE | BW200: =B200 -> LaLiga
... 4300 more rows

Sheet New Game
B2: Welcome to the Wonderful World of Football Management in Excel.
B3: Take your favourite English team through the professional pyramid and try to win the treble
B4: Hint- Before your first play read through the Information tab or check out the YouTube Tutorial
B5: YouTube Link
B7: Tutorial/ Information Tab
B10: Choose Your Team
B17: Note - For Premier League Teams Only. Given the shorter season vs lower leagues, the first few match weeks of a season you will not play any league matches.
B18: When you continue you will get a series of results for the other leagues - this is normal!

Sheet Information
B3: Navigation Bar
B7: Use the above buttons to navigate through the important Team Management elements. When you are ready to Progress click the button with Red Text, if you get stuck read through this page below.
B9: Note - For Premier League Teams Only. Given the shorter season, the first few match weeks you will not play any league matches!
B11: Tab 1: Team Hub
B12: This is the 'home' of this football manager game. It shows an overview of your team that you are managing.
B13: On the Left hand side you can see information on the Season, the match week, the Division your team players in and the next game type coming up
B14: In the Middle of the screen you can see your current team selection and tactics - make sure you change this regularly to have the best team on the pitch!
B15: On the Right hand side of the screen you will get an updated league table for your respective league!
B17: Tab 2 : Tactics and Team Selection
B18: This tab is split into two parts. The top half and the bottom half
B19: The top half of the tab outlines your squad (up to 30 players) and their respective player attributes. There are 10 attributes in this game that impact attack, midfield strength and defence differently.
B20: The bottom half of this tab has two key tables. The left hand table is the tactic and squad picker - you need to select a formation in the yellow cell and the players in the orange cells.
B21: The right hand table on the bottom helps in team selection as it outlines the best 12 players in attack, midfield and defence- with coloured cells to show if any good players are left out
B22: It is important to click the 'Set Tactics and Team Choice' button otherwise your selections and tactics will not be carried forward to match day.
B24: Tab 3: Training
B25: This tab outlines the training and development of your squad.
B26: Depending on squad selection (starting, bench or reserve) players development each match week will be different. Note starters have the best development, with reserves the worst
B27: Column S shows each players worst attribute (in case you want to focus just on player weaknesses)
B28: Column T lets you select what attribute to work on that match week.
B29: It is important to click the 'Set Training' button to save down what attribute to train for that player
B30: Note - in terms of development, players 33 and older will start to lose some of their skill each match week.
B32: Tab 4: Team Lookup
B33: This tab lets you investigate all the teams within the game. Use the Yellow Coloured cell drop down to select another team and see how they compare to yours.
B34: Warning - sometimes this can take a few seconds to load, so after you select a team just wait 5 seconds to make sure the data loads completely.
B36: Tab 5: Player Search
B37: This player search tab lets you look up any player in the database - to see their attributes and value.
B38: This tab also lets you imitate swap transfers if the transfer is open.
B39: To undertake a player search - It is recommended to either search by player by clicking the drop down arrow next to name and typing into the search bar or by ordering by an attribute/value of choice by clicking one of the drop down arrows and selecting sort.
B41: To propose a transfer select the player you want to buy into your team, and the player you want to cell into the two yellow drop down bars and click the make offer button.
B42: After adding a new player into your squad - don’t forget to go back to the 'Tactics and Team Selection' and 'Training' to make sure those are set up properly
B44: Tab 6: League Fixtures
B45: This tab has three key features
B46: 1. Rows 10-16 show the match weeks and respective features (league matches, pre-season, EFL cups or FA cup)
B47: 2. Rows 24-74 show league fixtures for all 4 English professional leagues. Note left most team is the home team. Check out the League Table tab to lookup any nickname that you need.
B48: 3. Rows 77-126 show league results for all 4 English professional leagues as they occur. These are to be read in conjunction with the league fixtures above.
B50: Tab 7: League Table
B51: This tab outlines the current league standings across all 4 professional leagues.
B53: Tab 8: Cup Fixtures
B54: This tab outlines the drawn fixtures and results for both cup completions. Any teams that have byes (only relevant for second rounds of both cups will be shown in column U
B56: Tab 9: Team Reputation
B57: This tab lets you search the most reputable team - this is based on previous finishing positions and current squad strength.
B58: Team reputation is updated at the end of every season, depending how a team performed
B60: Tab 10: Release (end of Season only)
B61: This tab allows for unwanted players to be released at the end of the season. It is important to get rid of some players if you have a full squad because you want to make room for youth recruitment
B62: Note up to 3 youth players will join your team before the first game week each season if there are spots available in your squad.
B63: Select what players to be released in the purpose cells and click the 'release players' button.
B64: Note you can only release players at the end of the season only.
B66: Match Results
B67: Match results are generated using a random normal distribution of results. If two teams are equal in strength the most common outcome will be a draw.
B68: Results are skewed away from a random normal distribution of results due to 1) home advantage driving a small skew and 2) relative strength of tactic/squad selection (largest skew).
B70: Cup Results
B71: Cup draws and results are adjusted to only include the 4 professional leagues in English Football. This means the draw works differently then in real life.
B72: The first round is for League 2 Teams only. League 1 teams join in the second round, with 4 teams getting buys. Premier League and Championship teams join in the third round.
B73: Instead of playing extra time/ penalties - in the case of a draw, the away team is awarded the victory.
B75: End of Season
B76: There are no promotion playoffs - instead the spots are allocated to the next best team (i.e. third place league team from the championship gets promoted to the premier league)
B77: All players age up at the end of season.
B78: All AI teams release their worst players.
B79: All AI teams get new youth players.
B80: All reputations are reset based on league performance
B82: If you need any further help - check out the tutorials on my YouTube Page
B83: YouTube Link

Sheet Team Hub (hidden)
B3: Season | C3: =2024+'Game State'!B3-1&"/"&25+'Game State'!B3-1 -> 2025/26 | E3: Formation | K3: Teams | L3: English Rank | M3: Nickname | N3: Played | O3: Won | P3: Drawn | Q3: Lost | R3: GF | S3: GA | T3: GD | U3: Points | V3: Table Rank
B4: Match Week | C4: ='Game State'!B4 -> 1 | E4: ='Selection and Tactics'!C37 -> 0 | I4: =IF($C$5="Premier League",3,IF($C$5="Championship",25,IF($C$5="League One",51,77))) -> 77 | J4: =INDEX('League Table'!A:M,'Team Hub'!I4,1) -> 1 | K4: =INDEX('League Table'!A:M,'Team Hub'!I4,2) -> Stockport County | L4: =INDEX('League Table'!A:M,'Team Hub'!I4,3) -> 69 | M4: =INDEX('League Table'!A:M,'Team Hub'!I4,4) -> STP | N4: =INDEX('League Table'!A:M,'Team Hub'!I4,5) -> 0 | O4: =INDEX('League Table'!A:M,'Team Hub'!I4,6) -> 0 | P4: =INDEX('League Table'!A:M,'Team Hub'!I4,7) -> 0 | Q4: =INDEX('League Table'!A:M,'Team Hub'!I4,8) -> 0 | R4: =INDEX('League Table'!A:M,'Team Hub'!I4,9) -> 0 | S4: =INDEX('League Table'!A:M,'Team Hub'!I4,10) -> 0 | T4: =INDEX('League Table'!A:M,'Team Hub'!I4,11) -> 0 | U4: =INDEX('League Table'!A:M,'Team Hub'!I4,12) -> 0 | V4: =INDEX('League Table'!A:M,'Team Hub'!I4,13) -> 6
B5: Division | C5: ='Game State'!B2 -> League Two | E5: Team Selection | I5: =IF($C$5="Premier League",4,IF($C$5="Championship",26,IF($C$5="League One",52,78))) -> 78 | J5: =INDEX('League Table'!A:M,'Team Hub'!I5,1) -> 2 | K5: =INDEX('League Table'!A:M,'Team Hub'!I5,2) -> Mansfield Town | L5: =INDEX('League Table'!A:M,'Team Hub'!I5,3) -> 69 | M5: =INDEX('League Table'!A:M,'Team Hub'!I5,4) -> MAN | N5: =INDEX('League Table'!A:M,'Team Hub'!I5,5) -> 0 | O5: =INDEX('League Table'!A:M,'Team Hub'!I5,6) -> 0 | P5: =INDEX('League Table'!A:M,'Team Hub'!I5,7) -> 0 | Q5: =INDEX('League Table'!A:M,'Team Hub'!I5,8) -> 0 | R5: =INDEX('League Table'!A:M,'Team Hub'!I5,9) -> 0 | S5: =INDEX('League Table'!A:M,'Team Hub'!I5,10) -> 0 | T5: =INDEX('League Table'!A:M,'Team Hub'!I5,11) -> 0 | U5: =INDEX('League Table'!A:M,'Team Hub'!I5,12) -> 0 | V5: =INDEX('League Table'!A:M,'Team Hub'!I5,13) -> 11
B6: Next Fixture | C6: =IF(C5="Premier League",HLOOKUP(C4,'League Fixtures'!A10:BL23,6,FALSE),HLOOKUP(C4,'League Fixtures'!A10:BL23,7,FALSE)) -> League Match 1 | E6: ='Selection and Tactics'!B38 -> Starting 11 | F6: ='Selection and Tactics'!C38 -> 1 | G6: ='Selection and Tactics'!D38 -> GK | H6: ='Selection and Tactics'!E38 -> 0 | I6: =IF($C$5="Premier League",5,IF($C$5="Championship",27,IF($C$5="League One",53,79))) -> 79 | J6: =INDEX('League Table'!A:M,'Team Hub'!I6,1) -> 3 | K6: =INDEX('League Table'!A:M,'Team Hub'!I6,2) -> Stevenage | L6: =INDEX('League Table'!A:M,'Team Hub'!I6,3) -> 69 | M6: =INDEX('League Table'!A:M,'Team Hub'!I6,4) -> STE | N6: =INDEX('League Table'!A:M,'Team Hub'!I6,5) -> 0 | O6: =INDEX('League Table'!A:M,'Team Hub'!I6,6) -> 0 | P6: =INDEX('League Table'!A:M,'Team Hub'!I6,7) -> 0 | Q6: =INDEX('League Table'!A:M,'Team Hub'!I6,8) -> 0 | R6: =INDEX('League Table'!A:M,'Team Hub'!I6,9) -> 0 | S6: =INDEX('League Table'!A:M,'Team Hub'!I6,10) -> 0 | T6: =INDEX('League Table'!A:M,'Team Hub'!I6,11) -> 0 | U6: =INDEX('League Table'!A:M,'Team Hub'!I6,12) -> 0 | V6: =INDEX('League Table'!A:M,'Team Hub'!I6,13) -> 5
B7: Transfer Window Status | E7: ='Selection and Tactics'!B39 -> Starting 11 | F7: ='Selection and Tactics'!C39 -> 2 | G7: ='Selection and Tactics'!D39 ->  | H7: ='Selection and Tactics'!E39 -> 0 | I7: =IF($C$5="Premier League",6,IF($C$5="Championship",28,IF($C$5="League One",54,80))) -> 80 | J7: =INDEX('League Table'!A:M,'Team Hub'!I7,1) -> 4 | K7: =INDEX('League Table'!A:M,'Team Hub'!I7,2) -> Crawley Town | L7: =INDEX('League Table'!A:M,'Team Hub'!I7,3) -> 69 | M7: =INDEX('League Table'!A:M,'Team Hub'!I7,4) -> CRA | N7: =INDEX('League Table'!A:M,'Team Hub'!I7,5) -> 0 | O7: =INDEX('League Table'!A:M,'Team Hub'!I7,6) -> 0 | P7: =INDEX('League Table'!A:M,'Team Hub'!I7,7) -> 0 | Q7: =INDEX('League Table'!A:M,'Team Hub'!I7,8) -> 0 | R7: =INDEX('League Table'!A:M,'Team Hub'!I7,9) -> 0 | S7: =INDEX('League Table'!A:M,'Team Hub'!I7,10) -> 0 | T7: =INDEX('League Table'!A:M,'Team Hub'!I7,11) -> 0 | U7: =INDEX('League Table'!A:M,'Team Hub'!I7,12) -> 0 | V7: =INDEX('League Table'!A:M,'Team Hub'!I7,13) -> 19
B8: =VLOOKUP(C4,'Game State'!B22:C84,2,FALSE) -> Open | E8: ='Selection and Tactics'!B40 -> Starting 11 | F8: ='Selection and Tactics'!C40 -> 3 | G8: ='Selection and Tactics'!D40 ->  | H8: ='Selection and Tactics'!E40 -> 0 | I8: =IF($C$5="Premier League",7,IF($C$5="Championship",29,IF($C$5="League One",55,81))) -> 81 | J8: =INDEX('League Table'!A:M,'Team Hub'!I8,1) -> 5 | K8: =INDEX('League Table'!A:M,'Team Hub'!I8,2) -> Bradford City | L8: =INDEX('League Table'!A:M,'Team Hub'!I8,3) -> 69 | M8: =INDEX('League Table'!A:M,'Team Hub'!I8,4) -> BRA | N8: =INDEX('League Table'!A:M,'Team Hub'!I8,5) -> 0 | O8: =INDEX('League Table'!A:M,'Team Hub'!I8,6) -> 0 | P8: =INDEX('League Table'!A:M,'Team Hub'!I8,7) -> 0 | Q8: =INDEX('League Table'!A:M,'Team Hub'!I8,8) -> 0 | R8: =INDEX('League Table'!A:M,'Team Hub'!I8,9) -> 0 | S8: =INDEX('League Table'!A:M,'Team Hub'!I8,10) -> 0 | T8: =INDEX('League Table'!A:M,'Team Hub'!I8,11) -> 0 | U8: =INDEX('League Table'!A:M,'Team Hub'!I8,12) -> 0 | V8: =INDEX('League Table'!A:M,'Team Hub'!I8,13) -> 22
E9: ='Selection and Tactics'!B41 -> Starting 11 | F9: ='Selection and Tactics'!C41 -> 4 | G9: ='Selection and Tactics'!D41 ->  | H9: ='Selection and Tactics'!E41 -> 0 | I9: =IF($C$5="Premier League",8,IF($C$5="Championship",30,IF($C$5="League One",56,82))) -> 82 | J9: =INDEX('League Table'!A:M,'Team Hub'!I9,1) -> 6 | K9: =INDEX('League Table'!A:M,'Team Hub'!I9,2) -> Notts County | L9: =INDEX('League Table'!A:M,'Team Hub'!I9,3) -> 69 | M9: =INDEX('League Table'!A:M,'Team Hub'!I9,4) -> NTC | N9: =INDEX('League Table'!A:M,'Team Hub'!I9,5) -> 0 | O9: =INDEX('League Table'!A:M,'Team Hub'!I9,6) -> 0 | P9: =INDEX('League Table'!A:M,'Team Hub'!I9,7) -> 0 | Q9: =INDEX('League Table'!A:M,'Team Hub'!I9,8) -> 0 | R9: =INDEX('League Table'!A:M,'Team Hub'!I9,9) -> 0 | S9: =INDEX('League Table'!A:M,'Team Hub'!I9,10) -> 0 | T9: =INDEX('League Table'!A:M,'Team Hub'!I9,11) -> 0 | U9: =INDEX('League Table'!A:M,'Team Hub'!I9,12) -> 0 | V9: =INDEX('League Table'!A:M,'Team Hub'!I9,13) -> 9
B10: Next League Match | E10: ='Selection and Tactics'!B42 -> Starting 11 | F10: ='Selection and Tactics'!C42 -> 5 | G10: ='Selection and Tactics'!D42 ->  | H10: ='Selection and Tactics'!E42 -> 0 | I10: =IF($C$5="Premier League",9,IF($C$5="Championship",31,IF($C$5="League One",57,83))) -> 83 | J10: =INDEX('League Table'!A:M,'Team Hub'!I10,1) -> 7 | K10: =INDEX('League Table'!A:M,'Team Hub'!I10,2) -> Carlisle United | L10: =INDEX('League Table'!A:M,'Team Hub'!I10,3) -> 69 | M10: =INDEX('League Table'!A:M,'Team Hub'!I10,4) -> CRU | N10: =INDEX('League Table'!A:M,'Team Hub'!I10,5) -> 0 | O10: =INDEX('League Table'!A:M,'Team Hub'!I10,6) -> 0 | P10: =INDEX('League Table'!A:M,'Team Hub'!I10,7) -> 0 | Q10: =INDEX('League Table'!A:M,'Team Hub'!I10,8) -> 0 | R10: =INDEX('League Table'!A:M,'Team Hub'!I10,9) -> 0 | S10: =INDEX('League Table'!A:M,'Team Hub'!I10,10) -> 0 | T10: =INDEX('League Table'!A:M,'Team Hub'!I10,11) -> 0 | U10: =INDEX('League Table'!A:M,'Team Hub'!I10,12) -> 0 | V10: =INDEX('League Table'!A:M,'Team Hub'!I10,13) -> 18
B11: =C5 -> League Two | E11: ='Selection and Tactics'!B43 -> Starting 11 | F11: ='Selection and Tactics'!C43 -> 6 | G11: ='Selection and Tactics'!D43 ->  | H11: ='Selection and Tactics'!E43 -> 0 | I11: =IF($C$5="Premier League",10,IF($C$5="Championship",32,IF($C$5="League One",58,84))) -> 84 | J11: =INDEX('League Table'!A:M,'Team Hub'!I11,1) -> 8 | K11: =INDEX('League Table'!A:M,'Team Hub'!I11,2) -> Doncaster Rovers | L11: =INDEX('League Table'!A:M,'Team Hub'!I11,3) -> 69 | M11: =INDEX('League Table'!A:M,'Team Hub'!I11,4) -> DON | N11: =INDEX('League Table'!A:M,'Team Hub'!I11,5) -> 0 | O11: =INDEX('League Table'!A:M,'Team Hub'!I11,6) -> 0 | P11: =INDEX('League Table'!A:M,'Team Hub'!I11,7) -> 0 | Q11: =INDEX('League Table'!A:M,'Team Hub'!I11,8) -> 0 | R11: =INDEX('League Table'!A:M,'Team Hub'!I11,9) -> 0 | S11: =INDEX('League Table'!A:M,'Team Hub'!I11,10) -> 0 | T11: =INDEX('League Table'!A:M,'Team Hub'!I11,11) -> 0 | U11: =INDEX('League Table'!A:M,'Team Hub'!I11,12) -> 0 | V11: =INDEX('League Table'!A:M,'Team Hub'!I11,13) -> 14
